Workbook

Sheet ACCUEIL
H7: 2019-06-30
A22: Lexique

Sheet Accueilagence
A1: Accueil
E7: =ACCUEIL!H7 -> 2019-06-30

Sheet Accueilsecteur
A1: Accueil
E7: =ACCUEIL!H7 -> 2019-06-30

Sheet AccueilDircom
A1: Accueil
E7: =ACCUEIL!H7 -> 2019-06-30

Sheet DC_FICHE
A1: Accueil
A2: BAROMETRE BDD
A4: UNITE: | B4: DIRECTION REGIONALE | K4: ETP perf : | L4: =VLOOKUP(A5,'RECAP DIRCOM'!$G$6:$I$12,3,FALSE) -> 296.88
A5: =VLOOKUP(B5,LISTES!$M$6:$N$12,2,FALSE) -> 262 | B5: BAS-RHIN
C6: Coefficient du critére | E6: Résultats | I6: Ecart au 1ier | M6: Evolution
E7: du 1ier | G7: DIRECTION | I7: Du mois | K7: Au 31/12/2018
A9: RANG au CLASSEMENT GENERAL | I9: =VLOOKUP($A$5,'RECAP DIRCOM'!$G$6:$FE$312,154,FALSE) -> 7 | K9: =VLOOKUP($A$5,'RECAP DIRCOM AN'!$G$6:$FE$312,154,FALSE) -> 5 | M9: =+K9-I9 -> -2
A11: CRITERE CONQUETE | C11: 15%
B12: Evolution nette Clients Bancarisés Principaux (BP +JBP) par ETP | C12: 4% | E12: ='RECAP DIRCOM'!K4 -> -0.5 | G12: =VLOOKUP($A$5,'RECAP DIRCOM'!$G$6:$FE$312,5,FALSE) -> -2.1 | I12: =VLOOKUP($A$5,'RECAP DIRCOM'!$G$6:$FE$312,6,FALSE) -> 98% | K12: =VLOOKUP($A$5,'RECAP DIRCOM AN'!$G$6:$FE$312,6,FALSE) -> 126% | M12: =+K12-I12 -> 28%
B13: Evolution nette relations Premium par ETP | C13: 4% | E13: ='RECAP DIRCOM'!N4 -> 1.8 | G13: =VLOOKUP($A$5,'RECAP DIRCOM'!$G$6:$FE$312,8,FALSE) -> 1.5 | I13: =VLOOKUP($A$5,'RECAP DIRCOM'!$G$6:$FE$312,9,FALSE) -> 16% | K13: =VLOOKUP($A$5,'RECAP DIRCOM AN'!$G$6:$FE$312,9,FALSE) -> 0% | M13: =+K13-I13 -> -16%
B14: Evolution nette Clients Bancarisés Principaux équipés par ETP | C14: 3% | E14: ='RECAP DIRCOM'!Q4 -> 1.6 | G14: =VLOOKUP($A$5,'RECAP DIRCOM'!$G$6:$FE$312,11,FALSE) -> -1.6 | I14: =VLOOKUP($A$5,'RECAP DIRCOM'!$G$6:$FE$312,12,FALSE) -> 140% | K14: =VLOOKUP($A$5,'RECAP DIRCOM AN'!$G$6:$FE$312,12,FALSE) -> 115% | M14: -24%
B15: Evolution nette Clients Pro actif équipés par rapport à l’objectif fixé | C15: 4% | E15: ='RECAP DIRCOM'!T4 -> 75% | G15: =VLOOKUP($A$5,'RECAP DIRCOM'!$G$6:$FE$312,14,FALSE) -> 1% | I15: =VLOOKUP($A$5,'RECAP DIRCOM'!$G$6:$FE$312,15,FALSE) -> 99% | K15: =VLOOKUP($A$5,'RECAP DIRCOM AN'!$G$6:$FE$312,15,FALSE) -> 134% | M15: 36%
A17: CRITERE EQUIPEMENT BANCARISATION | C17: 15%
B18: Ventes nettes forfaits (+ 2 options) par ETP | C18: 3% | E18: ='RECAP DIRCOM'!AF4 -> -7.8 | G18: =VLOOKUP($A$5,'RECAP DIRCOM'!$G$6:$FE$312,26,FALSE) -> -7.8 | I18: =VLOOKUP($A$5,'RECAP DIRCOM'!$G$6:$FE$312,27,FALSE) -> 0% | K18: =VLOOKUP($A$5,'RECAP DIRCOM AN'!$G$6:$FE$312,27,FALSE) -> 0% | M18: =+K18-I18 -> 0%
B19: Ventes nettes IZICARTES par ETP | C19: 3% | E19: ='RECAP DIRCOM'!AI4 -> 7.3 | G19: =VLOOKUP($A$5,'RECAP DIRCOM'!$G$6:$FE$312,29,FALSE) -> 2.8 | I19: =VLOOKUP($A$5,'RECAP DIRCOM'!$G$6:$FE$312,30,FALSE) -> 62% | K19: =VLOOKUP($A$5,'RECAP DIRCOM AN'!$G$6:$FE$312,30,FALSE) -> 18% | M19: -43%
B20: Ventes nettes cartes HDG par ETP | C20: 3% | E20: ='RECAP DIRCOM'!AL4 -> 11.3 | G20: =VLOOKUP($A$5,'RECAP DIRCOM'!$G$6:$FE$312,32,FALSE) -> 7.3 | I20: =VLOOKUP($A$5,'RECAP DIRCOM'!$G$6:$FE$312,33,FALSE) -> 35% | K20: =VLOOKUP($A$5,'RECAP DIRCOM AN'!$G$6:$FE$312,33,FALSE) -> 33% | M20: -2%
B21: Vente nette CB débit différé par ETP | C21: 3% | E21: ='RECAP DIRCOM'!AO4 -> 4.9 | G21: =VLOOKUP($A$5,'RECAP DIRCOM'!$G$6:$FE$312,35,FALSE) -> 3.8 | I21: =VLOOKUP($A$5,'RECAP DIRCOM'!$G$6:$FE$312,36,FALSE) -> 22% | K21: =VLOOKUP($A$5,'RECAP DIRCOM AN'!$G$6:$FE$312,36,FALSE) -> 80% | M21: 57%
B22: Ventes nettes banca Pro Forfaits Pro, Carte pro par rapport à l’objectif | C22: 3% | E22: ='RECAP DIRCOM'!AR4 -> 74% | G22: =VLOOKUP($A$5,'RECAP DIRCOM'!$G$6:$FE$312,38,FALSE) -> 27% | I22: =VLOOKUP($A$5,'RECAP DIRCOM'!$G$6:$FE$312,39,FALSE) -> 64% | K22: =VLOOKUP($A$5,'RECAP DIRCOM AN'!$G$6:$FE$312,39,FALSE) -> 98% | M22: 34%
A24: CRITERE EPARGNE | C24: 15%
B25: Excédents de collecte (y.c DAV) par ETP | C25: 2% | E25: ='RECAP DIRCOM'!BD4 -> 95.0 | G25: =VLOOKUP($A$5,'RECAP DIRCOM'!$G$6:$FE$312,50,FALSE) -> 52.5 | I25: =VLOOKUP($A$5,'RECAP DIRCOM'!$G$6:$FE$312,51,FALSE) -> 45% | K25: =VLOOKUP($A$5,'RECAP DIRCOM AN'!$G$6:$FE$312,51,FALSE) -> 21% | M25: =+K25-I25 -> -24%
B26: CA assurance vie par ETP | C26: 2% | E26: ='RECAP DIRCOM'!BG4 -> 341.4 | G26: =VLOOKUP($A$5,'RECAP DIRCOM'!$G$6:$FE$312,53,FALSE) -> 240.4 | I26: =VLOOKUP($A$5,'RECAP DIRCOM'!$G$6:$FE$312,54,FALSE) -> 30% | K26: =VLOOKUP($A$5,'RECAP DIRCOM AN'!$G$6:$FE$312,54,FALSE) -> 24% | M26: -6%
B27: Activité UC (CA+arbitrage) par ETP | C27: 2% | E27: ='RECAP DIRCOM'!BJ4 -> 117.2 | G27: =VLOOKUP($A$5,'RECAP DIRCOM'!$G$6:$FE$312,56,FALSE) -> 98.1 | I27: =VLOOKUP($A$5,'RECAP DIRCOM'!$G$6:$FE$312,57,FALSE) -> 16% | K27: =VLOOKUP($A$5,'RECAP DIRCOM AN'!$G$6:$FE$312,57,FALSE) -> 20% | M27: 3%
B28: Excédents Assurance-vie par ETP | C28: 2% | E28: ='RECAP DIRCOM'!BM4 -> 123.1 | G28: =VLOOKUP($A$5,'RECAP DIRCOM'!$G$6:$FE$312,59,FALSE) -> 39.1 | I28: =VLOOKUP($A$5,'RECAP DIRCOM'!$G$6:$FE$312,60,FALSE) -> 68% | K28: =VLOOKUP($A$5,'RECAP DIRCOM AN'!$G$6:$FE$312,60,FALSE) -> 94% | M28: 25%
B29: Excédents Epargne Bilan (Hors Emprunts CTO) par ETP | C29: 7% | E29: ='RECAP DIRCOM'!BP4 -> 78.8 | G29: =VLOOKUP($A$5,'RECAP DIRCOM'!$G$6:$FE$312,62,FALSE) -> 41.5 | I29: =VLOOKUP($A$5,'RECAP DIRCOM'!$G$6:$FE$312,63,FALSE) -> 47% | K29: =VLOOKUP($A$5,'RECAP DIRCOM AN'!$G$6:$FE$312,63,FALSE) -> 0% | M29: -47%
A31: CRITERE CREDITS | C31: 15%
B32: Engagement Conso par ETP (hors clients 9) | C32: 3% | E32: ='RECAP DIRCOM'!CB4 -> 235.5 | G32: =VLOOKUP($A$5,'RECAP DIRCOM'!$G$6:$FE$312,74,FALSE) -> 181.2 | I32: =VLOOKUP($A$5,'RECAP DIRCOM'!$G$6:$FE$312,75,FALSE) -> 23% | K32: =VLOOKUP($A$5,'RECAP DIRCOM AN'!$G$6:$FE$312,75,FALSE) -> 21% | M32: =+K32-I32 -> -2%
B33: % CNP sur Conso en valeur absolue | C33: 2% | E33: ='RECAP DIRCOM'!CE4 -> 96% | G33: =VLOOKUP($A$5,'RECAP DIRCOM'!$G$6:$FE$312,77,FALSE) -> 94% | I33: =VLOOKUP($A$5,'RECAP DIRCOM'!$G$6:$FE$312,78,FALSE) -> 3% | K33: =VLOOKUP($A$5,'RECAP DIRCOM AN'!$G$6:$FE$312,78,FALSE) -> 0% | M33: -3%
B34: Engagements Immo par rapport à l’objectif | C34: 3% | E34: ='RECAP DIRCOM'!CH4 -> 53% | G34: =VLOOKUP($A$5,'RECAP DIRCOM'!$G$6:$FE$312,80,FALSE) -> 44% | I34: =VLOOKUP($A$5,'RECAP DIRCOM'!$G$6:$FE$312,81,FALSE) -> 17% | K34: =VLOOKUP($A$5,'RECAP DIRCOM AN'!$G$6:$FE$312,81,FALSE) -> 29% | M34: 12%
B35: % CNP sur crédits immo en valeur absolue | C35: 2% | E35: ='RECAP DIRCOM'!CK4 -> 77% | G35: =VLOOKUP($A$5,'RECAP DIRCOM'!$G$6:$FE$312,83,FALSE) -> 58% | I35: =VLOOKUP($A$5,'RECAP DIRCOM'!$G$6:$FE$312,84,FALSE) -> 25% | K35: =VLOOKUP($A$5,'RECAP DIRCOM AN'!$G$6:$FE$312,84,FALSE) -> 8% | M35: -17%
B36: Taux de couverture SACCEF | C36: 2% | E36: ='RECAP DIRCOM'!CN4 -> 90% | G36: =VLOOKUP($A$5,'RECAP DIRCOM'!$G$6:$FE$312,86,FALSE) -> 80% | I36: =VLOOKUP($A$5,'RECAP DIRCOM'!$G$6:$FE$312,87,FALSE) -> 11% | K36: =VLOOKUP($A$5,'RECAP DIRCOM AN'!$G$6:$FE$312,87,FALSE) -> 0% | M36: -11%
B37: Engagements CMLT + CB par rapport à l’objectif | C37: 3% | E37: ='RECAP DIRCOM'!CQ4 -> 70% | G37: =VLOOKUP($A$5,'RECAP DIRCOM'!$G$6:$FE$312,89,FALSE) -> 49% | I37: =VLOOKUP($A$5,'RECAP DIRCOM'!$G$6:$FE$312,90,FALSE) -> 30% | K37: =VLOOKUP($A$5,'RECAP DIRCOM AN'!$G$6:$FE$312,90,FALSE) -> 13% | M37: -17%
A39: CRITERE IARD PREVOYANCE | C39: 20%
B40: Ventes nettes IARD (Auto+MRH+ Pro) par ETP | C40: 7% | E40: ='RECAP DIRCOM'!DC4 -> 6.0 | G40: =VLOOKUP($A$5,'RECAP DIRCOM'!$G$6:$FE$312,101,FALSE) -> 4.0 | I40: =VLOOKUP($A$5,'RECAP DIRCOM'!$G$6:$FE$312,102,FALSE) -> 34% | K40: =VLOOKUP($A$5,'RECAP DIRCOM AN'!$G$6:$FE$312,102,FALSE) -> 23% | M40: =+K40-I40 -> -11%
B41: Ventes nettes Prévoyance (GAV, secur.f,prevoy loc,santé,assist.vie, obséques, Pro) par ETP | C41: 7% | E41: ='RECAP DIRCOM'!DF4 -> 11.1 | G41: =VLOOKUP($A$5,'RECAP DIRCOM'!$G$6:$FE$312,104,FALSE) -> 5.4 | I41: =VLOOKUP($A$5,'RECAP DIRCOM'!$G$6:$FE$312,105,FALSE) -> 51% | K41: =VLOOKUP($A$5,'RECAP DIRCOM AN'!$G$6:$FE$312,105,FALSE) -> 7% | M41: -44%
B42: Chiffre d’affaires IARD (Yc Pro) par ETP | C42: 6% | E42: ='RECAP DIRCOM'!DI4 -> 6.7 | G42: =VLOOKUP($A$5,'RECAP DIRCOM'!$G$6:$FE$312,107,FALSE) -> 5.9 | I42: =VLOOKUP($A$5,'RECAP DIRCOM'!$G$6:$FE$312,108,FALSE) -> 11% | K42: =VLOOKUP($A$5,'RECAP DIRCOM AN'!$G$6:$FE$312,108,FALSE) -> 11% | M42: 1%
A44: CRITERE RISQUES | C44: 10%
B45: Complétude, conformité et fiabilisation des nouvelles EER sur flux BDD | C45: 3% | E45: ='RECAP DIRCOM'!DU4 -> 98% | G45: =VLOOKUP($A$5,'RECAP DIRCOM'!$G$6:$FE$312,119,FALSE) -> 95% | I45: =VLOOKUP($A$5,'RECAP DIRCOM'!$G$6:$FE$312,120,FALSE) -> 3% | K45: =VLOOKUP($A$5,'RECAP DIRCOM AN'!$G$6:$FE$312,120,FALSE) -> 3% | M45: =+K45-I45 -> 0%
B46: Complétude, conformité et fiabilisation des EER sur flux cumulé et stock | C46: 3% | E46: ='RECAP DIRCOM'!DX4 -> 78% | G46: =VLOOKUP($A$5,'RECAP DIRCOM'!$G$6:$FE$312,122,FALSE) -> 71% | I46: =VLOOKUP($A$5,'RECAP DIRCOM'!$G$6:$FE$312,123,FALSE) -> 9% | K46: =VLOOKUP($A$5,'RECAP DIRCOM AN'!$G$6:$FE$312,123,FALSE) -> 8% | M46: -1%
B47: Traitement et qualité du traitement des alertes Vigiclient | C47: 4% | E47: ='RECAP DIRCOM'!EA4 -> 100% | G47: =VLOOKUP($A$5,'RECAP DIRCOM'!$G$6:$FE$312,125,FALSE) -> 87% | I47: =VLOOKUP($A$5,'RECAP DIRCOM'!$G$6:$FE$312,126,FALSE) -> 13% | K47: =VLOOKUP($A$5,'RECAP DIRCOM AN'!$G$6:$FE$312,126,FALSE) -> 25% | M47: 12%
A49: CRITERE Satisfaction Clients | C49: 10%
B50: Objectifs NPS* | C50: 5% | E50: ='RECAP DIRCOM'!EM4 -> -6 | G50: =VLOOKUP($A$5,'RECAP DIRCOM'!$G$6:$FE$312,137,FALSE) -> -23 | I50: =VLOOKUP($A$5,'RECAP DIRCOM'!$G$6:$FE$312,138,FALSE) -> 150% | K50: =VLOOKUP($A$5,'RECAP DIRCOM AN'!$G$6:$FE$312,138,FALSE) -> 144% | M50: =+K50-I50 -> -6%
B51: Enquête Qualité Haute Définition | C51: 5% | E51: ='RECAP DIRCOM'!EP4 -> 78% | G51: =VLOOKUP($A$5,'RECAP DIRCOM'!$G$6:$FE$312,140,FALSE) -> 72% | I51: =VLOOKUP($A$5,'RECAP DIRCOM'!$G$6:$FE$312,141,FALSE) -> 7% | K51: =VLOOKUP($A$5,'RECAP DIRCOM AN'!$G$6:$FE$312,141,FALSE) -> 2% | M51: -5%

Sheet DC_OBJECTIF
A1: Accueil | D1: BAROMETRE BDD - DIRECTIONS REGIONALES
D2: PV PART SUR OBJECTIFS
D3: =ACCUEIL!H7 -> 2019-06-30
D7: Excédent de collecte par ETP yc DAV | G7: Engagements crédit conso par ETP (hors clients note octroi à 9 et DRC complet) | J7: Ventes brutes IARD prevoyance Part et Pro (si DRC complet) par ETP | M7: Evolution des Bpe+JBPe par ETP | P7: PNB sur activité nouvelle (yc bonus digital) par ETP
E8: Taux d'atteinte saisonalisé | F8: =VLOOKUP(ACCUEIL!$H$7,Tableau1[],2,FALSE) -> 50% | H8: Taux d'atteinte saisonalisé | I8: =VLOOKUP(ACCUEIL!$H$7,Tableau1[],3,FALSE) -> 50% | K8: Taux d'atteinte saisonalisé | L8: =VLOOKUP(ACCUEIL!$H$7,Tableau1[],4,FALSE) -> 50% | N8: Taux d'atteinte saisonalisé | O8: =VLOOKUP(ACCUEIL!$H$7,Tableau1[],5,FALSE) -> 50% | Q8: Taux d'atteinte saisonalisé | R8: =VLOOKUP(ACCUEIL!$H$7,Tableau1[],6,FALSE) -> 50%
A9: eds | B9: Direction | C9: ETP perf | D9: Réal | E9: Obj | F9: % | G9: Réal | H9: Obj | I9: % | J9: Réal | K9: Obj | L9: % | M9: Réal | N9: Obj | O9: % | P9: Réal | Q9: Obj | R9: % | T9: <80% | U9: 100% | V9: 110% | W9: 120%
A10: 50 | B10: Aube Haute Marne | C10: =VLOOKUP($A10,'RECAP DIRCOM'!$G$6:$EV$12,3,FALSE) -> 146 | D10: =VLOOKUP($A10,'RECAP DIRCOM'!$G$6:$FZ$12,158,FALSE) -> 49 | E10: =VLOOKUP($A10,'RECAP DIRCOM'!$G$6:$FZ$12,159,FALSE) -> 116 | F10: =VLOOKUP($A10,'RECAP DIRCOM'!$G$6:$FZ$12,160,FALSE) -> 42% | G10: =VLOOKUP($A10,'RECAP DIRCOM'!$G$6:$FZ$12,161,FALSE) -> 235 | H10: =VLOOKUP($A10,'RECAP DIRCOM'!$G$6:$FZ$12,162,FALSE) -> 467 | I10: =VLOOKUP($A10,'RECAP DIRCOM'!$G$6:$FZ$12,163,FALSE) -> 50% | J10: =VLOOKUP($A10,'RECAP DIRCOM'!$G$6:$FZ$12,164,FALSE) -> 23 | K10: =VLOOKUP($A10,'RECAP DIRCOM'!$G$6:$FZ$12,165,FALSE) -> 59 | L10: =VLOOKUP($A10,'RECAP DIRCOM'!$G$6:$FZ$12,166,FALSE) -> 40% | M10: =VLOOKUP($A10,'RECAP DIRCOM'!$G$6:$FZ$12,167,FALSE) -> 2 | N10: =VLOOKUP($A10,'RECAP DIRCOM'!$G$6:$FZ$12,168,FALSE) -> 4 | O10: =VLOOKUP($A10,'RECAP DIRCOM'!$G$6:$FZ$12,169,FALSE) -> 41% | P10: =VLOOKUP($A10,'RECAP DIRCOM'!$G$6:$FZ$12,170,FALSE) -> 63 | Q10: =VLOOKUP($A10,'RECAP DIRCOM'!$G$6:$FZ$12,171,FALSE) -> 132 | R10: =VLOOKUP($A10,'RECAP DIRCOM'!$G$6:$FZ$12,172,FALSE) -> 47% | T10: =$F$8*0.8 -> 40% | U10: =$F$8 -> 50% | V10: =$F$8*1.1 -> 55% | W10: =$F$8*1.2 -> 60%
A11: 262 | B11: Bas-Rhin | C11: =VLOOKUP($A11,'RECAP DIRCOM'!$G$6:$EV$12,3,FALSE) -> 297 | D11: =VLOOKUP($A11,'RECAP DIRCOM'!$G$6:$FZ$12,158,FALSE) -> 52 | E11: =VLOOKUP($A11,'RECAP DIRCOM'!$G$6:$FZ$12,159,FALSE) -> 128 | F11: =VLOOKUP($A11,'RECAP DIRCOM'!$G$6:$FZ$12,160,FALSE) -> 41% | G11: =VLOOKUP($A11,'RECAP DIRCOM'!$G$6:$FZ$12,161,FALSE) -> 181 | H11: =VLOOKUP($A11,'RECAP DIRCOM'!$G$6:$FZ$12,162,FALSE) -> 467 | I11: =VLOOKUP($A11,'RECAP DIRCOM'!$G$6:$FZ$12,163,FALSE) -> 39% | J11: =VLOOKUP($A11,'RECAP DIRCOM'!$G$6:$FZ$12,164,FALSE) -> 23 | K11: =VLOOKUP($A11,'RECAP DIRCOM'!$G$6:$FZ$12,165,FALSE) -> 59 | L11: =VLOOKUP($A11,'RECAP DIRCOM'!$G$6:$FZ$12,166,FALSE) -> 39% | M11: =VLOOKUP($A11,'RECAP DIRCOM'!$G$6:$FZ$12,167,FALSE) -> -2 | N11: =VLOOKUP($A11,'RECAP DIRCOM'!$G$6:$FZ$12,168,FALSE) -> 4 | O11: =VLOOKUP($A11,'RECAP DIRCOM'!$G$6:$FZ$12,169,FALSE) -> -40% | P11: =VLOOKUP($A11,'RECAP DIRCOM'!$G$6:$FZ$12,170,FALSE) -> 53 | Q11: =VLOOKUP($A11,'RECAP DIRCOM'!$G$6:$FZ$12,171,FALSE) -> 136 | R11: =VLOOKUP($A11,'RECAP DIRCOM'!$G$6:$FZ$12,172,FALSE) -> 39% | T11: =$F$8*0.8 -> 40% | U11: =$F$8 -> 50% | V11: =$F$8*1.1 -> 55% | W11: =$F$8*1.2 -> 60%
A12: 264 | B12: Haut-Rhin | C12: =VLOOKUP($A12,'RECAP DIRCOM'!$G$6:$EV$12,3,FALSE) -> 179 | D12: =VLOOKUP($A12,'RECAP DIRCOM'!$G$6:$FZ$12,158,FALSE) -> 93 | E12: =VLOOKUP($A12,'RECAP DIRCOM'!$G$6:$FZ$12,159,FALSE) -> 132 | F12: =VLOOKUP($A12,'RECAP DIRCOM'!$G$6:$FZ$12,160,FALSE) -> 70% | G12: =VLOOKUP($A12,'RECAP DIRCOM'!$G$6:$FZ$12,161,FALSE) -> 169 | H12: =VLOOKUP($A12,'RECAP DIRCOM'!$G$6:$FZ$12,162,FALSE) -> 467 | I12: =VLOOKUP($A12,'RECAP DIRCOM'!$G$6:$FZ$12,163,FALSE) -> 36% | J12: =VLOOKUP($A12,'RECAP DIRCOM'!$G$6:$FZ$12,164,FALSE) -> 21 | K12: =VLOOKUP($A12,'RECAP DIRCOM'!$G$6:$FZ$12,165,FALSE) -> 59 | L12: =VLOOKUP($A12,'RECAP DIRCOM'!$G$6:$FZ$12,166,FALSE) -> 36% | M12: =VLOOKUP($A12,'RECAP DIRCOM'!$G$6:$FZ$12,167,FALSE) -> -2 | N12: =VLOOKUP($A12,'RECAP DIRCOM'!$G$6:$FZ$12,168,FALSE) -> 4 | O12: =VLOOKUP($A12,'RECAP DIRCOM'!$G$6:$FZ$12,169,FALSE) -> -46% | P12: =VLOOKUP($A12,'RECAP DIRCOM'!$G$6:$FZ$12,170,FALSE) -> 53 | Q12: =VLOOKUP($A12,'RECAP DIRCOM'!$G$6:$FZ$12,171,FALSE) -> 140 | R12: =VLOOKUP($A12,'RECAP DIRCOM'!$G$6:$FZ$12,172,FALSE) -> 38% | T12: 40% | U12: 50% | V12: 55% | W12: 60%
A13: 30 | B13: Marne-Ardennes | C13: =VLOOKUP($A13,'RECAP DIRCOM'!$G$6:$EV$12,3,FALSE) -> 238 | D13: =VLOOKUP($A13,'RECAP DIRCOM'!$G$6:$FZ$12,158,FALSE) -> 87 | E13: =VLOOKUP($A13,'RECAP DIRCOM'!$G$6:$FZ$12,159,FALSE) -> 133 | F13: =VLOOKUP($A13,'RECAP DIRCOM'!$G$6:$FZ$12,160,FALSE) -> 65% | G13: =VLOOKUP($A13,'RECAP DIRCOM'!$G$6:$FZ$12,161,FALSE) -> 236 | H13: =VLOOKUP($A13,'RECAP DIRCOM'!$G$6:$FZ$12,162,FALSE) -> 467 | I13: =VLOOKUP($A13,'RECAP DIRCOM'!$G$6:$FZ$12,163,FALSE) -> 50% | J13: =VLOOKUP($A13,'RECAP DIRCOM'!$G$6:$FZ$12,164,FALSE) -> 29 | K13: =VLOOKUP($A13,'RECAP DIRCOM'!$G$6:$FZ$12,165,FALSE) -> 59 | L13: =VLOOKUP($A13,'RECAP DIRCOM'!$G$6:$FZ$12,166,FALSE) -> 49% | M13: =VLOOKUP($A13,'RECAP DIRCOM'!$G$6:$FZ$12,167,FALSE) -> 1 | N13: =VLOOKUP($A13,'RECAP DIRCOM'!$G$6:$FZ$12,168,FALSE) -> 4 | O13: =VLOOKUP($A13,'RECAP DIRCOM'!$G$6:$FZ$12,169,FALSE) -> 31% | P13: =VLOOKUP($A13,'RECAP DIRCOM'!$G$6:$FZ$12,170,FALSE) -> 65 | Q13: =VLOOKUP($A13,'RECAP DIRCOM'!$G$6:$FZ$12,171,FALSE) -> 140 | R13: =VLOOKUP($A13,'RECAP DIRCOM'!$G$6:$FZ$12,172,FALSE) -> 46% | T13: 40% | U13: 50% | V13: 55% | W13: 60%
A14: 110 | B14: Meurthe et Moselle Meuse | C14: =VLOOKUP($A14,'RECAP DIRCOM'!$G$6:$EV$12,3,FALSE) -> 264 | D14: =VLOOKUP($A14,'RECAP DIRCOM'!$G$6:$FZ$12,158,FALSE) -> 80 | E14: =VLOOKUP($A14,'RECAP DIRCOM'!$G$6:$FZ$12,159,FALSE) -> 118 | F14: =VLOOKUP($A14,'RECAP DIRCOM'!$G$6:$FZ$12,160,FALSE) -> 68% | G14: =VLOOKUP($A14,'RECAP DIRCOM'!$G$6:$FZ$12,161,FALSE) -> 218 | H14: =VLOOKUP($A14,'RECAP DIRCOM'!$G$6:$FZ$12,162,FALSE) -> 467 | I14: =VLOOKUP($A14,'RECAP DIRCOM'!$G$6:$FZ$12,163,FALSE) -> 47% | J14: =VLOOKUP($A14,'RECAP DIRCOM'!$G$6:$FZ$12,164,FALSE) -> 24 | K14: =VLOOKUP($A14,'RECAP DIRCOM'!$G$6:$FZ$12,165,FALSE) -> 59 | L14: =VLOOKUP($A14,'RECAP DIRCOM'!$G$6:$FZ$12,166,FALSE) -> 40% | M14: =VLOOKUP($A14,'RECAP DIRCOM'!$G$6:$FZ$12,167,FALSE) -> -0 | N14: =VLOOKUP($A14,'RECAP DIRCOM'!$G$6:$FZ$12,168,FALSE) -> 4 | O14: =VLOOKUP($A14,'RECAP DIRCOM'!$G$6:$FZ$12,169,FALSE) -> -6% | P14: =VLOOKUP($A14,'RECAP DIRCOM'!$G$6:$FZ$12,170,FALSE) -> 59 | Q14: =VLOOKUP($A14,'RECAP DIRCOM'!$G$6:$FZ$12,171,FALSE) -> 131 | R14: =VLOOKUP($A14,'RECAP DIRCOM'!$G$6:$FZ$12,172,FALSE) -> 45% | T14: 40% | U14: 50% | V14: 55% | W14: 60%
A15: 160 | B15: Moselle | C15: =VLOOKUP($A15,'RECAP DIRCOM'!$G$6:$EV$12,3,FALSE) -> 307 | D15: =VLOOKUP($A15,'RECAP DIRCOM'!$G$6:$FZ$12,158,FALSE) -> 95 | E15: =VLOOKUP($A15,'RECAP DIRCOM'!$G$6:$FZ$12,159,FALSE) -> 117 | F15: =VLOOKUP($A15,'RECAP DIRCOM'!$G$6:$FZ$12,160,FALSE) -> 81% | G15: =VLOOKUP($A15,'RECAP DIRCOM'!$G$6:$FZ$12,161,FALSE) -> 217 | H15: =VLOOKUP($A15,'RECAP DIRCOM'!$G$6:$FZ$12,162,FALSE) -> 467 | I15: =VLOOKUP($A15,'RECAP DIRCOM'!$G$6:$FZ$12,163,FALSE) -> 46% | J15: =VLOOKUP($A15,'RECAP DIRCOM'!$G$6:$FZ$12,164,FALSE) -> 25 | K15: =VLOOKUP($A15,'RECAP DIRCOM'!$G$6:$FZ$12,165,FALSE) -> 59 | L15: =VLOOKUP($A15,'RECAP DIRCOM'!$G$6:$FZ$12,166,FALSE) -> 42% | M15: =VLOOKUP($A15,'RECAP DIRCOM'!$G$6:$FZ$12,167,FALSE) -> 1 | N15: =VLOOKUP($A15,'RECAP DIRCOM'!$G$6:$FZ$12,168,FALSE) -> 4 | O15: =VLOOKUP($A15,'RECAP DIRCOM'!$G$6:$FZ$12,169,FALSE) -> 13% | P15: =VLOOKUP($A15,'RECAP DIRCOM'!$G$6:$FZ$12,170,FALSE) -> 61 | Q15: =VLOOKUP($A15,'RECAP DIRCOM'!$G$6:$FZ$12,171,FALSE) -> 134 | R15: =VLOOKUP($A15,'RECAP DIRCOM'!$G$6:$FZ$12,172,FALSE) -> 46% | T15: 40% | U15: 50% | V15: 55% | W15: 60%
A16: 80 | B16: Vosges | C16: =VLOOKUP($A16,'RECAP DIRCOM'!$G$6:$EV$12,3,FALSE) -> 148 | D16: =VLOOKUP($A16,'RECAP DIRCOM'!$G$6:$FZ$12,158,FALSE) -> 95 | E16: =VLOOKUP($A16,'RECAP DIRCOM'!$G$6:$FZ$12,159,FALSE) -> 110 | F16: =VLOOKUP($A16,'RECAP DIRCOM'!$G$6:$FZ$12,160,FALSE) -> 86% | G16: =VLOOKUP($A16,'RECAP DIRCOM'!$G$6:$FZ$12,161,FALSE) -> 196 | H16: =VLOOKUP($A16,'RECAP DIRCOM'!$G$6:$FZ$12,162,FALSE) -> 467 | I16: =VLOOKUP($A16,'RECAP DIRCOM'!$G$6:$FZ$12,163,FALSE) -> 42% | J16: =VLOOKUP($A16,'RECAP DIRCOM'!$G$6:$FZ$12,164,FALSE) -> 23 | K16: =VLOOKUP($A16,'RECAP DIRCOM'!$G$6:$FZ$12,165,FALSE) -> 59 | L16: =VLOOKUP($A16,'RECAP DIRCOM'!$G$6:$FZ$12,166,FALSE) -> 39% | M16: =VLOOKUP($A16,'RECAP DIRCOM'!$G$6:$FZ$12,167,FALSE) -> -1 | N16: =VLOOKUP($A16,'RECAP DIRCOM'!$G$6:$FZ$12,168,FALSE) -> 4 | O16: =VLOOKUP($A16,'RECAP DIRCOM'!$G$6:$FZ$12,169,FALSE) -> -18% | P16: =VLOOKUP($A16,'RECAP DIRCOM'!$G$6:$FZ$12,170,FALSE) -> 59 | Q16: =VLOOKUP($A16,'RECAP DIRCOM'!$G$6:$FZ$12,171,FALSE) -> 127 | R16: =VLOOKUP($A16,'RECAP DIRCOM'!$G$6:$FZ$12,172,FALSE) -> 47% | T16: 40% | U16: 50% | V16: 55% | W16: 60%
E17: ='RECAP DIRCOM'!GG13 -> 0 | F17: ='RECAP DIRCOM'!GH13 -> 2 | H17: ='RECAP DIRCOM'!GL13 -> 2 | I17: ='RECAP DIRCOM'!GM13 -> 3 | K17: ='RECAP DIRCOM'!GQ13 -> 4 | L17: ='RECAP DIRCOM'!GR13 -> 3 | N17: ='RECAP DIRCOM'!GV13 -> 6 | O17: ='RECAP DIRCOM'!GW13 -> 1 | Q17: ='RECAP DIRCOM'!HA13 -> 2 | R17: ='RECAP DIRCOM'!HB13 -> 5
A18: Total CEGEE Directions Régionales | C18: =SUM(C10:C16) -> 1578 | E18: ='RECAP DIRCOM'!GI13 -> 0 | F18: ='RECAP DIRCOM'!GJ13 -> 5 | H18: ='RECAP DIRCOM'!GN13 -> 2 | I18: ='RECAP DIRCOM'!GO13 -> 0 | K18: ='RECAP DIRCOM'!GS13 -> 0 | L18: ='RECAP DIRCOM'!GT13 -> 0 | N18: ='RECAP DIRCOM'!GX13 -> 0 | O18: ='RECAP DIRCOM'!GY13 -> 0 | Q18: ='RECAP DIRCOM'!HC13 -> 0 | R18: ='RECAP DIRCOM'!HD13 -> 0
B21: Taux d'atteinte objectif annuel > 110 % ou 120 % en saisonnalisé en fonction des critères (collecte 110 %, autres 120 %)
B23: Taux d'atteinte objectif annuel entre 100 % et 110 % ou 120 % en saisonnalisé en fonction des critères (collecte 110 %, autres 120 %)
B25: Taux d'atteinte objectif annuel entre 80 % et 100 % en saisonnalisé
B27: Taux d'atteinte objectif annuel < 80 % en saisonnalisé

Sheet DC_TOTAL
A1: Accueil | D1: BAROMETRE BDD - DIRECTIONS REGIONALES
D2: TOTAL GENERAL
D3: =ACCUEIL!H7 -> 2019-06-30
D7: TOTAL GENERAL | G7: Total Conquête | J7: Total Equipement Bancarisation | M7: Total Epargne | P7: Total Crédits | S7: Total IARD Prévoyance | V7: Total Risques | Y7: Total Satisfaction Clients
E8: coef | F8: 100% | H8: coef | I8: ='RECAP DIRCOM'!$Y$4 -> 15% | K8: coef | L8: ='RECAP DIRCOM'!$AW$4 -> 15% | N8: coef | O8: ='RECAP DIRCOM'!$BU$4 -> 15% | Q8: coef | R8: ='RECAP DIRCOM'!$CV$4 -> 15% | T8: coef | U8: ='RECAP DIRCOM'!$DN$4 -> 20% | W8: coef | X8: ='RECAP DIRCOM'!$EF$4 -> 10% | Z8: coef | AA8: ='RECAP DIRCOM'!$EU$4 -> 10%
A9: eds | B9: Direction | C9: ETP perf | D9: Moyenne ecart au 1er | E9: % Ecart au 1er | F9: Rang CEGEE | G9: Moyenne ecart au 1er | H9: % Ecart au 1er | I9: Rang CEGEE | J9: Moyenne ecart au 1er | K9: % Ecart au 1er | L9: Rang CEGEE | M9: Moyenne ecart au 1er | N9: % Ecart au 1er | O9: Rang CEGEE | P9: Moyenne ecart au 1er | Q9: % Ecart au 1er | R9: Rang CEGEE | S9: Moyenne ecart au 1er | T9: % Ecart au 1er | U9: Rang CEGEE | V9: Moyenne ecart au 1er | W9: % Ecart au 1er | X9: Rang CEGEE | Y9: Moyenne ecart au 1er | Z9: % Ecart au 1er | AA9: Rang CEGEE
A10: 30 | B10: Marne-Ardennes | C10: 238 | D10: 3% | E10: 0% | F10: 1 | G10: 36% | H10: 6% | I10: 2 | J10: 19% | K10: 0% | L10: 1 | M10: 32% | N10: 14% | O10: 3 | P10: 3% | Q10: 0% | R10: 1 | S10: 1% | T10: 0% | U10: 1 | V10: 3% | W10: 1% | X10: 3 | Y10: 0% | Z10: 0% | AA10: 1
A11: 160 | B11: Moselle | C11: 307 | D11: 14% | E11: 11% | F11: 2 | G11: 49% | H11: 19% | I11: 3 | J11: 26% | K11: 7% | L11: 3 | M11: 31% | N11: 13% | O11: 2 | P11: 18% | Q11: 15% | R11: 6 | S11: 18% | T11: 17% | U11: 2 | V11: 1% | W11: 0% | X11: 1 | Y11: 27% | Z11: 27% | AA11: 3
A12: 50 | B12: Aube Haute Marne | C12: 146 | D12: 16% | E12: 13% | F12: 3 | G12: 30% | H12: 0% | I12: 1 | J12: 26% | K12: 7% | L12: 4 | M12: 73% | N12: 55% | O12: 7 | P12: 10% | Q12: 7% | R12: 3 | S12: 25% | T12: 24% | U12: 4 | V12: 1% | W12: 0% | X12: 2 | Y12: 10% | Z12: 10% | AA12: 2
A13: 80 | B13: Vosges | C13: 148 | D13: 19% | E13: 16% | F13: 4 | G13: 73% | H13: 43% | I13: 5 | J13: 25% | K13: 6% | L13: 2 | M13: 38% | N13: 20% | O13: 5 | P13: 7% | Q13: 4% | R13: 2 | S13: 25% | T13: 24% | U13: 5 | V13: 3% | W13: 2% | X13: 4 | Y13: 31% | Z13: 31% | AA13: 4
A14: 110 | B14: Meurthe et Moselle Meuse | C14: 264 | D14: 21% | E14: 18% | F14: 5 | G14: 62% | H14: 32% | I14: 4 | J14: 47% | K14: 28% | L14: 6 | M14: 38% | N14: 20% | O14: 4 | P14: 14% | Q14: 11% | R14: 5 | S14: 20% | T14: 18% | U14: 3 | V14: 8% | W14: 7% | X14: 6 | Y14: 32% | Z14: 32% | AA14: 5
A15: 264 | B15: Haut-Rhin | C15: 179 | D15: 30% | E15: 27% | F15: 6 | G15: 97% | H15: 66% | I15: 7 | J15: 48% | K15: 29% | L15: 7 | M15: 18% | N15: 0% | O15: 1 | P15: 13% | Q15: 10% | R15: 4 | S15: 36% | T15: 35% | U15: 7 | V15: 3% | W15: 2% | X15: 5 | Y15: 69% | Z15: 69% | AA15: 6
A16: 262 | B16: Bas-Rhin | C16: 297 | D16: 32% | E16: 29% | F16: 7 | G16: 85% | H16: 54% | I16: 6 | J16: 37% | K16: 18% | L16: 5 | M16: 43% | N16: 25% | O16: 6 | P16: 19% | Q16: 16% | R16: 7 | S16: 33% | T16: 32% | U16: 6 | V16: 8% | W16: 7% | X16: 7 | Y16: 79% | Z16: 79% | AA16: 7
A17: Total CEGEE Directions Régionales | C17: =SUM(C10:C16) -> 1578

Sheet DC_BANCA
A1: Accueil | D1: BAROMETRE BDD - DIRECTIONS REGIONALES
D2: EQUIPEMENT BANCARISATION
D3: =ACCUEIL!H7 -> 2019-06-30
D7: Ventes nettes FORFAITS avec 2 options | G7: Ventes nettes IZICARTES | J7: Ventes nettes Cartes HDG | M7: Ventes nettes CB débit différé | P7: Ventes nettes banca Pro | S7: Total Equipement Bancarisation
E8: coef | F8: ='RECAP DIRCOM'!AH4 -> 3% | H8: coef | I8: ='RECAP DIRCOM'!AK4 -> 3% | K8: coef | L8: ='RECAP DIRCOM'!AN4 -> 3% | N8: coef | O8: ='RECAP DIRCOM'!AQ4 -> 3% | Q8: coef | R8: ='RECAP DIRCOM'!AT4 -> 3% | T8: coef | U8: ='RECAP DIRCOM'!AW4 -> 15%
A9: eds | B9: Direction | C9: ETP perf | D9: Nb / ETP | E9: % Ecart au 1er | F9: Rang | G9: Nb / ETP | H9: % Ecart au 1er | I9: Rang | J9: Nb / ETP | K9: % Ecart au 1er | L9: Rang | M9: Nb / ETP | N9: % Ecart au 1er | O9: Rang | P9: Taux réal objectif | Q9: % Ecart au 1er | R9: Rang | S9: Moyenne ecart au 1er | T9: % Ecart au 1er | U9: Rang CEGEE
A10: 50 | B10: Aube Haute Marne | C10: =VLOOKUP($A10,'RECAP DIRCOM'!$G$6:$EV$12,3,FALSE) -> 146 | D10: =VLOOKUP($A10,'RECAP DIRCOM'!$G$6:$EV$12,26,FALSE) -> -11.27 | E10: =VLOOKUP($A10,'RECAP DIRCOM'!$G$6:$EV$12,27,FALSE) -> 45% | F10: =VLOOKUP($A10,'RECAP DIRCOM'!$G$6:$EV$12,28,FALSE) -> 4 | G10: =VLOOKUP($A10,'RECAP DIRCOM'!$G$6:$EV$12,29,FALSE) -> 4.73 | H10: =VLOOKUP($A10,'RECAP DIRCOM'!$G$6:$EV$12,30,FALSE) -> 36% | I10: =VLOOKUP($A10,'RECAP DIRCOM'!$G$6:$EV$12,31,FALSE) -> 4 | J10: =VLOOKUP($A10,'RECAP DIRCOM'!$G$6:$EV$12,32,FALSE) -> 8.47 | K10: =VLOOKUP($A10,'RECAP DIRCOM'!$G$6:$EV$12,33,FALSE) -> 25% | L10: =VLOOKUP($A10,'RECAP DIRCOM'!$G$6:$EV$12,34,FALSE) -> 2 | M10: =VLOOKUP($A10,'RECAP DIRCOM'!$G$6:$EV$12,35,FALSE) -> 4.53 | N10: =VLOOKUP($A10,'RECAP DIRCOM'!$G$6:$EV$12,36,FALSE) -> 7% | O10: =VLOOKUP($A10,'RECAP DIRCOM'!$G$6:$EV$12,37,FALSE) -> 2 | P10: =VLOOKUP($A10,'RECAP DIRCOM'!$G$6:$EV$12,38,FALSE) -> 60% | Q10: =VLOOKUP($A10,'RECAP DIRCOM'!$G$6:$EV$12,39,FALSE) -> 19% | R10: =VLOOKUP($A10,'RECAP DIRCOM'!$G$6:$EV$12,40,FALSE) -> 4 | S10: =VLOOKUP($A10,'RECAP DIRCOM'!$G$6:$EV$12,41,FALSE) -> 26% | T10: =VLOOKUP($A10,'RECAP DIRCOM'!$G$6:$EV$12,42,FALSE) -> 7% | U10: =VLOOKUP($A10,'RECAP DIRCOM'!$G$6:$EV$12,43,FALSE) -> 4
A11: 262 | B11: Bas-Rhin | C11: =VLOOKUP($A11,'RECAP DIRCOM'!$G$6:$EV$12,3,FALSE) -> 297 | D11: =VLOOKUP($A11,'RECAP DIRCOM'!$G$6:$EV$12,26,FALSE) -> -7.78 | E11: =VLOOKUP($A11,'RECAP DIRCOM'!$G$6:$EV$12,27,FALSE) -> 0% | F11: =VLOOKUP($A11,'RECAP DIRCOM'!$G$6:$EV$12,28,FALSE) -> 1 | G11: =VLOOKUP($A11,'RECAP DIRCOM'!$G$6:$EV$12,29,FALSE) -> 2.83 | H11: =VLOOKUP($A11,'RECAP DIRCOM'!$G$6:$EV$12,30,FALSE) -> 62% | I11: =VLOOKUP($A11,'RECAP DIRCOM'!$G$6:$EV$12,31,FALSE) -> 7 | J11: =VLOOKUP($A11,'RECAP DIRCOM'!$G$6:$EV$12,32,FALSE) -> 7.35 | K11: =VLOOKUP($A11,'RECAP DIRCOM'!$G$6:$EV$12,33,FALSE) -> 35% | L11: =VLOOKUP($A11,'RECAP DIRCOM'!$G$6:$EV$12,34,FALSE) -> 4 | M11: =VLOOKUP($A11,'RECAP DIRCOM'!$G$6:$EV$12,35,FALSE) -> 3.80 | N11: =VLOOKUP($A11,'RECAP DIRCOM'!$G$6:$EV$12,36,FALSE) -> 22% | O11: =VLOOKUP($A11,'RECAP DIRCOM'!$G$6:$EV$12,37,FALSE) -> 3 | P11: =VLOOKUP($A11,'RECAP DIRCOM'!$G$6:$EV$12,38,FALSE) -> 27% | Q11: =VLOOKUP($A11,'RECAP DIRCOM'!$G$6:$EV$12,39,FALSE) -> 64% | R11: =VLOOKUP($A11,'RECAP DIRCOM'!$G$6:$EV$12,40,FALSE) -> 6 | S11: =VLOOKUP($A11,'RECAP DIRCOM'!$G$6:$EV$12,41,FALSE) -> 37% | T11: =VLOOKUP($A11,'RECAP DIRCOM'!$G$6:$EV$12,42,FALSE) -> 18% | U11: =VLOOKUP($A11,'RECAP DIRCOM'!$G$6:$EV$12,43,FALSE) -> 5
A12: 264 | B12: Haut-Rhin | C12: =VLOOKUP($A12,'RECAP DIRCOM'!$G$6:$EV$12,3,FALSE) -> 179 | D12: =VLOOKUP($A12,'RECAP DIRCOM'!$G$6:$EV$12,26,FALSE) -> -8.51 | E12: =VLOOKUP($A12,'RECAP DIRCOM'!$G$6:$EV$12,27,FALSE) -> 9% | F12: =VLOOKUP($A12,'RECAP DIRCOM'!$G$6:$EV$12,28,FALSE) -> 2 | G12: =VLOOKUP($A12,'RECAP DIRCOM'!$G$6:$EV$12,29,FALSE) -> 3.06 | H12: =VLOOKUP($A12,'RECAP DIRCOM'!$G$6:$EV$12,30,FALSE) -> 58% | I12: =VLOOKUP($A12,'RECAP DIRCOM'!$G$6:$EV$12,31,FALSE) -> 6 | J12: =VLOOKUP($A12,'RECAP DIRCOM'!$G$6:$EV$12,32,FALSE) -> 5.65 | K12: =VLOOKUP($A12,'RECAP DIRCOM'!$G$6:$EV$12,33,FALSE) -> 50% | L12: =VLOOKUP($A12,'RECAP DIRCOM'!$G$6:$EV$12,34,FALSE) -> 7 | M12: =VLOOKUP($A12,'RECAP DIRCOM'!$G$6:$EV$12,35,FALSE) -> 2.23 | N12: =VLOOKUP($A12,'RECAP DIRCOM'!$G$6:$EV$12,36,FALSE) -> 54% | O12: =VLOOKUP($A12,'RECAP DIRCOM'!$G$6:$EV$12,37,FALSE) -> 6 | P12: =VLOOKUP($A12,'RECAP DIRCOM'!$G$6:$EV$12,38,FALSE) -> 23% | Q12: =VLOOKUP($A12,'RECAP DIRCOM'!$G$6:$EV$12,39,FALSE) -> 69% | R12: =VLOOKUP($A12,'RECAP DIRCOM'!$G$6:$EV$12,40,FALSE) -> 7 | S12: =VLOOKUP($A12,'RECAP DIRCOM'!$G$6:$EV$12,41,FALSE) -> 48% | T12: =VLOOKUP($A12,'RECAP DIRCOM'!$G$6:$EV$12,42,FALSE) -> 29% | U12: =VLOOKUP($A12,'RECAP DIRCOM'!$G$6:$EV$12,43,FALSE) -> 7
A13: 30 | B13: Marne-Ardennes | C13: =VLOOKUP($A13,'RECAP DIRCOM'!$G$6:$EV$12,3,FALSE) -> 238 | D13: =VLOOKUP($A13,'RECAP DIRCOM'!$G$6:$EV$12,26,FALSE) -> -12.09 | E13: =VLOOKUP($A13,'RECAP DIRCOM'!$G$6:$EV$12,27,FALSE) -> 55% | F13: =VLOOKUP($A13,'RECAP DIRCOM'!$G$6:$EV$12,28,FALSE) -> 5 | G13: =VLOOKUP($A13,'RECAP DIRCOM'!$G$6:$EV$12,29,FALSE) -> 7.34 | H13: =VLOOKUP($A13,'RECAP DIRCOM'!$G$6:$EV$12,30,FALSE) -> 0% | I13: =VLOOKUP($A13,'RECAP DIRCOM'!$G$6:$EV$12,31,FALSE) -> 1 | J13: =VLOOKUP($A13,'RECAP DIRCOM'!$G$6:$EV$12,32,FALSE) -> 6.87 | K13: =VLOOKUP($A13,'RECAP DIRCOM'!$G$6:$EV$12,33,FALSE) -> 39% | L13: =VLOOKUP($A13,'RECAP DIRCOM'!$G$6:$EV$12,34,FALSE) -> 6 | M13: =VLOOKUP($A13,'RECAP DIRCOM'!$G$6:$EV$12,35,FALSE) -> 4.90 | N13: =VLOOKUP($A13,'RECAP DIRCOM'!$G$6:$EV$12,36,FALSE) -> 0% | O13: =VLOOKUP($A13,'RECAP DIRCOM'!$G$6:$EV$12,37,FALSE) -> 1 | P13: =VLOOKUP($A13,'RECAP DIRCOM'!$G$6:$EV$12,38,FALSE) -> 74% | Q13: =VLOOKUP($A13,'RECAP DIRCOM'!$G$6:$EV$12,39,FALSE) -> 0% | R13: =VLOOKUP($A13,'RECAP DIRCOM'!$G$6:$EV$12,40,FALSE) -> 1 | S13: =VLOOKUP($A13,'RECAP DIRCOM'!$G$6:$EV$12,41,FALSE) -> 19% | T13: =VLOOKUP($A13,'RECAP DIRCOM'!$G$6:$EV$12,42,FALSE) -> 0% | U13: =VLOOKUP($A13,'RECAP DIRCOM'!$G$6:$EV$12,43,FALSE) -> 1
A14: 110 | B14: Meurthe et Moselle Meuse | C14: =VLOOKUP($A14,'RECAP DIRCOM'!$G$6:$EV$12,3,FALSE) -> 264 | D14: =VLOOKUP($A14,'RECAP DIRCOM'!$G$6:$EV$12,26,FALSE) -> -12.94 | E14: =VLOOKUP($A14,'RECAP DIRCOM'!$G$6:$EV$12,27,FALSE) -> 66% | F14: =VLOOKUP($A14,'RECAP DIRCOM'!$G$6:$EV$12,28,FALSE) -> 7 | G14: =VLOOKUP($A14,'RECAP DIRCOM'!$G$6:$EV$12,29,FALSE) -> 5.41 | H14: =VLOOKUP($A14,'RECAP DIRCOM'!$G$6:$EV$12,30,FALSE) -> 26% | I14: =VLOOKUP($A14,'RECAP DIRCOM'!$G$6:$EV$12,31,FALSE) -> 2 | J14: =VLOOKUP($A14,'RECAP DIRCOM'!$G$6:$EV$12,32,FALSE) -> 7.94 | K14: =VLOOKUP($A14,'RECAP DIRCOM'!$G$6:$EV$12,33,FALSE) -> 30% | L14: =VLOOKUP($A14,'RECAP DIRCOM'!$G$6:$EV$12,34,FALSE) -> 3 | M14: =VLOOKUP($A14,'RECAP DIRCOM'!$G$6:$EV$12,35,FALSE) -> 2.17 | N14: =VLOOKUP($A14,'RECAP DIRCOM'!$G$6:$EV$12,36,FALSE) -> 56% | O14: =VLOOKUP($A14,'RECAP DIRCOM'!$G$6:$EV$12,37,FALSE) -> 7 | P14: =VLOOKUP($A14,'RECAP DIRCOM'!$G$6:$EV$12,38,FALSE) -> 32% | Q14: =VLOOKUP($A14,'RECAP DIRCOM'!$G$6:$EV$12,39,FALSE) -> 56% | R14: =VLOOKUP($A14,'RECAP DIRCOM'!$G$6:$EV$12,40,FALSE) -> 5 | S14: =VLOOKUP($A14,'RECAP DIRCOM'!$G$6:$EV$12,41,FALSE) -> 47% | T14: =VLOOKUP($A14,'RECAP DIRCOM'!$G$6:$EV$12,42,FALSE) -> 28% | U14: =VLOOKUP($A14,'RECAP DIRCOM'!$G$6:$EV$12,43,FALSE) -> 6
A15: 160 | B15: Moselle | C15: =VLOOKUP($A15,'RECAP DIRCOM'!$G$6:$EV$12,3,FALSE) -> 307 | D15: =VLOOKUP($A15,'RECAP DIRCOM'!$G$6:$EV$12,26,FALSE) -> -12.35 | E15: =VLOOKUP($A15,'RECAP DIRCOM'!$G$6:$EV$12,27,FALSE) -> 59% | F15: =VLOOKUP($A15,'RECAP DIRCOM'!$G$6:$EV$12,28,FALSE) -> 6 | G15: =VLOOKUP($A15,'RECAP DIRCOM'!$G$6:$EV$12,29,FALSE) -> 4.29 | H15: =VLOOKUP($A15,'RECAP DIRCOM'!$G$6:$EV$12,30,FALSE) -> 42% | I15: =VLOOKUP($A15,'RECAP DIRCOM'!$G$6:$EV$12,31,FALSE) -> 5 | J15: =VLOOKUP($A15,'RECAP DIRCOM'!$G$6:$EV$12,32,FALSE) -> 11.32 | K15: =VLOOKUP($A15,'RECAP DIRCOM'!$G$6:$EV$12,33,FALSE) -> 0% | L15: =VLOOKUP($A15,'RECAP DIRCOM'!$G$6:$EV$12,34,FALSE) -> 1 | M15: =VLOOKUP($A15,'RECAP DIRCOM'!$G$6:$EV$12,35,FALSE) -> 3.74 | N15: =VLOOKUP($A15,'RECAP DIRCOM'!$G$6:$EV$12,36,FALSE) -> 24% | O15: =VLOOKUP($A15,'RECAP DIRCOM'!$G$6:$EV$12,37,FALSE) -> 4 | P15: =VLOOKUP($A15,'RECAP DIRCOM'!$G$6:$EV$12,38,FALSE) -> 69% | Q15: =VLOOKUP($A15,'RECAP DIRCOM'!$G$6:$EV$12,39,FALSE) -> 6% | R15: =VLOOKUP($A15,'RECAP DIRCOM'!$G$6:$EV$12,40,FALSE) -> 2 | S15: =VLOOKUP($A15,'RECAP DIRCOM'!$G$6:$EV$12,41,FALSE) -> 26% | T15: =VLOOKUP($A15,'RECAP DIRCOM'!$G$6:$EV$12,42,FALSE) -> 7% | U15: =VLOOKUP($A15,'RECAP DIRCOM'!$G$6:$EV$12,43,FALSE) -> 3
A16: 80 | B16: Vosges | C16: =VLOOKUP($A16,'RECAP DIRCOM'!$G$6:$EV$12,3,FALSE) -> 148 | D16: =VLOOKUP($A16,'RECAP DIRCOM'!$G$6:$EV$12,26,FALSE) -> -9.44 | E16: =VLOOKUP($A16,'RECAP DIRCOM'!$G$6:$EV$12,27,FALSE) -> 21% | F16: =VLOOKUP($A16,'RECAP DIRCOM'!$G$6:$EV$12,28,FALSE) -> 3 | G16: =VLOOKUP($A16,'RECAP DIRCOM'!$G$6:$EV$12,29,FALSE) -> 5.29 | H16: =VLOOKUP($A16,'RECAP DIRCOM'!$G$6:$EV$12,30,FALSE) -> 28% | I16: =VLOOKUP($A16,'RECAP DIRCOM'!$G$6:$EV$12,31,FALSE) -> 3 | J16: =VLOOKUP($A16,'RECAP DIRCOM'!$G$6:$EV$12,32,FALSE) -> 6.90 | K16: =VLOOKUP($A16,'RECAP DIRCOM'!$G$6:$EV$12,33,FALSE) -> 39% | L16: =VLOOKUP($A16,'RECAP DIRCOM'!$G$6:$EV$12,34,FALSE) -> 5 | M16: =VLOOKUP($A16,'RECAP DIRCOM'!$G$6:$EV$12,35,FALSE) -> 3.62 | N16: =VLOOKUP($A16,'RECAP DIRCOM'!$G$6:$EV$12,36,FALSE) -> 26% | O16: =VLOOKUP($A16,'RECAP DIRCOM'!$G$6:$EV$12,37,FALSE) -> 5 | P16: =VLOOKUP($A16,'RECAP DIRCOM'!$G$6:$EV$12,38,FALSE) -> 67% | Q16: =VLOOKUP($A16,'RECAP DIRCOM'!$G$6:$EV$12,39,FALSE) -> 9% | R16: =VLOOKUP($A16,'RECAP DIRCOM'!$G$6:$EV$12,40,FALSE) -> 3 | S16: =VLOOKUP($A16,'RECAP DIRCOM'!$G$6:$EV$12,41,FALSE) -> 25% | T16: =VLOOKUP($A16,'RECAP DIRCOM'!$G$6:$EV$12,42,FALSE) -> 6% | U16: =VLOOKUP($A16,'RECAP DIRCOM'!$G$6:$EV$12,43,FALSE) -> 2
A17: Total CEGEE Directions Régionales | C17: =SUM(C10:C16) -> 1578

Sheet DC_EPARGNE
A1: Accueil | D1: BAROMETRE BDD - DIRECTIONS REGIONALES
D2: EPARGNE
D3: =ACCUEIL!H7 -> 2019-06-30
D7: Excédent de collecte yc DAV | G7: CA assurance vie | J7: Activité UC (CA+Arbitrage) | M7: Excédent assurance vie | P7: Excédent Epargne Bilan (hors emprunt CTO) | S7: Total Epargne
E8: coef | F8: ='RECAP DIRCOM'!BF4 -> 2% | H8: coef | I8: ='RECAP DIRCOM'!BI4 -> 2% | K8: coef | L8: ='RECAP DIRCOM'!BL4 -> 2% | N8: coef | O8: ='RECAP DIRCOM'!BO4 -> 2% | Q8: coef | R8: ='RECAP DIRCOM'!BR4 -> 7% | T8: coef | U8: ='RECAP DIRCOM'!BU4 -> 15%
A9: eds | B9: Direction | C9: ETP perf | D9: Réal / ETP | E9: % Ecart au 1er | F9: Rang | G9: Réal / ETP | H9: % Ecart au 1er | I9: Rang | J9: Réal / ETP | K9: % Ecart au 1er | L9: Rang | M9: Réal / ETP | N9: % Ecart au 1er | O9: Rang | P9: Réal / ETP | Q9: % Ecart au 1er | R9: Rang | S9: Moyenne ecart au 1er | T9: % Ecart au 1er | U9: Rang CEGEE
A10: 50 | B10: Aube Haute Marne | C10: =VLOOKUP($A10,'RECAP DIRCOM'!$G$6:$EV$12,3,FALSE) -> 146 | D10: =VLOOKUP($A10,'RECAP DIRCOM'!$G$6:$EV$12,50,FALSE) -> 49.28 | E10: =VLOOKUP($A10,'RECAP DIRCOM'!$G$6:$EV$12,51,FALSE) -> 48% | F10: =VLOOKUP($A10,'RECAP DIRCOM'!$G$6:$EV$12,52,FALSE) -> 7 | G10: =VLOOKUP($A10,'RECAP DIRCOM'!$G$6:$EV$12,53,FALSE) -> 323.49 | H10: =VLOOKUP($A10,'RECAP DIRCOM'!$G$6:$EV$12,54,FALSE) -> 5% | I10: =VLOOKUP($A10,'RECAP DIRCOM'!$G$6:$EV$12,55,FALSE) -> 3 | J10: =VLOOKUP($A10,'RECAP DIRCOM'!$G$6:$EV$12,56,FALSE) -> 117 | K10: =VLOOKUP($A10,'RECAP DIRCOM'!$G$6:$EV$12,57,FALSE) -> 0% | L10: =VLOOKUP($A10,'RECAP DIRCOM'!$G$6:$EV$12,58,FALSE) -> 1 | M10: =VLOOKUP($A10,'RECAP DIRCOM'!$G$6:$EV$12,59,FALSE) -> 71.35 | N10: =VLOOKUP($A10,'RECAP DIRCOM'!$G$6:$EV$12,60,FALSE) -> 42% | O10: =VLOOKUP($A10,'RECAP DIRCOM'!$G$6:$EV$12,61,FALSE) -> 5 | P10: =VLOOKUP($A10,'RECAP DIRCOM'!$G$6:$EV$12,62,FALSE) -> -22.95 | Q10: =VLOOKUP($A10,'RECAP DIRCOM'!$G$6:$EV$12,63,FALSE) -> 129% | R10: =VLOOKUP($A10,'RECAP DIRCOM'!$G$6:$EV$12,64,FALSE) -> 7 | S10: =VLOOKUP($A10,'RECAP DIRCOM'!$G$6:$EV$12,65,FALSE) -> 73% | T10: =VLOOKUP($A10,'RECAP DIRCOM'!$G$6:$EV$12,66,FALSE) -> 55% | U10: =VLOOKUP($A10,'RECAP DIRCOM'!$G$6:$EV$12,67,FALSE) -> 7
A11: 262 | B11: Bas-Rhin | C11: =VLOOKUP($A11,'RECAP DIRCOM'!$G$6:$EV$12,3,FALSE) -> 297 | D11: =VLOOKUP($A11,'RECAP DIRCOM'!$G$6:$EV$12,50,FALSE) -> 52.46 | E11: =VLOOKUP($A11,'RECAP DIRCOM'!$G$6:$EV$12,51,FALSE) -> 45% | F11: =VLOOKUP($A11,'RECAP DIRCOM'!$G$6:$EV$12,52,FALSE) -> 6 | G11: =VLOOKUP($A11,'RECAP DIRCOM'!$G$6:$EV$12,53,FALSE) -> 240.40 | H11: =VLOOKUP($A11,'RECAP DIRCOM'!$G$6:$EV$12,54,FALSE) -> 30% | I11: =VLOOKUP($A11,'RECAP DIRCOM'!$G$6:$EV$12,55,FALSE) -> 6 | J11: =VLOOKUP($A11,'RECAP DIRCOM'!$G$6:$EV$12,56,FALSE) -> 98 | K11: =VLOOKUP($A11,'RECAP DIRCOM'!$G$6:$EV$12,57,FALSE) -> 16% | L11: =VLOOKUP($A11,'RECAP DIRCOM'!$G$6:$EV$12,58,FALSE) -> 3 | M11: =VLOOKUP($A11,'RECAP DIRCOM'!$G$6:$EV$12,59,FALSE) -> 39.10 | N11: =VLOOKUP($A11,'RECAP DIRCOM'!$G$6:$EV$12,60,FALSE) -> 68% | O11: =VLOOKUP($A11,'RECAP DIRCOM'!$G$6:$EV$12,61,FALSE) -> 6 | P11: =VLOOKUP($A11,'RECAP DIRCOM'!$G$6:$EV$12,62,FALSE) -> 41.52 | Q11: =VLOOKUP($A11,'RECAP DIRCOM'!$G$6:$EV$12,63,FALSE) -> 47% | R11: =VLOOKUP($A11,'RECAP DIRCOM'!$G$6:$EV$12,64,FALSE) -> 3 | S11: =VLOOKUP($A11,'RECAP DIRCOM'!$G$6:$EV$12,65,FALSE) -> 43% | T11: =VLOOKUP($A11,'RECAP DIRCOM'!$G$6:$EV$12,66,FALSE) -> 25% | U11: =VLOOKUP($A11,'RECAP DIRCOM'!$G$6:$EV$12,67,FALSE) -> 6
A12: 264 | B12: Haut-Rhin | C12: =VLOOKUP($A12,'RECAP DIRCOM'!$G$6:$EV$12,3,FALSE) -> 179 | D12: =VLOOKUP($A12,'RECAP DIRCOM'!$G$6:$EV$12,50,FALSE) -> 92.73 | E12: =VLOOKUP($A12,'RECAP DIRCOM'!$G$6:$EV$12,51,FALSE) -> 2% | F12: =VLOOKUP($A12,'RECAP DIRCOM'!$G$6:$EV$12,52,FALSE) -> 3 | G12: =VLOOKUP($A12,'RECAP DIRCOM'!$G$6:$EV$12,53,FALSE) -> 222.32 | H12: =VLOOKUP($A12,'RECAP DIRCOM'!$G$6:$EV$12,54,FALSE) -> 35% | I12: =VLOOKUP($A12,'RECAP DIRCOM'!$G$6:$EV$12,55,FALSE) -> 7 | J12: =VLOOKUP($A12,'RECAP DIRCOM'!$G$6:$EV$12,56,FALSE) -> 83 | K12: =VLOOKUP($A12,'RECAP DIRCOM'!$G$6:$EV$12,57,FALSE) -> 29% | L12: =VLOOKUP($A12,'RECAP DIRCOM'!$G$6:$EV$12,58,FALSE) -> 7 | M12: =VLOOKUP($A12,'RECAP DIRCOM'!$G$6:$EV$12,59,FALSE) -> 38.50 | N12: =VLOOKUP($A12,'RECAP DIRCOM'!$G$6:$EV$12,60,FALSE) -> 69% | O12: =VLOOKUP($A12,'RECAP DIRCOM'!$G$6:$EV$12,61,FALSE) -> 7 | P12: =VLOOKUP($A12,'RECAP DIRCOM'!$G$6:$EV$12,62,FALSE) -> 78.77 | Q12: =VLOOKUP($A12,'RECAP DIRCOM'!$G$6:$EV$12,63,FALSE) -> 0% | R12: =VLOOKUP($A12,'RECAP DIRCOM'!$G$6:$EV$12,64,FALSE) -> 1 | S12: =VLOOKUP($A12,'RECAP DIRCOM'!$G$6:$EV$12,65,FALSE) -> 18% | T12: =VLOOKUP($A12,'RECAP DIRCOM'!$G$6:$EV$12,66,FALSE) -> 0% | U12: =VLOOKUP($A12,'RECAP DIRCOM'!$G$6:$EV$12,67,FALSE) -> 1
A13: 30 | B13: Marne-Ardennes | C13: =VLOOKUP($A13,'RECAP DIRCOM'!$G$6:$EV$12,3,FALSE) -> 238 | D13: =VLOOKUP($A13,'RECAP DIRCOM'!$G$6:$EV$12,50,FALSE) -> 87.06 | E13: =VLOOKUP($A13,'RECAP DIRCOM'!$G$6:$EV$12,51,FALSE) -> 8% | F13: =VLOOKUP($A13,'RECAP DIRCOM'!$G$6:$EV$12,52,FALSE) -> 4 | G13: =VLOOKUP($A13,'RECAP DIRCOM'!$G$6:$EV$12,53,FALSE) -> 311.18 | H13: =VLOOKUP($A13,'RECAP DIRCOM'!$G$6:$EV$12,54,FALSE) -> 9% | I13: =VLOOKUP($A13,'RECAP DIRCOM'!$G$6:$EV$12,55,FALSE) -> 5 | J13: =VLOOKUP($A13,'RECAP DIRCOM'!$G$6:$EV$12,56,FALSE) -> 92 | K13: =VLOOKUP($A13,'RECAP DIRCOM'!$G$6:$EV$12,57,FALSE) -> 22% | L13: =VLOOKUP($A13,'RECAP DIRCOM'!$G$6:$EV$12,58,FALSE) -> 6 | M13: =VLOOKUP($A13,'RECAP DIRCOM'!$G$6:$EV$12,59,FALSE) -> 80.59 | N13: =VLOOKUP($A13,'RECAP DIRCOM'!$G$6:$EV$12,60,FALSE) -> 35% | O13: =VLOOKUP($A13,'RECAP DIRCOM'!$G$6:$EV$12,61,FALSE) -> 4 | P13: =VLOOKUP($A13,'RECAP DIRCOM'!$G$6:$EV$12,62,FALSE) -> 41.94 | Q13: =VLOOKUP($A13,'RECAP DIRCOM'!$G$6:$EV$12,63,FALSE) -> 47% | R13: =VLOOKUP($A13,'RECAP DIRCOM'!$G$6:$EV$12,64,FALSE) -> 2 | S13: =VLOOKUP($A13,'RECAP DIRCOM'!$G$6:$EV$12,65,FALSE) -> 32% | T13: =VLOOKUP($A13,'RECAP DIRCOM'!$G$6:$EV$12,66,FALSE) -> 14% | U13: =VLOOKUP($A13,'RECAP DIRCOM'!$G$6:$EV$12,67,FALSE) -> 3
A14: 110 | B14: Meurthe et Moselle Meuse | C14: =VLOOKUP($A14,'RECAP DIRCOM'!$G$6:$EV$12,3,FALSE) -> 264 | D14: =VLOOKUP($A14,'RECAP DIRCOM'!$G$6:$EV$12,50,FALSE) -> 79.61 | E14: =VLOOKUP($A14,'RECAP DIRCOM'!$G$6:$EV$12,51,FALSE) -> 16% | F14: =VLOOKUP($A14,'RECAP DIRCOM'!$G$6:$EV$12,52,FALSE) -> 5 | G14: =VLOOKUP($A14,'RECAP DIRCOM'!$G$6:$EV$12,53,FALSE) -> 329.16 | H14: =VLOOKUP($A14,'RECAP DIRCOM'!$G$6:$EV$12,54,FALSE) -> 4% | I14: =VLOOKUP($A14,'RECAP DIRCOM'!$G$6:$EV$12,55,FALSE) -> 2 | J14: =VLOOKUP($A14,'RECAP DIRCOM'!$G$6:$EV$12,56,FALSE) -> 93 | K14: =VLOOKUP($A14,'RECAP DIRCOM'!$G$6:$EV$12,57,FALSE) -> 20% | L14: =VLOOKUP($A14,'RECAP DIRCOM'!$G$6:$EV$12,58,FALSE) -> 5 | M14: =VLOOKUP($A14,'RECAP DIRCOM'!$G$6:$EV$12,59,FALSE) -> 107.75 | N14: =VLOOKUP($A14,'RECAP DIRCOM'!$G$6:$EV$12,60,FALSE) -> 12% | O14: =VLOOKUP($A14,'RECAP DIRCOM'!$G$6:$EV$12,61,FALSE) -> 2 | P14: =VLOOKUP($A14,'RECAP DIRCOM'!$G$6:$EV$12,62,FALSE) -> 25.80 | Q14: =VLOOKUP($A14,'RECAP DIRCOM'!$G$6:$EV$12,63,FALSE) -> 67% | R14: =VLOOKUP($A14,'RECAP DIRCOM'!$G$6:$EV$12,64,FALSE) -> 5 | S14: =VLOOKUP($A14,'RECAP DIRCOM'!$G$6:$EV$12,65,FALSE) -> 38% | T14: =VLOOKUP($A14,'RECAP DIRCOM'!$G$6:$EV$12,66,FALSE) -> 20% | U14: =VLOOKUP($A14,'RECAP DIRCOM'!$G$6:$EV$12,67,FALSE) -> 4
A15: 160 | B15: Moselle | C15: =VLOOKUP($A15,'RECAP DIRCOM'!$G$6:$EV$12,3,FALSE) -> 307 | D15: =VLOOKUP($A15,'RECAP DIRCOM'!$G$6:$EV$12,50,FALSE) -> 94.65 | E15: =VLOOKUP($A15,'RECAP DIRCOM'!$G$6:$EV$12,51,FALSE) -> 0% | F15: =VLOOKUP($A15,'RECAP DIRCOM'!$G$6:$EV$12,52,FALSE) -> 2 | G15: =VLOOKUP($A15,'RECAP DIRCOM'!$G$6:$EV$12,53,FALSE) -> 341.42 | H15: =VLOOKUP($A15,'RECAP DIRCOM'!$G$6:$EV$12,54,FALSE) -> 0% | I15: =VLOOKUP($A15,'RECAP DIRCOM'!$G$6:$EV$12,55,FALSE) -> 1 | J15: =VLOOKUP($A15,'RECAP DIRCOM'!$G$6:$EV$12,56,FALSE) -> 109 | K15: =VLOOKUP($A15,'RECAP DIRCOM'!$G$6:$EV$12,57,FALSE) -> 7% | L15: =VLOOKUP($A15,'RECAP DIRCOM'!$G$6:$EV$12,58,FALSE) -> 2 | M15: =VLOOKUP($A15,'RECAP DIRCOM'!$G$6:$EV$12,59,FALSE) -> 123.13 | N15: =VLOOKUP($A15,'RECAP DIRCOM'!$G$6:$EV$12,60,FALSE) -> 0% | O15: =VLOOKUP($A15,'RECAP DIRCOM'!$G$6:$EV$12,61,FALSE) -> 1 | P15: =VLOOKUP($A15,'RECAP DIRCOM'!$G$6:$EV$12,62,FALSE) -> 27.73 | Q15: =VLOOKUP($A15,'RECAP DIRCOM'!$G$6:$EV$12,63,FALSE) -> 65% | R15: =VLOOKUP($A15,'RECAP DIRCOM'!$G$6:$EV$12,64,FALSE) -> 4 | S15: =VLOOKUP($A15,'RECAP DIRCOM'!$G$6:$EV$12,65,FALSE) -> 31% | T15: =VLOOKUP($A15,'RECAP DIRCOM'!$G$6:$EV$12,66,FALSE) -> 13% | U15: =VLOOKUP($A15,'RECAP DIRCOM'!$G$6:$EV$12,67,FALSE) -> 2
A16: 80 | B16: Vosges | C16: =VLOOKUP($A16,'RECAP DIRCOM'!$G$6:$EV$12,3,FALSE) -> 148 | D16: =VLOOKUP($A16,'RECAP DIRCOM'!$G$6:$EV$12,50,FALSE) -> 94.98 | E16: =VLOOKUP($A16,'RECAP DIRCOM'!$G$6:$EV$12,51,FALSE) -> 0% | F16: =VLOOKUP($A16,'RECAP DIRCOM'!$G$6:$EV$12,52,FALSE) -> 1 | G16: =VLOOKUP($A16,'RECAP DIRCOM'!$G$6:$EV$12,53,FALSE) -> 321.75 | H16: =VLOOKUP($A16,'RECAP DIRCOM'!$G$6:$EV$12,54,FALSE) -> 6% | I16: =VLOOKUP($A16,'RECAP DIRCOM'!$G$6:$EV$12,55,FALSE) -> 4 | J16: =VLOOKUP($A16,'RECAP DIRCOM'!$G$6:$EV$12,56,FALSE) -> 98 | K16: =VLOOKUP($A16,'RECAP DIRCOM'!$G$6:$EV$12,57,FALSE) -> 17% | L16: =VLOOKUP($A16,'RECAP DIRCOM'!$G$6:$EV$12,58,FALSE) -> 4 | M16: =VLOOKUP($A16,'RECAP DIRCOM'!$G$6:$EV$12,59,FALSE) -> 97.89 | N16: =VLOOKUP($A16,'RECAP DIRCOM'!$G$6:$EV$12,60,FALSE) -> 21% | O16: =VLOOKUP($A16,'RECAP DIRCOM'!$G$6:$EV$12,61,FALSE) -> 3 | P16: =VLOOKUP($A16,'RECAP DIRCOM'!$G$6:$EV$12,62,FALSE) -> 23.50 | Q16: =VLOOKUP($A16,'RECAP DIRCOM'!$G$6:$EV$12,63,FALSE) -> 70% | R16: =VLOOKUP($A16,'RECAP DIRCOM'!$G$6:$EV$12,64,FALSE) -> 6 | S16: =VLOOKUP($A16,'RECAP DIRCOM'!$G$6:$EV$12,65,FALSE) -> 38% | T16: =VLOOKUP($A16,'RECAP DIRCOM'!$G$6:$EV$12,66,FALSE) -> 20% | U16: =VLOOKUP($A16,'RECAP DIRCOM'!$G$6:$EV$12,67,FALSE) -> 5
A17: Total CEGEE Directions Régionales | C17: =SUM(C10:C16) -> 1578

Sheet DC_CREDIT
A1: Accueil | D1: BAROMETRE BDD - DIRECTIONS REGIONALES
D2: CREDITS
D3: =ACCUEIL!H7 -> 2019-06-30
D7: Engagements crédit conso (hors clients note octroi à 9) | G7: % CNP crédit conso | J7: Engagements crédi immo | M7: % CNP crédit immo | P7: Taux couverture SACCEF | S7: Engagement Crédit MLT + Crédit Bail | V7: Total Crédits
E8: coef | F8: ='RECAP DIRCOM'!CD4 -> 3% | H8: coef | I8: ='RECAP DIRCOM'!CG4 -> 2% | K8: coef | L8: ='RECAP DIRCOM'!CJ4 -> 3% | N8: coef | O8: ='RECAP DIRCOM'!CM4 -> 2% | Q8: coef | R8: ='RECAP DIRCOM'!CP4 -> 2% | T8: coef | U8: ='RECAP DIRCOM'!CS4 -> 3% | W8: coef | X8: ='RECAP DIRCOM'!CV4 -> 15%
A9: eds | B9: Direction | C9: ETP perf | D9: Réal / ETP | E9: % Ecart au 1er | F9: Rang | H9: % Ecart au 1er | I9: Rang | J9: Taux réal objectif | K9: % Ecart au 1er | L9: Rang | N9: % Ecart au 1er | O9: Rang | Q9: % Ecart au 1er | R9: Rang | S9: Taux réal objectif | T9: % Ecart au 1er | U9: Rang | V9: Moyenne ecart au 1er | W9: % Ecart au 1er | X9: Rang CEGEE
A10: 50 | B10: Aube Haute Marne | C10: =VLOOKUP($A10,'RECAP DIRCOM'!$G$6:$EV$12,3,FALSE) -> 146 | D10: =VLOOKUP($A10,'RECAP DIRCOM'!$G$6:$EV$12,74,FALSE) -> 235.46 | E10: =VLOOKUP($A10,'RECAP DIRCOM'!$G$6:$EV$12,75,FALSE) -> 0% | F10: =VLOOKUP($A10,'RECAP DIRCOM'!$G$6:$EV$12,76,FALSE) -> 2 | G10: =VLOOKUP($A10,'RECAP DIRCOM'!$G$6:$EV$12,77,FALSE) -> 93% | H10: =VLOOKUP($A10,'RECAP DIRCOM'!$G$6:$EV$12,78,FALSE) -> 3% | I10: =VLOOKUP($A10,'RECAP DIRCOM'!$G$6:$EV$12,79,FALSE) -> 4 | J10: =VLOOKUP($A10,'RECAP DIRCOM'!$G$6:$EV$12,80,FALSE) -> 41% | K10: =VLOOKUP($A10,'RECAP DIRCOM'!$G$6:$EV$12,81,FALSE) -> 23% | L10: =VLOOKUP($A10,'RECAP DIRCOM'!$G$6:$EV$12,82,FALSE) -> 7 | M10: =VLOOKUP($A10,'RECAP DIRCOM'!$G$6:$EV$12,83,FALSE) -> 68% | N10: =VLOOKUP($A10,'RECAP DIRCOM'!$G$6:$EV$12,84,FALSE) -> 11% | O10: =VLOOKUP($A10,'RECAP DIRCOM'!$G$6:$EV$12,85,FALSE) -> 5 | P10: =VLOOKUP($A10,'RECAP DIRCOM'!$G$6:$EV$12,86,FALSE) -> 83% | Q10: =VLOOKUP($A10,'RECAP DIRCOM'!$G$6:$EV$12,87,FALSE) -> 8% | R10: =VLOOKUP($A10,'RECAP DIRCOM'!$G$6:$EV$12,88,FALSE) -> 5 | S10: =VLOOKUP($A10,'RECAP DIRCOM'!$G$6:$EV$12,89,FALSE) -> 62% | T10: =VLOOKUP($A10,'RECAP DIRCOM'!$G$6:$EV$12,90,FALSE) -> 11% | U10: =VLOOKUP($A10,'RECAP DIRCOM'!$G$6:$EV$12,91,FALSE) -> 4 | V10: =VLOOKUP($A10,'RECAP DIRCOM'!$G$6:$EV$12,92,FALSE) -> 10% | W10: =VLOOKUP($A10,'RECAP DIRCOM'!$G$6:$EV$12,93,FALSE) -> 7% | X10: =VLOOKUP($A10,'RECAP DIRCOM'!$G$6:$EV$12,94,FALSE) -> 3
A11: 262 | B11: Bas-Rhin | C11: =VLOOKUP($A11,'RECAP DIRCOM'!$G$6:$EV$12,3,FALSE) -> 297 | D11: =VLOOKUP($A11,'RECAP DIRCOM'!$G$6:$EV$12,74,FALSE) -> 181.23 | E11: =VLOOKUP($A11,'RECAP DIRCOM'!$G$6:$EV$12,75,FALSE) -> 23% | F11: =VLOOKUP($A11,'RECAP DIRCOM'!$G$6:$EV$12,76,FALSE) -> 6 | G11: =VLOOKUP($A11,'RECAP DIRCOM'!$G$6:$EV$12,77,FALSE) -> 94% | H11: =VLOOKUP($A11,'RECAP DIRCOM'!$G$6:$EV$12,78,FALSE) -> 3% | I11: =VLOOKUP($A11,'RECAP DIRCOM'!$G$6:$EV$12,79,FALSE) -> 3 | J11: =VLOOKUP($A11,'RECAP DIRCOM'!$G$6:$EV$12,80,FALSE) -> 44% | K11: =VLOOKUP($A11,'RECAP DIRCOM'!$G$6:$EV$12,81,FALSE) -> 17% | L11: =VLOOKUP($A11,'RECAP DIRCOM'!$G$6:$EV$12,82,FALSE) -> 6 | M11: =VLOOKUP($A11,'RECAP DIRCOM'!$G$6:$EV$12,83,FALSE) -> 58% | N11: =VLOOKUP($A11,'RECAP DIRCOM'!$G$6:$EV$12,84,FALSE) -> 25% | O11: =VLOOKUP($A11,'RECAP DIRCOM'!$G$6:$EV$12,85,FALSE) -> 7 | P11: =VLOOKUP($A11,'RECAP DIRCOM'!$G$6:$EV$12,86,FALSE) -> 80% | Q11: =VLOOKUP($A11,'RECAP DIRCOM'!$G$6:$EV$12,87,FALSE) -> 11% | R11: =VLOOKUP($A11,'RECAP DIRCOM'!$G$6:$EV$12,88,FALSE) -> 6 | S11: =VLOOKUP($A11,'RECAP DIRCOM'!$G$6:$EV$12,89,FALSE) -> 49% | T11: =VLOOKUP($A11,'RECAP DIRCOM'!$G$6:$EV$12,90,FALSE) -> 30% | U11: =VLOOKUP($A11,'RECAP DIRCOM'!$G$6:$EV$12,91,FALSE) -> 5 | V11: =VLOOKUP($A11,'RECAP DIRCOM'!$G$6:$EV$12,92,FALSE) -> 19% | W11: =VLOOKUP($A11,'RECAP DIRCOM'!$G$6:$EV$12,93,FALSE) -> 16% | X11: =VLOOKUP($A11,'RECAP DIRCOM'!$G$6:$EV$12,94,FALSE) -> 7
A12: 264 | B12: Haut-Rhin | C12: =VLOOKUP($A12,'RECAP DIRCOM'!$G$6:$EV$12,3,FALSE) -> 179 | D12: =VLOOKUP($A12,'RECAP DIRCOM'!$G$6:$EV$12,74,FALSE) -> 169.29 | E12: =VLOOKUP($A12,'RECAP DIRCOM'!$G$6:$EV$12,75,FALSE) -> 28% | F12: =VLOOKUP($A12,'RECAP DIRCOM'!$G$6:$EV$12,76,FALSE) -> 7 | G12: =VLOOKUP($A12,'RECAP DIRCOM'!$G$6:$EV$12,77,FALSE) -> 92% | H12: =VLOOKUP($A12,'RECAP DIRCOM'!$G$6:$EV$12,78,FALSE) -> 4% | I12: =VLOOKUP($A12,'RECAP DIRCOM'!$G$6:$EV$12,79,FALSE) -> 5 | J12: =VLOOKUP($A12,'RECAP DIRCOM'!$G$6:$EV$12,80,FALSE) -> 46% | K12: =VLOOKUP($A12,'RECAP DIRCOM'!$G$6:$EV$12,81,FALSE) -> 14% | L12: =VLOOKUP($A12,'RECAP DIRCOM'!$G$6:$EV$12,82,FALSE) -> 4 | M12: =VLOOKUP($A12,'RECAP DIRCOM'!$G$6:$EV$12,83,FALSE) -> 77% | N12: =VLOOKUP($A12,'RECAP DIRCOM'!$G$6:$EV$12,84,FALSE) -> 0% | O12: =VLOOKUP($A12,'RECAP DIRCOM'!$G$6:$EV$12,85,FALSE) -> 1 | P12: =VLOOKUP($A12,'RECAP DIRCOM'!$G$6:$EV$12,86,FALSE) -> 75% | Q12: =VLOOKUP($A12,'RECAP DIRCOM'!$G$6:$EV$12,87,FALSE) -> 17% | R12: =VLOOKUP($A12,'RECAP DIRCOM'!$G$6:$EV$12,88,FALSE) -> 7 | S12: =VLOOKUP($A12,'RECAP DIRCOM'!$G$6:$EV$12,89,FALSE) -> 64% | T12: =VLOOKUP($A12,'RECAP DIRCOM'!$G$6:$EV$12,90,FALSE) -> 9% | U12: =VLOOKUP($A12,'RECAP DIRCOM'!$G$6:$EV$12,91,FALSE) -> 3 | V12: =VLOOKUP($A12,'RECAP DIRCOM'!$G$6:$EV$12,92,FALSE) -> 13% | W12: =VLOOKUP($A12,'RECAP DIRCOM'!$G$6:$EV$12,93,FALSE) -> 10% | X12: =VLOOKUP($A12,'RECAP DIRCOM'!$G$6:$EV$12,94,FALSE) -> 4
A13: 30 | B13: Marne-Ardennes | C13: =VLOOKUP($A13,'RECAP DIRCOM'!$G$6:$EV$12,3,FALSE) -> 238 | D13: =VLOOKUP($A13,'RECAP DIRCOM'!$G$6:$EV$12,74,FALSE) -> 235.55 | E13: =VLOOKUP($A13,'RECAP DIRCOM'!$G$6:$EV$12,75,FALSE) -> 0% | F13: =VLOOKUP($A13,'RECAP DIRCOM'!$G$6:$EV$12,76,FALSE) -> 1 | G13: =VLOOKUP($A13,'RECAP DIRCOM'!$G$6:$EV$12,77,FALSE) -> 88% | H13: =VLOOKUP($A13,'RECAP DIRCOM'!$G$6:$EV$12,78,FALSE) -> 8% | I13: =VLOOKUP($A13,'RECAP DIRCOM'!$G$6:$EV$12,79,FALSE) -> 7 | J13: =VLOOKUP($A13,'RECAP DIRCOM'!$G$6:$EV$12,80,FALSE) -> 53% | K13: =VLOOKUP($A13,'RECAP DIRCOM'!$G$6:$EV$12,81,FALSE) -> 0% | L13: =VLOOKUP($A13,'RECAP DIRCOM'!$G$6:$EV$12,82,FALSE) -> 1 | M13: =VLOOKUP($A13,'RECAP DIRCOM'!$G$6:$EV$12,83,FALSE) -> 75% | N13: =VLOOKUP($A13,'RECAP DIRCOM'!$G$6:$EV$12,84,FALSE) -> 2% | O13: =VLOOKUP($A13,'RECAP DIRCOM'!$G$6:$EV$12,85,FALSE) -> 2 | P13: =VLOOKUP($A13,'RECAP DIRCOM'!$G$6:$EV$12,86,FALSE) -> 83% | Q13: =VLOOKUP($A13,'RECAP DIRCOM'!$G$6:$EV$12,87,FALSE) -> 8% | R13: =VLOOKUP($A13,'RECAP DIRCOM'!$G$6:$EV$12,88,FALSE) -> 4 | S13: =VLOOKUP($A13,'RECAP DIRCOM'!$G$6:$EV$12,89,FALSE) -> 67% | T13: =VLOOKUP($A13,'RECAP DIRCOM'!$G$6:$EV$12,90,FALSE) -> 4% | U13: =VLOOKUP($A13,'RECAP DIRCOM'!$G$6:$EV$12,91,FALSE) -> 2 | V13: =VLOOKUP($A13,'RECAP DIRCOM'!$G$6:$EV$12,92,FALSE) -> 3% | W13: =VLOOKUP($A13,'RECAP DIRCOM'!$G$6:$EV$12,93,FALSE) -> 0% | X13: =VLOOKUP($A13,'RECAP DIRCOM'!$G$6:$EV$12,94,FALSE) -> 1
A14: 110 | B14: Meurthe et Moselle Meuse | C14: =VLOOKUP($A14,'RECAP DIRCOM'!$G$6:$EV$12,3,FALSE) -> 264 | D14: =VLOOKUP($A14,'RECAP DIRCOM'!$G$6:$EV$12,74,FALSE) -> 218.16 | E14: =VLOOKUP($A14,'RECAP DIRCOM'!$G$6:$EV$12,75,FALSE) -> 7% | F14: =VLOOKUP($A14,'RECAP DIRCOM'!$G$6:$EV$12,76,FALSE) -> 3 | G14: =VLOOKUP($A14,'RECAP DIRCOM'!$G$6:$EV$12,77,FALSE) -> 90% | H14: =VLOOKUP($A14,'RECAP DIRCOM'!$G$6:$EV$12,78,FALSE) -> 7% | I14: =VLOOKUP($A14,'RECAP DIRCOM'!$G$6:$EV$12,79,FALSE) -> 6 | J14: =VLOOKUP($A14,'RECAP DIRCOM'!$G$6:$EV$12,80,FALSE) -> 47% | K14: =VLOOKUP($A14,'RECAP DIRCOM'!$G$6:$EV$12,81,FALSE) -> 12% | L14: =VLOOKUP($A14,'RECAP DIRCOM'!$G$6:$EV$12,82,FALSE) -> 2 | M14: =VLOOKUP($A14,'RECAP DIRCOM'!$G$6:$EV$12,83,FALSE) -> 75% | N14: =VLOOKUP($A14,'RECAP DIRCOM'!$G$6:$EV$12,84,FALSE) -> 3% | O14: =VLOOKUP($A14,'RECAP DIRCOM'!$G$6:$EV$12,85,FALSE) -> 3 | P14: =VLOOKUP($A14,'RECAP DIRCOM'!$G$6:$EV$12,86,FALSE) -> 90% | Q14: =VLOOKUP($A14,'RECAP DIRCOM'!$G$6:$EV$12,87,FALSE) -> 0% | R14: =VLOOKUP($A14,'RECAP DIRCOM'!$G$6:$EV$12,88,FALSE) -> 1 | S14: =VLOOKUP($A14,'RECAP DIRCOM'!$G$6:$EV$12,89,FALSE) -> 40% | T14: =VLOOKUP($A14,'RECAP DIRCOM'!$G$6:$EV$12,90,FALSE) -> 43% | U14: =VLOOKUP($A14,'RECAP DIRCOM'!$G$6:$EV$12,91,FALSE) -> 6 | V14: =VLOOKUP($A14,'RECAP DIRCOM'!$G$6:$EV$12,92,FALSE) -> 14% | W14: =VLOOKUP($A14,'RECAP DIRCOM'!$G$6:$EV$12,93,FALSE) -> 11% | X14: =VLOOKUP($A14,'RECAP DIRCOM'!$G$6:$EV$12,94,FALSE) -> 5
A15: 160 | B15: Moselle | C15: =VLOOKUP($A15,'RECAP DIRCOM'!$G$6:$EV$12,3,FALSE) -> 307 | D15: =VLOOKUP($A15,'RECAP DIRCOM'!$G$6:$EV$12,74,FALSE) -> 216.65 | E15: =VLOOKUP($A15,'RECAP DIRCOM'!$G$6:$EV$12,75,FALSE) -> 8% | F15: =VLOOKUP($A15,'RECAP DIRCOM'!$G$6:$EV$12,76,FALSE) -> 4 | G15: =VLOOKUP($A15,'RECAP DIRCOM'!$G$6:$EV$12,77,FALSE) -> 96% | H15: =VLOOKUP($A15,'RECAP DIRCOM'!$G$6:$EV$12,78,FALSE) -> 1% | I15: =VLOOKUP($A15,'RECAP DIRCOM'!$G$6:$EV$12,79,FALSE) -> 2 | J15: =VLOOKUP($A15,'RECAP DIRCOM'!$G$6:$EV$12,80,FALSE) -> 45% | K15: =VLOOKUP($A15,'RECAP DIRCOM'!$G$6:$EV$12,81,FALSE) -> 17% | L15: =VLOOKUP($A15,'RECAP DIRCOM'!$G$6:$EV$12,82,FALSE) -> 5 | M15: =VLOOKUP($A15,'RECAP DIRCOM'!$G$6:$EV$12,83,FALSE) -> 67% | N15: =VLOOKUP($A15,'RECAP DIRCOM'!$G$6:$EV$12,84,FALSE) -> 13% | O15: =VLOOKUP($A15,'RECAP DIRCOM'!$G$6:$EV$12,85,FALSE) -> 6 | P15: =VLOOKUP($A15,'RECAP DIRCOM'!$G$6:$EV$12,86,FALSE) -> 84% | Q15: =VLOOKUP($A15,'RECAP DIRCOM'!$G$6:$EV$12,87,FALSE) -> 7% | R15: =VLOOKUP($A15,'RECAP DIRCOM'!$G$6:$EV$12,88,FALSE) -> 3 | S15: =VLOOKUP($A15,'RECAP DIRCOM'!$G$6:$EV$12,89,FALSE) -> 34% | T15: =VLOOKUP($A15,'RECAP DIRCOM'!$G$6:$EV$12,90,FALSE) -> 51% | U15: =VLOOKUP($A15,'RECAP DIRCOM'!$G$6:$EV$12,91,FALSE) -> 7 | V15: =VLOOKUP($A15,'RECAP DIRCOM'!$G$6:$EV$12,92,FALSE) -> 18% | W15: =VLOOKUP($A15,'RECAP DIRCOM'!$G$6:$EV$12,93,FALSE) -> 15% | X15: =VLOOKUP($A15,'RECAP DIRCOM'!$G$6:$EV$12,94,FALSE) -> 6
A16: 80 | B16: Vosges | C16: =VLOOKUP($A16,'RECAP DIRCOM'!$G$6:$EV$12,3,FALSE) -> 148 | D16: =VLOOKUP($A16,'RECAP DIRCOM'!$G$6:$EV$12,74,FALSE) -> 195.93 | E16: =VLOOKUP($A16,'RECAP DIRCOM'!$G$6:$EV$12,75,FALSE) -> 17% | F16: =VLOOKUP($A16,'RECAP DIRCOM'!$G$6:$EV$12,76,FALSE) -> 5 | G16: =VLOOKUP($A16,'RECAP DIRCOM'!$G$6:$EV$12,77,FALSE) -> 96% | H16: =VLOOKUP($A16,'RECAP DIRCOM'!$G$6:$EV$12,78,FALSE) -> 0% | I16: =VLOOKUP($A16,'RECAP DIRCOM'!$G$6:$EV$12,79,FALSE) -> 1 | J16: =VLOOKUP($A16,'RECAP DIRCOM'!$G$6:$EV$12,80,FALSE) -> 46% | K16: =VLOOKUP($A16,'RECAP DIRCOM'!$G$6:$EV$12,81,FALSE) -> 14% | L16: =VLOOKUP($A16,'RECAP DIRCOM'!$G$6:$EV$12,82,FALSE) -> 3 | M16: =VLOOKUP($A16,'RECAP DIRCOM'!$G$6:$EV$12,83,FALSE) -> 74% | N16: =VLOOKUP($A16,'RECAP DIRCOM'!$G$6:$EV$12,84,FALSE) -> 4% | O16: =VLOOKUP($A16,'RECAP DIRCOM'!$G$6:$EV$12,85,FALSE) -> 4 | P16: =VLOOKUP($A16,'RECAP DIRCOM'!$G$6:$EV$12,86,FALSE) -> 85% | Q16: =VLOOKUP($A16,'RECAP DIRCOM'!$G$6:$EV$12,87,FALSE) -> 6% | R16: =VLOOKUP($A16,'RECAP DIRCOM'!$G$6:$EV$12,88,FALSE) -> 2 | S16: =VLOOKUP($A16,'RECAP DIRCOM'!$G$6:$EV$12,89,FALSE) -> 70% | T16: =VLOOKUP($A16,'RECAP DIRCOM'!$G$6:$EV$12,90,FALSE) -> 0% | U16: =VLOOKUP($A16,'RECAP DIRCOM'!$G$6:$EV$12,91,FALSE) -> 1 | V16: =VLOOKUP($A16,'RECAP DIRCOM'!$G$6:$EV$12,92,FALSE) -> 7% | W16: =VLOOKUP($A16,'RECAP DIRCOM'!$G$6:$EV$12,93,FALSE) -> 4% | X16: =VLOOKUP($A16,'RECAP DIRCOM'!$G$6:$EV$12,94,FALSE) -> 2
A17: Total CEGEE Directions Régionales | C17: =SUM(C10:C16) -> 1578

Sheet DC_IARD
A1: Accueil | D1: BAROMETRE BDD - DIRECTIONS REGIONALES
D2: IARD PREVOYANCE
D3: =ACCUEIL!H7 -> 2019-06-30
D7: Ventes nettes IARD (AUTO+MRH+Pro) | G7: Ventes nettes Prévoyance | J7: Chiffre d'affaires IARD | M7: Total IARD Prévoyance
E8: coef | F8: ='RECAP DIRCOM'!DE4 -> 7% | H8: coef | I8: ='RECAP DIRCOM'!DH4 -> 7% | K8: coef | L8: ='RECAP DIRCOM'!DK4 -> 6% | N8: coef | O8: ='RECAP DIRCOM'!DN4 -> 20%
A9: eds | B9: Direction | C9: ETP perf | D9: Nb / ETP | E9: % Ecart au 1er | F9: Rang | G9: Nb / ETP | H9: % Ecart au 1er | I9: Rang | J9: Nb / ETP | K9: % Ecart au 1er | L9: Rang | M9: Moyenne ecart au 1er | N9: % Ecart au 1er | O9: Rang CEGEE
A10: 50 | B10: Aube Haute Marne | C10: =VLOOKUP($A10,'RECAP DIRCOM'!$G$6:$EV$12,3,FALSE) -> 146 | D10: =VLOOKUP($A10,'RECAP DIRCOM'!$G$6:$EV$12,101,FALSE) -> 4.60 | E10: =VLOOKUP($A10,'RECAP DIRCOM'!$G$6:$EV$12,102,FALSE) -> 23% | F10: =VLOOKUP($A10,'RECAP DIRCOM'!$G$6:$EV$12,103,FALSE) -> 5 | G10: =VLOOKUP($A10,'RECAP DIRCOM'!$G$6:$EV$12,104,FALSE) -> 7.42 | H10: =VLOOKUP($A10,'RECAP DIRCOM'!$G$6:$EV$12,105,FALSE) -> 33% | I10: =VLOOKUP($A10,'RECAP DIRCOM'!$G$6:$EV$12,106,FALSE) -> 3 | J10: =VLOOKUP($A10,'RECAP DIRCOM'!$G$6:$EV$12,107,FALSE) -> 5.48 | K10: =VLOOKUP($A10,'RECAP DIRCOM'!$G$6:$EV$12,108,FALSE) -> 18% | L10: =VLOOKUP($A10,'RECAP DIRCOM'!$G$6:$EV$12,109,FALSE) -> 7 | M10: =VLOOKUP($A10,'RECAP DIRCOM'!$G$6:$EV$12,110,FALSE) -> 25% | N10: =VLOOKUP($A10,'RECAP DIRCOM'!$G$6:$EV$12,111,FALSE) -> 24% | O10: =VLOOKUP($A10,'RECAP DIRCOM'!$G$6:$EV$12,112,FALSE) -> 4
A11: 262 | B11: Bas-Rhin | C11: =VLOOKUP($A11,'RECAP DIRCOM'!$G$6:$EV$12,3,FALSE) -> 297 | D11: =VLOOKUP($A11,'RECAP DIRCOM'!$G$6:$EV$12,101,FALSE) -> 3.96 | E11: =VLOOKUP($A11,'RECAP DIRCOM'!$G$6:$EV$12,102,FALSE) -> 34% | F11: =VLOOKUP($A11,'RECAP DIRCOM'!$G$6:$EV$12,103,FALSE) -> 6 | G11: =VLOOKUP($A11,'RECAP DIRCOM'!$G$6:$EV$12,104,FALSE) -> 5.40 | H11: =VLOOKUP($A11,'RECAP DIRCOM'!$G$6:$EV$12,105,FALSE) -> 51% | I11: =VLOOKUP($A11,'RECAP DIRCOM'!$G$6:$EV$12,106,FALSE) -> 5 | J11: =VLOOKUP($A11,'RECAP DIRCOM'!$G$6:$EV$12,107,FALSE) -> 5.94 | K11: =VLOOKUP($A11,'RECAP DIRCOM'!$G$6:$EV$12,108,FALSE) -> 11% | L11: =VLOOKUP($A11,'RECAP DIRCOM'!$G$6:$EV$12,109,FALSE) -> 6 | M11: =VLOOKUP($A11,'RECAP DIRCOM'!$G$6:$EV$12,110,FALSE) -> 33% | N11: =VLOOKUP($A11,'RECAP DIRCOM'!$G$6:$EV$12,111,FALSE) -> 32% | O11: =VLOOKUP($A11,'RECAP DIRCOM'!$G$6:$EV$12,112,FALSE) -> 6
A12: 264 | B12: Haut-Rhin | C12: =VLOOKUP($A12,'RECAP DIRCOM'!$G$6:$EV$12,3,FALSE) -> 179 | D12: =VLOOKUP($A12,'RECAP DIRCOM'!$G$6:$EV$12,101,FALSE) -> 3.90 | E12: =VLOOKUP($A12,'RECAP DIRCOM'!$G$6:$EV$12,102,FALSE) -> 35% | F12: =VLOOKUP($A12,'RECAP DIRCOM'!$G$6:$EV$12,103,FALSE) -> 7 | G12: =VLOOKUP($A12,'RECAP DIRCOM'!$G$6:$EV$12,104,FALSE) -> 4.33 | H12: =VLOOKUP($A12,'RECAP DIRCOM'!$G$6:$EV$12,105,FALSE) -> 61% | I12: =VLOOKUP($A12,'RECAP DIRCOM'!$G$6:$EV$12,106,FALSE) -> 7 | J12: =VLOOKUP($A12,'RECAP DIRCOM'!$G$6:$EV$12,107,FALSE) -> 6.18 | K12: =VLOOKUP($A12,'RECAP DIRCOM'!$G$6:$EV$12,108,FALSE) -> 7% | L12: =VLOOKUP($A12,'RECAP DIRCOM'!$G$6:$EV$12,109,FALSE) -> 5 | M12: =VLOOKUP($A12,'RECAP DIRCOM'!$G$6:$EV$12,110,FALSE) -> 36% | N12: =VLOOKUP($A12,'RECAP DIRCOM'!$G$6:$EV$12,111,FALSE) -> 35% | O12: =VLOOKUP($A12,'RECAP DIRCOM'!$G$6:$EV$12,112,FALSE) -> 7
A13: 30 | B13: Marne-Ardennes | C13: =VLOOKUP($A13,'RECAP DIRCOM'!$G$6:$EV$12,3,FALSE) -> 238 | D13: =VLOOKUP($A13,'RECAP DIRCOM'!$G$6:$EV$12,101,FALSE) -> 6.00 | E13: =VLOOKUP($A13,'RECAP DIRCOM'!$G$6:$EV$12,102,FALSE) -> 0% | F13: =VLOOKUP($A13,'RECAP DIRCOM'!$G$6:$EV$12,103,FALSE) -> 1 | G13: =VLOOKUP($A13,'RECAP DIRCOM'!$G$6:$EV$12,104,FALSE) -> 11.10 | H13: =VLOOKUP($A13,'RECAP DIRCOM'!$G$6:$EV$12,105,FALSE) -> 0% | I13: =VLOOKUP($A13,'RECAP DIRCOM'!$G$6:$EV$12,106,FALSE) -> 1 | J13: =VLOOKUP($A13,'RECAP DIRCOM'!$G$6:$EV$12,107,FALSE) -> 6.41 | K13: =VLOOKUP($A13,'RECAP DIRCOM'!$G$6:$EV$12,108,FALSE) -> 4% | L13: =VLOOKUP($A13,'RECAP DIRCOM'!$G$6:$EV$12,109,FALSE) -> 3 | M13: =VLOOKUP($A13,'RECAP DIRCOM'!$G$6:$EV$12,110,FALSE) -> 1% | N13: =VLOOKUP($A13,'RECAP DIRCOM'!$G$6:$EV$12,111,FALSE) -> 0% | O13: =VLOOKUP($A13,'RECAP DIRCOM'!$G$6:$EV$12,112,FALSE) -> 1
A14: 110 | B14: Meurthe et Moselle Meuse | C14: =VLOOKUP($A14,'RECAP DIRCOM'!$G$6:$EV$12,3,FALSE) -> 264 | D14: =VLOOKUP($A14,'RECAP DIRCOM'!$G$6:$EV$12,101,FALSE) -> 5.41 | E14: =VLOOKUP($A14,'RECAP DIRCOM'!$G$6:$EV$12,102,FALSE) -> 10% | F14: =VLOOKUP($A14,'RECAP DIRCOM'!$G$6:$EV$12,103,FALSE) -> 2 | G14: =VLOOKUP($A14,'RECAP DIRCOM'!$G$6:$EV$12,104,FALSE) -> 5.99 | H14: =VLOOKUP($A14,'RECAP DIRCOM'!$G$6:$EV$12,105,FALSE) -> 46% | I14: =VLOOKUP($A14,'RECAP DIRCOM'!$G$6:$EV$12,106,FALSE) -> 4 | J14: =VLOOKUP($A14,'RECAP DIRCOM'!$G$6:$EV$12,107,FALSE) -> 6.65 | K14: =VLOOKUP($A14,'RECAP DIRCOM'!$G$6:$EV$12,108,FALSE) -> 0% | L14: =VLOOKUP($A14,'RECAP DIRCOM'!$G$6:$EV$12,109,FALSE) -> 1 | M14: =VLOOKUP($A14,'RECAP DIRCOM'!$G$6:$EV$12,110,FALSE) -> 20% | N14: =VLOOKUP($A14,'RECAP DIRCOM'!$G$6:$EV$12,111,FALSE) -> 18% | O14: =VLOOKUP($A14,'RECAP DIRCOM'!$G$6:$EV$12,112,FALSE) -> 3
A15: 160 | B15: Moselle | C15: =VLOOKUP($A15,'RECAP DIRCOM'!$G$6:$EV$12,3,FALSE) -> 307 | D15: =VLOOKUP($A15,'RECAP DIRCOM'!$G$6:$EV$12,101,FALSE) -> 5.00 | E15: =VLOOKUP($A15,'RECAP DIRCOM'!$G$6:$EV$12,102,FALSE) -> 17% | F15: =VLOOKUP($A15,'RECAP DIRCOM'!$G$6:$EV$12,103,FALSE) -> 3 | G15: =VLOOKUP($A15,'RECAP DIRCOM'!$G$6:$EV$12,104,FALSE) -> 7.93 | H15: =VLOOKUP($A15,'RECAP DIRCOM'!$G$6:$EV$12,105,FALSE) -> 29% | I15: =VLOOKUP($A15,'RECAP DIRCOM'!$G$6:$EV$12,106,FALSE) -> 2 | J15: =VLOOKUP($A15,'RECAP DIRCOM'!$G$6:$EV$12,107,FALSE) -> 6.22 | K15: =VLOOKUP($A15,'RECAP DIRCOM'!$G$6:$EV$12,108,FALSE) -> 6% | L15: =VLOOKUP($A15,'RECAP DIRCOM'!$G$6:$EV$12,109,FALSE) -> 4 | M15: =VLOOKUP($A15,'RECAP DIRCOM'!$G$6:$EV$12,110,FALSE) -> 18% | N15: =VLOOKUP($A15,'RECAP DIRCOM'!$G$6:$EV$12,111,FALSE) -> 17% | O15: =VLOOKUP($A15,'RECAP DIRCOM'!$G$6:$EV$12,112,FALSE) -> 2
A16: 80 | B16: Vosges | C16: =VLOOKUP($A16,'RECAP DIRCOM'!$G$6:$EV$12,3,FALSE) -> 148 | D16: =VLOOKUP($A16,'RECAP DIRCOM'!$G$6:$EV$12,101,FALSE) -> 4.94 | E16: =VLOOKUP($A16,'RECAP DIRCOM'!$G$6:$EV$12,102,FALSE) -> 18% | F16: =VLOOKUP($A16,'RECAP DIRCOM'!$G$6:$EV$12,103,FALSE) -> 4 | G16: =VLOOKUP($A16,'RECAP DIRCOM'!$G$6:$EV$12,104,FALSE) -> 5.27 | H16: =VLOOKUP($A16,'RECAP DIRCOM'!$G$6:$EV$12,105,FALSE) -> 53% | I16: =VLOOKUP($A16,'RECAP DIRCOM'!$G$6:$EV$12,106,FALSE) -> 6 | J16: =VLOOKUP($A16,'RECAP DIRCOM'!$G$6:$EV$12,107,FALSE) -> 6.52 | K16: =VLOOKUP($A16,'RECAP DIRCOM'!$G$6:$EV$12,108,FALSE) -> 2% | L16: =VLOOKUP($A16,'RECAP DIRCOM'!$G$6:$EV$12,109,FALSE) -> 2 | M16: =VLOOKUP($A16,'RECAP DIRCOM'!$G$6:$EV$12,110,FALSE) -> 25% | N16: =VLOOKUP($A16,'RECAP DIRCOM'!$G$6:$EV$12,111,FALSE) -> 24% | O16: =VLOOKUP($A16,'RECAP DIRCOM'!$G$6:$EV$12,112,FALSE) -> 5
A17: Total CEGEE Directions Régionales | C17: =SUM(C10:C16) -> 1578

Sheet DC_CONQUETE
A1: Accueil | D1: BAROMETRE BDD - DIRECTIONS REGIONALES
D2: CONQUETE
D3: =ACCUEIL!H7 -> 2019-06-30
D7: Evolution nette clients Bancarisés Principaux | G7: Evolution nette relations PREMIUM | J7: Evolution nette clients Bancarisés Principaux équipés | M7: Evolution nette clients Pro actif équipés | P7: Total Conquête
E8: coef | F8: ='RECAP DIRCOM'!M4 -> 4% | H8: coef | I8: ='RECAP DIRCOM'!P4 -> 4% | K8: coef | L8: ='RECAP DIRCOM'!S4 -> 3% | N8: coef | O8: ='RECAP DIRCOM'!V4 -> 4% | Q8: coef | R8: ='RECAP DIRCOM'!Y4 -> 15%
A9: eds | B9: Direction | C9: ETP perf | D9: Nb / ETP | E9: % Ecart au 1er | F9: Rang | G9: Nb / ETP | H9: % Ecart au 1er | I9: Rang | J9: Nb / ETP | K9: % Ecart au 1er | L9: Rang | M9: Taux réal objectif | N9: % Ecart au 1er | O9: Rang | P9: Moyenne ecart au 1er | Q9: % Ecart au 1er | R9: Rang CEGEE
A10: 50 | B10: Aube Haute Marne | C10: =VLOOKUP($A10,'RECAP DIRCOM'!$G$6:$EV$12,3,FALSE) -> 146 | D10: =VLOOKUP($A10,'RECAP DIRCOM'!$G$6:$EV$12,5,FALSE) -> -0.86 | E10: =VLOOKUP($A10,'RECAP DIRCOM'!$G$6:$EV$12,6,FALSE) -> 23% | F10: =VLOOKUP($A10,'RECAP DIRCOM'!$G$6:$EV$12,7,FALSE) -> 2 | G10: =VLOOKUP($A10,'RECAP DIRCOM'!$G$6:$EV$12,8,FALSE) -> 1.30 | H10: =VLOOKUP($A10,'RECAP DIRCOM'!$G$6:$EV$12,9,FALSE) -> 27% | I10: =VLOOKUP($A10,'RECAP DIRCOM'!$G$6:$EV$12,10,FALSE) -> 5 | J10: =VLOOKUP($A10,'RECAP DIRCOM'!$G$6:$EV$12,11,FALSE) -> 1.61 | K10: =VLOOKUP($A10,'RECAP DIRCOM'!$G$6:$EV$12,12,FALSE) -> 0% | L10: =VLOOKUP($A10,'RECAP DIRCOM'!$G$6:$EV$12,13,FALSE) -> 1 | M10: =VLOOKUP($A10,'RECAP DIRCOM'!$G$6:$EV$12,14,FALSE) -> 28% | N10: =VLOOKUP($A10,'RECAP DIRCOM'!$G$6:$EV$12,15,FALSE) -> 63% | O10: =VLOOKUP($A10,'RECAP DIRCOM'!$G$6:$EV$12,16,FALSE) -> 4 | P10: =VLOOKUP($A10,'RECAP DIRCOM'!$G$6:$EV$12,17,FALSE) -> 30% | Q10: =VLOOKUP($A10,'RECAP DIRCOM'!$G$6:$EV$12,18,FALSE) -> 0% | R10: =VLOOKUP($A10,'RECAP DIRCOM'!$G$6:$EV$12,19,FALSE) -> 1
A11: 262 | B11: Bas-Rhin | C11: =VLOOKUP($A11,'RECAP DIRCOM'!$G$6:$EV$12,3,FALSE) -> 297 | D11: =VLOOKUP($A11,'RECAP DIRCOM'!$G$6:$EV$12,5,FALSE) -> -2.07 | E11: =VLOOKUP($A11,'RECAP DIRCOM'!$G$6:$EV$12,6,FALSE) -> 98% | F11: =VLOOKUP($A11,'RECAP DIRCOM'!$G$6:$EV$12,7,FALSE) -> 4 | G11: =VLOOKUP($A11,'RECAP DIRCOM'!$G$6:$EV$12,8,FALSE) -> 1.50 | H11: =VLOOKUP($A11,'RECAP DIRCOM'!$G$6:$EV$12,9,FALSE) -> 16% | I11: =VLOOKUP($A11,'RECAP DIRCOM'!$G$6:$EV$12,10,FALSE) -> 3 | J11: =VLOOKUP($A11,'RECAP DIRCOM'!$G$6:$EV$12,11,FALSE) -> -1.58 | K11: =VLOOKUP($A11,'RECAP DIRCOM'!$G$6:$EV$12,12,FALSE) -> 140% | L11: =VLOOKUP($A11,'RECAP DIRCOM'!$G$6:$EV$12,13,FALSE) -> 6 | M11: =VLOOKUP($A11,'RECAP DIRCOM'!$G$6:$EV$12,14,FALSE) -> 1% | N11: =VLOOKUP($A11,'RECAP DIRCOM'!$G$6:$EV$12,15,FALSE) -> 99% | O11: =VLOOKUP($A11,'RECAP DIRCOM'!$G$6:$EV$12,16,FALSE) -> 5 | P11: =VLOOKUP($A11,'RECAP DIRCOM'!$G$6:$EV$12,17,FALSE) -> 85% | Q11: =VLOOKUP($A11,'RECAP DIRCOM'!$G$6:$EV$12,18,FALSE) -> 54% | R11: =VLOOKUP($A11,'RECAP DIRCOM'!$G$6:$EV$12,19,FALSE) -> 6
A12: 264 | B12: Haut-Rhin | C12: =VLOOKUP($A12,'RECAP DIRCOM'!$G$6:$EV$12,3,FALSE) -> 179 | D12: =VLOOKUP($A12,'RECAP DIRCOM'!$G$6:$EV$12,5,FALSE) -> -2.92 | E12: =VLOOKUP($A12,'RECAP DIRCOM'!$G$6:$EV$12,6,FALSE) -> 150% | F12: =VLOOKUP($A12,'RECAP DIRCOM'!$G$6:$EV$12,7,FALSE) -> 7 | G12: =VLOOKUP($A12,'RECAP DIRCOM'!$G$6:$EV$12,8,FALSE) -> 1.79 | H12: =VLOOKUP($A12,'RECAP DIRCOM'!$G$6:$EV$12,9,FALSE) -> 0% | I12: =VLOOKUP($A12,'RECAP DIRCOM'!$G$6:$EV$12,10,FALSE) -> 1 | J12: =VLOOKUP($A12,'RECAP DIRCOM'!$G$6:$EV$12,11,FALSE) -> -1.82 | K12: =VLOOKUP($A12,'RECAP DIRCOM'!$G$6:$EV$12,12,FALSE) -> 150% | L12: =VLOOKUP($A12,'RECAP DIRCOM'!$G$6:$EV$12,13,FALSE) -> 7 | M12: =VLOOKUP($A12,'RECAP DIRCOM'!$G$6:$EV$12,14,FALSE) -> 0% | N12: =VLOOKUP($A12,'RECAP DIRCOM'!$G$6:$EV$12,15,FALSE) -> 100% | O12: =VLOOKUP($A12,'RECAP DIRCOM'!$G$6:$EV$12,16,FALSE) -> 6 | P12: =VLOOKUP($A12,'RECAP DIRCOM'!$G$6:$EV$12,17,FALSE) -> 97% | Q12: =VLOOKUP($A12,'RECAP DIRCOM'!$G$6:$EV$12,18,FALSE) -> 66% | R12: =VLOOKUP($A12,'RECAP DIRCOM'!$G$6:$EV$12,19,FALSE) -> 7
A13: 30 | B13: Marne-Ardennes | C13: =VLOOKUP($A13,'RECAP DIRCOM'!$G$6:$EV$12,3,FALSE) -> 238 | D13: =VLOOKUP($A13,'RECAP DIRCOM'!$G$6:$EV$12,5,FALSE) -> -0.49 | E13: =VLOOKUP($A13,'RECAP DIRCOM'!$G$6:$EV$12,6,FALSE) -> 0% | F13: =VLOOKUP($A13,'RECAP DIRCOM'!$G$6:$EV$12,7,FALSE) -> 1 | G13: =VLOOKUP($A13,'RECAP DIRCOM'!$G$6:$EV$12,8,FALSE) -> 1.56 | H13: =VLOOKUP($A13,'RECAP DIRCOM'!$G$6:$EV$12,9,FALSE) -> 13% | I13: =VLOOKUP($A13,'RECAP DIRCOM'!$G$6:$EV$12,10,FALSE) -> 2 | J13: =VLOOKUP($A13,'RECAP DIRCOM'!$G$6:$EV$12,11,FALSE) -> 1.24 | K13: =VLOOKUP($A13,'RECAP DIRCOM'!$G$6:$EV$12,12,FALSE) -> 16% | L13: =VLOOKUP($A13,'RECAP DIRCOM'!$G$6:$EV$12,13,FALSE) -> 2 | M13: =VLOOKUP($A13,'RECAP DIRCOM'!$G$6:$EV$12,14,FALSE) -> -8% | N13: =VLOOKUP($A13,'RECAP DIRCOM'!$G$6:$EV$12,15,FALSE) -> 111% | O13: =VLOOKUP($A13,'RECAP DIRCOM'!$G$6:$EV$12,16,FALSE) -> 7 | P13: =VLOOKUP($A13,'RECAP DIRCOM'!$G$6:$EV$12,17,FALSE) -> 36% | Q13: =VLOOKUP($A13,'RECAP DIRCOM'!$G$6:$EV$12,18,FALSE) -> 6% | R13: =VLOOKUP($A13,'RECAP DIRCOM'!$G$6:$EV$12,19,FALSE) -> 2
A14: 110 | B14: Meurthe et Moselle Meuse | C14: =VLOOKUP($A14,'RECAP DIRCOM'!$G$6:$EV$12,3,FALSE) -> 264 | D14: =VLOOKUP($A14,'RECAP DIRCOM'!$G$6:$EV$12,5,FALSE) -> -2.00 | E14: =VLOOKUP($A14,'RECAP DIRCOM'!$G$6:$EV$12,6,FALSE) -> 93% | F14: =VLOOKUP($A14,'RECAP DIRCOM'!$G$6:$EV$12,7,FALSE) -> 3 | G14: =VLOOKUP($A14,'RECAP DIRCOM'!$G$6:$EV$12,8,FALSE) -> 1.20 | H14: =VLOOKUP($A14,'RECAP DIRCOM'!$G$6:$EV$12,9,FALSE) -> 33% | I14: =VLOOKUP($A14,'RECAP DIRCOM'!$G$6:$EV$12,10,FALSE) -> 6 | J14: =VLOOKUP($A14,'RECAP DIRCOM'!$G$6:$EV$12,11,FALSE) -> -0.24 | K14: =VLOOKUP($A14,'RECAP DIRCOM'!$G$6:$EV$12,12,FALSE) -> 81% | L14: =VLOOKUP($A14,'RECAP DIRCOM'!$G$6:$EV$12,13,FALSE) -> 4 | M14: =VLOOKUP($A14,'RECAP DIRCOM'!$G$6:$EV$12,14,FALSE) -> 39% | N14: =VLOOKUP($A14,'RECAP DIRCOM'!$G$6:$EV$12,15,FALSE) -> 47% | O14: =VLOOKUP($A14,'RECAP DIRCOM'!$G$6:$EV$12,16,FALSE) -> 2 | P14: =VLOOKUP($A14,'RECAP DIRCOM'!$G$6:$EV$12,17,FALSE) -> 62% | Q14: =VLOOKUP($A14,'RECAP DIRCOM'!$G$6:$EV$12,18,FALSE) -> 32% | R14: =VLOOKUP($A14,'RECAP DIRCOM'!$G$6:$EV$12,19,FALSE) -> 4
A15: 160 | B15: Moselle | C15: =VLOOKUP($A15,'RECAP DIRCOM'!$G$6:$EV$12,3,FALSE) -> 307 | D15: =VLOOKUP($A15,'RECAP DIRCOM'!$G$6:$EV$12,5,FALSE) -> -2.34 | E15: =VLOOKUP($A15,'RECAP DIRCOM'!$G$6:$EV$12,6,FALSE) -> 114% | F15: =VLOOKUP($A15,'RECAP DIRCOM'!$G$6:$EV$12,7,FALSE) -> 5 | G15: =VLOOKUP($A15,'RECAP DIRCOM'!$G$6:$EV$12,8,FALSE) -> 1.19 | H15: =VLOOKUP($A15,'RECAP DIRCOM'!$G$6:$EV$12,9,FALSE) -> 34% | I15: =VLOOKUP($A15,'RECAP DIRCOM'!$G$6:$EV$12,10,FALSE) -> 7 | J15: =VLOOKUP($A15,'RECAP DIRCOM'!$G$6:$EV$12,11,FALSE) -> 0.52 | K15: =VLOOKUP($A15,'RECAP DIRCOM'!$G$6:$EV$12,12,FALSE) -> 48% | L15: =VLOOKUP($A15,'RECAP DIRCOM'!$G$6:$EV$12,13,FALSE) -> 3 | M15: =VLOOKUP($A15,'RECAP DIRCOM'!$G$6:$EV$12,14,FALSE) -> 75% | N15: =VLOOKUP($A15,'RECAP DIRCOM'!$G$6:$EV$12,15,FALSE) -> 0% | O15: =VLOOKUP($A15,'RECAP DIRCOM'!$G$6:$EV$12,16,FALSE) -> 1 | P15: =VLOOKUP($A15,'RECAP DIRCOM'!$G$6:$EV$12,17,FALSE) -> 49% | Q15: =VLOOKUP($A15,'RECAP DIRCOM'!$G$6:$EV$12,18,FALSE) -> 19% | R15: =VLOOKUP($A15,'RECAP DIRCOM'!$G$6:$EV$12,19,FALSE) -> 3
A16: 80 | B16: Vosges | C16: =VLOOKUP($A16,'RECAP DIRCOM'!$G$6:$EV$12,3,FALSE) -> 148 | D16: =VLOOKUP($A16,'RECAP DIRCOM'!$G$6:$EV$12,5,FALSE) -> -2.59 | E16: =VLOOKUP($A16,'RECAP DIRCOM'!$G$6:$EV$12,6,FALSE) -> 130% | F16: =VLOOKUP($A16,'RECAP DIRCOM'!$G$6:$EV$12,7,FALSE) -> 6 | G16: =VLOOKUP($A16,'RECAP DIRCOM'!$G$6:$EV$12,8,FALSE) -> 1.49 | H16: =VLOOKUP($A16,'RECAP DIRCOM'!$G$6:$EV$12,9,FALSE) -> 17% | I16: =VLOOKUP($A16,'RECAP DIRCOM'!$G$6:$EV$12,10,FALSE) -> 4 | J16: =VLOOKUP($A16,'RECAP DIRCOM'!$G$6:$EV$12,11,FALSE) -> -0.72 | K16: =VLOOKUP($A16,'RECAP DIRCOM'!$G$6:$EV$12,12,FALSE) -> 102% | L16: =VLOOKUP($A16,'RECAP DIRCOM'!$G$6:$EV$12,13,FALSE) -> 5 | M16: =VLOOKUP($A16,'RECAP DIRCOM'!$G$6:$EV$12,14,FALSE) -> 38% | N16: =VLOOKUP($A16,'RECAP DIRCOM'!$G$6:$EV$12,15,FALSE) -> 50% | O16: =VLOOKUP($A16,'RECAP DIRCOM'!$G$6:$EV$12,16,FALSE) -> 3 | P16: =VLOOKUP($A16,'RECAP DIRCOM'!$G$6:$EV$12,17,FALSE) -> 73% | Q16: =VLOOKUP($A16,'RECAP DIRCOM'!$G$6:$EV$12,18,FALSE) -> 43% | R16: =VLOOKUP($A16,'RECAP DIRCOM'!$G$6:$EV$12,19,FALSE) -> 5
A17: Total CEGEE Directions Régionales | C17: =SUM(C10:C16) -> 1578

Sheet DC_RISQUES
A1: Accueil | D1: BAROMETRE BDD - DIRECTIONS REGIONALES
D2: RISQUES
D3: =ACCUEIL!H7 -> 2019-06-30
D6: Complétude conformité et fiabilisation | J6: Traitement et qualité du traitement des alertes Vigiclient | M6: Total Risques
D7: Nouvelles EER sur flux BDD | G7: EER sur flux cumulés et stock
E8: coef | F8: ='RECAP DIRCOM'!DW4 -> 3% | H8: coef | I8: ='RECAP DIRCOM'!DZ4 -> 3% | K8: coef | L8: ='RECAP DIRCOM'!EC4 -> 4% | N8: coef | O8: ='RECAP DIRCOM'!EF4 -> 10%
A9: eds | B9: Direction | C9: ETP perf | E9: % Ecart au 1er | F9: Rang | H9: % Ecart au 1er | I9: Rang | K9: % Ecart au 1er | L9: Rang | M9: Moyenne ecart au 1er | N9: % Ecart au 1er | O9: Rang CEGEE
A10: 50 | B10: Aube Haute Marne | C10: =VLOOKUP($A10,'RECAP DIRCOM'!$G$6:$EV$12,3,FALSE) -> 146 | D10: =VLOOKUP($A10,'RECAP DIRCOM'!$G$6:$EV$12,119,FALSE) -> 97% | E10: =VLOOKUP($A10,'RECAP DIRCOM'!$G$6:$EV$12,120,FALSE) -> 1% | F10: =VLOOKUP($A10,'RECAP DIRCOM'!$G$6:$EV$12,121,FALSE) -> 4 | G10: =VLOOKUP($A10,'RECAP DIRCOM'!$G$6:$EV$12,122,FALSE) -> 76% | H10: =VLOOKUP($A10,'RECAP DIRCOM'!$G$6:$EV$12,123,FALSE) -> 3% | I10: =VLOOKUP($A10,'RECAP DIRCOM'!$G$6:$EV$12,124,FALSE) -> 3 | J10: =VLOOKUP($A10,'RECAP DIRCOM'!$G$6:$EV$12,125,FALSE) -> 100% | K10: =VLOOKUP($A10,'RECAP DIRCOM'!$G$6:$EV$12,126,FALSE) -> 0% | L10: =VLOOKUP($A10,'RECAP DIRCOM'!$G$6:$EV$12,127,FALSE) -> 1 | M10: =VLOOKUP($A10,'RECAP DIRCOM'!$G$6:$EV$12,128,FALSE) -> 1% | N10: =VLOOKUP($A10,'RECAP DIRCOM'!$G$6:$EV$12,129,FALSE) -> 0% | O10: =VLOOKUP($A10,'RECAP DIRCOM'!$G$6:$EV$12,130,FALSE) -> 2
A11: 262 | B11: Bas-Rhin | C11: =VLOOKUP($A11,'RECAP DIRCOM'!$G$6:$EV$12,3,FALSE) -> 297 | D11: =VLOOKUP($A11,'RECAP DIRCOM'!$G$6:$EV$12,119,FALSE) -> 95% | E11: =VLOOKUP($A11,'RECAP DIRCOM'!$G$6:$EV$12,120,FALSE) -> 3% | F11: =VLOOKUP($A11,'RECAP DIRCOM'!$G$6:$EV$12,121,FALSE) -> 7 | G11: =VLOOKUP($A11,'RECAP DIRCOM'!$G$6:$EV$12,122,FALSE) -> 71% | H11: =VLOOKUP($A11,'RECAP DIRCOM'!$G$6:$EV$12,123,FALSE) -> 9% | I11: =VLOOKUP($A11,'RECAP DIRCOM'!$G$6:$EV$12,124,FALSE) -> 7 | J11: =VLOOKUP($A11,'RECAP DIRCOM'!$G$6:$EV$12,125,FALSE) -> 87% | K11: =VLOOKUP($A11,'RECAP DIRCOM'!$G$6:$EV$12,126,FALSE) -> 13% | L11: =VLOOKUP($A11,'RECAP DIRCOM'!$G$6:$EV$12,127,FALSE) -> 6 | M11: =VLOOKUP($A11,'RECAP DIRCOM'!$G$6:$EV$12,128,FALSE) -> 8% | N11: =VLOOKUP($A11,'RECAP DIRCOM'!$G$6:$EV$12,129,FALSE) -> 7% | O11: =VLOOKUP($A11,'RECAP DIRCOM'!$G$6:$EV$12,130,FALSE) -> 7
A12: 264 | B12: Haut-Rhin | C12: =VLOOKUP($A12,'RECAP DIRCOM'!$G$6:$EV$12,3,FALSE) -> 179 | D12: =VLOOKUP($A12,'RECAP DIRCOM'!$G$6:$EV$12,119,FALSE) -> 97% | E12: =VLOOKUP($A12,'RECAP DIRCOM'!$G$6:$EV$12,120,FALSE) -> 1% | F12: =VLOOKUP($A12,'RECAP DIRCOM'!$G$6:$EV$12,121,FALSE) -> 3 | G12: =VLOOKUP($A12,'RECAP DIRCOM'!$G$6:$EV$12,122,FALSE) -> 73% | H12: =VLOOKUP($A12,'RECAP DIRCOM'!$G$6:$EV$12,123,FALSE) -> 7% | I12: =VLOOKUP($A12,'RECAP DIRCOM'!$G$6:$EV$12,124,FALSE) -> 6 | J12: =VLOOKUP($A12,'RECAP DIRCOM'!$G$6:$EV$12,125,FALSE) -> 98% | K12: =VLOOKUP($A12,'RECAP DIRCOM'!$G$6:$EV$12,126,FALSE) -> 2% | L12: =VLOOKUP($A12,'RECAP DIRCOM'!$G$6:$EV$12,127,FALSE) -> 4 | M12: =VLOOKUP($A12,'RECAP DIRCOM'!$G$6:$EV$12,128,FALSE) -> 3% | N12: =VLOOKUP($A12,'RECAP DIRCOM'!$G$6:$EV$12,129,FALSE) -> 2% | O12: =VLOOKUP($A12,'RECAP DIRCOM'!$G$6:$EV$12,130,FALSE) -> 5
A13: 30 | B13: Marne-Ardennes | C13: =VLOOKUP($A13,'RECAP DIRCOM'!$G$6:$EV$12,3,FALSE) -> 238 | D13: =VLOOKUP($A13,'RECAP DIRCOM'!$G$6:$EV$12,119,FALSE) -> 97% | E13: =VLOOKUP($A13,'RECAP DIRCOM'!$G$6:$EV$12,120,FALSE) -> 1% | F13: =VLOOKUP($A13,'RECAP DIRCOM'!$G$6:$EV$12,121,FALSE) -> 2 | G13: =VLOOKUP($A13,'RECAP DIRCOM'!$G$6:$EV$12,122,FALSE) -> 73% | H13: =VLOOKUP($A13,'RECAP DIRCOM'!$G$6:$EV$12,123,FALSE) -> 6% | I13: =VLOOKUP($A13,'RECAP DIRCOM'!$G$6:$EV$12,124,FALSE) -> 5 | J13: =VLOOKUP($A13,'RECAP DIRCOM'!$G$6:$EV$12,125,FALSE) -> 99% | K13: =VLOOKUP($A13,'RECAP DIRCOM'!$G$6:$EV$12,126,FALSE) -> 1% | L13: =VLOOKUP($A13,'RECAP DIRCOM'!$G$6:$EV$12,127,FALSE) -> 2 | M13: =VLOOKUP($A13,'RECAP DIRCOM'!$G$6:$EV$12,128,FALSE) -> 3% | N13: =VLOOKUP($A13,'RECAP DIRCOM'!$G$6:$EV$12,129,FALSE) -> 1% | O13: =VLOOKUP($A13,'RECAP DIRCOM'!$G$6:$EV$12,130,FALSE) -> 3
A14: 110 | B14: Meurthe et Moselle Meuse | C14: =VLOOKUP($A14,'RECAP DIRCOM'!$G$6:$EV$12,3,FALSE) -> 264 | D14: =VLOOKUP($A14,'RECAP DIRCOM'!$G$6:$EV$12,119,FALSE) -> 95% | E14: =VLOOKUP($A14,'RECAP DIRCOM'!$G$6:$EV$12,120,FALSE) -> 3% | F14: =VLOOKUP($A14,'RECAP DIRCOM'!$G$6:$EV$12,121,FALSE) -> 6 | G14: =VLOOKUP($A14,'RECAP DIRCOM'!$G$6:$EV$12,122,FALSE) -> 75% | H14: =VLOOKUP($A14,'RECAP DIRCOM'!$G$6:$EV$12,123,FALSE) -> 3% | I14: =VLOOKUP($A14,'RECAP DIRCOM'!$G$6:$EV$12,124,FALSE) -> 4 | J14: =VLOOKUP($A14,'RECAP DIRCOM'!$G$6:$EV$12,125,FALSE) -> 85% | K14: =VLOOKUP($A14,'RECAP DIRCOM'!$G$6:$EV$12,126,FALSE) -> 15% | L14: =VLOOKUP($A14,'RECAP DIRCOM'!$G$6:$EV$12,127,FALSE) -> 7 | M14: =VLOOKUP($A14,'RECAP DIRCOM'!$G$6:$EV$12,128,FALSE) -> 8% | N14: =VLOOKUP($A14,'RECAP DIRCOM'!$G$6:$EV$12,129,FALSE) -> 7% | O14: =VLOOKUP($A14,'RECAP DIRCOM'!$G$6:$EV$12,130,FALSE) -> 6
A15: 160 | B15: Moselle | C15: =VLOOKUP($A15,'RECAP DIRCOM'!$G$6:$EV$12,3,FALSE) -> 307 | D15: =VLOOKUP($A15,'RECAP DIRCOM'!$G$6:$EV$12,119,FALSE) -> 97% | E15: =VLOOKUP($A15,'RECAP DIRCOM'!$G$6:$EV$12,120,FALSE) -> 1% | F15: =VLOOKUP($A15,'RECAP DIRCOM'!$G$6:$EV$12,121,FALSE) -> 5 | G15: =VLOOKUP($A15,'RECAP DIRCOM'!$G$6:$EV$12,122,FALSE) -> 77% | H15: =VLOOKUP($A15,'RECAP DIRCOM'!$G$6:$EV$12,123,FALSE) -> 0% | I15: =VLOOKUP($A15,'RECAP DIRCOM'!$G$6:$EV$12,124,FALSE) -> 2 | J15: =VLOOKUP($A15,'RECAP DIRCOM'!$G$6:$EV$12,125,FALSE) -> 98% | K15: =VLOOKUP($A15,'RECAP DIRCOM'!$G$6:$EV$12,126,FALSE) -> 2% | L15: =VLOOKUP($A15,'RECAP DIRCOM'!$G$6:$EV$12,127,FALSE) -> 3 | M15: =VLOOKUP($A15,'RECAP DIRCOM'!$G$6:$EV$12,128,FALSE) -> 1% | N15: =VLOOKUP($A15,'RECAP DIRCOM'!$G$6:$EV$12,129,FALSE) -> 0% | O15: =VLOOKUP($A15,'RECAP DIRCOM'!$G$6:$EV$12,130,FALSE) -> 1
A16: 80 | B16: Vosges | C16: =VLOOKUP($A16,'RECAP DIRCOM'!$G$6:$EV$12,3,FALSE) -> 148 | D16: =VLOOKUP($A16,'RECAP DIRCOM'!$G$6:$EV$12,119,FALSE) -> 98% | E16: =VLOOKUP($A16,'RECAP DIRCOM'!$G$6:$EV$12,120,FALSE) -> 0% | F16: =VLOOKUP($A16,'RECAP DIRCOM'!$G$6:$EV$12,121,FALSE) -> 1 | G16: =VLOOKUP($A16,'RECAP DIRCOM'!$G$6:$EV$12,122,FALSE) -> 78% | H16: =VLOOKUP($A16,'RECAP DIRCOM'!$G$6:$EV$12,123,FALSE) -> 0% | I16: =VLOOKUP($A16,'RECAP DIRCOM'!$G$6:$EV$12,124,FALSE) -> 1 | J16: =VLOOKUP($A16,'RECAP DIRCOM'!$G$6:$EV$12,125,FALSE) -> 93% | K16: =VLOOKUP($A16,'RECAP DIRCOM'!$G$6:$EV$12,126,FALSE) -> 7% | L16: =VLOOKUP($A16,'RECAP DIRCOM'!$G$6:$EV$12,127,FALSE) -> 5 | M16: =VLOOKUP($A16,'RECAP DIRCOM'!$G$6:$EV$12,128,FALSE) -> 3% | N16: =VLOOKUP($A16,'RECAP DIRCOM'!$G$6:$EV$12,129,FALSE) -> 2% | O16: =VLOOKUP($A16,'RECAP DIRCOM'!$G$6:$EV$12,130,FALSE) -> 4
A17: Total CEGEE Directions Régionales | C17: =SUM(C10:C16) -> 1578

Sheet DC_SATISFACTION
A1: Accueil | D1: BAROMETRE BDD - DIRECTIONS REGIONALES
D2: SATISFACTION CLIENTS
D3: =ACCUEIL!H7 -> 2019-06-30
D7: N P S | G7: Enquête Qualité Haute Définition | J7: Total Satisfaction Clients
E8: coef | F8: ='RECAP DIRCOM'!EO4 -> 5% | H8: coef | I8: ='RECAP DIRCOM'!ER4 -> 5% | K8: coef | L8: ='RECAP DIRCOM'!EU4 -> 10%
A9: eds | B9: Direction | C9: ETP perf | E9: % Ecart au 1er | F9: Rang | H9: % Ecart au 1er | I9: Rang | J9: Moyenne ecart au 1er | K9: % Ecart au 1er | L9: Rang CEGEE
A10: 50 | B10: Aube Haute Marne | C10: =VLOOKUP($A10,'RECAP DIRCOM'!$G$6:$EV$12,3,FALSE) -> 146 | D10: =VLOOKUP($A10,'RECAP DIRCOM'!$G$6:$EV$12,137,FALSE) -> -8 | E10: =VLOOKUP($A10,'RECAP DIRCOM'!$G$6:$EV$12,138,FALSE) -> 18% | F10: =VLOOKUP($A10,'RECAP DIRCOM'!$G$6:$EV$12,139,FALSE) -> 2 | G10: =VLOOKUP($A10,'RECAP DIRCOM'!$G$6:$EV$12,140,FALSE) -> 75% | H10: =VLOOKUP($A10,'RECAP DIRCOM'!$G$6:$EV$12,141,FALSE) -> 3% | I10: =VLOOKUP($A10,'RECAP DIRCOM'!$G$6:$EV$12,142,FALSE) -> 4 | J10: =VLOOKUP($A10,'RECAP DIRCOM'!$G$6:$EV$12,143,FALSE) -> 10% | K10: =VLOOKUP($A10,'RECAP DIRCOM'!$G$6:$EV$12,144,FALSE) -> 10% | L10: =VLOOKUP($A10,'RECAP DIRCOM'!$G$6:$EV$12,145,FALSE) -> 2
A11: 262 | B11: Bas-Rhin | C11: =VLOOKUP($A11,'RECAP DIRCOM'!$G$6:$EV$12,3,FALSE) -> 297 | D11: =VLOOKUP($A11,'RECAP DIRCOM'!$G$6:$EV$12,137,FALSE) -> -23 | E11: =VLOOKUP($A11,'RECAP DIRCOM'!$G$6:$EV$12,138,FALSE) -> 150% | F11: =VLOOKUP($A11,'RECAP DIRCOM'!$G$6:$EV$12,139,FALSE) -> 7 | G11: =VLOOKUP($A11,'RECAP DIRCOM'!$G$6:$EV$12,140,FALSE) -> 72% | H11: =VLOOKUP($A11,'RECAP DIRCOM'!$G$6:$EV$12,141,FALSE) -> 7% | I11: =VLOOKUP($A11,'RECAP DIRCOM'!$G$6:$EV$12,142,FALSE) -> 7 | J11: =VLOOKUP($A11,'RECAP DIRCOM'!$G$6:$EV$12,143,FALSE) -> 79% | K11: =VLOOKUP($A11,'RECAP DIRCOM'!$G$6:$EV$12,144,FALSE) -> 79% | L11: =VLOOKUP($A11,'RECAP DIRCOM'!$G$6:$EV$12,145,FALSE) -> 7
A12: 264 | B12: Haut-Rhin | C12: =VLOOKUP($A12,'RECAP DIRCOM'!$G$6:$EV$12,3,FALSE) -> 179 | D12: =VLOOKUP($A12,'RECAP DIRCOM'!$G$6:$EV$12,137,FALSE) -> -21 | E12: =VLOOKUP($A12,'RECAP DIRCOM'!$G$6:$EV$12,138,FALSE) -> 132% | F12: =VLOOKUP($A12,'RECAP DIRCOM'!$G$6:$EV$12,139,FALSE) -> 6 | G12: =VLOOKUP($A12,'RECAP DIRCOM'!$G$6:$EV$12,140,FALSE) -> 74% | H12: =VLOOKUP($A12,'RECAP DIRCOM'!$G$6:$EV$12,141,FALSE) -> 5% | I12: =VLOOKUP($A12,'RECAP DIRCOM'!$G$6:$EV$12,142,FALSE) -> 6 | J12: =VLOOKUP($A12,'RECAP DIRCOM'!$G$6:$EV$12,143,FALSE) -> 69% | K12: =VLOOKUP($A12,'RECAP DIRCOM'!$G$6:$EV$12,144,FALSE) -> 69% | L12: =VLOOKUP($A12,'RECAP DIRCOM'!$G$6:$EV$12,145,FALSE) -> 6
A13: 30 | B13: Marne-Ardennes | C13: =VLOOKUP($A13,'RECAP DIRCOM'!$G$6:$EV$12,3,FALSE) -> 238 | D13: =VLOOKUP($A13,'RECAP DIRCOM'!$G$6:$EV$12,137,FALSE) -> -6 | E13: =VLOOKUP($A13,'RECAP DIRCOM'!$G$6:$EV$12,138,FALSE) -> 0% | F13: =VLOOKUP($A13,'RECAP DIRCOM'!$G$6:$EV$12,139,FALSE) -> 1 | G13: =VLOOKUP($A13,'RECAP DIRCOM'!$G$6:$EV$12,140,FALSE) -> 78% | H13: =VLOOKUP($A13,'RECAP DIRCOM'!$G$6:$EV$12,141,FALSE) -> 0% | I13: =VLOOKUP($A13,'RECAP DIRCOM'!$G$6:$EV$12,142,FALSE) -> 1 | J13: =VLOOKUP($A13,'RECAP DIRCOM'!$G$6:$EV$12,143,FALSE) -> 0% | K13: =VLOOKUP($A13,'RECAP DIRCOM'!$G$6:$EV$12,144,FALSE) -> 0% | L13: =VLOOKUP($A13,'RECAP DIRCOM'!$G$6:$EV$12,145,FALSE) -> 1
A14: 110 | B14: Meurthe et Moselle Meuse | C14: =VLOOKUP($A14,'RECAP DIRCOM'!$G$6:$EV$12,3,FALSE) -> 264 | D14: =VLOOKUP($A14,'RECAP DIRCOM'!$G$6:$EV$12,137,FALSE) -> -13 | E14: =VLOOKUP($A14,'RECAP DIRCOM'!$G$6:$EV$12,138,FALSE) -> 62% | F14: =VLOOKUP($A14,'RECAP DIRCOM'!$G$6:$EV$12,139,FALSE) -> 4 | G14: =VLOOKUP($A14,'RECAP DIRCOM'!$G$6:$EV$12,140,FALSE) -> 75% | H14: =VLOOKUP($A14,'RECAP DIRCOM'!$G$6:$EV$12,141,FALSE) -> 3% | I14: =VLOOKUP($A14,'RECAP DIRCOM'!$G$6:$EV$12,142,FALSE) -> 5 | J14: =VLOOKUP($A14,'RECAP DIRCOM'!$G$6:$EV$12,143,FALSE) -> 32% | K14: =VLOOKUP($A14,'RECAP DIRCOM'!$G$6:$EV$12,144,FALSE) -> 32% | L14: =VLOOKUP($A14,'RECAP DIRCOM'!$G$6:$EV$12,145,FALSE) -> 5
A15: 160 | B15: Moselle | C15: =VLOOKUP($A15,'RECAP DIRCOM'!$G$6:$EV$12,3,FALSE) -> 307 | D15: =VLOOKUP($A15,'RECAP DIRCOM'!$G$6:$EV$12,137,FALSE) -> -12 | E15: =VLOOKUP($A15,'RECAP DIRCOM'!$G$6:$EV$12,138,FALSE) -> 53% | F15: =VLOOKUP($A15,'RECAP DIRCOM'!$G$6:$EV$12,139,FALSE) -> 3 | G15: =VLOOKUP($A15,'RECAP DIRCOM'!$G$6:$EV$12,140,FALSE) -> 76% | H15: =VLOOKUP($A15,'RECAP DIRCOM'!$G$6:$EV$12,141,FALSE) -> 2% | I15: =VLOOKUP($A15,'RECAP DIRCOM'!$G$6:$EV$12,142,FALSE) -> 3 | J15: =VLOOKUP($A15,'RECAP DIRCOM'!$G$6:$EV$12,143,FALSE) -> 27% | K15: =VLOOKUP($A15,'RECAP DIRCOM'!$G$6:$EV$12,144,FALSE) -> 27% | L15: =VLOOKUP($A15,'RECAP DIRCOM'!$G$6:$EV$12,145,FALSE) -> 3
A16: 80 | B16: Vosges | C16: =VLOOKUP($A16,'RECAP DIRCOM'!$G$6:$EV$12,3,FALSE) -> 148 | D16: =VLOOKUP($A16,'RECAP DIRCOM'!$G$6:$EV$12,137,FALSE) -> -13 | E16: =VLOOKUP($A16,'RECAP DIRCOM'!$G$6:$EV$12,138,FALSE) -> 62% | F16: =VLOOKUP($A16,'RECAP DIRCOM'!$G$6:$EV$12,139,FALSE) -> 4 | G16: =VLOOKUP($A16,'RECAP DIRCOM'!$G$6:$EV$12,140,FALSE) -> 77% | H16: =VLOOKUP($A16,'RECAP DIRCOM'!$G$6:$EV$12,141,FALSE) -> 0% | I16: =VLOOKUP($A16,'RECAP DIRCOM'!$G$6:$EV$12,142,FALSE) -> 2 | J16: =VLOOKUP($A16,'RECAP DIRCOM'!$G$6:$EV$12,143,FALSE) -> 31% | K16: =VLOOKUP($A16,'RECAP DIRCOM'!$G$6:$EV$12,144,FALSE) -> 31% | L16: =VLOOKUP($A16,'RECAP DIRCOM'!$G$6:$EV$12,145,FALSE) -> 4
A17: Total CEGEE Directions Régionales | C17: =SUM(C10:C16) -> 1578

Sheet SE_FICHE
A1: Accueil
A2: BAROMETRE BDD
A4: UNITE: | B4: TERRITOIRE | K4: ETP perf : | L4: =VLOOKUP(A5,'RECAP SECT'!$G$6:$I$23,3,FALSE) -> 76.89
A5: =VLOOKUP(B5,LISTES!$H$6:$I$23,2,FALSE) -> 5130 | B5: COLMAR
C6: Coefficient du critére | E6: Résultats | I6: Ecart au 1ier | M6: Evolution
E7: du 1ier | G7: du secteur | I7: Du mois | K7: Au 31/12/2018
A9: RANG au CLASSEMENT GENERAL | I9: =VLOOKUP($A$5,'RECAP SECT'!$G$6:$FE$253,154,FALSE) -> 15 | Q9: =VLOOKUP($A$5,'RECAP SECT AN'!$G$6:$FE$312,154,FALSE) -> 33 | S9: =+Q9-I9 -> 18
A11: CRITERE CONQUETE | C11: 15%
B12: Evolution nette Clients Bancarisés Principaux (BP +JBP) par ETP | C12: 4% | E12: ='RECAP SECT'!K4 -> 0.6 | G12: =VLOOKUP($A$5,'RECAP SECT'!$G$6:$FE$253,5,FALSE) -> -3.4 | I12: =VLOOKUP($A$5,'RECAP SECT'!$G$6:$FE$253,6,FALSE) -> 139% | Q12: =VLOOKUP($A$5,'RECAP SECT AN'!$G$6:$FE$312,6,FALSE) -> 105% | S12: =+Q12-I12 -> -35%
B13: Evolution nette relations Premium par ETP | C13: 4% | E13: ='RECAP SECT'!N4 -> 2.3 | G13: =VLOOKUP($A$5,'RECAP SECT'!$G$6:$FE$253,8,FALSE) -> 1.9 | I13: =VLOOKUP($A$5,'RECAP SECT'!$G$6:$FE$253,9,FALSE) -> 19% | Q13: =VLOOKUP($A$5,'RECAP SECT AN'!$G$6:$FE$312,9,FALSE) -> 73% | S13: =+Q13-I13 -> 54%
B14: Evolution nette Clients Bancarisés Principaux équipés par ETP | C14: 3% | E14: ='RECAP SECT'!Q4 -> 2.5 | G14: =VLOOKUP($A$5,'RECAP SECT'!$G$6:$FE$253,11,FALSE) -> -1.8 | I14: =VLOOKUP($A$5,'RECAP SECT'!$G$6:$FE$253,12,FALSE) -> 130% | Q14: =VLOOKUP($A$5,'RECAP SECT AN'!$G$6:$FE$312,12,FALSE) -> 46% | S14: =+Q14-I14 -> -84%
B15: Evolution nette Clients Pro actif équipés par rapport à l’objectif fixé | C15: 4% | E15: ='RECAP SECT'!T4 -> 96% | G15: =VLOOKUP($A$5,'RECAP SECT'!$G$6:$FE$253,14,FALSE) -> 9% | I15: =VLOOKUP($A$5,'RECAP SECT'!$G$6:$FE$253,15,FALSE) -> 79% | Q15: =VLOOKUP($A$5,'RECAP SECT AN'!$G$6:$FE$312,15,FALSE) -> 120% | S15: =+Q15-I15 -> 41%
A17: CRITERE EQUIPEMENT BANCARISATION | C17: 15%
B18: Ventes nettes forfaits (+ 2 options) par ETP | C18: 3% | E18: ='RECAP SECT'!AF4 -> -7.3 | G18: =VLOOKUP($A$5,'RECAP SECT'!$G$6:$FE$253,26,FALSE) -> -7.3 | I18: =VLOOKUP($A$5,'RECAP SECT'!$G$6:$FE$253,27,FALSE) -> 0% | Q18: =VLOOKUP($A$5,'RECAP SECT AN'!$G$6:$FE$312,27,FALSE) -> 26% | S18: =+Q18-I18 -> 26%
B19: Ventes nettes IZICARTES par ETP | C19: 3% | E19: ='RECAP SECT'!AI4 -> 10.1 | G19: =VLOOKUP($A$5,'RECAP SECT'!$G$6:$FE$253,29,FALSE) -> 3.7 | I19: =VLOOKUP($A$5,'RECAP SECT'!$G$6:$FE$253,30,FALSE) -> 63% | Q19: =VLOOKUP($A$5,'RECAP SECT AN'!$G$6:$FE$312,30,FALSE) -> 63% | S19: =+Q19-I19 -> -0%
B20: Ventes nettes cartes HDG par ETP | C20: 3% | E20: ='RECAP SECT'!AL4 -> 13.6 | G20: =VLOOKUP($A$5,'RECAP SECT'!$G$6:$FE$253,32,FALSE) -> 6.8 | I20: =VLOOKUP($A$5,'RECAP SECT'!$G$6:$FE$253,33,FALSE) -> 50% | Q20: =VLOOKUP($A$5,'RECAP SECT AN'!$G$6:$FE$312,33,FALSE) -> 67% | S20: =+Q20-I20 -> 17%
B21: Vente nette CB débit différé par ETP | C21: 3% | E21: ='RECAP SECT'!AO4 -> 6.4 | G21: =VLOOKUP($A$5,'RECAP SECT'!$G$6:$FE$253,35,FALSE) -> 3.3 | I21: =VLOOKUP($A$5,'RECAP SECT'!$G$6:$FE$253,36,FALSE) -> 48% | Q21: =VLOOKUP($A$5,'RECAP SECT AN'!$G$6:$FE$312,36,FALSE) -> 78% | S21: =+Q21-I21 -> 30%
B22: Ventes nettes banca Pro Forfaits Pro, Carte pro par rapport à l’objectif | C22: 3% | E22: ='RECAP SECT'!AR4 -> 86% | G22: =VLOOKUP($A$5,'RECAP SECT'!$G$6:$FE$253,38,FALSE) -> 18% | I22: =VLOOKUP($A$5,'RECAP SECT'!$G$6:$FE$253,39,FALSE) -> 80% | Q22: =VLOOKUP($A$5,'RECAP SECT AN'!$G$6:$FE$312,39,FALSE) -> 75% | S22: =+Q22-I22 -> -5%
A24: CRITERE EPARGNE | C24: 15%
B25: Excédents de collecte (y.c DAV) par ETP | C25: 2% | E25: ='RECAP SECT'!BD4 -> 216.1 | G25: =VLOOKUP($A$5,'RECAP SECT'!$G$6:$FE$253,50,FALSE) -> 112.3 | I25: =VLOOKUP($A$5,'RECAP SECT'!$G$6:$FE$253,51,FALSE) -> 48% | Q25: =VLOOKUP($A$5,'RECAP SECT AN'!$G$6:$FE$312,51,FALSE) -> 70% | S25: =+Q25-I25 -> 22%
B26: CA assurance vie par ETP | C26: 2% | E26: ='RECAP SECT'!BG4 -> 428.2 | G26: =VLOOKUP($A$5,'RECAP SECT'!$G$6:$FE$253,53,FALSE) -> 268.6 | I26: =VLOOKUP($A$5,'RECAP SECT'!$G$6:$FE$253,54,FALSE) -> 37% | Q26: =VLOOKUP($A$5,'RECAP SECT AN'!$G$6:$FE$312,54,FALSE) -> 45% | S26: =+Q26-I26 -> 7%
B27: Activité UC (CA+arbitrage) par ETP | C27: 2% | E27: ='RECAP SECT'!BJ4 -> 149.7 | G27: =VLOOKUP($A$5,'RECAP SECT'!$G$6:$FE$253,56,FALSE) -> 106.9 | I27: =VLOOKUP($A$5,'RECAP SECT'!$G$6:$FE$253,57,FALSE) -> 29% | Q27: =VLOOKUP($A$5,'RECAP SECT AN'!$G$6:$FE$312,57,FALSE) -> 57% | S27: =+Q27-I27 -> 28%
B28: Excédents Assurance-vie par ETP | C28: 2% | E28: ='RECAP SECT'!BM4 -> 167.3 | G28: =VLOOKUP($A$5,'RECAP SECT'!$G$6:$FE$253,59,FALSE) -> 12.7 | I28: =VLOOKUP($A$5,'RECAP SECT'!$G$6:$FE$253,60,FALSE) -> 92% | Q28: =VLOOKUP($A$5,'RECAP SECT AN'!$G$6:$FE$312,60,FALSE) -> 78% | S28: =+Q28-I28 -> -15%
B29: Excédents Epargne Bilan (Hors Emprunts CTO) par ETP | C29: 7% | E29: ='RECAP SECT'!BP4 -> 115.7 | G29: =VLOOKUP($A$5,'RECAP SECT'!$G$6:$FE$253,62,FALSE) -> 96.3 | I29: =VLOOKUP($A$5,'RECAP SECT'!$G$6:$FE$253,63,FALSE) -> 17% | Q29: =VLOOKUP($A$5,'RECAP SECT AN'!$G$6:$FE$312,63,FALSE) -> 62% | S29: =+Q29-I29 -> 45%
A31: CRITERE CREDITS | C31: 15%
B32: Engagement Conso par ETP (hors clients 9) | C32: 3% | E32: ='RECAP SECT'!CB4 -> 318.3 | G32: =VLOOKUP($A$5,'RECAP SECT'!$G$6:$FE$253,74,FALSE) -> 181.0 | I32: =VLOOKUP($A$5,'RECAP SECT'!$G$6:$FE$253,75,FALSE) -> 43% | Q32: =VLOOKUP($A$5,'RECAP SECT AN'!$G$6:$FE$312,75,FALSE) -> 42% | S32: =+Q32-I32 -> -1%
B33: % CNP sur Conso en valeur absolue | C33: 2% | E33: ='RECAP SECT'!CE4 -> 98% | G33: =VLOOKUP($A$5,'RECAP SECT'!$G$6:$FE$253,77,FALSE) -> 87% | I33: =VLOOKUP($A$5,'RECAP SECT'!$G$6:$FE$253,78,FALSE) -> 11% | Q33: =VLOOKUP($A$5,'RECAP SECT AN'!$G$6:$FE$312,78,FALSE) -> 14% | S33: 3%
B34: Engagements Immo par rapport à l’objectif | C34: 3% | E34: ='RECAP SECT'!CH4 -> 56% | G34: =VLOOKUP($A$5,'RECAP SECT'!$G$6:$FE$253,80,FALSE) -> 43% | I34: =VLOOKUP($A$5,'RECAP SECT'!$G$6:$FE$253,81,FALSE) -> 23% | Q34: =VLOOKUP($A$5,'RECAP SECT AN'!$G$6:$FE$312,81,FALSE) -> 48% | S34: 25%
B35: % CNP sur crédits immo en valeur absolue | C35: 2% | E35: ='RECAP SECT'!CK4 -> 85% | G35: =VLOOKUP($A$5,'RECAP SECT'!$G$6:$FE$253,83,FALSE) -> 69% | I35: =VLOOKUP($A$5,'RECAP SECT'!$G$6:$FE$253,84,FALSE) -> 18% | Q35: =VLOOKUP($A$5,'RECAP SECT AN'!$G$6:$FE$312,84,FALSE) -> 28% | S35: 10%
B36: Taux de couverture SACCEF | C36: 2% | E36: ='RECAP SECT'!CN4 -> 92% | G36: =VLOOKUP($A$5,'RECAP SECT'!$G$6:$FE$253,86,FALSE) -> 82% | I36: =VLOOKUP($A$5,'RECAP SECT'!$G$6:$FE$253,87,FALSE) -> 11% | Q36: =VLOOKUP($A$5,'RECAP SECT AN'!$G$6:$FE$312,87,FALSE) -> 34% | S36: 23%
B37: Engagements CMLT + CB par rapport à l’objectif | C37: 3% | E37: ='RECAP SECT'!CQ4 -> 96% | G37: =VLOOKUP($A$5,'RECAP SECT'!$G$6:$FE$253,89,FALSE) -> 32% | I37: =VLOOKUP($A$5,'RECAP SECT'!$G$6:$FE$253,90,FALSE) -> 67% | Q37: =VLOOKUP($A$5,'RECAP SECT AN'!$G$6:$FE$312,90,FALSE) -> 61% | S37: -6%
A39: CRITERE IARD PREVOYANCE | C39: 20%
B40: Ventes nettes IARD (Auto+MRH+ Pro) par ETP | C40: 7% | E40: ='RECAP SECT'!DC4 -> 8.7 | G40: =VLOOKUP($A$5,'RECAP SECT'!$G$6:$FE$253,101,FALSE) -> 4.1 | I40: =VLOOKUP($A$5,'RECAP SECT'!$G$6:$FE$253,102,FALSE) -> 53% | Q40: =VLOOKUP($A$5,'RECAP SECT AN'!$G$6:$FE$312,102,FALSE) -> 54% | S40: =+Q40-I40 -> 2%
B41: Ventes nettes Prévoyance (GAV, secur.f,prevoy loc,santé,assist.vie, obséques, Pro) par ETP | C41: 7% | E41: ='RECAP SECT'!DF4 -> 13.6 | G41: =VLOOKUP($A$5,'RECAP SECT'!$G$6:$FE$253,104,FALSE) -> 6.7 | I41: =VLOOKUP($A$5,'RECAP SECT'!$G$6:$FE$253,105,FALSE) -> 51% | Q41: =VLOOKUP($A$5,'RECAP SECT AN'!$G$6:$FE$312,105,FALSE) -> 56% | S41: =+Q41-I41 -> 5%
B42: Chiffre d’affaires IARD (Yc Pro) par ETP | C42: 6% | E42: ='RECAP SECT'!DI4 -> 8.9 | G42: =VLOOKUP($A$5,'RECAP SECT'!$G$6:$FE$253,107,FALSE) -> 6.8 | I42: =VLOOKUP($A$5,'RECAP SECT'!$G$6:$FE$253,108,FALSE) -> 23% | Q42: =VLOOKUP($A$5,'RECAP SECT AN'!$G$6:$FE$312,108,FALSE) -> 43% | S42: =+Q42-I42 -> 20%
A44: CRITERE RISQUES | C44: 10%
B45: Complétude, conformité et fiabilisation des nouvelles EER sur flux BDD | C45: 3% | E45: ='RECAP SECT'!DU4 -> 99% | G45: =VLOOKUP($A$5,'RECAP SECT'!$G$6:$FE$253,119,FALSE) -> 96% | I45: =VLOOKUP($A$5,'RECAP SECT'!$G$6:$FE$253,120,FALSE) -> 2% | Q45: =VLOOKUP($A$5,'RECAP SECT AN'!$G$6:$FE$312,120,FALSE) -> 4% | S45: =+Q45-I45 -> 1%
B46: Complétude, conformité et fiabilisation des EER sur flux cumulé et stock | C46: 3% | E46: ='RECAP SECT'!DX4 -> 79% | G46: =VLOOKUP($A$5,'RECAP SECT'!$G$6:$FE$253,122,FALSE) -> 72% | I46: =VLOOKUP($A$5,'RECAP SECT'!$G$6:$FE$253,123,FALSE) -> 8% | Q46: =VLOOKUP($A$5,'RECAP SECT AN'!$G$6:$FE$312,123,FALSE) -> 16% | S46: =+Q46-I46 -> 8%
B47: Traitement et qualité du traitement des alertes Vigiclient | C47: 4% | E47: ='RECAP SECT'!EA4 -> 100% | G47: =VLOOKUP($A$5,'RECAP SECT'!$G$6:$FE$253,125,FALSE) -> 99% | I47: =VLOOKUP($A$5,'RECAP SECT'!$G$6:$FE$253,126,FALSE) -> 1% | Q47: =VLOOKUP($A$5,'RECAP SECT AN'!$G$6:$FE$312,126,FALSE) -> 0% | S47: =+Q47-I47 -> -1%
A49: CRITERE Satisfaction Clients | C49: 10%
B50: Objectifs NPS* | C50: 5% | E50: ='RECAP SECT'!EM4 -> -2 | G50: =VLOOKUP($A$5,'RECAP SECT'!$G$6:$FE$253,137,FALSE) -> -21 | I50: =VLOOKUP($A$5,'RECAP SECT'!$G$6:$FE$253,138,FALSE) -> 110% | Q50: =VLOOKUP($A$5,'RECAP SECT AN'!$G$6:$FE$312,138,FALSE) -> 117% | S50: =+Q50-I50 -> 7%
B51: Enquête Qualité Haute Définition | C51: 5% | E51: ='RECAP SECT'!EP4 -> 80% | G51: =VLOOKUP($A$5,'RECAP SECT'!$G$6:$FE$253,140,FALSE) -> 74% | I51: =VLOOKUP($A$5,'RECAP SECT'!$G$6:$FE$253,141,FALSE) -> 7% | Q51: =VLOOKUP($A$5,'RECAP SECT AN'!$G$6:$FE$312,141,FALSE) -> 12% | S51: =+Q51-I51 -> 5%

Sheet SE_OBJECTIF
A1: Accueil | F1: BAROMETRE BDD - TERRITOIRES
F2: PV PART SUR OBJECTIFS
F3: =ACCUEIL!H7 -> 2019-06-30
F7: Excédent de collecte par ETP yc DAV | I7: Engagements crédit conso par ETP (hors clients note octroi à 9 et DRC complet) | L7: Ventes brutes IARD prevoyance Part et Pro (si DRC complet) par ETP | O7: Evolution des Bpe+JBPe par ETP | R7: PNB sur activité nouvelle (yc bonus digital) par ETP
G8: Taux d'atteinte saisonalisé | H8: =VLOOKUP(ACCUEIL!$H$7,Tableau1[],2,FALSE) -> 50% | J8: Taux d'atteinte saisonalisé | K8: =VLOOKUP(ACCUEIL!$H$7,Tableau1[],3,FALSE) -> 50% | M8: Taux d'atteinte saisonalisé | N8: =VLOOKUP(ACCUEIL!$H$7,Tableau1[],4,FALSE) -> 50% | P8: Taux d'atteinte saisonalisé | Q8: =VLOOKUP(ACCUEIL!$H$7,Tableau1[],5,FALSE) -> 50% | S8: Taux d'atteinte saisonalisé | T8: =VLOOKUP(ACCUEIL!$H$7,Tableau1[],6,FALSE) -> 50%
A9: eds | B9: Direction | C9: eds | D9: Territoire | E9: ETP perf | F9: Réal | G9: Obj | H9: % | I9: Réal | J9: Obj | K9: % | L9: Réal | M9: Obj | N9: % | O9: Réal | P9: Obj | Q9: % | R9: Réal | S9: Obj | T9: % | V9: <80% | W9: 100% | X9: 110% | Y9: 120%
A10: 50 | B10: AUBE HAUTE MARNE | C10: 21 | D10: CHAUMONT | E10: =VLOOKUP($C10,'RECAP SECT'!$G$6:$EV$253,3,FALSE) -> 46.7 | F10: =VLOOKUP($C10,'RECAP SECT'!$G$6:$FZ$26,158,FALSE) -> 79 | G10: =VLOOKUP($C10,'RECAP SECT'!$G$6:$FZ$26,159,FALSE) -> 107 | H10: =VLOOKUP($C10,'RECAP SECT'!$G$6:$FZ$26,160,FALSE) -> 74% | I10: =VLOOKUP($C10,'RECAP SECT'!$G$6:$FZ$26,161,FALSE) -> 310 | J10: =VLOOKUP($C10,'RECAP SECT'!$G$6:$FZ$26,162,FALSE) -> 467 | K10: =VLOOKUP($C10,'RECAP SECT'!$G$6:$FZ$26,163,FALSE) -> 66% | L10: =VLOOKUP($C10,'RECAP SECT'!$G$6:$FZ$26,164,FALSE) -> 33 | M10: =VLOOKUP($C10,'RECAP SECT'!$G$6:$FZ$26,165,FALSE) -> 59 | N10: =VLOOKUP($C10,'RECAP SECT'!$G$6:$FZ$26,166,FALSE) -> 56% | O10: =VLOOKUP($C10,'RECAP SECT'!$G$6:$FZ$26,167,FALSE) -> 2 | P10: =VLOOKUP($C10,'RECAP SECT'!$G$6:$FZ$26,168,FALSE) -> 4 | Q10: =VLOOKUP($C10,'RECAP SECT'!$G$6:$FZ$26,169,FALSE) -> 51% | R10: =VLOOKUP($C10,'RECAP SECT'!$G$6:$FZ$26,170,FALSE) -> 76 | S10: =VLOOKUP($C10,'RECAP SECT'!$G$6:$FZ$26,171,FALSE) -> 126 | T10: =VLOOKUP($C10,'RECAP SECT'!$G$6:$FZ$26,172,FALSE) -> 61% | V10: =$H$8*0.8 -> 40% | W10: =$H$8 -> 50% | X10: =$H$8*1.1 -> 55% | Y10: =$H$8*1.2 -> 60%
A11: 50 | B11: AUBE HAUTE MARNE | C11: 14 | D11: TROYES | E11: =VLOOKUP($C11,'RECAP SECT'!$G$6:$EV$253,3,FALSE) -> 78.6 | F11: =VLOOKUP($C11,'RECAP SECT'!$G$6:$FZ$26,158,FALSE) -> 44 | G11: =VLOOKUP($C11,'RECAP SECT'!$G$6:$FZ$26,159,FALSE) -> 122 | H11: =VLOOKUP($C11,'RECAP SECT'!$G$6:$FZ$26,160,FALSE) -> 36% | I11: =VLOOKUP($C11,'RECAP SECT'!$G$6:$FZ$26,161,FALSE) -> 252 | J11: =VLOOKUP($C11,'RECAP SECT'!$G$6:$FZ$26,162,FALSE) -> 467 | K11: =VLOOKUP($C11,'RECAP SECT'!$G$6:$FZ$26,163,FALSE) -> 54% | L11: =VLOOKUP($C11,'RECAP SECT'!$G$6:$FZ$26,164,FALSE) -> 24 | M11: =VLOOKUP($C11,'RECAP SECT'!$G$6:$FZ$26,165,FALSE) -> 59 | N11: =VLOOKUP($C11,'RECAP SECT'!$G$6:$FZ$26,166,FALSE) -> 41% | O11: =VLOOKUP($C11,'RECAP SECT'!$G$6:$FZ$26,167,FALSE) -> 2 | P11: =VLOOKUP($C11,'RECAP SECT'!$G$6:$FZ$26,168,FALSE) -> 4 | Q11: =VLOOKUP($C11,'RECAP SECT'!$G$6:$FZ$26,169,FALSE) -> 45% | R11: =VLOOKUP($C11,'RECAP SECT'!$G$6:$FZ$26,170,FALSE) -> 71 | S11: =VLOOKUP($C11,'RECAP SECT'!$G$6:$FZ$26,171,FALSE) -> 136 | T11: =VLOOKUP($C11,'RECAP SECT'!$G$6:$FZ$26,172,FALSE) -> 52% | V11: =$H$8*0.8 -> 40% | W11: =$H$8 -> 50% | X11: =$H$8*1.1 -> 55% | Y11: =$H$8*1.2 -> 60%
A12: 262 | B12: BAS-RHIN | C12: 5060 | D12: HAGUENAU | E12: =VLOOKUP($C12,'RECAP SECT'!$G$6:$EV$253,3,FALSE) -> 88.8 | F12: =VLOOKUP($C12,'RECAP SECT'!$G$6:$FZ$26,158,FALSE) -> 74 | G12: =VLOOKUP($C12,'RECAP SECT'!$G$6:$FZ$26,159,FALSE) -> 122 | H12: =VLOOKUP($C12,'RECAP SECT'!$G$6:$FZ$26,160,FALSE) -> 60% | I12: =VLOOKUP($C12,'RECAP SECT'!$G$6:$FZ$26,161,FALSE) -> 210 | J12: =VLOOKUP($C12,'RECAP SECT'!$G$6:$FZ$26,162,FALSE) -> 467 | K12: =VLOOKUP($C12,'RECAP SECT'!$G$6:$FZ$26,163,FALSE) -> 45% | L12: =VLOOKUP($C12,'RECAP SECT'!$G$6:$FZ$26,164,FALSE) -> 28 | M12: =VLOOKUP($C12,'RECAP SECT'!$G$6:$FZ$26,165,FALSE) -> 59 | N12: =VLOOKUP($C12,'RECAP SECT'!$G$6:$FZ$26,166,FALSE) -> 47% | O12: =VLOOKUP($C12,'RECAP SECT'!$G$6:$FZ$26,167,FALSE) -> -2 | P12: =VLOOKUP($C12,'RECAP SECT'!$G$6:$FZ$26,168,FALSE) -> 4 | Q12: =VLOOKUP($C12,'RECAP SECT'!$G$6:$FZ$26,169,FALSE) -> -43% | R12: =VLOOKUP($C12,'RECAP SECT'!$G$6:$FZ$26,170,FALSE) -> 63 | S12: =VLOOKUP($C12,'RECAP SECT'!$G$6:$FZ$26,171,FALSE) -> 133 | T12: =VLOOKUP($C12,'RECAP SECT'!$G$6:$FZ$26,172,FALSE) -> 47% | V12: 40% | W12: 50% | X12: 55% | Y12: 60%
A13: 262 | B13: BAS-RHIN | C13: 5101 | D13: SELESTAT | E13: =VLOOKUP($C13,'RECAP SECT'!$G$6:$EV$253,3,FALSE) -> 75.2 | F13: =VLOOKUP($C13,'RECAP SECT'!$G$6:$FZ$26,158,FALSE) -> 66 | G13: =VLOOKUP($C13,'RECAP SECT'!$G$6:$FZ$26,159,FALSE) -> 136 | H13: =VLOOKUP($C13,'RECAP SECT'!$G$6:$FZ$26,160,FALSE) -> 49% | I13: =VLOOKUP($C13,'RECAP SECT'!$G$6:$FZ$26,161,FALSE) -> 236 | J13: =VLOOKUP($C13,'RECAP SECT'!$G$6:$FZ$26,162,FALSE) -> 467 | K13: =VLOOKUP($C13,'RECAP SECT'!$G$6:$FZ$26,163,FALSE) -> 50% | L13: =VLOOKUP($C13,'RECAP SECT'!$G$6:$FZ$26,164,FALSE) -> 29 | M13: =VLOOKUP($C13,'RECAP SECT'!$G$6:$FZ$26,165,FALSE) -> 59 | N13: =VLOOKUP($C13,'RECAP SECT'!$G$6:$FZ$26,166,FALSE) -> 50% | O13: =VLOOKUP($C13,'RECAP SECT'!$G$6:$FZ$26,167,FALSE) -> -2 | P13: =VLOOKUP($C13,'RECAP SECT'!$G$6:$FZ$26,168,FALSE) -> 4 | Q13: =VLOOKUP($C13,'RECAP SECT'!$G$6:$FZ$26,169,FALSE) -> -55% | R13: =VLOOKUP($C13,'RECAP SECT'!$G$6:$FZ$26,170,FALSE) -> 63 | S13: =VLOOKUP($C13,'RECAP SECT'!$G$6:$FZ$26,171,FALSE) -> 139 | T13: =VLOOKUP($C13,'RECAP SECT'!$G$6:$FZ$26,172,FALSE) -> 46% | V13: 40% | W13: 50% | X13: 55% | Y13: 60%
A14: 262 | B14: BAS-RHIN | C14: 5006 | D14: STRASBOURG | E14: =VLOOKUP($C14,'RECAP SECT'!$G$6:$EV$253,3,FALSE) -> 91.8 | F14: =VLOOKUP($C14,'RECAP SECT'!$G$6:$FZ$26,158,FALSE) -> 44 | G14: =VLOOKUP($C14,'RECAP SECT'!$G$6:$FZ$26,159,FALSE) -> 127 | H14: =VLOOKUP($C14,'RECAP SECT'!$G$6:$FZ$26,160,FALSE) -> 35% | I14: =VLOOKUP($C14,'RECAP SECT'!$G$6:$FZ$26,161,FALSE) -> 190 | J14: =VLOOKUP($C14,'RECAP SECT'!$G$6:$FZ$26,162,FALSE) -> 467 | K14: =VLOOKUP($C14,'RECAP SECT'!$G$6:$FZ$26,163,FALSE) -> 41% | L14: =VLOOKUP($C14,'RECAP SECT'!$G$6:$FZ$26,164,FALSE) -> 25 | M14: =VLOOKUP($C14,'RECAP SECT'!$G$6:$FZ$26,165,FALSE) -> 59 | N14: =VLOOKUP($C14,'RECAP SECT'!$G$6:$FZ$26,166,FALSE) -> 42% | O14: =VLOOKUP($C14,'RECAP SECT'!$G$6:$FZ$26,167,FALSE) -> -2 | P14: =VLOOKUP($C14,'RECAP SECT'!$G$6:$FZ$26,168,FALSE) -> 4 | Q14: =VLOOKUP($C14,'RECAP SECT'!$G$6:$FZ$26,169,FALSE) -> -43% | R14: =VLOOKUP($C14,'RECAP SECT'!$G$6:$FZ$26,170,FALSE) -> 59 | S14: =VLOOKUP($C14,'RECAP SECT'!$G$6:$FZ$26,171,FALSE) -> 136 | T14: =VLOOKUP($C14,'RECAP SECT'!$G$6:$FZ$26,172,FALSE) -> 43% | V14: 40% | W14: 50% | X14: 55% | Y14: 60%
A15: 264 | B15: HAUT-RHIN | C15: 5130 | D15: COLMAR | E15: =VLOOKUP($C15,'RECAP SECT'!$G$6:$EV$253,3,FALSE) -> 76.9 | F15: =VLOOKUP($C15,'RECAP SECT'!$G$6:$FZ$26,158,FALSE) -> 112 | G15: =VLOOKUP($C15,'RECAP SECT'!$G$6:$FZ$26,159,FALSE) -> 135 | H15: =VLOOKUP($C15,'RECAP SECT'!$G$6:$FZ$26,160,FALSE) -> 83% | I15: =VLOOKUP($C15,'RECAP SECT'!$G$6:$FZ$26,161,FALSE) -> 181 | J15: =VLOOKUP($C15,'RECAP SECT'!$G$6:$FZ$26,162,FALSE) -> 467 | K15: =VLOOKUP($C15,'RECAP SECT'!$G$6:$FZ$26,163,FALSE) -> 39% | L15: =VLOOKUP($C15,'RECAP SECT'!$G$6:$FZ$26,164,FALSE) -> 25 | M15: =VLOOKUP($C15,'RECAP SECT'!$G$6:$FZ$26,165,FALSE) -> 59 | N15: =VLOOKUP($C15,'RECAP SECT'!$G$6:$FZ$26,166,FALSE) -> 43% | O15: =VLOOKUP($C15,'RECAP SECT'!$G$6:$FZ$26,167,FALSE) -> -2 | P15: =VLOOKUP($C15,'RECAP SECT'!$G$6:$FZ$26,168,FALSE) -> 4 | Q15: =VLOOKUP($C15,'RECAP SECT'!$G$6:$FZ$26,169,FALSE) -> -45% | R15: =VLOOKUP($C15,'RECAP SECT'!$G$6:$FZ$26,170,FALSE) -> 56 | S15: =VLOOKUP($C15,'RECAP SECT'!$G$6:$FZ$26,171,FALSE) -> 140 | T15: =VLOOKUP($C15,'RECAP SECT'!$G$6:$FZ$26,172,FALSE) -> 40% | V15: 40% | W15: 50% | X15: 55% | Y15: 60%
A16: 264 | B16: HAUT-RHIN | C16: 5169 | D16: MULHOUSE | E16: =VLOOKUP($C16,'RECAP SECT'!$G$6:$EV$253,3,FALSE) -> 77.8 | F16: =VLOOKUP($C16,'RECAP SECT'!$G$6:$FZ$26,158,FALSE) -> 103 | G16: =VLOOKUP($C16,'RECAP SECT'!$G$6:$FZ$26,159,FALSE) -> 129 | H16: =VLOOKUP($C16,'RECAP SECT'!$G$6:$FZ$26,160,FALSE) -> 80% | I16: =VLOOKUP($C16,'RECAP SECT'!$G$6:$FZ$26,161,FALSE) -> 212 | J16: =VLOOKUP($C16,'RECAP SECT'!$G$6:$FZ$26,162,FALSE) -> 467 | K16: =VLOOKUP($C16,'RECAP SECT'!$G$6:$FZ$26,163,FALSE) -> 45% | L16: =VLOOKUP($C16,'RECAP SECT'!$G$6:$FZ$26,164,FALSE) -> 24 | M16: =VLOOKUP($C16,'RECAP SECT'!$G$6:$FZ$26,165,FALSE) -> 59 | N16: =VLOOKUP($C16,'RECAP SECT'!$G$6:$FZ$26,166,FALSE) -> 41% | O16: =VLOOKUP($C16,'RECAP SECT'!$G$6:$FZ$26,167,FALSE) -> -2 | P16: =VLOOKUP($C16,'RECAP SECT'!$G$6:$FZ$26,168,FALSE) -> 4 | Q16: =VLOOKUP($C16,'RECAP SECT'!$G$6:$FZ$26,169,FALSE) -> -62% | R16: =VLOOKUP($C16,'RECAP SECT'!$G$6:$FZ$26,170,FALSE) -> 67 | S16: =VLOOKUP($C16,'RECAP SECT'!$G$6:$FZ$26,171,FALSE) -> 140 | T16: =VLOOKUP($C16,'RECAP SECT'!$G$6:$FZ$26,172,FALSE) -> 48% | V16: 40% | W16: 50% | X16: 55% | Y16: 60%
A17: 30 | B17: MARNE-ARDENNES | C17: 6 | D17: CHALONS EN CHAMPAGNE | E17: =VLOOKUP($C17,'RECAP SECT'!$G$6:$EV$253,3,FALSE) -> 49.0 | F17: =VLOOKUP($C17,'RECAP SECT'!$G$6:$FZ$26,158,FALSE) -> 22 | G17: =VLOOKUP($C17,'RECAP SECT'!$G$6:$FZ$26,159,FALSE) -> 130 | H17: =VLOOKUP($C17,'RECAP SECT'!$G$6:$FZ$26,160,FALSE) -> 17% | I17: =VLOOKUP($C17,'RECAP SECT'!$G$6:$FZ$26,161,FALSE) -> 244 | J17: =VLOOKUP($C17,'RECAP SECT'!$G$6:$FZ$26,162,FALSE) -> 467 | K17: =VLOOKUP($C17,'RECAP SECT'!$G$6:$FZ$26,163,FALSE) -> 52% | L17: =VLOOKUP($C17,'RECAP SECT'!$G$6:$FZ$26,164,FALSE) -> 34 | M17: =VLOOKUP($C17,'RECAP SECT'!$G$6:$FZ$26,165,FALSE) -> 59 | N17: =VLOOKUP($C17,'RECAP SECT'!$G$6:$FZ$26,166,FALSE) -> 57% | O17: =VLOOKUP($C17,'RECAP SECT'!$G$6:$FZ$26,167,FALSE) -> 0 | P17: =VLOOKUP($C17,'RECAP SECT'!$G$6:$FZ$26,168,FALSE) -> 4 | Q17: =VLOOKUP($C17,'RECAP SECT'!$G$6:$FZ$26,169,FALSE) -> 2% | R17: =VLOOKUP($C17,'RECAP SECT'!$G$6:$FZ$26,170,FALSE) -> 69 | S17: =VLOOKUP($C17,'RECAP SECT'!$G$6:$FZ$26,171,FALSE) -> 137 | T17: =VLOOKUP($C17,'RECAP SECT'!$G$6:$FZ$26,172,FALSE) -> 51% | V17: 40% | W17: 50% | X17: 55% | Y17: 60%
A18: 30 | B18: MARNE-ARDENNES | C18: 2 | D18: CHARLEVILLE MEZIERES | E18: =VLOOKUP($C18,'RECAP SECT'!$G$6:$EV$253,3,FALSE) -> 63.1 | F18: =VLOOKUP($C18,'RECAP SECT'!$G$6:$FZ$26,158,FALSE) -> 1 | G18: =VLOOKUP($C18,'RECAP SECT'!$G$6:$FZ$26,159,FALSE) -> 122 | H18: =VLOOKUP($C18,'RECAP SECT'!$G$6:$FZ$26,160,FALSE) -> 1% | I18: =VLOOKUP($C18,'RECAP SECT'!$G$6:$FZ$26,161,FALSE) -> 242 | J18: =VLOOKUP($C18,'RECAP SECT'!$G$6:$FZ$26,162,FALSE) -> 467 | K18: =VLOOKUP($C18,'RECAP SECT'!$G$6:$FZ$26,163,FALSE) -> 52% | L18: =VLOOKUP($C18,'RECAP SECT'!$G$6:$FZ$26,164,FALSE) -> 36 | M18: =VLOOKUP($C18,'RECAP SECT'!$G$6:$FZ$26,165,FALSE) -> 59 | N18: =VLOOKUP($C18,'RECAP SECT'!$G$6:$FZ$26,166,FALSE) -> 62% | O18: =VLOOKUP($C18,'RECAP SECT'!$G$6:$FZ$26,167,FALSE) -> 2 | P18: =VLOOKUP($C18,'RECAP SECT'!$G$6:$FZ$26,168,FALSE) -> 4 | Q18: =VLOOKUP($C18,'RECAP SECT'!$G$6:$FZ$26,169,FALSE) -> 63% | R18: =VLOOKUP($C18,'RECAP SECT'!$G$6:$FZ$26,170,FALSE) -> 74 | S18: =VLOOKUP($C18,'RECAP SECT'!$G$6:$FZ$26,171,FALSE) -> 132 | T18: =VLOOKUP($C18,'RECAP SECT'!$G$6:$FZ$26,172,FALSE) -> 57% | V18: 40% | W18: 50% | X18: 55% | Y18: 60%
A19: 30 | B19: MARNE-ARDENNES | C19: 11 | D19: REIMS | E19: =VLOOKUP($C19,'RECAP SECT'!$G$6:$EV$253,3,FALSE) -> 90.6 | F19: =VLOOKUP($C19,'RECAP SECT'!$G$6:$FZ$26,158,FALSE) -> 216 | G19: =VLOOKUP($C19,'RECAP SECT'!$G$6:$FZ$26,159,FALSE) -> 143 | H19: =VLOOKUP($C19,'RECAP SECT'!$G$6:$FZ$26,160,FALSE) -> 151% | I19: =VLOOKUP($C19,'RECAP SECT'!$G$6:$FZ$26,161,FALSE) -> 318 | J19: =VLOOKUP($C19,'RECAP SECT'!$G$6:$FZ$26,162,FALSE) -> 467 | K19: =VLOOKUP($C19,'RECAP SECT'!$G$6:$FZ$26,163,FALSE) -> 68% | L19: =VLOOKUP($C19,'RECAP SECT'!$G$6:$FZ$26,164,FALSE) -> 32 | M19: =VLOOKUP($C19,'RECAP SECT'!$G$6:$FZ$26,165,FALSE) -> 59 | N19: =VLOOKUP($C19,'RECAP SECT'!$G$6:$FZ$26,166,FALSE) -> 55% | O19: =VLOOKUP($C19,'RECAP SECT'!$G$6:$FZ$26,167,FALSE) -> 1 | P19: =VLOOKUP($C19,'RECAP SECT'!$G$6:$FZ$26,168,FALSE) -> 4 | Q19: =VLOOKUP($C19,'RECAP SECT'!$G$6:$FZ$26,169,FALSE) -> 38% | R19: =VLOOKUP($C19,'RECAP SECT'!$G$6:$FZ$26,170,FALSE) -> 81 | S19: =VLOOKUP($C19,'RECAP SECT'!$G$6:$FZ$26,171,FALSE) -> 148 | T19: =VLOOKUP($C19,'RECAP SECT'!$G$6:$FZ$26,172,FALSE) -> 55% | V19: 40% | W19: 50% | X19: 55% | Y19: 60%
A20: 110 | B20: MEURTHE ET MOSELLE MEUSE | C20: 26 | D20: NANCY | E20: =VLOOKUP($C20,'RECAP SECT'!$G$6:$EV$253,3,FALSE) -> 79.5 | F20: =VLOOKUP($C20,'RECAP SECT'!$G$6:$FZ$26,158,FALSE) -> 116 | G20: =VLOOKUP($C20,'RECAP SECT'!$G$6:$FZ$26,159,FALSE) -> 118 | H20: =VLOOKUP($C20,'RECAP SECT'!$G$6:$FZ$26,160,FALSE) -> 98% | I20: =VLOOKUP($C20,'RECAP SECT'!$G$6:$FZ$26,161,FALSE) -> 239 | J20: =VLOOKUP($C20,'RECAP SECT'!$G$6:$FZ$26,162,FALSE) -> 467 | K20: =VLOOKUP($C20,'RECAP SECT'!$G$6:$FZ$26,163,FALSE) -> 51% | L20: =VLOOKUP($C20,'RECAP SECT'!$G$6:$FZ$26,164,FALSE) -> 28 | M20: =VLOOKUP($C20,'RECAP SECT'!$G$6:$FZ$26,165,FALSE) -> 59 | N20: =VLOOKUP($C20,'RECAP SECT'!$G$6:$FZ$26,166,FALSE) -> 48% | O20: =VLOOKUP($C20,'RECAP SECT'!$G$6:$FZ$26,167,FALSE) -> -0 | P20: =VLOOKUP($C20,'RECAP SECT'!$G$6:$FZ$26,168,FALSE) -> 4 | Q20: =VLOOKUP($C20,'RECAP SECT'!$G$6:$FZ$26,169,FALSE) -> -2% | R20: =VLOOKUP($C20,'RECAP SECT'!$G$6:$FZ$26,170,FALSE) -> 65 | S20: =VLOOKUP($C20,'RECAP SECT'!$G$6:$FZ$26,171,FALSE) -> 131 | T20: =VLOOKUP($C20,'RECAP SECT'!$G$6:$FZ$26,172,FALSE) -> 49% | V20: 40% | W20: 50% | X20: 55% | Y20: 60%
A21: 110 | B21: MEURTHE ET MOSELLE MEUSE | C21: 27 | D21: PONT A MOUSSON | E21: =VLOOKUP($C21,'RECAP SECT'!$G$6:$EV$253,3,FALSE) -> 88.0 | F21: =VLOOKUP($C21,'RECAP SECT'!$G$6:$FZ$26,158,FALSE) -> 84 | G21: =VLOOKUP($C21,'RECAP SECT'!$G$6:$FZ$26,159,FALSE) -> 118 | H21: =VLOOKUP($C21,'RECAP SECT'!$G$6:$FZ$26,160,FALSE) -> 71% | I21: =VLOOKUP($C21,'RECAP SECT'!$G$6:$FZ$26,161,FALSE) -> 242 | J21: =VLOOKUP($C21,'RECAP SECT'!$G$6:$FZ$26,162,FALSE) -> 467 | K21: =VLOOKUP($C21,'RECAP SECT'!$G$6:$FZ$26,163,FALSE) -> 52% | L21: =VLOOKUP($C21,'RECAP SECT'!$G$6:$FZ$26,164,FALSE) -> 27 | M21: =VLOOKUP($C21,'RECAP SECT'!$G$6:$FZ$26,165,FALSE) -> 59 | N21: =VLOOKUP($C21,'RECAP SECT'!$G$6:$FZ$26,166,FALSE) -> 47% | O21: =VLOOKUP($C21,'RECAP SECT'!$G$6:$FZ$26,167,FALSE) -> 0 | P21: =VLOOKUP($C21,'RECAP SECT'!$G$6:$FZ$26,168,FALSE) -> 4 | Q21: =VLOOKUP($C21,'RECAP SECT'!$G$6:$FZ$26,169,FALSE) -> 4% | R21: =VLOOKUP($C21,'RECAP SECT'!$G$6:$FZ$26,170,FALSE) -> 70 | S21: =VLOOKUP($C21,'RECAP SECT'!$G$6:$FZ$26,171,FALSE) -> 132 | T21: =VLOOKUP($C21,'RECAP SECT'!$G$6:$FZ$26,172,FALSE) -> 53% | V21: 40% | W21: 50% | X21: 55% | Y21: 60%
A22: 110 | B22: MEURTHE ET MOSELLE MEUSE | C22: 31 | D22: VERDUN | E22: =VLOOKUP($C22,'RECAP SECT'!$G$6:$EV$253,3,FALSE) -> 64.9 | F22: =VLOOKUP($C22,'RECAP SECT'!$G$6:$FZ$26,158,FALSE) -> 68 | G22: =VLOOKUP($C22,'RECAP SECT'!$G$6:$FZ$26,159,FALSE) -> 116 | H22: =VLOOKUP($C22,'RECAP SECT'!$G$6:$FZ$26,160,FALSE) -> 59% | I22: =VLOOKUP($C22,'RECAP SECT'!$G$6:$FZ$26,161,FALSE) -> 266 | J22: =VLOOKUP($C22,'RECAP SECT'!$G$6:$FZ$26,162,FALSE) -> 467 | K22: =VLOOKUP($C22,'RECAP SECT'!$G$6:$FZ$26,163,FALSE) -> 57% | L22: =VLOOKUP($C22,'RECAP SECT'!$G$6:$FZ$26,164,FALSE) -> 25 | M22: =VLOOKUP($C22,'RECAP SECT'!$G$6:$FZ$26,165,FALSE) -> 59 | N22: =VLOOKUP($C22,'RECAP SECT'!$G$6:$FZ$26,166,FALSE) -> 43% | O22: =VLOOKUP($C22,'RECAP SECT'!$G$6:$FZ$26,167,FALSE) -> -1 | P22: =VLOOKUP($C22,'RECAP SECT'!$G$6:$FZ$26,168,FALSE) -> 4 | Q22: =VLOOKUP($C22,'RECAP SECT'!$G$6:$FZ$26,169,FALSE) -> -28% | R22: =VLOOKUP($C22,'RECAP SECT'!$G$6:$FZ$26,170,FALSE) -> 68 | S22: =VLOOKUP($C22,'RECAP SECT'!$G$6:$FZ$26,171,FALSE) -> 130 | T22: =VLOOKUP($C22,'RECAP SECT'!$G$6:$FZ$26,172,FALSE) -> 52% | V22: 40% | W22: 50% | X22: 55% | Y22: 60%
A23: 160 | B23: MOSELLE | C23: 45 | D23: METZ | E23: =VLOOKUP($C23,'RECAP SECT'!$G$6:$EV$253,3,FALSE) -> 104.2 | F23: =VLOOKUP($C23,'RECAP SECT'!$G$6:$FZ$26,158,FALSE) -> 161 | G23: =VLOOKUP($C23,'RECAP SECT'!$G$6:$FZ$26,159,FALSE) -> 125 | H23: =VLOOKUP($C23,'RECAP SECT'!$G$6:$FZ$26,160,FALSE) -> 129% | I23: =VLOOKUP($C23,'RECAP SECT'!$G$6:$FZ$26,161,FALSE) -> 246 | J23: =VLOOKUP($C23,'RECAP SECT'!$G$6:$FZ$26,162,FALSE) -> 467 | K23: =VLOOKUP($C23,'RECAP SECT'!$G$6:$FZ$26,163,FALSE) -> 53% | L23: =VLOOKUP($C23,'RECAP SECT'!$G$6:$FZ$26,164,FALSE) -> 27 | M23: =VLOOKUP($C23,'RECAP SECT'!$G$6:$FZ$26,165,FALSE) -> 59 | N23: =VLOOKUP($C23,'RECAP SECT'!$G$6:$FZ$26,166,FALSE) -> 46% | O23: =VLOOKUP($C23,'RECAP SECT'!$G$6:$FZ$26,167,FALSE) -> 1 | P23: =VLOOKUP($C23,'RECAP SECT'!$G$6:$FZ$26,168,FALSE) -> 4 | Q23: =VLOOKUP($C23,'RECAP SECT'!$G$6:$FZ$26,169,FALSE) -> 36% | R23: =VLOOKUP($C23,'RECAP SECT'!$G$6:$FZ$26,170,FALSE) -> 67 | S23: =VLOOKUP($C23,'RECAP SECT'!$G$6:$FZ$26,171,FALSE) -> 136 | T23: =VLOOKUP($C23,'RECAP SECT'!$G$6:$FZ$26,172,FALSE) -> 49% | V23: 40% | W23: 50% | X23: 55% | Y23: 60%
A24: 160 | B24: MOSELLE | C24: 42 | D24: MOSELLE EST | E24: =VLOOKUP($C24,'RECAP SECT'!$G$6:$EV$253,3,FALSE) -> 86.0 | F24: =VLOOKUP($C24,'RECAP SECT'!$G$6:$FZ$26,158,FALSE) -> 81 | G24: =VLOOKUP($C24,'RECAP SECT'!$G$6:$FZ$26,159,FALSE) -> 106 | H24: =VLOOKUP($C24,'RECAP SECT'!$G$6:$FZ$26,160,FALSE) -> 76% | I24: =VLOOKUP($C24,'RECAP SECT'!$G$6:$FZ$26,161,FALSE) -> 229 | J24: =VLOOKUP($C24,'RECAP SECT'!$G$6:$FZ$26,162,FALSE) -> 467 | K24: =VLOOKUP($C24,'RECAP SECT'!$G$6:$FZ$26,163,FALSE) -> 49% | L24: =VLOOKUP($C24,'RECAP SECT'!$G$6:$FZ$26,164,FALSE) -> 28 | M24: =VLOOKUP($C24,'RECAP SECT'!$G$6:$FZ$26,165,FALSE) -> 58 | N24: =VLOOKUP($C24,'RECAP SECT'!$G$6:$FZ$26,166,FALSE) -> 48% | O24: =VLOOKUP($C24,'RECAP SECT'!$G$6:$FZ$26,167,FALSE) -> 1 | P24: =VLOOKUP($C24,'RECAP SECT'!$G$6:$FZ$26,168,FALSE) -> 4 | Q24: =VLOOKUP($C24,'RECAP SECT'!$G$6:$FZ$26,169,FALSE) -> 14% | R24: =VLOOKUP($C24,'RECAP SECT'!$G$6:$FZ$26,170,FALSE) -> 71 | S24: =VLOOKUP($C24,'RECAP SECT'!$G$6:$FZ$26,171,FALSE) -> 131 | T24: =VLOOKUP($C24,'RECAP SECT'!$G$6:$FZ$26,172,FALSE) -> 54% | V24: 40% | W24: 50% | X24: 55% | Y24: 60%
A25: 160 | B25: MOSELLE | C25: 44 | D25: MOSELLE NORD | E25: =VLOOKUP($C25,'RECAP SECT'!$G$6:$EV$253,3,FALSE) -> 80.5 | F25: =VLOOKUP($C25,'RECAP SECT'!$G$6:$FZ$26,158,FALSE) -> 66 | G25: =VLOOKUP($C25,'RECAP SECT'!$G$6:$FZ$26,159,FALSE) -> 119 | H25: =VLOOKUP($C25,'RECAP SECT'!$G$6:$FZ$26,160,FALSE) -> 55% | I25: =VLOOKUP($C25,'RECAP SECT'!$G$6:$FZ$26,161,FALSE) -> 262 | J25: =VLOOKUP($C25,'RECAP SECT'!$G$6:$FZ$26,162,FALSE) -> 467 | K25: =VLOOKUP($C25,'RECAP SECT'!$G$6:$FZ$26,163,FALSE) -> 56% | L25: =VLOOKUP($C25,'RECAP SECT'!$G$6:$FZ$26,164,FALSE) -> 29 | M25: =VLOOKUP($C25,'RECAP SECT'!$G$6:$FZ$26,165,FALSE) -> 59 | N25: =VLOOKUP($C25,'RECAP SECT'!$G$6:$FZ$26,166,FALSE) -> 50% | O25: =VLOOKUP($C25,'RECAP SECT'!$G$6:$FZ$26,167,FALSE) -> -0 | P25: =VLOOKUP($C25,'RECAP SECT'!$G$6:$FZ$26,168,FALSE) -> 4 | Q25: =VLOOKUP($C25,'RECAP SECT'!$G$6:$FZ$26,169,FALSE) -> -13% | R25: =VLOOKUP($C25,'RECAP SECT'!$G$6:$FZ$26,170,FALSE) -> 71 | S25: =VLOOKUP($C25,'RECAP SECT'!$G$6:$FZ$26,171,FALSE) -> 134 | T25: =VLOOKUP($C25,'RECAP SECT'!$G$6:$FZ$26,172,FALSE) -> 53% | V25: 40% | W25: 50% | X25: 55% | Y25: 60%
A26: 80 | B26: VOSGES | C26: 57 | D26: EPINAL | E26: =VLOOKUP($C26,'RECAP SECT'!$G$6:$EV$253,3,FALSE) -> 68.7 | F26: =VLOOKUP($C26,'RECAP SECT'!$G$6:$FZ$26,158,FALSE) -> 76 | G26: =VLOOKUP($C26,'RECAP SECT'!$G$6:$FZ$26,159,FALSE) -> 108 | H26: =VLOOKUP($C26,'RECAP SECT'!$G$6:$FZ$26,160,FALSE) -> 71% | I26: =VLOOKUP($C26,'RECAP SECT'!$G$6:$FZ$26,161,FALSE) -> 214 | J26: =VLOOKUP($C26,'RECAP SECT'!$G$6:$FZ$26,162,FALSE) -> 467 | K26: =VLOOKUP($C26,'RECAP SECT'!$G$6:$FZ$26,163,FALSE) -> 46% | L26: =VLOOKUP($C26,'RECAP SECT'!$G$6:$FZ$26,164,FALSE) -> 27 | M26: =VLOOKUP($C26,'RECAP SECT'!$G$6:$FZ$26,165,FALSE) -> 59 | N26: =VLOOKUP($C26,'RECAP SECT'!$G$6:$FZ$26,166,FALSE) -> 45% | O26: =VLOOKUP($C26,'RECAP SECT'!$G$6:$FZ$26,167,FALSE) -> 0 | P26: =VLOOKUP($C26,'RECAP SECT'!$G$6:$FZ$26,168,FALSE) -> 4 | Q26: =VLOOKUP($C26,'RECAP SECT'!$G$6:$FZ$26,169,FALSE) -> 5% | R26: =VLOOKUP($C26,'RECAP SECT'!$G$6:$FZ$26,170,FALSE) -> 64 | S26: =VLOOKUP($C26,'RECAP SECT'!$G$6:$FZ$26,171,FALSE) -> 126 | T26: =VLOOKUP($C26,'RECAP SECT'!$G$6:$FZ$26,172,FALSE) -> 51% | V26: 40% | W26: 50% | X26: 55% | Y26: 60%
A27: 80 | B27: VOSGES | C27: 55 | D27: SAINT DIE | E27: =VLOOKUP($C27,'RECAP SECT'!$G$6:$EV$253,3,FALSE) -> 57.9 | F27: =VLOOKUP($C27,'RECAP SECT'!$G$6:$FZ$26,158,FALSE) -> 152 | G27: =VLOOKUP($C27,'RECAP SECT'!$G$6:$FZ$26,159,FALSE) -> 113 | H27: =VLOOKUP($C27,'RECAP SECT'!$G$6:$FZ$26,160,FALSE) -> 135% | I27: =VLOOKUP($C27,'RECAP SECT'!$G$6:$FZ$26,161,FALSE) -> 247 | J27: =VLOOKUP($C27,'RECAP SECT'!$G$6:$FZ$26,162,FALSE) -> 467 | K27: =VLOOKUP($C27,'RECAP SECT'!$G$6:$FZ$26,163,FALSE) -> 53% | L27: =VLOOKUP($C27,'RECAP SECT'!$G$6:$FZ$26,164,FALSE) -> 27 | M27: =VLOOKUP($C27,'RECAP SECT'!$G$6:$FZ$26,165,FALSE) -> 59 | N27: =VLOOKUP($C27,'RECAP SECT'!$G$6:$FZ$26,166,FALSE) -> 45% | O27: =VLOOKUP($C27,'RECAP SECT'!$G$6:$FZ$26,167,FALSE) -> -2 | P27: =VLOOKUP($C27,'RECAP SECT'!$G$6:$FZ$26,168,FALSE) -> 4 | Q27: =VLOOKUP($C27,'RECAP SECT'!$G$6:$FZ$26,169,FALSE) -> -53% | R27: =VLOOKUP($C27,'RECAP SECT'!$G$6:$FZ$26,170,FALSE) -> 75 | S27: =VLOOKUP($C27,'RECAP SECT'!$G$6:$FZ$26,171,FALSE) -> 127 | T27: =VLOOKUP($C27,'RECAP SECT'!$G$6:$FZ$26,172,FALSE) -> 59% | V27: 40% | W27: 50% | X27: 55% | Y27: 60%
A28: Total CEGEE | C28: Directions Régionales | E28: =SUM(E10:E27) -> 1368 | G28: ='RECAP SECT'!GG24 -> 4 | H28: ='RECAP SECT'!GH24 -> 1 | J28: ='RECAP SECT'!GL24 -> 1 | K28: ='RECAP SECT'!GM24 -> 5 | M28: ='RECAP SECT'!GQ24 -> 0 | N28: ='RECAP SECT'!GR24 -> 14 | P28: ='RECAP SECT'!GV24 -> 15 | Q28: ='RECAP SECT'!GW24 -> 1 | S28: ='RECAP SECT'!HA24 -> 0 | T28: ='RECAP SECT'!HB24 -> 7
G29: ='RECAP SECT'!GI24 -> 0 | H29: ='RECAP SECT'!GJ24 -> 13 | J29: ='RECAP SECT'!GN24 -> 10 | K29: ='RECAP SECT'!GO24 -> 2 | M29: ='RECAP SECT'!GS24 -> 3 | N29: ='RECAP SECT'!GT24 -> 1 | P29: ='RECAP SECT'!GX24 -> 1 | Q29: ='RECAP SECT'!GY24 -> 1 | S29: ='RECAP SECT'!HC24 -> 10 | T29: ='RECAP SECT'!HD24 -> 1
D32: Taux d'atteinte objectif annuel > 110 % ou 120 % en saisonnalisé en fonction des critères (collecte 110 %, autres 120 %)
D34: Taux d'atteinte objectif annuel entre 100 % et 110 % ou 120 % en saisonnalisé en fonction des critères (collecte 110 %, autres 120 %)
D36: Taux d'atteinte objectif annuel entre 80 % et 100 % en saisonnalisé
D38: Taux d'atteinte objectif annuel < 80 % en saisonnalisé

Sheet SE_TOTAL
A1: Accueil | F1: BAROMETRE BDD - TERRITOIRES
F2: TOTAL GENERAL
F3: =ACCUEIL!H7 -> 2019-06-30
F7: TOTAL GENERAL | I7: Total Conquête | L7: Total Equipement Bancarisation | O7: Total Epargne | R7: Total Crédits | U7: Total IARD Prévoyance | X7: Total Risques | AA7: Total Satisfaction Clients
G8: coef | H8: 100% | J8: coef | K8: ='RECAP DIRCOM'!$Y$4 -> 15% | M8: coef | N8: ='RECAP DIRCOM'!$AW$4 -> 15% | P8: coef | Q8: ='RECAP DIRCOM'!$BU$4 -> 15% | S8: coef | T8: ='RECAP DIRCOM'!$CV$4 -> 15% | V8: coef | W8: ='RECAP DIRCOM'!$DN$4 -> 20% | Y8: coef | Z8: ='RECAP DIRCOM'!$EF$4 -> 10% | AB8: coef | AC8: ='RECAP DIRCOM'!$EU$4 -> 10%
A9: eds | B9: Direction | C9: eds | D9: Territoire | E9: ETP perf | F9: Moyenne ecart au 1er | G9: % Ecart au 1er | H9: Rang CEGEE | I9: Moyenne ecart au 1er | J9: % Ecart au 1er | K9: Rang CEGEE | L9: Moyenne ecart au 1er | M9: % Ecart au 1er | N9: Rang CEGEE | O9: Moyenne ecart au 1er | P9: % Ecart au 1er | Q9: Rang CEGEE | R9: Moyenne ecart au 1er | S9: % Ecart au 1er | T9: Rang CEGEE | U9: Moyenne ecart au 1er | V9: % Ecart au 1er | W9: Rang CEGEE | X9: Moyenne ecart au 1er | Y9: % Ecart au 1er | Z9: Rang CEGEE | AA9: Moyenne ecart au 1er | AB9: % Ecart au 1er | AC9: Rang CEGEE
A10: 30 | B10: MARNE-ARDENNES | C10: 11 | D10: REIMS | E10: 90.6 | F10: 11% | G10: 0% | H10: 1 | I10: 50% | J10: 34% | K10: 5 | L10: 31% | M10: 0% | N10: 2 | O10: 24% | P10: 6% | Q10: 2 | R10: 14% | S10: 5% | T10: 4 | U10: 18% | V10: 17% | W10: 4 | X10: 4% | Y10: 3% | Z10: 11 | AA10: 0% | AB10: 0% | AC10: 1
A11: 30 | B11: MARNE-ARDENNES | C11: 2 | D11: CHARLEVILLE MEZIERES | E11: 63.1 | F11: 15% | G11: 4% | H11: 2 | I11: 16% | J11: 0% | K11: 1 | L11: 40% | M11: 9% | N11: 6 | O11: 91% | P11: 72% | Q11: 18 | R11: 8% | S11: 0% | T11: 1 | U11: 2% | V11: 0% | W11: 1 | X11: 2% | Y11: 1% | Z11: 5 | AA11: 25% | AB11: 25% | AC11: 7
A12: 50 | B12: AUBE HAUTE MARNE | C12: 21 | D12: CHAUMONT | E12: 46.7 | F12: 16% | G12: 6% | H12: 3 | I12: 37% | J12: 21% | K12: 2 | L12: 36% | M12: 6% | N12: 4 | O12: 73% | P12: 54% | Q12: 15 | R12: 20% | S12: 12% | T12: 7 | U12: 15% | V12: 13% | W12: 2 | X12: 1% | Y12: 0% | Z12: 1 | AA12: 1% | AB12: 1% | AC12: 2
A13: 30 | B13: MARNE-ARDENNES | C13: 6 | D13: CHALONS EN CHAMPAGNE | E13: 49.0 | F13: 18% | G13: 8% | H13: 4 | I13: 81% | J13: 65% | K13: 15 | L13: 38% | M13: 7% | N13: 5 | O13: 26% | P13: 7% | Q13: 3 | R13: 16% | S13: 8% | T13: 5 | U13: 16% | V13: 14% | W13: 3 | X13: 3% | Y13: 2% | Z13: 8 | AA13: 21% | AB13: 21% | AC13: 5
A14: 160 | B14: MOSELLE | C14: 45 | D14: METZ | E14: 104.2 | F14: 19% | G14: 8% | H14: 5 | I14: 48% | J14: 32% | K14: 3 | L14: 45% | M14: 14% | N14: 12 | O14: 19% | P14: 0% | Q14: 1 | R14: 25% | S14: 17% | T14: 14 | U14: 32% | V14: 31% | W14: 9 | X14: 3% | Y14: 2% | Z14: 7 | AA14: 30% | AB14: 30% | AC14: 8
A15: 80 | B15: VOSGES | C15: 55 | D15: SAINT DIE | E15: 57.9 | F15: 22% | G15: 11% | H15: 6 | I15: 73% | J15: 57% | K15: 9 | L15: 31% | M15: 0% | N15: 1 | O15: 48% | P15: 29% | Q15: 7 | R15: 12% | S15: 4% | T15: 2 | U15: 34% | V15: 33% | W15: 11 | X15: 1% | Y15: 0% | Z15: 4 | AA15: 15% | AB15: 15% | AC15: 4
A16: 160 | B16: MOSELLE | C16: 42 | D16: MOSELLE EST | E16: 86.0 | F16: 22% | G16: 11% | H16: 7 | I16: 54% | J16: 38% | K16: 6 | L16: 34% | M16: 4% | N16: 3 | O16: 55% | P16: 36% | Q16: 12 | R16: 24% | S16: 16% | T16: 13 | U16: 34% | V16: 32% | W16: 10 | X16: 1% | Y16: 0% | Z16: 2 | AA16: 15% | AB16: 15% | AC16: 3
A17: 110 | B17: MEURTHE ET MOSELLE MEUSE | C17: 27 | D17: PONT A MOUSSON | E17: 88.0 | F17: 29% | G17: 18% | H17: 8 | I17: 61% | J17: 45% | K17: 7 | L17: 65% | M17: 34% | N17: 16 | O17: 54% | P17: 35% | Q17: 10 | R17: 20% | S17: 12% | T17: 8 | U17: 30% | V17: 28% | W17: 7 | X17: 9% | Y17: 8% | Z17: 16 | AA17: 35% | AB17: 35% | AC17: 11
A18: 110 | B18: MEURTHE ET MOSELLE MEUSE | C18: 26 | D18: NANCY | E18: 79.5 | F18: 29% | G18: 19% | H18: 9 | I18: 69% | J18: 53% | K18: 8 | L18: 48% | M18: 17% | N18: 13 | O18: 57% | P18: 38% | Q18: 13 | R18: 24% | S18: 15% | T18: 11 | U18: 28% | V18: 26% | W18: 6 | X18: 11% | Y18: 10% | Z18: 18 | AA18: 45% | AB18: 45% | AC18: 12
A19: 262 | B19: BAS-RHIN | C19: 5060 | D19: HAGUENAU | E19: 88.8 | F19: 29% | G19: 19% | H19: 10 | I19: 80% | J19: 64% | K19: 14 | L19: 43% | M19: 13% | N19: 9 | O19: 49% | P19: 31% | Q19: 8 | R19: 30% | S19: 22% | T19: 17 | U19: 31% | V19: 29% | W19: 8 | X19: 8% | Y19: 7% | Z19: 15 | AA19: 31% | AB19: 31% | AC19: 9
A20: 50 | B20: AUBE HAUTE MARNE | C20: 14 | D20: TROYES | E20: 78.6 | F20: 30% | G20: 19% | H20: 11 | I20: 50% | J20: 34% | K20: 4 | L20: 43% | M20: 12% | N20: 7 | O20: 79% | P20: 61% | Q20: 17 | R20: 20% | S20: 11% | T20: 6 | U20: 47% | V20: 45% | W20: 17 | X20: 2% | Y20: 1% | Z20: 6 | AA20: 32% | AB20: 32% | AC20: 10
A21: 80 | B21: VOSGES | C21: 57 | D21: EPINAL | E21: 68.7 | F21: 30% | G21: 20% | H21: 12 | I21: 76% | J21: 60% | K21: 12 | L21: 44% | M21: 13% | N21: 11 | O21: 54% | P21: 35% | Q21: 11 | R21: 22% | S21: 14% | T21: 9 | U21: 36% | V21: 34% | W21: 12 | X21: 5% | Y21: 4% | Z21: 12 | AA21: 45% | AB21: 45% | AC21: 13
A22: 110 | B22: MEURTHE ET MOSELLE MEUSE | C22: 31 | D22: VERDUN | E22: 64.9 | F22: 31% | G22: 20% | H22: 13 | I22: 77% | J22: 61% | K22: 13 | L22: 67% | M22: 36% | N22: 18 | O22: 43% | P22: 24% | Q22: 6 | R22: 23% | S22: 15% | T22: 10 | U22: 41% | V22: 39% | W22: 14 | X22: 5% | Y22: 4% | Z22: 13 | AA22: 24% | AB22: 24% | AC22: 6
A23: 160 | B23: MOSELLE | C23: 44 | D23: MOSELLE NORD | E23: 80.5 | F23: 32% | G23: 21% | H23: 14 | I23: 76% | J23: 60% | K23: 11 | L23: 43% | M23: 12% | N23: 8 | O23: 74% | P23: 55% | Q23: 16 | R23: 28% | S23: 20% | T23: 16 | U23: 23% | V23: 22% | W23: 5 | X23: 1% | Y23: 0% | Z23: 3 | AA23: 53% | AB23: 53% | AC23: 14
A24: 264 | B24: HAUT-RHIN | C24: 5130 | D24: COLMAR | E24: 76.9 | F24: 34% | G24: 24% | H24: 15 | I24: 89% | J24: 73% | K24: 16 | L24: 48% | M24: 18% | N24: 14 | O24: 35% | P24: 17% | Q24: 4 | R24: 32% | S24: 24% | T24: 18 | U24: 43% | V24: 42% | W24: 15 | X24: 3% | Y24: 2% | Z24: 9 | AA24: 58% | AB24: 58% | AC24: 15
A25: 264 | B25: HAUT-RHIN | C25: 5169 | D25: MULHOUSE | E25: 77.8 | F25: 36% | G25: 25% | H25: 16 | I25: 94% | J25: 78% | K25: 17 | L25: 66% | M25: 35% | N25: 17 | O25: 37% | P25: 19% | Q25: 5 | R25: 13% | S25: 5% | T25: 3 | U25: 46% | V25: 44% | W25: 16 | X25: 4% | Y25: 3% | Z25: 10 | AA25: 62% | AB25: 62% | AC25: 16
A26: 262 | B26: BAS-RHIN | C26: 5101 | D26: SELESTAT | E26: 75.2 | F26: 38% | G26: 28% | H26: 17 | I26: 102% | J26: 86% | K26: 18 | L26: 44% | M26: 13% | N26: 10 | O26: 53% | P26: 34% | Q26: 9 | R26: 24% | S26: 15% | T26: 12 | U26: 39% | V26: 38% | W26: 13 | X26: 8% | Y26: 7% | Z26: 14 | AA26: 76% | AB26: 76% | AC26: 17
A27: 262 | B27: BAS-RHIN | C27: 5006 | D27: STRASBOURG | E27: 91.8 | F27: 41% | G27: 30% | H27: 18 | I27: 75% | J27: 59% | K27: 10 | L27: 49% | M27: 19% | N27: 15 | O27: 60% | P27: 42% | Q27: 14 | R27: 28% | S27: 20% | T27: 15 | U27: 55% | V27: 53% | W27: 18 | X27: 10% | Y27: 10% | Z27: 17 | AA27: 83% | AB27: 83% | AC27: 18
A28: Total CEGEE Directions Régionales | E28: =SUM(E10:E27) -> 1368

Sheet SE_BANCA
A1: Accueil | F1: BAROMETRE BDD - TERRITOIRES
F2: EQUIPEMENT BANCARISATION
F3: =ACCUEIL!H7 -> 2019-06-30
F7: Ventes nettes FORFAITS avec 2 options | I7: Ventes nettes IZICARTES | L7: Ventes nettes Cartes HDG | O7: Ventes nettes CB débit différé | R7: Ventes nettes banca Pro | U7: Total Equipement Bancarisation
G8: coef | H8: ='RECAP DIRCOM'!AH4 -> 3% | J8: coef | K8: ='RECAP DIRCOM'!AK4 -> 3% | M8: coef | N8: ='RECAP DIRCOM'!AN4 -> 3% | P8: coef | Q8: ='RECAP DIRCOM'!AQ4 -> 3% | S8: coef | T8: ='RECAP DIRCOM'!AT4 -> 3% | V8: coef | W8: ='RECAP DIRCOM'!AW4 -> 15%
A9: eds | B9: Direction | C9: eds | D9: Territoire | E9: ETP perf | F9: Nb / ETP | G9: % Ecart au 1er | H9: Rang | I9: Nb / ETP | J9: % Ecart au 1er | K9: Rang | L9: Nb / ETP | M9: % Ecart au 1er | N9: Rang | O9: Nb / ETP | P9: % Ecart au 1er | Q9: Rang | R9: Taux réal objectif | S9: % Ecart au 1er | T9: Rang | U9: Moyenne ecart au 1er | V9: % Ecart au 1er | W9: Rang CEGEE
A10: 50 | B10: AUBE HAUTE MARNE | C10: 21 | D10: CHAUMONT | E10: =VLOOKUP($C10,'RECAP SECT'!$G$6:$EV$253,3,FALSE) -> 46.7 | F10: =VLOOKUP($C10,'RECAP SECT'!$G$6:$EV$253,26,FALSE) -> -11.62 | G10: =VLOOKUP($C10,'RECAP SECT'!$G$6:$EV$253,27,FALSE) -> 60% | H10: =VLOOKUP($C10,'RECAP SECT'!$G$6:$EV$253,28,FALSE) -> 7 | I10: =VLOOKUP($C10,'RECAP SECT'!$G$6:$EV$253,29,FALSE) -> 4.26 | J10: =VLOOKUP($C10,'RECAP SECT'!$G$6:$EV$253,30,FALSE) -> 58% | K10: =VLOOKUP($C10,'RECAP SECT'!$G$6:$EV$253,31,FALSE) -> 13 | L10: =VLOOKUP($C10,'RECAP SECT'!$G$6:$EV$253,32,FALSE) -> 9.09 | M10: =VLOOKUP($C10,'RECAP SECT'!$G$6:$EV$253,33,FALSE) -> 33% | N10: =VLOOKUP($C10,'RECAP SECT'!$G$6:$EV$253,34,FALSE) -> 9 | O10: =VLOOKUP($C10,'RECAP SECT'!$G$6:$EV$253,35,FALSE) -> 6.20 | P10: =VLOOKUP($C10,'RECAP SECT'!$G$6:$EV$253,36,FALSE) -> 3% | Q10: =VLOOKUP($C10,'RECAP SECT'!$G$6:$EV$253,37,FALSE) -> 2 | R10: =VLOOKUP($C10,'RECAP SECT'!$G$6:$EV$253,38,FALSE) -> 63% | S10: =VLOOKUP($C10,'RECAP SECT'!$G$6:$EV$253,39,FALSE) -> 27% | T10: =VLOOKUP($C10,'RECAP SECT'!$G$6:$EV$253,40,FALSE) -> 7 | U10: =VLOOKUP($C10,'RECAP SECT'!$G$6:$EV$253,41,FALSE) -> 36% | V10: =VLOOKUP($C10,'RECAP SECT'!$G$6:$EV$253,42,FALSE) -> 6% | W10: =VLOOKUP($C10,'RECAP SECT'!$G$6:$EV$253,43,FALSE) -> 4
A11: 50 | B11: AUBE HAUTE MARNE | C11: 14 | D11: TROYES | E11: =VLOOKUP($C11,'RECAP SECT'!$G$6:$EV$253,3,FALSE) -> 78.6 | F11: =VLOOKUP($C11,'RECAP SECT'!$G$6:$EV$253,26,FALSE) -> -14.00 | G11: =VLOOKUP($C11,'RECAP SECT'!$G$6:$EV$253,27,FALSE) -> 93% | H11: =VLOOKUP($C11,'RECAP SECT'!$G$6:$EV$253,28,FALSE) -> 13 | I11: =VLOOKUP($C11,'RECAP SECT'!$G$6:$EV$253,29,FALSE) -> 6.25 | J11: =VLOOKUP($C11,'RECAP SECT'!$G$6:$EV$253,30,FALSE) -> 38% | K11: =VLOOKUP($C11,'RECAP SECT'!$G$6:$EV$253,31,FALSE) -> 7 | L11: =VLOOKUP($C11,'RECAP SECT'!$G$6:$EV$253,32,FALSE) -> 10.31 | M11: =VLOOKUP($C11,'RECAP SECT'!$G$6:$EV$253,33,FALSE) -> 24% | N11: =VLOOKUP($C11,'RECAP SECT'!$G$6:$EV$253,34,FALSE) -> 4 | O11: =VLOOKUP($C11,'RECAP SECT'!$G$6:$EV$253,35,FALSE) -> 4.72 | P11: =VLOOKUP($C11,'RECAP SECT'!$G$6:$EV$253,36,FALSE) -> 26% | Q11: =VLOOKUP($C11,'RECAP SECT'!$G$6:$EV$253,37,FALSE) -> 7 | R11: =VLOOKUP($C11,'RECAP SECT'!$G$6:$EV$253,38,FALSE) -> 59% | S11: =VLOOKUP($C11,'RECAP SECT'!$G$6:$EV$253,39,FALSE) -> 32% | T11: =VLOOKUP($C11,'RECAP SECT'!$G$6:$EV$253,40,FALSE) -> 8 | U11: =VLOOKUP($C11,'RECAP SECT'!$G$6:$EV$253,41,FALSE) -> 43% | V11: =VLOOKUP($C11,'RECAP SECT'!$G$6:$EV$253,42,FALSE) -> 12% | W11: =VLOOKUP($C11,'RECAP SECT'!$G$6:$EV$253,43,FALSE) -> 7
A12: 262 | B12: BAS-RHIN | C12: 5060 | D12: HAGUENAU | E12: =VLOOKUP($C12,'RECAP SECT'!$G$6:$EV$253,3,FALSE) -> 88.8 | F12: =VLOOKUP($C12,'RECAP SECT'!$G$6:$EV$253,26,FALSE) -> -8.85 | G12: =VLOOKUP($C12,'RECAP SECT'!$G$6:$EV$253,27,FALSE) -> 22% | H12: =VLOOKUP($C12,'RECAP SECT'!$G$6:$EV$253,28,FALSE) -> 2 | I12: =VLOOKUP($C12,'RECAP SECT'!$G$6:$EV$253,29,FALSE) -> 4.36 | J12: =VLOOKUP($C12,'RECAP SECT'!$G$6:$EV$253,30,FALSE) -> 57% | K12: =VLOOKUP($C12,'RECAP SECT'!$G$6:$EV$253,31,FALSE) -> 12 | L12: =VLOOKUP($C12,'RECAP SECT'!$G$6:$EV$253,32,FALSE) -> 9.43 | M12: =VLOOKUP($C12,'RECAP SECT'!$G$6:$EV$253,33,FALSE) -> 31% | N12: =VLOOKUP($C12,'RECAP SECT'!$G$6:$EV$253,34,FALSE) -> 6 | O12: =VLOOKUP($C12,'RECAP SECT'!$G$6:$EV$253,35,FALSE) -> 3.38 | P12: =VLOOKUP($C12,'RECAP SECT'!$G$6:$EV$253,36,FALSE) -> 47% | Q12: =VLOOKUP($C12,'RECAP SECT'!$G$6:$EV$253,37,FALSE) -> 13 | R12: =VLOOKUP($C12,'RECAP SECT'!$G$6:$EV$253,38,FALSE) -> 34% | S12: =VLOOKUP($C12,'RECAP SECT'!$G$6:$EV$253,39,FALSE) -> 61% | T12: =VLOOKUP($C12,'RECAP SECT'!$G$6:$EV$253,40,FALSE) -> 12 | U12: =VLOOKUP($C12,'RECAP SECT'!$G$6:$EV$253,41,FALSE) -> 43% | V12: =VLOOKUP($C12,'RECAP SECT'!$G$6:$EV$253,42,FALSE) -> 13% | W12: =VLOOKUP($C12,'RECAP SECT'!$G$6:$EV$253,43,FALSE) -> 9
A13: 262 | B13: BAS-RHIN | C13: 5101 | D13: SELESTAT | E13: =VLOOKUP($C13,'RECAP SECT'!$G$6:$EV$253,3,FALSE) -> 75.2 | F13: =VLOOKUP($C13,'RECAP SECT'!$G$6:$EV$253,26,FALSE) -> -9.37 | G13: =VLOOKUP($C13,'RECAP SECT'!$G$6:$EV$253,27,FALSE) -> 29% | H13: =VLOOKUP($C13,'RECAP SECT'!$G$6:$EV$253,28,FALSE) -> 4 | I13: =VLOOKUP($C13,'RECAP SECT'!$G$6:$EV$253,29,FALSE) -> 2.18 | J13: =VLOOKUP($C13,'RECAP SECT'!$G$6:$EV$253,30,FALSE) -> 78% | K13: =VLOOKUP($C13,'RECAP SECT'!$G$6:$EV$253,31,FALSE) -> 18 | L13: =VLOOKUP($C13,'RECAP SECT'!$G$6:$EV$253,32,FALSE) -> 9.39 | M13: =VLOOKUP($C13,'RECAP SECT'!$G$6:$EV$253,33,FALSE) -> 31% | N13: =VLOOKUP($C13,'RECAP SECT'!$G$6:$EV$253,34,FALSE) -> 7 | O13: =VLOOKUP($C13,'RECAP SECT'!$G$6:$EV$253,35,FALSE) -> 5.26 | P13: =VLOOKUP($C13,'RECAP SECT'!$G$6:$EV$253,36,FALSE) -> 17% | Q13: =VLOOKUP($C13,'RECAP SECT'!$G$6:$EV$253,37,FALSE) -> 5 | R13: =VLOOKUP($C13,'RECAP SECT'!$G$6:$EV$253,38,FALSE) -> 33% | S13: =VLOOKUP($C13,'RECAP SECT'!$G$6:$EV$253,39,FALSE) -> 62% | T13: =VLOOKUP($C13,'RECAP SECT'!$G$6:$EV$253,40,FALSE) -> 13 | U13: =VLOOKUP($C13,'RECAP SECT'!$G$6:$EV$253,41,FALSE) -> 44% | V13: =VLOOKUP($C13,'RECAP SECT'!$G$6:$EV$253,42,FALSE) -> 13% | W13: =VLOOKUP($C13,'RECAP SECT'!$G$6:$EV$253,43,FALSE) -> 10
A14: 262 | B14: BAS-RHIN | C14: 5006 | D14: STRASBOURG | E14: =VLOOKUP($C14,'RECAP SECT'!$G$6:$EV$253,3,FALSE) -> 91.8 | F14: =VLOOKUP($C14,'RECAP SECT'!$G$6:$EV$253,26,FALSE) -> -8.91 | G14: =VLOOKUP($C14,'RECAP SECT'!$G$6:$EV$253,27,FALSE) -> 23% | H14: =VLOOKUP($C14,'RECAP SECT'!$G$6:$EV$253,28,FALSE) -> 3 | I14: =VLOOKUP($C14,'RECAP SECT'!$G$6:$EV$253,29,FALSE) -> 3.14 | J14: =VLOOKUP($C14,'RECAP SECT'!$G$6:$EV$253,30,FALSE) -> 69% | K14: =VLOOKUP($C14,'RECAP SECT'!$G$6:$EV$253,31,FALSE) -> 17 | L14: =VLOOKUP($C14,'RECAP SECT'!$G$6:$EV$253,32,FALSE) -> 6.94 | M14: =VLOOKUP($C14,'RECAP SECT'!$G$6:$EV$253,33,FALSE) -> 49% | N14: =VLOOKUP($C14,'RECAP SECT'!$G$6:$EV$253,34,FALSE) -> 16 | O14: =VLOOKUP($C14,'RECAP SECT'!$G$6:$EV$253,35,FALSE) -> 4.71 | P14: =VLOOKUP($C14,'RECAP SECT'!$G$6:$EV$253,36,FALSE) -> 26% | Q14: =VLOOKUP($C14,'RECAP SECT'!$G$6:$EV$253,37,FALSE) -> 8 | R14: =VLOOKUP($C14,'RECAP SECT'!$G$6:$EV$253,38,FALSE) -> 18% | S14: =VLOOKUP($C14,'RECAP SECT'!$G$6:$EV$253,39,FALSE) -> 79% | T14: =VLOOKUP($C14,'RECAP SECT'!$G$6:$EV$253,40,FALSE) -> 16 | U14: =VLOOKUP($C14,'RECAP SECT'!$G$6:$EV$253,41,FALSE) -> 49% | V14: =VLOOKUP($C14,'RECAP SECT'!$G$6:$EV$253,42,FALSE) -> 19% | W14: =VLOOKUP($C14,'RECAP SECT'!$G$6:$EV$253,43,FALSE) -> 15
A15: 264 | B15: HAUT-RHIN | C15: 5130 | D15: COLMAR | E15: =VLOOKUP($C15,'RECAP SECT'!$G$6:$EV$253,3,FALSE) -> 76.9 | F15: =VLOOKUP($C15,'RECAP SECT'!$G$6:$EV$253,26,FALSE) -> -7.27 | G15: =VLOOKUP($C15,'RECAP SECT'!$G$6:$EV$253,27,FALSE) -> 0% | H15: =VLOOKUP($C15,'RECAP SECT'!$G$6:$EV$253,28,FALSE) -> 1 | I15: =VLOOKUP($C15,'RECAP SECT'!$G$6:$EV$253,29,FALSE) -> 3.71 | J15: =VLOOKUP($C15,'RECAP SECT'!$G$6:$EV$253,30,FALSE) -> 63% | K15: =VLOOKUP($C15,'RECAP SECT'!$G$6:$EV$253,31,FALSE) -> 15 | L15: =VLOOKUP($C15,'RECAP SECT'!$G$6:$EV$253,32,FALSE) -> 6.84 | M15: =VLOOKUP($C15,'RECAP SECT'!$G$6:$EV$253,33,FALSE) -> 50% | N15: =VLOOKUP($C15,'RECAP SECT'!$G$6:$EV$253,34,FALSE) -> 17 | O15: =VLOOKUP($C15,'RECAP SECT'!$G$6:$EV$253,35,FALSE) -> 3.30 | P15: =VLOOKUP($C15,'RECAP SECT'!$G$6:$EV$253,36,FALSE) -> 48% | Q15: =VLOOKUP($C15,'RECAP SECT'!$G$6:$EV$253,37,FALSE) -> 14 | R15: =VLOOKUP($C15,'RECAP SECT'!$G$6:$EV$253,38,FALSE) -> 18% | S15: =VLOOKUP($C15,'RECAP SECT'!$G$6:$EV$253,39,FALSE) -> 80% | T15: =VLOOKUP($C15,'RECAP SECT'!$G$6:$EV$253,40,FALSE) -> 17 | U15: =VLOOKUP($C15,'RECAP SECT'!$G$6:$EV$253,41,FALSE) -> 48% | V15: =VLOOKUP($C15,'RECAP SECT'!$G$6:$EV$253,42,FALSE) -> 18% | W15: =VLOOKUP($C15,'RECAP SECT'!$G$6:$EV$253,43,FALSE) -> 14
A16: 264 | B16: HAUT-RHIN | C16: 5169 | D16: MULHOUSE | E16: =VLOOKUP($C16,'RECAP SECT'!$G$6:$EV$253,3,FALSE) -> 77.8 | F16: =VLOOKUP($C16,'RECAP SECT'!$G$6:$EV$253,26,FALSE) -> -12.45 | G16: =VLOOKUP($C16,'RECAP SECT'!$G$6:$EV$253,27,FALSE) -> 71% | H16: =VLOOKUP($C16,'RECAP SECT'!$G$6:$EV$253,28,FALSE) -> 9 | I16: =VLOOKUP($C16,'RECAP SECT'!$G$6:$EV$253,29,FALSE) -> 3.39 | J16: =VLOOKUP($C16,'RECAP SECT'!$G$6:$EV$253,30,FALSE) -> 66% | K16: =VLOOKUP($C16,'RECAP SECT'!$G$6:$EV$253,31,FALSE) -> 16 | L16: =VLOOKUP($C16,'RECAP SECT'!$G$6:$EV$253,32,FALSE) -> 6.26 | M16: =VLOOKUP($C16,'RECAP SECT'!$G$6:$EV$253,33,FALSE) -> 54% | N16: =VLOOKUP($C16,'RECAP SECT'!$G$6:$EV$253,34,FALSE) -> 18 | O16: =VLOOKUP($C16,'RECAP SECT'!$G$6:$EV$253,35,FALSE) -> 1.88 | P16: =VLOOKUP($C16,'RECAP SECT'!$G$6:$EV$253,36,FALSE) -> 71% | Q16: =VLOOKUP($C16,'RECAP SECT'!$G$6:$EV$253,37,FALSE) -> 17 | R16: =VLOOKUP($C16,'RECAP SECT'!$G$6:$EV$253,38,FALSE) -> 28% | S16: =VLOOKUP($C16,'RECAP SECT'!$G$6:$EV$253,39,FALSE) -> 68% | T16: =VLOOKUP($C16,'RECAP SECT'!$G$6:$EV$253,40,FALSE) -> 14 | U16: =VLOOKUP($C16,'RECAP SECT'!$G$6:$EV$253,41,FALSE) -> 66% | V16: =VLOOKUP($C16,'RECAP SECT'!$G$6:$EV$253,42,FALSE) -> 35% | W16: =VLOOKUP($C16,'RECAP SECT'!$G$6:$EV$253,43,FALSE) -> 17
A17: 30 | B17: MARNE-ARDENNES | C17: 6 | D17: CHALONS EN CHAMPAGNE | E17: =VLOOKUP($C17,'RECAP SECT'!$G$6:$EV$253,3,FALSE) -> 49.0 | F17: =VLOOKUP($C17,'RECAP SECT'!$G$6:$EV$253,26,FALSE) -> -11.98 | G17: =VLOOKUP($C17,'RECAP SECT'!$G$6:$EV$253,27,FALSE) -> 65% | H17: =VLOOKUP($C17,'RECAP SECT'!$G$6:$EV$253,28,FALSE) -> 8 | I17: =VLOOKUP($C17,'RECAP SECT'!$G$6:$EV$253,29,FALSE) -> 8.26 | J17: =VLOOKUP($C17,'RECAP SECT'!$G$6:$EV$253,30,FALSE) -> 18% | K17: =VLOOKUP($C17,'RECAP SECT'!$G$6:$EV$253,31,FALSE) -> 2 | L17: =VLOOKUP($C17,'RECAP SECT'!$G$6:$EV$253,32,FALSE) -> 8.14 | M17: =VLOOKUP($C17,'RECAP SECT'!$G$6:$EV$253,33,FALSE) -> 40% | N17: =VLOOKUP($C17,'RECAP SECT'!$G$6:$EV$253,34,FALSE) -> 13 | O17: =VLOOKUP($C17,'RECAP SECT'!$G$6:$EV$253,35,FALSE) -> 5.94 | P17: =VLOOKUP($C17,'RECAP SECT'!$G$6:$EV$253,36,FALSE) -> 7% | Q17: =VLOOKUP($C17,'RECAP SECT'!$G$6:$EV$253,37,FALSE) -> 3 | R17: =VLOOKUP($C17,'RECAP SECT'!$G$6:$EV$253,38,FALSE) -> 36% | S17: =VLOOKUP($C17,'RECAP SECT'!$G$6:$EV$253,39,FALSE) -> 59% | T17: =VLOOKUP($C17,'RECAP SECT'!$G$6:$EV$253,40,FALSE) -> 11 | U17: =VLOOKUP($C17,'RECAP SECT'!$G$6:$EV$253,41,FALSE) -> 38% | V17: =VLOOKUP($C17,'RECAP SECT'!$G$6:$EV$253,42,FALSE) -> 7% | W17: =VLOOKUP($C17,'RECAP SECT'!$G$6:$EV$253,43,FALSE) -> 5
A18: 30 | B18: MARNE-ARDENNES | C18: 2 | D18: CHARLEVILLE MEZIERES | E18: =VLOOKUP($C18,'RECAP SECT'!$G$6:$EV$253,3,FALSE) -> 63.1 | F18: =VLOOKUP($C18,'RECAP SECT'!$G$6:$EV$253,26,FALSE) -> -16.90 | G18: =VLOOKUP($C18,'RECAP SECT'!$G$6:$EV$253,27,FALSE) -> 133% | H18: =VLOOKUP($C18,'RECAP SECT'!$G$6:$EV$253,28,FALSE) -> 18 | I18: =VLOOKUP($C18,'RECAP SECT'!$G$6:$EV$253,29,FALSE) -> 6.82 | J18: =VLOOKUP($C18,'RECAP SECT'!$G$6:$EV$253,30,FALSE) -> 32% | K18: =VLOOKUP($C18,'RECAP SECT'!$G$6:$EV$253,31,FALSE) -> 4 | L18: =VLOOKUP($C18,'RECAP SECT'!$G$6:$EV$253,32,FALSE) -> 9.28 | M18: =VLOOKUP($C18,'RECAP SECT'!$G$6:$EV$253,33,FALSE) -> 32% | N18: =VLOOKUP($C18,'RECAP SECT'!$G$6:$EV$253,34,FALSE) -> 8 | O18: =VLOOKUP($C18,'RECAP SECT'!$G$6:$EV$253,35,FALSE) -> 6.37 | P18: =VLOOKUP($C18,'RECAP SECT'!$G$6:$EV$253,36,FALSE) -> 0% | Q18: =VLOOKUP($C18,'RECAP SECT'!$G$6:$EV$253,37,FALSE) -> 1 | R18: =VLOOKUP($C18,'RECAP SECT'!$G$6:$EV$253,38,FALSE) -> 84% | S18: =VLOOKUP($C18,'RECAP SECT'!$G$6:$EV$253,39,FALSE) -> 2% | T18: =VLOOKUP($C18,'RECAP SECT'!$G$6:$EV$253,40,FALSE) -> 2 | U18: =VLOOKUP($C18,'RECAP SECT'!$G$6:$EV$253,41,FALSE) -> 40% | V18: =VLOOKUP($C18,'RECAP SECT'!$G$6:$EV$253,42,FALSE) -> 9% | W18: =VLOOKUP($C18,'RECAP SECT'!$G$6:$EV$253,43,FALSE) -> 6
A19: 30 | B19: MARNE-ARDENNES | C19: 11 | D19: REIMS | E19: =VLOOKUP($C19,'RECAP SECT'!$G$6:$EV$253,3,FALSE) -> 90.6 | F19: =VLOOKUP($C19,'RECAP SECT'!$G$6:$EV$253,26,FALSE) -> -13.50 | G19: =VLOOKUP($C19,'RECAP SECT'!$G$6:$EV$253,27,FALSE) -> 86% | H19: =VLOOKUP($C19,'RECAP SECT'!$G$6:$EV$253,28,FALSE) -> 12 | I19: =VLOOKUP($C19,'RECAP SECT'!$G$6:$EV$253,29,FALSE) -> 10.07 | J19: =VLOOKUP($C19,'RECAP SECT'!$G$6:$EV$253,30,FALSE) -> 0% | K19: =VLOOKUP($C19,'RECAP SECT'!$G$6:$EV$253,31,FALSE) -> 1 | L19: =VLOOKUP($C19,'RECAP SECT'!$G$6:$EV$253,32,FALSE) -> 7.18 | M19: =VLOOKUP($C19,'RECAP SECT'!$G$6:$EV$253,33,FALSE) -> 47% | N19: =VLOOKUP($C19,'RECAP SECT'!$G$6:$EV$253,34,FALSE) -> 15 | O19: =VLOOKUP($C19,'RECAP SECT'!$G$6:$EV$253,35,FALSE) -> 5.21 | P19: =VLOOKUP($C19,'RECAP SECT'!$G$6:$EV$253,36,FALSE) -> 18% | Q19: =VLOOKUP($C19,'RECAP SECT'!$G$6:$EV$253,37,FALSE) -> 6 | R19: =VLOOKUP($C19,'RECAP SECT'!$G$6:$EV$253,38,FALSE) -> 84% | S19: =VLOOKUP($C19,'RECAP SECT'!$G$6:$EV$253,39,FALSE) -> 3% | T19: =VLOOKUP($C19,'RECAP SECT'!$G$6:$EV$253,40,FALSE) -> 3 | U19: =VLOOKUP($C19,'RECAP SECT'!$G$6:$EV$253,41,FALSE) -> 31% | V19: =VLOOKUP($C19,'RECAP SECT'!$G$6:$EV$253,42,FALSE) -> 0% | W19: =VLOOKUP($C19,'RECAP SECT'!$G$6:$EV$253,43,FALSE) -> 2
A20: 110 | B20: MEURTHE ET MOSELLE MEUSE | C20: 26 | D20: NANCY | E20: =VLOOKUP($C20,'RECAP SECT'!$G$6:$EV$253,3,FALSE) -> 79.5 | F20: =VLOOKUP($C20,'RECAP SECT'!$G$6:$EV$253,26,FALSE) -> -13.40 | G20: =VLOOKUP($C20,'RECAP SECT'!$G$6:$EV$253,27,FALSE) -> 84% | H20: =VLOOKUP($C20,'RECAP SECT'!$G$6:$EV$253,28,FALSE) -> 11 | I20: =VLOOKUP($C20,'RECAP SECT'!$G$6:$EV$253,29,FALSE) -> 4.44 | J20: =VLOOKUP($C20,'RECAP SECT'!$G$6:$EV$253,30,FALSE) -> 56% | K20: =VLOOKUP($C20,'RECAP SECT'!$G$6:$EV$253,31,FALSE) -> 11 | L20: =VLOOKUP($C20,'RECAP SECT'!$G$6:$EV$253,32,FALSE) -> 8.40 | M20: =VLOOKUP($C20,'RECAP SECT'!$G$6:$EV$253,33,FALSE) -> 38% | N20: =VLOOKUP($C20,'RECAP SECT'!$G$6:$EV$253,34,FALSE) -> 12 | O20: =VLOOKUP($C20,'RECAP SECT'!$G$6:$EV$253,35,FALSE) -> 3.48 | P20: =VLOOKUP($C20,'RECAP SECT'!$G$6:$EV$253,36,FALSE) -> 45% | Q20: =VLOOKUP($C20,'RECAP SECT'!$G$6:$EV$253,37,FALSE) -> 12 | R20: =VLOOKUP($C20,'RECAP SECT'!$G$6:$EV$253,38,FALSE) -> 75% | S20: =VLOOKUP($C20,'RECAP SECT'!$G$6:$EV$253,39,FALSE) -> 13% | T20: =VLOOKUP($C20,'RECAP SECT'!$G$6:$EV$253,40,FALSE) -> 5 | U20: =VLOOKUP($C20,'RECAP SECT'!$G$6:$EV$253,41,FALSE) -> 48% | V20: =VLOOKUP($C20,'RECAP SECT'!$G$6:$EV$253,42,FALSE) -> 17% | W20: =VLOOKUP($C20,'RECAP SECT'!$G$6:$EV$253,43,FALSE) -> 13
A21: 110 | B21: MEURTHE ET MOSELLE MEUSE | C21: 27 | D21: PONT A MOUSSON | E21: =VLOOKUP($C21,'RECAP SECT'!$G$6:$EV$253,3,FALSE) -> 88.0 | F21: =VLOOKUP($C21,'RECAP SECT'!$G$6:$EV$253,26,FALSE) -> -14.99 | G21: =VLOOKUP($C21,'RECAP SECT'!$G$6:$EV$253,27,FALSE) -> 106% | H21: =VLOOKUP($C21,'RECAP SECT'!$G$6:$EV$253,28,FALSE) -> 16 | I21: =VLOOKUP($C21,'RECAP SECT'!$G$6:$EV$253,29,FALSE) -> 7.28 | J21: =VLOOKUP($C21,'RECAP SECT'!$G$6:$EV$253,30,FALSE) -> 28% | K21: =VLOOKUP($C21,'RECAP SECT'!$G$6:$EV$253,31,FALSE) -> 3 | L21: =VLOOKUP($C21,'RECAP SECT'!$G$6:$EV$253,32,FALSE) -> 9.80 | M21: =VLOOKUP($C21,'RECAP SECT'!$G$6:$EV$253,33,FALSE) -> 28% | N21: =VLOOKUP($C21,'RECAP SECT'!$G$6:$EV$253,34,FALSE) -> 5 | O21: =VLOOKUP($C21,'RECAP SECT'!$G$6:$EV$253,35,FALSE) -> 2.16 | P21: =VLOOKUP($C21,'RECAP SECT'!$G$6:$EV$253,36,FALSE) -> 66% | Q21: =VLOOKUP($C21,'RECAP SECT'!$G$6:$EV$253,37,FALSE) -> 16 | R21: =VLOOKUP($C21,'RECAP SECT'!$G$6:$EV$253,38,FALSE) -> 4% | S21: =VLOOKUP($C21,'RECAP SECT'!$G$6:$EV$253,39,FALSE) -> 95% | T21: =VLOOKUP($C21,'RECAP SECT'!$G$6:$EV$253,40,FALSE) -> 18 | U21: =VLOOKUP($C21,'RECAP SECT'!$G$6:$EV$253,41,FALSE) -> 65% | V21: =VLOOKUP($C21,'RECAP SECT'!$G$6:$EV$253,42,FALSE) -> 34% | W21: =VLOOKUP($C21,'RECAP SECT'!$G$6:$EV$253,43,FALSE) -> 16
A22: 110 | B22: MEURTHE ET MOSELLE MEUSE | C22: 31 | D22: VERDUN | E22: =VLOOKUP($C22,'RECAP SECT'!$G$6:$EV$253,3,FALSE) -> 64.9 | F22: =VLOOKUP($C22,'RECAP SECT'!$G$6:$EV$253,26,FALSE) -> -15.86 | G22: =VLOOKUP($C22,'RECAP SECT'!$G$6:$EV$253,27,FALSE) -> 118% | H22: =VLOOKUP($C22,'RECAP SECT'!$G$6:$EV$253,28,FALSE) -> 17 | I22: =VLOOKUP($C22,'RECAP SECT'!$G$6:$EV$253,29,FALSE) -> 6.69 | J22: =VLOOKUP($C22,'RECAP SECT'!$G$6:$EV$253,30,FALSE) -> 34% | K22: =VLOOKUP($C22,'RECAP SECT'!$G$6:$EV$253,31,FALSE) -> 5 | L22: =VLOOKUP($C22,'RECAP SECT'!$G$6:$EV$253,32,FALSE) -> 8.71 | M22: =VLOOKUP($C22,'RECAP SECT'!$G$6:$EV$253,33,FALSE) -> 36% | N22: =VLOOKUP($C22,'RECAP SECT'!$G$6:$EV$253,34,FALSE) -> 11 | O22: =VLOOKUP($C22,'RECAP SECT'!$G$6:$EV$253,35,FALSE) -> 1.62 | P22: =VLOOKUP($C22,'RECAP SECT'!$G$6:$EV$253,36,FALSE) -> 75% | Q22: =VLOOKUP($C22,'RECAP SECT'!$G$6:$EV$253,37,FALSE) -> 18 | R22: =VLOOKUP($C22,'RECAP SECT'!$G$6:$EV$253,38,FALSE) -> 25% | S22: =VLOOKUP($C22,'RECAP SECT'!$G$6:$EV$253,39,FALSE) -> 71% | T22: =VLOOKUP($C22,'RECAP SECT'!$G$6:$EV$253,40,FALSE) -> 15 | U22: =VLOOKUP($C22,'RECAP SECT'!$G$6:$EV$253,41,FALSE) -> 67% | V22: =VLOOKUP($C22,'RECAP SECT'!$G$6:$EV$253,42,FALSE) -> 36% | W22: =VLOOKUP($C22,'RECAP SECT'!$G$6:$EV$253,43,FALSE) -> 18
A23: 160 | B23: MOSELLE | C23: 45 | D23: METZ | E23: =VLOOKUP($C23,'RECAP SECT'!$G$6:$EV$253,3,FALSE) -> 104.2 | F23: =VLOOKUP($C23,'RECAP SECT'!$G$6:$EV$253,26,FALSE) -> -14.86 | G23: =VLOOKUP($C23,'RECAP SECT'!$G$6:$EV$253,27,FALSE) -> 104% | H23: =VLOOKUP($C23,'RECAP SECT'!$G$6:$EV$253,28,FALSE) -> 15 | I23: =VLOOKUP($C23,'RECAP SECT'!$G$6:$EV$253,29,FALSE) -> 4.84 | J23: =VLOOKUP($C23,'RECAP SECT'!$G$6:$EV$253,30,FALSE) -> 52% | K23: =VLOOKUP($C23,'RECAP SECT'!$G$6:$EV$253,31,FALSE) -> 10 | L23: =VLOOKUP($C23,'RECAP SECT'!$G$6:$EV$253,32,FALSE) -> 11.58 | M23: =VLOOKUP($C23,'RECAP SECT'!$G$6:$EV$253,33,FALSE) -> 15% | N23: =VLOOKUP($C23,'RECAP SECT'!$G$6:$EV$253,34,FALSE) -> 3 | O23: =VLOOKUP($C23,'RECAP SECT'!$G$6:$EV$253,35,FALSE) -> 4.24 | P23: =VLOOKUP($C23,'RECAP SECT'!$G$6:$EV$253,36,FALSE) -> 33% | Q23: =VLOOKUP($C23,'RECAP SECT'!$G$6:$EV$253,37,FALSE) -> 10 | R23: =VLOOKUP($C23,'RECAP SECT'!$G$6:$EV$253,38,FALSE) -> 71% | S23: =VLOOKUP($C23,'RECAP SECT'!$G$6:$EV$253,39,FALSE) -> 18% | T23: =VLOOKUP($C23,'RECAP SECT'!$G$6:$EV$253,40,FALSE) -> 6 | U23: =VLOOKUP($C23,'RECAP SECT'!$G$6:$EV$253,41,FALSE) -> 45% | V23: =VLOOKUP($C23,'RECAP SECT'!$G$6:$EV$253,42,FALSE) -> 14% | W23: =VLOOKUP($C23,'RECAP SECT'!$G$6:$EV$253,43,FALSE) -> 12
A24: 160 | B24: MOSELLE | C24: 42 | D24: MOSELLE EST | E24: =VLOOKUP($C24,'RECAP SECT'!$G$6:$EV$253,3,FALSE) -> 86.0 | F24: =VLOOKUP($C24,'RECAP SECT'!$G$6:$EV$253,26,FALSE) -> -12.67 | G24: =VLOOKUP($C24,'RECAP SECT'!$G$6:$EV$253,27,FALSE) -> 74% | H24: =VLOOKUP($C24,'RECAP SECT'!$G$6:$EV$253,28,FALSE) -> 10 | I24: =VLOOKUP($C24,'RECAP SECT'!$G$6:$EV$253,29,FALSE) -> 4.05 | J24: =VLOOKUP($C24,'RECAP SECT'!$G$6:$EV$253,30,FALSE) -> 60% | K24: =VLOOKUP($C24,'RECAP SECT'!$G$6:$EV$253,31,FALSE) -> 14 | L24: =VLOOKUP($C24,'RECAP SECT'!$G$6:$EV$253,32,FALSE) -> 13.63 | M24: =VLOOKUP($C24,'RECAP SECT'!$G$6:$EV$253,33,FALSE) -> 0% | N24: =VLOOKUP($C24,'RECAP SECT'!$G$6:$EV$253,34,FALSE) -> 1 | O24: =VLOOKUP($C24,'RECAP SECT'!$G$6:$EV$253,35,FALSE) -> 4.05 | P24: =VLOOKUP($C24,'RECAP SECT'!$G$6:$EV$253,36,FALSE) -> 36% | Q24: =VLOOKUP($C24,'RECAP SECT'!$G$6:$EV$253,37,FALSE) -> 11 | R24: =VLOOKUP($C24,'RECAP SECT'!$G$6:$EV$253,38,FALSE) -> 86% | S24: =VLOOKUP($C24,'RECAP SECT'!$G$6:$EV$253,39,FALSE) -> 0% | T24: =VLOOKUP($C24,'RECAP SECT'!$G$6:$EV$253,40,FALSE) -> 1 | U24: =VLOOKUP($C24,'RECAP SECT'!$G$6:$EV$253,41,FALSE) -> 34% | V24: =VLOOKUP($C24,'RECAP SECT'!$G$6:$EV$253,42,FALSE) -> 4% | W24: =VLOOKUP($C24,'RECAP SECT'!$G$6:$EV$253,43,FALSE) -> 3
A25: 160 | B25: MOSELLE | C25: 44 | D25: MOSELLE NORD | E25: =VLOOKUP($C25,'RECAP SECT'!$G$6:$EV$253,3,FALSE) -> 80.5 | F25: =VLOOKUP($C25,'RECAP SECT'!$G$6:$EV$253,26,FALSE) -> -14.26 | G25: =VLOOKUP($C25,'RECAP SECT'!$G$6:$EV$253,27,FALSE) -> 96% | H25: =VLOOKUP($C25,'RECAP SECT'!$G$6:$EV$253,28,FALSE) -> 14 | I25: =VLOOKUP($C25,'RECAP SECT'!$G$6:$EV$253,29,FALSE) -> 5.77 | J25: =VLOOKUP($C25,'RECAP SECT'!$G$6:$EV$253,30,FALSE) -> 43% | K25: =VLOOKUP($C25,'RECAP SECT'!$G$6:$EV$253,31,FALSE) -> 9 | L25: =VLOOKUP($C25,'RECAP SECT'!$G$6:$EV$253,32,FALSE) -> 13.56 | M25: =VLOOKUP($C25,'RECAP SECT'!$G$6:$EV$253,33,FALSE) -> 1% | N25: =VLOOKUP($C25,'RECAP SECT'!$G$6:$EV$253,34,FALSE) -> 2 | O25: =VLOOKUP($C25,'RECAP SECT'!$G$6:$EV$253,35,FALSE) -> 4.41 | P25: =VLOOKUP($C25,'RECAP SECT'!$G$6:$EV$253,36,FALSE) -> 31% | Q25: =VLOOKUP($C25,'RECAP SECT'!$G$6:$EV$253,37,FALSE) -> 9 | R25: =VLOOKUP($C25,'RECAP SECT'!$G$6:$EV$253,38,FALSE) -> 49% | S25: =VLOOKUP($C25,'RECAP SECT'!$G$6:$EV$253,39,FALSE) -> 43% | T25: =VLOOKUP($C25,'RECAP SECT'!$G$6:$EV$253,40,FALSE) -> 10 | U25: =VLOOKUP($C25,'RECAP SECT'!$G$6:$EV$253,41,FALSE) -> 43% | V25: =VLOOKUP($C25,'RECAP SECT'!$G$6:$EV$253,42,FALSE) -> 12% | W25: =VLOOKUP($C25,'RECAP SECT'!$G$6:$EV$253,43,FALSE) -> 8
A26: 80 | B26: VOSGES | C26: 57 | D26: EPINAL | E26: =VLOOKUP($C26,'RECAP SECT'!$G$6:$EV$253,3,FALSE) -> 68.7 | F26: =VLOOKUP($C26,'RECAP SECT'!$G$6:$EV$253,26,FALSE) -> -10.87 | G26: =VLOOKUP($C26,'RECAP SECT'!$G$6:$EV$253,27,FALSE) -> 50% | H26: =VLOOKUP($C26,'RECAP SECT'!$G$6:$EV$253,28,FALSE) -> 5 | I26: =VLOOKUP($C26,'RECAP SECT'!$G$6:$EV$253,29,FALSE) -> 6.11 | J26: =VLOOKUP($C26,'RECAP SECT'!$G$6:$EV$253,30,FALSE) -> 39% | K26: =VLOOKUP($C26,'RECAP SECT'!$G$6:$EV$253,31,FALSE) -> 8 | L26: =VLOOKUP($C26,'RECAP SECT'!$G$6:$EV$253,32,FALSE) -> 7.47 | M26: =VLOOKUP($C26,'RECAP SECT'!$G$6:$EV$253,33,FALSE) -> 45% | N26: =VLOOKUP($C26,'RECAP SECT'!$G$6:$EV$253,34,FALSE) -> 14 | O26: =VLOOKUP($C26,'RECAP SECT'!$G$6:$EV$253,35,FALSE) -> 3.25 | P26: =VLOOKUP($C26,'RECAP SECT'!$G$6:$EV$253,36,FALSE) -> 49% | Q26: =VLOOKUP($C26,'RECAP SECT'!$G$6:$EV$253,37,FALSE) -> 15 | R26: =VLOOKUP($C26,'RECAP SECT'!$G$6:$EV$253,38,FALSE) -> 56% | S26: =VLOOKUP($C26,'RECAP SECT'!$G$6:$EV$253,39,FALSE) -> 36% | T26: =VLOOKUP($C26,'RECAP SECT'!$G$6:$EV$253,40,FALSE) -> 9 | U26: =VLOOKUP($C26,'RECAP SECT'!$G$6:$EV$253,41,FALSE) -> 44% | V26: =VLOOKUP($C26,'RECAP SECT'!$G$6:$EV$253,42,FALSE) -> 13% | W26: =VLOOKUP($C26,'RECAP SECT'!$G$6:$EV$253,43,FALSE) -> 11
A27: 80 | B27: VOSGES | C27: 55 | D27: SAINT DIE | E27: =VLOOKUP($C27,'RECAP SECT'!$G$6:$EV$253,3,FALSE) -> 57.9 | F27: =VLOOKUP($C27,'RECAP SECT'!$G$6:$EV$253,26,FALSE) -> -11.21 | G27: =VLOOKUP($C27,'RECAP SECT'!$G$6:$EV$253,27,FALSE) -> 54% | H27: =VLOOKUP($C27,'RECAP SECT'!$G$6:$EV$253,28,FALSE) -> 6 | I27: =VLOOKUP($C27,'RECAP SECT'!$G$6:$EV$253,29,FALSE) -> 6.25 | J27: =VLOOKUP($C27,'RECAP SECT'!$G$6:$EV$253,30,FALSE) -> 38% | K27: =VLOOKUP($C27,'RECAP SECT'!$G$6:$EV$253,31,FALSE) -> 6 | L27: =VLOOKUP($C27,'RECAP SECT'!$G$6:$EV$253,32,FALSE) -> 8.78 | M27: =VLOOKUP($C27,'RECAP SECT'!$G$6:$EV$253,33,FALSE) -> 36% | N27: =VLOOKUP($C27,'RECAP SECT'!$G$6:$EV$253,34,FALSE) -> 10 | O27: =VLOOKUP($C27,'RECAP SECT'!$G$6:$EV$253,35,FALSE) -> 5.39 | P27: =VLOOKUP($C27,'RECAP SECT'!$G$6:$EV$253,36,FALSE) -> 15% | Q27: =VLOOKUP($C27,'RECAP SECT'!$G$6:$EV$253,37,FALSE) -> 4 | R27: =VLOOKUP($C27,'RECAP SECT'!$G$6:$EV$253,38,FALSE) -> 78% | S27: =VLOOKUP($C27,'RECAP SECT'!$G$6:$EV$253,39,FALSE) -> 9% | T27: =VLOOKUP($C27,'RECAP SECT'!$G$6:$EV$253,40,FALSE) -> 4 | U27: =VLOOKUP($C27,'RECAP SECT'!$G$6:$EV$253,41,FALSE) -> 31% | V27: =VLOOKUP($C27,'RECAP SECT'!$G$6:$EV$253,42,FALSE) -> 0% | W27: =VLOOKUP($C27,'RECAP SECT'!$G$6:$EV$253,43,FALSE) -> 1
A28: Total CEGEE Directions Régionales | E28: =SUM(E10:E27) -> 1368

Sheet SE_EPARGNE
A1: Accueil | F1: BAROMETRE BDD - TERRITOIRES
F2: EPARGNE
F3: =ACCUEIL!H7 -> 2019-06-30
F7: Excédent de collecte yc DAV | I7: CA assurance vie | L7: Activité UC (CA+Arbitrage) | O7: Excédent assurance vie | R7: Excédent Epargne Bilan (hors emprunt CTO) | U7: Total Epargne
G8: coef | H8: ='RECAP DIRCOM'!BF4 -> 2% | J8: coef | K8: ='RECAP DIRCOM'!BI4 -> 2% | M8: coef | N8: ='RECAP DIRCOM'!BL4 -> 2% | P8: coef | Q8: ='RECAP DIRCOM'!BO4 -> 2% | S8: coef | T8: ='RECAP DIRCOM'!BR4 -> 7% | V8: coef | W8: ='RECAP DIRCOM'!BU4 -> 15%
A9: eds | B9: Direction | C9: eds | D9: Territoire | E9: ETP perf | F9: Réal / ETP | G9: % Ecart au 1er | H9: Rang | I9: Réal / ETP | J9: % Ecart au 1er | K9: Rang | L9: Réal / ETP | M9: % Ecart au 1er | N9: Rang | O9: Réal / ETP | P9: % Ecart au 1er | Q9: Rang | R9: Réal / ETP | S9: % Ecart au 1er | T9: Rang | U9: Moyenne ecart au 1er | V9: % Ecart au 1er | W9: Rang CEGEE
A10: 50 | B10: AUBE HAUTE MARNE | C10: 21 | D10: CHAUMONT | E10: =VLOOKUP($C10,'RECAP SECT'!$G$6:$EV$253,3,FALSE) -> 46.7 | F10: =VLOOKUP($C10,'RECAP SECT'!$G$6:$EV$253,50,FALSE) -> 79.20 | G10: =VLOOKUP($C10,'RECAP SECT'!$G$6:$EV$253,51,FALSE) -> 63% | H10: =VLOOKUP($C10,'RECAP SECT'!$G$6:$EV$253,52,FALSE) -> 9 | I10: =VLOOKUP($C10,'RECAP SECT'!$G$6:$EV$253,53,FALSE) -> 364.44 | J10: =VLOOKUP($C10,'RECAP SECT'!$G$6:$EV$253,54,FALSE) -> 15% | K10: =VLOOKUP($C10,'RECAP SECT'!$G$6:$EV$253,55,FALSE) -> 8 | L10: =VLOOKUP($C10,'RECAP SECT'!$G$6:$EV$253,56,FALSE) -> 114 | M10: =VLOOKUP($C10,'RECAP SECT'!$G$6:$EV$253,57,FALSE) -> 24% | N10: =VLOOKUP($C10,'RECAP SECT'!$G$6:$EV$253,58,FALSE) -> 8 | O10: =VLOOKUP($C10,'RECAP SECT'!$G$6:$EV$253,59,FALSE) -> 63.28 | P10: =VLOOKUP($C10,'RECAP SECT'!$G$6:$EV$253,60,FALSE) -> 62% | Q10: =VLOOKUP($C10,'RECAP SECT'!$G$6:$EV$253,61,FALSE) -> 12 | R10: =VLOOKUP($C10,'RECAP SECT'!$G$6:$EV$253,62,FALSE) -> -9.69 | S10: =VLOOKUP($C10,'RECAP SECT'!$G$6:$EV$253,63,FALSE) -> 108% | T10: =VLOOKUP($C10,'RECAP SECT'!$G$6:$EV$253,64,FALSE) -> 15 | U10: =VLOOKUP($C10,'RECAP SECT'!$G$6:$EV$253,65,FALSE) -> 73% | V10: =VLOOKUP($C10,'RECAP SECT'!$G$6:$EV$253,66,FALSE) -> 54% | W10: =VLOOKUP($C10,'RECAP SECT'!$G$6:$EV$253,67,FALSE) -> 15
A11: 50 | B11: AUBE HAUTE MARNE | C11: 14 | D11: TROYES | E11: =VLOOKUP($C11,'RECAP SECT'!$G$6:$EV$253,3,FALSE) -> 78.6 | F11: =VLOOKUP($C11,'RECAP SECT'!$G$6:$EV$253,50,FALSE) -> 44.29 | G11: =VLOOKUP($C11,'RECAP SECT'!$G$6:$EV$253,51,FALSE) -> 80% | H11: =VLOOKUP($C11,'RECAP SECT'!$G$6:$EV$253,52,FALSE) -> 16 | I11: =VLOOKUP($C11,'RECAP SECT'!$G$6:$EV$253,53,FALSE) -> 383.23 | J11: =VLOOKUP($C11,'RECAP SECT'!$G$6:$EV$253,54,FALSE) -> 11% | K11: =VLOOKUP($C11,'RECAP SECT'!$G$6:$EV$253,55,FALSE) -> 6 | L11: =VLOOKUP($C11,'RECAP SECT'!$G$6:$EV$253,56,FALSE) -> 150 | M11: =VLOOKUP($C11,'RECAP SECT'!$G$6:$EV$253,57,FALSE) -> 0% | N11: =VLOOKUP($C11,'RECAP SECT'!$G$6:$EV$253,58,FALSE) -> 1 | O11: =VLOOKUP($C11,'RECAP SECT'!$G$6:$EV$253,59,FALSE) -> 94.70 | P11: =VLOOKUP($C11,'RECAP SECT'!$G$6:$EV$253,60,FALSE) -> 43% | Q11: =VLOOKUP($C11,'RECAP SECT'!$G$6:$EV$253,61,FALSE) -> 9 | R11: =VLOOKUP($C11,'RECAP SECT'!$G$6:$EV$253,62,FALSE) -> -36.81 | S11: =VLOOKUP($C11,'RECAP SECT'!$G$6:$EV$253,63,FALSE) -> 132% | T11: =VLOOKUP($C11,'RECAP SECT'!$G$6:$EV$253,64,FALSE) -> 17 | U11: =VLOOKUP($C11,'RECAP SECT'!$G$6:$EV$253,65,FALSE) -> 79% | V11: =VLOOKUP($C11,'RECAP SECT'!$G$6:$EV$253,66,FALSE) -> 61% | W11: =VLOOKUP($C11,'RECAP SECT'!$G$6:$EV$253,67,FALSE) -> 17
A12: 262 | B12: BAS-RHIN | C12: 5060 | D12: HAGUENAU | E12: =VLOOKUP($C12,'RECAP SECT'!$G$6:$EV$253,3,FALSE) -> 88.8 | F12: =VLOOKUP($C12,'RECAP SECT'!$G$6:$EV$253,50,FALSE) -> 73.52 | G12: =VLOOKUP($C12,'RECAP SECT'!$G$6:$EV$253,51,FALSE) -> 66% | H12: =VLOOKUP($C12,'RECAP SECT'!$G$6:$EV$253,52,FALSE) -> 11 | I12: =VLOOKUP($C12,'RECAP SECT'!$G$6:$EV$253,53,FALSE) -> 267.21 | J12: =VLOOKUP($C12,'RECAP SECT'!$G$6:$EV$253,54,FALSE) -> 38% | K12: =VLOOKUP($C12,'RECAP SECT'!$G$6:$EV$253,55,FALSE) -> 17 | L12: =VLOOKUP($C12,'RECAP SECT'!$G$6:$EV$253,56,FALSE) -> 96 | M12: =VLOOKUP($C12,'RECAP SECT'!$G$6:$EV$253,57,FALSE) -> 36% | N12: =VLOOKUP($C12,'RECAP SECT'!$G$6:$EV$253,58,FALSE) -> 16 | O12: =VLOOKUP($C12,'RECAP SECT'!$G$6:$EV$253,59,FALSE) -> 43.98 | P12: =VLOOKUP($C12,'RECAP SECT'!$G$6:$EV$253,60,FALSE) -> 74% | Q12: =VLOOKUP($C12,'RECAP SECT'!$G$6:$EV$253,61,FALSE) -> 14 | R12: =VLOOKUP($C12,'RECAP SECT'!$G$6:$EV$253,62,FALSE) -> 63.48 | S12: =VLOOKUP($C12,'RECAP SECT'!$G$6:$EV$253,63,FALSE) -> 45% | T12: =VLOOKUP($C12,'RECAP SECT'!$G$6:$EV$253,64,FALSE) -> 6 | U12: =VLOOKUP($C12,'RECAP SECT'!$G$6:$EV$253,65,FALSE) -> 49% | V12: =VLOOKUP($C12,'RECAP SECT'!$G$6:$EV$253,66,FALSE) -> 31% | W12: =VLOOKUP($C12,'RECAP SECT'!$G$6:$EV$253,67,FALSE) -> 8
A13: 262 | B13: BAS-RHIN | C13: 5101 | D13: SELESTAT | E13: =VLOOKUP($C13,'RECAP SECT'!$G$6:$EV$253,3,FALSE) -> 75.2 | F13: =VLOOKUP($C13,'RECAP SECT'!$G$6:$EV$253,50,FALSE) -> 66.13 | G13: =VLOOKUP($C13,'RECAP SECT'!$G$6:$EV$253,51,FALSE) -> 69% | H13: =VLOOKUP($C13,'RECAP SECT'!$G$6:$EV$253,52,FALSE) -> 13 | I13: =VLOOKUP($C13,'RECAP SECT'!$G$6:$EV$253,53,FALSE) -> 279.12 | J13: =VLOOKUP($C13,'RECAP SECT'!$G$6:$EV$253,54,FALSE) -> 35% | K13: =VLOOKUP($C13,'RECAP SECT'!$G$6:$EV$253,55,FALSE) -> 15 | L13: =VLOOKUP($C13,'RECAP SECT'!$G$6:$EV$253,56,FALSE) -> 119 | M13: =VLOOKUP($C13,'RECAP SECT'!$G$6:$EV$253,57,FALSE) -> 21% | N13: =VLOOKUP($C13,'RECAP SECT'!$G$6:$EV$253,58,FALSE) -> 7 | O13: =VLOOKUP($C13,'RECAP SECT'!$G$6:$EV$253,59,FALSE) -> 38.26 | P13: =VLOOKUP($C13,'RECAP SECT'!$G$6:$EV$253,60,FALSE) -> 77% | Q13: =VLOOKUP($C13,'RECAP SECT'!$G$6:$EV$253,61,FALSE) -> 16 | R13: =VLOOKUP($C13,'RECAP SECT'!$G$6:$EV$253,62,FALSE) -> 50.93 | S13: =VLOOKUP($C13,'RECAP SECT'!$G$6:$EV$253,63,FALSE) -> 56% | T13: =VLOOKUP($C13,'RECAP SECT'!$G$6:$EV$253,64,FALSE) -> 8 | U13: =VLOOKUP($C13,'RECAP SECT'!$G$6:$EV$253,65,FALSE) -> 53% | V13: =VLOOKUP($C13,'RECAP SECT'!$G$6:$EV$253,66,FALSE) -> 34% | W13: =VLOOKUP($C13,'RECAP SECT'!$G$6:$EV$253,67,FALSE) -> 9
A14: 262 | B14: BAS-RHIN | C14: 5006 | D14: STRASBOURG | E14: =VLOOKUP($C14,'RECAP SECT'!$G$6:$EV$253,3,FALSE) -> 91.8 | F14: =VLOOKUP($C14,'RECAP SECT'!$G$6:$EV$253,50,FALSE) -> 44.34 | G14: =VLOOKUP($C14,'RECAP SECT'!$G$6:$EV$253,51,FALSE) -> 79% | H14: =VLOOKUP($C14,'RECAP SECT'!$G$6:$EV$253,52,FALSE) -> 15 | I14: =VLOOKUP($C14,'RECAP SECT'!$G$6:$EV$253,53,FALSE) -> 290.24 | J14: =VLOOKUP($C14,'RECAP SECT'!$G$6:$EV$253,54,FALSE) -> 32% | K14: =VLOOKUP($C14,'RECAP SECT'!$G$6:$EV$253,55,FALSE) -> 13 | L14: =VLOOKUP($C14,'RECAP SECT'!$G$6:$EV$253,56,FALSE) -> 127 | M14: =VLOOKUP($C14,'RECAP SECT'!$G$6:$EV$253,57,FALSE) -> 15% | N14: =VLOOKUP($C14,'RECAP SECT'!$G$6:$EV$253,58,FALSE) -> 5 | O14: =VLOOKUP($C14,'RECAP SECT'!$G$6:$EV$253,59,FALSE) -> 52.55 | P14: =VLOOKUP($C14,'RECAP SECT'!$G$6:$EV$253,60,FALSE) -> 69% | Q14: =VLOOKUP($C14,'RECAP SECT'!$G$6:$EV$253,61,FALSE) -> 13 | R14: =VLOOKUP($C14,'RECAP SECT'!$G$6:$EV$253,62,FALSE) -> 31.12 | S14: =VLOOKUP($C14,'RECAP SECT'!$G$6:$EV$253,63,FALSE) -> 73% | T14: =VLOOKUP($C14,'RECAP SECT'!$G$6:$EV$253,64,FALSE) -> 10 | U14: =VLOOKUP($C14,'RECAP SECT'!$G$6:$EV$253,65,FALSE) -> 60% | V14: =VLOOKUP($C14,'RECAP SECT'!$G$6:$EV$253,66,FALSE) -> 42% | W14: =VLOOKUP($C14,'RECAP SECT'!$G$6:$EV$253,67,FALSE) -> 14
A15: 264 | B15: HAUT-RHIN | C15: 5130 | D15: COLMAR | E15: =VLOOKUP($C15,'RECAP SECT'!$G$6:$EV$253,3,FALSE) -> 76.9 | F15: =VLOOKUP($C15,'RECAP SECT'!$G$6:$EV$253,50,FALSE) -> 112.29 | G15: =VLOOKUP($C15,'RECAP SECT'!$G$6:$EV$253,51,FALSE) -> 48% | H15: =VLOOKUP($C15,'RECAP SECT'!$G$6:$EV$253,52,FALSE) -> 5 | I15: =VLOOKUP($C15,'RECAP SECT'!$G$6:$EV$253,53,FALSE) -> 268.64 | J15: =VLOOKUP($C15,'RECAP SECT'!$G$6:$EV$253,54,FALSE) -> 37% | K15: =VLOOKUP($C15,'RECAP SECT'!$G$6:$EV$253,55,FALSE) -> 16 | L15: =VLOOKUP($C15,'RECAP SECT'!$G$6:$EV$253,56,FALSE) -> 107 | M15: =VLOOKUP($C15,'RECAP SECT'!$G$6:$EV$253,57,FALSE) -> 29% | N15: =VLOOKUP($C15,'RECAP SECT'!$G$6:$EV$253,58,FALSE) -> 13 | O15: =VLOOKUP($C15,'RECAP SECT'!$G$6:$EV$253,59,FALSE) -> 12.66 | P15: =VLOOKUP($C15,'RECAP SECT'!$G$6:$EV$253,60,FALSE) -> 92% | Q15: =VLOOKUP($C15,'RECAP SECT'!$G$6:$EV$253,61,FALSE) -> 18 | R15: =VLOOKUP($C15,'RECAP SECT'!$G$6:$EV$253,62,FALSE) -> 96.34 | S15: =VLOOKUP($C15,'RECAP SECT'!$G$6:$EV$253,63,FALSE) -> 17% | T15: =VLOOKUP($C15,'RECAP SECT'!$G$6:$EV$253,64,FALSE) -> 2 | U15: =VLOOKUP($C15,'RECAP SECT'!$G$6:$EV$253,65,FALSE) -> 35% | V15: =VLOOKUP($C15,'RECAP SECT'!$G$6:$EV$253,66,FALSE) -> 17% | W15: =VLOOKUP($C15,'RECAP SECT'!$G$6:$EV$253,67,FALSE) -> 4
A16: 264 | B16: HAUT-RHIN | C16: 5169 | D16: MULHOUSE | E16: =VLOOKUP($C16,'RECAP SECT'!$G$6:$EV$253,3,FALSE) -> 77.8 | F16: =VLOOKUP($C16,'RECAP SECT'!$G$6:$EV$253,50,FALSE) -> 102.89 | G16: =VLOOKUP($C16,'RECAP SECT'!$G$6:$EV$253,51,FALSE) -> 52% | H16: =VLOOKUP($C16,'RECAP SECT'!$G$6:$EV$253,52,FALSE) -> 6 | I16: =VLOOKUP($C16,'RECAP SECT'!$G$6:$EV$253,53,FALSE) -> 247.23 | J16: =VLOOKUP($C16,'RECAP SECT'!$G$6:$EV$253,54,FALSE) -> 42% | K16: =VLOOKUP($C16,'RECAP SECT'!$G$6:$EV$253,55,FALSE) -> 18 | L16: =VLOOKUP($C16,'RECAP SECT'!$G$6:$EV$253,56,FALSE) -> 86 | M16: =VLOOKUP($C16,'RECAP SECT'!$G$6:$EV$253,57,FALSE) -> 43% | N16: =VLOOKUP($C16,'RECAP SECT'!$G$6:$EV$253,58,FALSE) -> 17 | O16: =VLOOKUP($C16,'RECAP SECT'!$G$6:$EV$253,59,FALSE) -> 76.30 | P16: =VLOOKUP($C16,'RECAP SECT'!$G$6:$EV$253,60,FALSE) -> 54% | Q16: =VLOOKUP($C16,'RECAP SECT'!$G$6:$EV$253,61,FALSE) -> 11 | R16: =VLOOKUP($C16,'RECAP SECT'!$G$6:$EV$253,62,FALSE) -> 86.47 | S16: =VLOOKUP($C16,'RECAP SECT'!$G$6:$EV$253,63,FALSE) -> 25% | T16: =VLOOKUP($C16,'RECAP SECT'!$G$6:$EV$253,64,FALSE) -> 4 | U16: =VLOOKUP($C16,'RECAP SECT'!$G$6:$EV$253,65,FALSE) -> 37% | V16: =VLOOKUP($C16,'RECAP SECT'!$G$6:$EV$253,66,FALSE) -> 19% | W16: =VLOOKUP($C16,'RECAP SECT'!$G$6:$EV$253,67,FALSE) -> 5
A17: 30 | B17: MARNE-ARDENNES | C17: 6 | D17: CHALONS EN CHAMPAGNE | E17: =VLOOKUP($C17,'RECAP SECT'!$G$6:$EV$253,3,FALSE) -> 49.0 | F17: =VLOOKUP($C17,'RECAP SECT'!$G$6:$EV$253,50,FALSE) -> 22.49 | G17: =VLOOKUP($C17,'RECAP SECT'!$G$6:$EV$253,51,FALSE) -> 90% | H17: =VLOOKUP($C17,'RECAP SECT'!$G$6:$EV$253,52,FALSE) -> 17 | I17: =VLOOKUP($C17,'RECAP SECT'!$G$6:$EV$253,53,FALSE) -> 354.75 | J17: =VLOOKUP($C17,'RECAP SECT'!$G$6:$EV$253,54,FALSE) -> 17% | K17: =VLOOKUP($C17,'RECAP SECT'!$G$6:$EV$253,55,FALSE) -> 9 | L17: =VLOOKUP($C17,'RECAP SECT'!$G$6:$EV$253,56,FALSE) -> 132 | M17: =VLOOKUP($C17,'RECAP SECT'!$G$6:$EV$253,57,FALSE) -> 12% | N17: =VLOOKUP($C17,'RECAP SECT'!$G$6:$EV$253,58,FALSE) -> 2 | O17: =VLOOKUP($C17,'RECAP SECT'!$G$6:$EV$253,59,FALSE) -> 43.70 | P17: =VLOOKUP($C17,'RECAP SECT'!$G$6:$EV$253,60,FALSE) -> 74% | Q17: =VLOOKUP($C17,'RECAP SECT'!$G$6:$EV$253,61,FALSE) -> 15 | R17: =VLOOKUP($C17,'RECAP SECT'!$G$6:$EV$253,62,FALSE) -> 115.65 | S17: =VLOOKUP($C17,'RECAP SECT'!$G$6:$EV$253,63,FALSE) -> 0% | T17: =VLOOKUP($C17,'RECAP SECT'!$G$6:$EV$253,64,FALSE) -> 1 | U17: =VLOOKUP($C17,'RECAP SECT'!$G$6:$EV$253,65,FALSE) -> 26% | V17: =VLOOKUP($C17,'RECAP SECT'!$G$6:$EV$253,66,FALSE) -> 7% | W17: =VLOOKUP($C17,'RECAP SECT'!$G$6:$EV$253,67,FALSE) -> 3
A18: 30 | B18: MARNE-ARDENNES | C18: 2 | D18: CHARLEVILLE MEZIERES | E18: =VLOOKUP($C18,'RECAP SECT'!$G$6:$EV$253,3,FALSE) -> 63.1 | F18: =VLOOKUP($C18,'RECAP SECT'!$G$6:$EV$253,50,FALSE) -> 0.70 | G18: =VLOOKUP($C18,'RECAP SECT'!$G$6:$EV$253,51,FALSE) -> 100% | H18: =VLOOKUP($C18,'RECAP SECT'!$G$6:$EV$253,52,FALSE) -> 18 | I18: =VLOOKUP($C18,'RECAP SECT'!$G$6:$EV$253,53,FALSE) -> 283.39 | J18: =VLOOKUP($C18,'RECAP SECT'!$G$6:$EV$253,54,FALSE) -> 34% | K18: =VLOOKUP($C18,'RECAP SECT'!$G$6:$EV$253,55,FALSE) -> 14 | L18: =VLOOKUP($C18,'RECAP SECT'!$G$6:$EV$253,56,FALSE) -> 84 | M18: =VLOOKUP($C18,'RECAP SECT'!$G$6:$EV$253,57,FALSE) -> 44% | N18: =VLOOKUP($C18,'RECAP SECT'!$G$6:$EV$253,58,FALSE) -> 18 | O18: =VLOOKUP($C18,'RECAP SECT'!$G$6:$EV$253,59,FALSE) -> 29.84 | P18: =VLOOKUP($C18,'RECAP SECT'!$G$6:$EV$253,60,FALSE) -> 82% | Q18: =VLOOKUP($C18,'RECAP SECT'!$G$6:$EV$253,61,FALSE) -> 17 | R18: =VLOOKUP($C18,'RECAP SECT'!$G$6:$EV$253,62,FALSE) -> -23.13 | S18: =VLOOKUP($C18,'RECAP SECT'!$G$6:$EV$253,63,FALSE) -> 120% | T18: =VLOOKUP($C18,'RECAP SECT'!$G$6:$EV$253,64,FALSE) -> 16 | U18: =VLOOKUP($C18,'RECAP SECT'!$G$6:$EV$253,65,FALSE) -> 91% | V18: =VLOOKUP($C18,'RECAP SECT'!$G$6:$EV$253,66,FALSE) -> 72% | W18: =VLOOKUP($C18,'RECAP SECT'!$G$6:$EV$253,67,FALSE) -> 18
A19: 30 | B19: MARNE-ARDENNES | C19: 11 | D19: REIMS | E19: =VLOOKUP($C19,'RECAP SECT'!$G$6:$EV$253,3,FALSE) -> 90.6 | F19: =VLOOKUP($C19,'RECAP SECT'!$G$6:$EV$253,50,FALSE) -> 216.08 | G19: =VLOOKUP($C19,'RECAP SECT'!$G$6:$EV$253,51,FALSE) -> 0% | H19: =VLOOKUP($C19,'RECAP SECT'!$G$6:$EV$253,52,FALSE) -> 1 | I19: =VLOOKUP($C19,'RECAP SECT'!$G$6:$EV$253,53,FALSE) -> 428.23 | J19: =VLOOKUP($C19,'RECAP SECT'!$G$6:$EV$253,54,FALSE) -> 0% | K19: =VLOOKUP($C19,'RECAP SECT'!$G$6:$EV$253,55,FALSE) -> 1 | L19: =VLOOKUP($C19,'RECAP SECT'!$G$6:$EV$253,56,FALSE) -> 111 | M19: =VLOOKUP($C19,'RECAP SECT'!$G$6:$EV$253,57,FALSE) -> 26% | N19: =VLOOKUP($C19,'RECAP SECT'!$G$6:$EV$253,58,FALSE) -> 10 | O19: =VLOOKUP($C19,'RECAP SECT'!$G$6:$EV$253,59,FALSE) -> 167.32 | P19: =VLOOKUP($C19,'RECAP SECT'!$G$6:$EV$253,60,FALSE) -> 0% | Q19: =VLOOKUP($C19,'RECAP SECT'!$G$6:$EV$253,61,FALSE) -> 1 | R19: =VLOOKUP($C19,'RECAP SECT'!$G$6:$EV$253,62,FALSE) -> 63.70 | S19: =VLOOKUP($C19,'RECAP SECT'!$G$6:$EV$253,63,FALSE) -> 45% | T19: =VLOOKUP($C19,'RECAP SECT'!$G$6:$EV$253,64,FALSE) -> 5 | U19: =VLOOKUP($C19,'RECAP SECT'!$G$6:$EV$253,65,FALSE) -> 24% | V19: =VLOOKUP($C19,'RECAP SECT'!$G$6:$EV$253,66,FALSE) -> 6% | W19: =VLOOKUP($C19,'RECAP SECT'!$G$6:$EV$253,67,FALSE) -> 2
A20: 110 | B20: MEURTHE ET MOSELLE MEUSE | C20: 26 | D20: NANCY | E20: =VLOOKUP($C20,'RECAP SECT'!$G$6:$EV$253,3,FALSE) -> 79.5 | F20: =VLOOKUP($C20,'RECAP SECT'!$G$6:$EV$253,50,FALSE) -> 115.99 | G20: =VLOOKUP($C20,'RECAP SECT'!$G$6:$EV$253,51,FALSE) -> 46% | H20: =VLOOKUP($C20,'RECAP SECT'!$G$6:$EV$253,52,FALSE) -> 4 | I20: =VLOOKUP($C20,'RECAP SECT'!$G$6:$EV$253,53,FALSE) -> 406.90 | J20: =VLOOKUP($C20,'RECAP SECT'!$G$6:$EV$253,54,FALSE) -> 5% | K20: =VLOOKUP($C20,'RECAP SECT'!$G$6:$EV$253,55,FALSE) -> 4 | L20: =VLOOKUP($C20,'RECAP SECT'!$G$6:$EV$253,56,FALSE) -> 112 | M20: =VLOOKUP($C20,'RECAP SECT'!$G$6:$EV$253,57,FALSE) -> 25% | N20: =VLOOKUP($C20,'RECAP SECT'!$G$6:$EV$253,58,FALSE) -> 9 | O20: =VLOOKUP($C20,'RECAP SECT'!$G$6:$EV$253,59,FALSE) -> 142.43 | P20: =VLOOKUP($C20,'RECAP SECT'!$G$6:$EV$253,60,FALSE) -> 15% | Q20: =VLOOKUP($C20,'RECAP SECT'!$G$6:$EV$253,61,FALSE) -> 5 | R20: =VLOOKUP($C20,'RECAP SECT'!$G$6:$EV$253,62,FALSE) -> 4.86 | S20: =VLOOKUP($C20,'RECAP SECT'!$G$6:$EV$253,63,FALSE) -> 96% | T20: =VLOOKUP($C20,'RECAP SECT'!$G$6:$EV$253,64,FALSE) -> 14 | U20: =VLOOKUP($C20,'RECAP SECT'!$G$6:$EV$253,65,FALSE) -> 57% | V20: =VLOOKUP($C20,'RECAP SECT'!$G$6:$EV$253,66,FALSE) -> 38% | W20: =VLOOKUP($C20,'RECAP SECT'!$G$6:$EV$253,67,FALSE) -> 13
A21: 110 | B21: MEURTHE ET MOSELLE MEUSE | C21: 27 | D21: PONT A MOUSSON | E21: =VLOOKUP($C21,'RECAP SECT'!$G$6:$EV$253,3,FALSE) -> 88.0 | F21: =VLOOKUP($C21,'RECAP SECT'!$G$6:$EV$253,50,FALSE) -> 83.54 | G21: =VLOOKUP($C21,'RECAP SECT'!$G$6:$EV$253,51,FALSE) -> 61% | H21: =VLOOKUP($C21,'RECAP SECT'!$G$6:$EV$253,52,FALSE) -> 7 | I21: =VLOOKUP($C21,'RECAP SECT'!$G$6:$EV$253,53,FALSE) -> 341.87 | J21: =VLOOKUP($C21,'RECAP SECT'!$G$6:$EV$253,54,FALSE) -> 20% | K21: =VLOOKUP($C21,'RECAP SECT'!$G$6:$EV$253,55,FALSE) -> 11 | L21: =VLOOKUP($C21,'RECAP SECT'!$G$6:$EV$253,56,FALSE) -> 99 | M21: =VLOOKUP($C21,'RECAP SECT'!$G$6:$EV$253,57,FALSE) -> 34% | N21: =VLOOKUP($C21,'RECAP SECT'!$G$6:$EV$253,58,FALSE) -> 15 | O21: =VLOOKUP($C21,'RECAP SECT'!$G$6:$EV$253,59,FALSE) -> 121.90 | P21: =VLOOKUP($C21,'RECAP SECT'!$G$6:$EV$253,60,FALSE) -> 27% | Q21: =VLOOKUP($C21,'RECAP SECT'!$G$6:$EV$253,61,FALSE) -> 6 | R21: =VLOOKUP($C21,'RECAP SECT'!$G$6:$EV$253,62,FALSE) -> 29.84 | S21: =VLOOKUP($C21,'RECAP SECT'!$G$6:$EV$253,63,FALSE) -> 74% | T21: =VLOOKUP($C21,'RECAP SECT'!$G$6:$EV$253,64,FALSE) -> 11 | U21: =VLOOKUP($C21,'RECAP SECT'!$G$6:$EV$253,65,FALSE) -> 54% | V21: =VLOOKUP($C21,'RECAP SECT'!$G$6:$EV$253,66,FALSE) -> 35% | W21: =VLOOKUP($C21,'RECAP SECT'!$G$6:$EV$253,67,FALSE) -> 10
A22: 110 | B22: MEURTHE ET MOSELLE MEUSE | C22: 31 | D22: VERDUN | E22: =VLOOKUP($C22,'RECAP SECT'!$G$6:$EV$253,3,FALSE) -> 64.9 | F22: =VLOOKUP($C22,'RECAP SECT'!$G$6:$EV$253,50,FALSE) -> 68.36 | G22: =VLOOKUP($C22,'RECAP SECT'!$G$6:$EV$253,51,FALSE) -> 68% | H22: =VLOOKUP($C22,'RECAP SECT'!$G$6:$EV$253,52,FALSE) -> 12 | I22: =VLOOKUP($C22,'RECAP SECT'!$G$6:$EV$253,53,FALSE) -> 376.52 | J22: =VLOOKUP($C22,'RECAP SECT'!$G$6:$EV$253,54,FALSE) -> 12% | K22: =VLOOKUP($C22,'RECAP SECT'!$G$6:$EV$253,55,FALSE) -> 7 | L22: =VLOOKUP($C22,'RECAP SECT'!$G$6:$EV$253,56,FALSE) -> 109 | M22: =VLOOKUP($C22,'RECAP SECT'!$G$6:$EV$253,57,FALSE) -> 27% | N22: =VLOOKUP($C22,'RECAP SECT'!$G$6:$EV$253,58,FALSE) -> 12 | O22: =VLOOKUP($C22,'RECAP SECT'!$G$6:$EV$253,59,FALSE) -> 98.40 | P22: =VLOOKUP($C22,'RECAP SECT'!$G$6:$EV$253,60,FALSE) -> 41% | Q22: =VLOOKUP($C22,'RECAP SECT'!$G$6:$EV$253,61,FALSE) -> 8 | R22: =VLOOKUP($C22,'RECAP SECT'!$G$6:$EV$253,62,FALSE) -> 58.55 | S22: =VLOOKUP($C22,'RECAP SECT'!$G$6:$EV$253,63,FALSE) -> 49% | T22: =VLOOKUP($C22,'RECAP SECT'!$G$6:$EV$253,64,FALSE) -> 7 | U22: =VLOOKUP($C22,'RECAP SECT'!$G$6:$EV$253,65,FALSE) -> 43% | V22: =VLOOKUP($C22,'RECAP SECT'!$G$6:$EV$253,66,FALSE) -> 24% | W22: =VLOOKUP($C22,'RECAP SECT'!$G$6:$EV$253,67,FALSE) -> 6
A23: 160 | B23: MOSELLE | C23: 45 | D23: METZ | E23: =VLOOKUP($C23,'RECAP SECT'!$G$6:$EV$253,3,FALSE) -> 104.2 | F23: =VLOOKUP($C23,'RECAP SECT'!$G$6:$EV$253,50,FALSE) -> 160.75 | G23: =VLOOKUP($C23,'RECAP SECT'!$G$6:$EV$253,51,FALSE) -> 26% | H23: =VLOOKUP($C23,'RECAP SECT'!$G$6:$EV$253,52,FALSE) -> 2 | I23: =VLOOKUP($C23,'RECAP SECT'!$G$6:$EV$253,53,FALSE) -> 388.44 | J23: =VLOOKUP($C23,'RECAP SECT'!$G$6:$EV$253,54,FALSE) -> 9% | K23: =VLOOKUP($C23,'RECAP SECT'!$G$6:$EV$253,55,FALSE) -> 5 | L23: =VLOOKUP($C23,'RECAP SECT'!$G$6:$EV$253,56,FALSE) -> 130 | M23: =VLOOKUP($C23,'RECAP SECT'!$G$6:$EV$253,57,FALSE) -> 13% | N23: =VLOOKUP($C23,'RECAP SECT'!$G$6:$EV$253,58,FALSE) -> 4 | O23: =VLOOKUP($C23,'RECAP SECT'!$G$6:$EV$253,59,FALSE) -> 144.69 | P23: =VLOOKUP($C23,'RECAP SECT'!$G$6:$EV$253,60,FALSE) -> 14% | Q23: =VLOOKUP($C23,'RECAP SECT'!$G$6:$EV$253,61,FALSE) -> 4 | R23: =VLOOKUP($C23,'RECAP SECT'!$G$6:$EV$253,62,FALSE) -> 89.80 | S23: =VLOOKUP($C23,'RECAP SECT'!$G$6:$EV$253,63,FALSE) -> 22% | T23: =VLOOKUP($C23,'RECAP SECT'!$G$6:$EV$253,64,FALSE) -> 3 | U23: =VLOOKUP($C23,'RECAP SECT'!$G$6:$EV$253,65,FALSE) -> 19% | V23: =VLOOKUP($C23,'RECAP SECT'!$G$6:$EV$253,66,FALSE) -> 0% | W23: =VLOOKUP($C23,'RECAP SECT'!$G$6:$EV$253,67,FALSE) -> 1
A24: 160 | B24: MOSELLE | C24: 42 | D24: MOSELLE EST | E24: =VLOOKUP($C24,'RECAP SECT'!$G$6:$EV$253,3,FALSE) -> 86.0 | F24: =VLOOKUP($C24,'RECAP SECT'!$G$6:$EV$253,50,FALSE) -> 81.14 | G24: =VLOOKUP($C24,'RECAP SECT'!$G$6:$EV$253,51,FALSE) -> 62% | H24: =VLOOKUP($C24,'RECAP SECT'!$G$6:$EV$253,52,FALSE) -> 8 | I24: =VLOOKUP($C24,'RECAP SECT'!$G$6:$EV$253,53,FALSE) -> 348.64 | J24: =VLOOKUP($C24,'RECAP SECT'!$G$6:$EV$253,54,FALSE) -> 19% | K24: =VLOOKUP($C24,'RECAP SECT'!$G$6:$EV$253,55,FALSE) -> 10 | L24: =VLOOKUP($C24,'RECAP SECT'!$G$6:$EV$253,56,FALSE) -> 109 | M24: =VLOOKUP($C24,'RECAP SECT'!$G$6:$EV$253,57,FALSE) -> 27% | N24: =VLOOKUP($C24,'RECAP SECT'!$G$6:$EV$253,58,FALSE) -> 11 | O24: =VLOOKUP($C24,'RECAP SECT'!$G$6:$EV$253,59,FALSE) -> 112.66 | P24: =VLOOKUP($C24,'RECAP SECT'!$G$6:$EV$253,60,FALSE) -> 33% | Q24: =VLOOKUP($C24,'RECAP SECT'!$G$6:$EV$253,61,FALSE) -> 7 | R24: =VLOOKUP($C24,'RECAP SECT'!$G$6:$EV$253,62,FALSE) -> 26.00 | S24: =VLOOKUP($C24,'RECAP SECT'!$G$6:$EV$253,63,FALSE) -> 78% | T24: =VLOOKUP($C24,'RECAP SECT'!$G$6:$EV$253,64,FALSE) -> 12 | U24: =VLOOKUP($C24,'RECAP SECT'!$G$6:$EV$253,65,FALSE) -> 55% | V24: =VLOOKUP($C24,'RECAP SECT'!$G$6:$EV$253,66,FALSE) -> 36% | W24: =VLOOKUP($C24,'RECAP SECT'!$G$6:$EV$253,67,FALSE) -> 12
A25: 160 | B25: MOSELLE | C25: 44 | D25: MOSELLE NORD | E25: =VLOOKUP($C25,'RECAP SECT'!$G$6:$EV$253,3,FALSE) -> 80.5 | F25: =VLOOKUP($C25,'RECAP SECT'!$G$6:$EV$253,50,FALSE) -> 65.68 | G25: =VLOOKUP($C25,'RECAP SECT'!$G$6:$EV$253,51,FALSE) -> 70% | H25: =VLOOKUP($C25,'RECAP SECT'!$G$6:$EV$253,52,FALSE) -> 14 | I25: =VLOOKUP($C25,'RECAP SECT'!$G$6:$EV$253,53,FALSE) -> 425.14 | J25: =VLOOKUP($C25,'RECAP SECT'!$G$6:$EV$253,54,FALSE) -> 1% | K25: =VLOOKUP($C25,'RECAP SECT'!$G$6:$EV$253,55,FALSE) -> 3 | L25: =VLOOKUP($C25,'RECAP SECT'!$G$6:$EV$253,56,FALSE) -> 131 | M25: =VLOOKUP($C25,'RECAP SECT'!$G$6:$EV$253,57,FALSE) -> 12% | N25: =VLOOKUP($C25,'RECAP SECT'!$G$6:$EV$253,58,FALSE) -> 3 | O25: =VLOOKUP($C25,'RECAP SECT'!$G$6:$EV$253,59,FALSE) -> 161.32 | P25: =VLOOKUP($C25,'RECAP SECT'!$G$6:$EV$253,60,FALSE) -> 4% | Q25: =VLOOKUP($C25,'RECAP SECT'!$G$6:$EV$253,61,FALSE) -> 2 | R25: =VLOOKUP($C25,'RECAP SECT'!$G$6:$EV$253,62,FALSE) -> -38.44 | S25: =VLOOKUP($C25,'RECAP SECT'!$G$6:$EV$253,63,FALSE) -> 133% | T25: =VLOOKUP($C25,'RECAP SECT'!$G$6:$EV$253,64,FALSE) -> 18 | U25: =VLOOKUP($C25,'RECAP SECT'!$G$6:$EV$253,65,FALSE) -> 74% | V25: =VLOOKUP($C25,'RECAP SECT'!$G$6:$EV$253,66,FALSE) -> 55% | W25: =VLOOKUP($C25,'RECAP SECT'!$G$6:$EV$253,67,FALSE) -> 16
A26: 80 | B26: VOSGES | C26: 57 | D26: EPINAL | E26: =VLOOKUP($C26,'RECAP SECT'!$G$6:$EV$253,3,FALSE) -> 68.7 | F26: =VLOOKUP($C26,'RECAP SECT'!$G$6:$EV$253,50,FALSE) -> 76.38 | G26: =VLOOKUP($C26,'RECAP SECT'!$G$6:$EV$253,51,FALSE) -> 65% | H26: =VLOOKUP($C26,'RECAP SECT'!$G$6:$EV$253,52,FALSE) -> 10 | I26: =VLOOKUP($C26,'RECAP SECT'!$G$6:$EV$253,53,FALSE) -> 334.13 | J26: =VLOOKUP($C26,'RECAP SECT'!$G$6:$EV$253,54,FALSE) -> 22% | K26: =VLOOKUP($C26,'RECAP SECT'!$G$6:$EV$253,55,FALSE) -> 12 | L26: =VLOOKUP($C26,'RECAP SECT'!$G$6:$EV$253,56,FALSE) -> 106 | M26: =VLOOKUP($C26,'RECAP SECT'!$G$6:$EV$253,57,FALSE) -> 29% | N26: =VLOOKUP($C26,'RECAP SECT'!$G$6:$EV$253,58,FALSE) -> 14 | O26: =VLOOKUP($C26,'RECAP SECT'!$G$6:$EV$253,59,FALSE) -> 85.16 | P26: =VLOOKUP($C26,'RECAP SECT'!$G$6:$EV$253,60,FALSE) -> 49% | Q26: =VLOOKUP($C26,'RECAP SECT'!$G$6:$EV$253,61,FALSE) -> 10 | R26: =VLOOKUP($C26,'RECAP SECT'!$G$6:$EV$253,62,FALSE) -> 37.01 | S26: =VLOOKUP($C26,'RECAP SECT'!$G$6:$EV$253,63,FALSE) -> 68% | T26: =VLOOKUP($C26,'RECAP SECT'!$G$6:$EV$253,64,FALSE) -> 9 | U26: =VLOOKUP($C26,'RECAP SECT'!$G$6:$EV$253,65,FALSE) -> 54% | V26: =VLOOKUP($C26,'RECAP SECT'!$G$6:$EV$253,66,FALSE) -> 35% | W26: =VLOOKUP($C26,'RECAP SECT'!$G$6:$EV$253,67,FALSE) -> 11
A27: 80 | B27: VOSGES | C27: 55 | D27: SAINT DIE | E27: =VLOOKUP($C27,'RECAP SECT'!$G$6:$EV$253,3,FALSE) -> 57.9 | F27: =VLOOKUP($C27,'RECAP SECT'!$G$6:$EV$253,50,FALSE) -> 152.11 | G27: =VLOOKUP($C27,'RECAP SECT'!$G$6:$EV$253,51,FALSE) -> 30% | H27: =VLOOKUP($C27,'RECAP SECT'!$G$6:$EV$253,52,FALSE) -> 3 | I27: =VLOOKUP($C27,'RECAP SECT'!$G$6:$EV$253,53,FALSE) -> 425.75 | J27: =VLOOKUP($C27,'RECAP SECT'!$G$6:$EV$253,54,FALSE) -> 1% | K27: =VLOOKUP($C27,'RECAP SECT'!$G$6:$EV$253,55,FALSE) -> 2 | L27: =VLOOKUP($C27,'RECAP SECT'!$G$6:$EV$253,56,FALSE) -> 124 | M27: =VLOOKUP($C27,'RECAP SECT'!$G$6:$EV$253,57,FALSE) -> 17% | N27: =VLOOKUP($C27,'RECAP SECT'!$G$6:$EV$253,58,FALSE) -> 6 | O27: =VLOOKUP($C27,'RECAP SECT'!$G$6:$EV$253,59,FALSE) -> 149.11 | P27: =VLOOKUP($C27,'RECAP SECT'!$G$6:$EV$253,60,FALSE) -> 11% | Q27: =VLOOKUP($C27,'RECAP SECT'!$G$6:$EV$253,61,FALSE) -> 3 | R27: =VLOOKUP($C27,'RECAP SECT'!$G$6:$EV$253,62,FALSE) -> 16.13 | S27: =VLOOKUP($C27,'RECAP SECT'!$G$6:$EV$253,63,FALSE) -> 86% | T27: =VLOOKUP($C27,'RECAP SECT'!$G$6:$EV$253,64,FALSE) -> 13 | U27: =VLOOKUP($C27,'RECAP SECT'!$G$6:$EV$253,65,FALSE) -> 48% | V27: =VLOOKUP($C27,'RECAP SECT'!$G$6:$EV$253,66,FALSE) -> 29% | W27: =VLOOKUP($C27,'RECAP SECT'!$G$6:$EV$253,67,FALSE) -> 7
A28: Total CEGEE Directions Régionales | E28: =SUM(E10:E27) -> 1368

Sheet SE_CREDIT
A1: Accueil | F1: BAROMETRE BDD - TERRITOIRES
F2: CREDITS
F3: =ACCUEIL!H7 -> 2019-06-30
F7: Engagements crédit conso (hors clients note octroi à 9) | I7: % CNP crédit conso | L7: Engagements crédi immo | O7: % CNP crédit immo | R7: Taux couverture SACCEF | U7: Engagement Crédit MLT + Crédit Bail | X7: Total Crédits
G8: coef | H8: ='RECAP DIRCOM'!CD4 -> 3% | J8: coef | K8: ='RECAP DIRCOM'!CG4 -> 2% | M8: coef | N8: ='RECAP DIRCOM'!CJ4 -> 3% | P8: coef | Q8: ='RECAP DIRCOM'!CM4 -> 2% | S8: coef | T8: ='RECAP DIRCOM'!CP4 -> 2% | V8: coef | W8: ='RECAP DIRCOM'!CS4 -> 3% | Y8: coef | Z8: ='RECAP DIRCOM'!CV4 -> 15%
A9: eds | B9: Direction | C9: eds | D9: Territoire | E9: ETP perf | F9: Réal / ETP | G9: % Ecart au 1er | H9: Rang | J9: % Ecart au 1er | K9: Rang | L9: Taux réal objectif | M9: % Ecart au 1er | N9: Rang | P9: % Ecart au 1er | Q9: Rang | S9: % Ecart au 1er | T9: Rang | U9: Taux réal objectif | V9: % Ecart au 1er | W9: Rang | X9: Moyenne ecart au 1er | Y9: % Ecart au 1er | Z9: Rang CEGEE
A10: 50 | B10: AUBE HAUTE MARNE | C10: 21 | D10: CHAUMONT | E10: =VLOOKUP($C10,'RECAP SECT'!$G$6:$EV$253,3,FALSE) -> 46.7 | F10: =VLOOKUP($C10,'RECAP SECT'!$G$6:$EV$253,74,FALSE) -> 310.42 | G10: =VLOOKUP($C10,'RECAP SECT'!$G$6:$EV$253,75,FALSE) -> 2% | H10: =VLOOKUP($C10,'RECAP SECT'!$G$6:$EV$253,76,FALSE) -> 2 | I10: =VLOOKUP($C10,'RECAP SECT'!$G$6:$EV$253,77,FALSE) -> 94% | J10: =VLOOKUP($C10,'RECAP SECT'!$G$6:$EV$253,78,FALSE) -> 4% | K10: =VLOOKUP($C10,'RECAP SECT'!$G$6:$EV$253,79,FALSE) -> 11 | L10: =VLOOKUP($C10,'RECAP SECT'!$G$6:$EV$253,80,FALSE) -> 33% | M10: =VLOOKUP($C10,'RECAP SECT'!$G$6:$EV$253,81,FALSE) -> 41% | N10: =VLOOKUP($C10,'RECAP SECT'!$G$6:$EV$253,82,FALSE) -> 18 | O10: =VLOOKUP($C10,'RECAP SECT'!$G$6:$EV$253,83,FALSE) -> 65% | P10: =VLOOKUP($C10,'RECAP SECT'!$G$6:$EV$253,84,FALSE) -> 23% | Q10: =VLOOKUP($C10,'RECAP SECT'!$G$6:$EV$253,85,FALSE) -> 14 | R10: =VLOOKUP($C10,'RECAP SECT'!$G$6:$EV$253,86,FALSE) -> 87% | S10: =VLOOKUP($C10,'RECAP SECT'!$G$6:$EV$253,87,FALSE) -> 5% | T10: =VLOOKUP($C10,'RECAP SECT'!$G$6:$EV$253,88,FALSE) -> 5 | U10: =VLOOKUP($C10,'RECAP SECT'!$G$6:$EV$253,89,FALSE) -> 64% | V10: =VLOOKUP($C10,'RECAP SECT'!$G$6:$EV$253,90,FALSE) -> 33% | W10: =VLOOKUP($C10,'RECAP SECT'!$G$6:$EV$253,91,FALSE) -> 5 | X10: =VLOOKUP($C10,'RECAP SECT'!$G$6:$EV$253,92,FALSE) -> 20% | Y10: =VLOOKUP($C10,'RECAP SECT'!$G$6:$EV$253,93,FALSE) -> 12% | Z10: =VLOOKUP($C10,'RECAP SECT'!$G$6:$EV$253,94,FALSE) -> 7
A11: 50 | B11: AUBE HAUTE MARNE | C11: 14 | D11: TROYES | E11: =VLOOKUP($C11,'RECAP SECT'!$G$6:$EV$253,3,FALSE) -> 78.6 | F11: =VLOOKUP($C11,'RECAP SECT'!$G$6:$EV$253,74,FALSE) -> 252.09 | G11: =VLOOKUP($C11,'RECAP SECT'!$G$6:$EV$253,75,FALSE) -> 21% | H11: =VLOOKUP($C11,'RECAP SECT'!$G$6:$EV$253,76,FALSE) -> 5 | I11: =VLOOKUP($C11,'RECAP SECT'!$G$6:$EV$253,77,FALSE) -> 93% | J11: =VLOOKUP($C11,'RECAP SECT'!$G$6:$EV$253,78,FALSE) -> 5% | K11: =VLOOKUP($C11,'RECAP SECT'!$G$6:$EV$253,79,FALSE) -> 12 | L11: =VLOOKUP($C11,'RECAP SECT'!$G$6:$EV$253,80,FALSE) -> 46% | M11: =VLOOKUP($C11,'RECAP SECT'!$G$6:$EV$253,81,FALSE) -> 18% | N11: =VLOOKUP($C11,'RECAP SECT'!$G$6:$EV$253,82,FALSE) -> 12 | O11: =VLOOKUP($C11,'RECAP SECT'!$G$6:$EV$253,83,FALSE) -> 70% | P11: =VLOOKUP($C11,'RECAP SECT'!$G$6:$EV$253,84,FALSE) -> 18% | Q11: =VLOOKUP($C11,'RECAP SECT'!$G$6:$EV$253,85,FALSE) -> 11 | R11: =VLOOKUP($C11,'RECAP SECT'!$G$6:$EV$253,86,FALSE) -> 82% | S11: =VLOOKUP($C11,'RECAP SECT'!$G$6:$EV$253,87,FALSE) -> 11% | T11: =VLOOKUP($C11,'RECAP SECT'!$G$6:$EV$253,88,FALSE) -> 15 | U11: =VLOOKUP($C11,'RECAP SECT'!$G$6:$EV$253,89,FALSE) -> 62% | V11: =VLOOKUP($C11,'RECAP SECT'!$G$6:$EV$253,90,FALSE) -> 36% | W11: =VLOOKUP($C11,'RECAP SECT'!$G$6:$EV$253,91,FALSE) -> 7 | X11: =VLOOKUP($C11,'RECAP SECT'!$G$6:$EV$253,92,FALSE) -> 20% | Y11: =VLOOKUP($C11,'RECAP SECT'!$G$6:$EV$253,93,FALSE) -> 11% | Z11: =VLOOKUP($C11,'RECAP SECT'!$G$6:$EV$253,94,FALSE) -> 6
A12: 262 | B12: BAS-RHIN | C12: 5060 | D12: HAGUENAU | E12: =VLOOKUP($C12,'RECAP SECT'!$G$6:$EV$253,3,FALSE) -> 88.8 | F12: =VLOOKUP($C12,'RECAP SECT'!$G$6:$EV$253,74,FALSE) -> 210.33 | G12: =VLOOKUP($C12,'RECAP SECT'!$G$6:$EV$253,75,FALSE) -> 34% | H12: =VLOOKUP($C12,'RECAP SECT'!$G$6:$EV$253,76,FALSE) -> 16 | I12: =VLOOKUP($C12,'RECAP SECT'!$G$6:$EV$253,77,FALSE) -> 97% | J12: =VLOOKUP($C12,'RECAP SECT'!$G$6:$EV$253,78,FALSE) -> 1% | K12: =VLOOKUP($C12,'RECAP SECT'!$G$6:$EV$253,79,FALSE) -> 2 | L12: =VLOOKUP($C12,'RECAP SECT'!$G$6:$EV$253,80,FALSE) -> 41% | M12: =VLOOKUP($C12,'RECAP SECT'!$G$6:$EV$253,81,FALSE) -> 27% | N12: =VLOOKUP($C12,'RECAP SECT'!$G$6:$EV$253,82,FALSE) -> 16 | O12: =VLOOKUP($C12,'RECAP SECT'!$G$6:$EV$253,83,FALSE) -> 62% | P12: =VLOOKUP($C12,'RECAP SECT'!$G$6:$EV$253,84,FALSE) -> 26% | Q12: =VLOOKUP($C12,'RECAP SECT'!$G$6:$EV$253,85,FALSE) -> 15 | R12: =VLOOKUP($C12,'RECAP SECT'!$G$6:$EV$253,86,FALSE) -> 83% | S12: =VLOOKUP($C12,'RECAP SECT'!$G$6:$EV$253,87,FALSE) -> 9% | T12: =VLOOKUP($C12,'RECAP SECT'!$G$6:$EV$253,88,FALSE) -> 10 | U12: =VLOOKUP($C12,'RECAP SECT'!$G$6:$EV$253,89,FALSE) -> 33% | V12: =VLOOKUP($C12,'RECAP SECT'!$G$6:$EV$253,90,FALSE) -> 66% | W12: =VLOOKUP($C12,'RECAP SECT'!$G$6:$EV$253,91,FALSE) -> 15 | X12: =VLOOKUP($C12,'RECAP SECT'!$G$6:$EV$253,92,FALSE) -> 30% | Y12: =VLOOKUP($C12,'RECAP SECT'!$G$6:$EV$253,93,FALSE) -> 22% | Z12: =VLOOKUP($C12,'RECAP SECT'!$G$6:$EV$253,94,FALSE) -> 17
A13: 262 | B13: BAS-RHIN | C13: 5101 | D13: SELESTAT | E13: =VLOOKUP($C13,'RECAP SECT'!$G$6:$EV$253,3,FALSE) -> 75.2 | F13: =VLOOKUP($C13,'RECAP SECT'!$G$6:$EV$253,74,FALSE) -> 235.54 | G13: =VLOOKUP($C13,'RECAP SECT'!$G$6:$EV$253,75,FALSE) -> 26% | H13: =VLOOKUP($C13,'RECAP SECT'!$G$6:$EV$253,76,FALSE) -> 12 | I13: =VLOOKUP($C13,'RECAP SECT'!$G$6:$EV$253,77,FALSE) -> 95% | J13: =VLOOKUP($C13,'RECAP SECT'!$G$6:$EV$253,78,FALSE) -> 2% | K13: =VLOOKUP($C13,'RECAP SECT'!$G$6:$EV$253,79,FALSE) -> 7 | L13: =VLOOKUP($C13,'RECAP SECT'!$G$6:$EV$253,80,FALSE) -> 40% | M13: =VLOOKUP($C13,'RECAP SECT'!$G$6:$EV$253,81,FALSE) -> 29% | N13: =VLOOKUP($C13,'RECAP SECT'!$G$6:$EV$253,82,FALSE) -> 17 | O13: =VLOOKUP($C13,'RECAP SECT'!$G$6:$EV$253,83,FALSE) -> 61% | P13: =VLOOKUP($C13,'RECAP SECT'!$G$6:$EV$253,84,FALSE) -> 28% | Q13: =VLOOKUP($C13,'RECAP SECT'!$G$6:$EV$253,85,FALSE) -> 16 | R13: =VLOOKUP($C13,'RECAP SECT'!$G$6:$EV$253,86,FALSE) -> 82% | S13: =VLOOKUP($C13,'RECAP SECT'!$G$6:$EV$253,87,FALSE) -> 11% | T13: =VLOOKUP($C13,'RECAP SECT'!$G$6:$EV$253,88,FALSE) -> 13 | U13: =VLOOKUP($C13,'RECAP SECT'!$G$6:$EV$253,89,FALSE) -> 61% | V13: =VLOOKUP($C13,'RECAP SECT'!$G$6:$EV$253,90,FALSE) -> 36% | W13: =VLOOKUP($C13,'RECAP SECT'!$G$6:$EV$253,91,FALSE) -> 8 | X13: =VLOOKUP($C13,'RECAP SECT'!$G$6:$EV$253,92,FALSE) -> 24% | Y13: =VLOOKUP($C13,'RECAP SECT'!$G$6:$EV$253,93,FALSE) -> 15% | Z13: =VLOOKUP($C13,'RECAP SECT'!$G$6:$EV$253,94,FALSE) -> 12
A14: 262 | B14: BAS-RHIN | C14: 5006 | D14: STRASBOURG | E14: =VLOOKUP($C14,'RECAP SECT'!$G$6:$EV$253,3,FALSE) -> 91.8 | F14: =VLOOKUP($C14,'RECAP SECT'!$G$6:$EV$253,74,FALSE) -> 189.61 | G14: =VLOOKUP($C14,'RECAP SECT'!$G$6:$EV$253,75,FALSE) -> 40% | H14: =VLOOKUP($C14,'RECAP SECT'!$G$6:$EV$253,76,FALSE) -> 17 | I14: =VLOOKUP($C14,'RECAP SECT'!$G$6:$EV$253,77,FALSE) -> 88% | J14: =VLOOKUP($C14,'RECAP SECT'!$G$6:$EV$253,78,FALSE) -> 10% | K14: =VLOOKUP($C14,'RECAP SECT'!$G$6:$EV$253,79,FALSE) -> 16 | L14: =VLOOKUP($C14,'RECAP SECT'!$G$6:$EV$253,80,FALSE) -> 50% | M14: =VLOOKUP($C14,'RECAP SECT'!$G$6:$EV$253,81,FALSE) -> 10% | N14: =VLOOKUP($C14,'RECAP SECT'!$G$6:$EV$253,82,FALSE) -> 3 | O14: =VLOOKUP($C14,'RECAP SECT'!$G$6:$EV$253,83,FALSE) -> 53% | P14: =VLOOKUP($C14,'RECAP SECT'!$G$6:$EV$253,84,FALSE) -> 38% | Q14: =VLOOKUP($C14,'RECAP SECT'!$G$6:$EV$253,85,FALSE) -> 18 | R14: =VLOOKUP($C14,'RECAP SECT'!$G$6:$EV$253,86,FALSE) -> 77% | S14: =VLOOKUP($C14,'RECAP SECT'!$G$6:$EV$253,87,FALSE) -> 16% | T14: =VLOOKUP($C14,'RECAP SECT'!$G$6:$EV$253,88,FALSE) -> 16 | U14: =VLOOKUP($C14,'RECAP SECT'!$G$6:$EV$253,89,FALSE) -> 52% | V14: =VLOOKUP($C14,'RECAP SECT'!$G$6:$EV$253,90,FALSE) -> 45% | W14: =VLOOKUP($C14,'RECAP SECT'!$G$6:$EV$253,91,FALSE) -> 10 | X14: =VLOOKUP($C14,'RECAP SECT'!$G$6:$EV$253,92,FALSE) -> 28% | Y14: =VLOOKUP($C14,'RECAP SECT'!$G$6:$EV$253,93,FALSE) -> 20% | Z14: =VLOOKUP($C14,'RECAP SECT'!$G$6:$EV$253,94,FALSE) -> 15
A15: 264 | B15: HAUT-RHIN | C15: 5130 | D15: COLMAR | E15: =VLOOKUP($C15,'RECAP SECT'!$G$6:$EV$253,3,FALSE) -> 76.9 | F15: =VLOOKUP($C15,'RECAP SECT'!$G$6:$EV$253,74,FALSE) -> 181.01 | G15: =VLOOKUP($C15,'RECAP SECT'!$G$6:$EV$253,75,FALSE) -> 43% | H15: =VLOOKUP($C15,'RECAP SECT'!$G$6:$EV$253,76,FALSE) -> 18 | I15: =VLOOKUP($C15,'RECAP SECT'!$G$6:$EV$253,77,FALSE) -> 87% | J15: =VLOOKUP($C15,'RECAP SECT'!$G$6:$EV$253,78,FALSE) -> 11% | K15: =VLOOKUP($C15,'RECAP SECT'!$G$6:$EV$253,79,FALSE) -> 17 | L15: =VLOOKUP($C15,'RECAP SECT'!$G$6:$EV$253,80,FALSE) -> 43% | M15: =VLOOKUP($C15,'RECAP SECT'!$G$6:$EV$253,81,FALSE) -> 23% | N15: =VLOOKUP($C15,'RECAP SECT'!$G$6:$EV$253,82,FALSE) -> 14 | O15: =VLOOKUP($C15,'RECAP SECT'!$G$6:$EV$253,83,FALSE) -> 69% | P15: =VLOOKUP($C15,'RECAP SECT'!$G$6:$EV$253,84,FALSE) -> 18% | Q15: =VLOOKUP($C15,'RECAP SECT'!$G$6:$EV$253,85,FALSE) -> 12 | R15: =VLOOKUP($C15,'RECAP SECT'!$G$6:$EV$253,86,FALSE) -> 82% | S15: =VLOOKUP($C15,'RECAP SECT'!$G$6:$EV$253,87,FALSE) -> 11% | T15: =VLOOKUP($C15,'RECAP SECT'!$G$6:$EV$253,88,FALSE) -> 14 | U15: =VLOOKUP($C15,'RECAP SECT'!$G$6:$EV$253,89,FALSE) -> 32% | V15: =VLOOKUP($C15,'RECAP SECT'!$G$6:$EV$253,90,FALSE) -> 67% | W15: =VLOOKUP($C15,'RECAP SECT'!$G$6:$EV$253,91,FALSE) -> 16 | X15: =VLOOKUP($C15,'RECAP SECT'!$G$6:$EV$253,92,FALSE) -> 32% | Y15: =VLOOKUP($C15,'RECAP SECT'!$G$6:$EV$253,93,FALSE) -> 24% | Z15: =VLOOKUP($C15,'RECAP SECT'!$G$6:$EV$253,94,FALSE) -> 18
A16: 264 | B16: HAUT-RHIN | C16: 5169 | D16: MULHOUSE | E16: =VLOOKUP($C16,'RECAP SECT'!$G$6:$EV$253,3,FALSE) -> 77.8 | F16: =VLOOKUP($C16,'RECAP SECT'!$G$6:$EV$253,74,FALSE) -> 211.54 | G16: =VLOOKUP($C16,'RECAP SECT'!$G$6:$EV$253,75,FALSE) -> 34% | H16: =VLOOKUP($C16,'RECAP SECT'!$G$6:$EV$253,76,FALSE) -> 15 | I16: =VLOOKUP($C16,'RECAP SECT'!$G$6:$EV$253,77,FALSE) -> 96% | J16: =VLOOKUP($C16,'RECAP SECT'!$G$6:$EV$253,78,FALSE) -> 2% | K16: =VLOOKUP($C16,'RECAP SECT'!$G$6:$EV$253,79,FALSE) -> 6 | L16: =VLOOKUP($C16,'RECAP SECT'!$G$6:$EV$253,80,FALSE) -> 48% | M16: =VLOOKUP($C16,'RECAP SECT'!$G$6:$EV$253,81,FALSE) -> 14% | N16: =VLOOKUP($C16,'RECAP SECT'!$G$6:$EV$253,82,FALSE) -> 5 | O16: =VLOOKUP($C16,'RECAP SECT'!$G$6:$EV$253,83,FALSE) -> 83% | P16: =VLOOKUP($C16,'RECAP SECT'!$G$6:$EV$253,84,FALSE) -> 2% | Q16: =VLOOKUP($C16,'RECAP SECT'!$G$6:$EV$253,85,FALSE) -> 2 | R16: =VLOOKUP($C16,'RECAP SECT'!$G$6:$EV$253,86,FALSE) -> 70% | S16: =VLOOKUP($C16,'RECAP SECT'!$G$6:$EV$253,87,FALSE) -> 23% | T16: =VLOOKUP($C16,'RECAP SECT'!$G$6:$EV$253,88,FALSE) -> 18 | U16: =VLOOKUP($C16,'RECAP SECT'!$G$6:$EV$253,89,FALSE) -> 96% | V16: =VLOOKUP($C16,'RECAP SECT'!$G$6:$EV$253,90,FALSE) -> 0% | W16: =VLOOKUP($C16,'RECAP SECT'!$G$6:$EV$253,91,FALSE) -> 1 | X16: =VLOOKUP($C16,'RECAP SECT'!$G$6:$EV$253,92,FALSE) -> 13% | Y16: =VLOOKUP($C16,'RECAP SECT'!$G$6:$EV$253,93,FALSE) -> 5% | Z16: =VLOOKUP($C16,'RECAP SECT'!$G$6:$EV$253,94,FALSE) -> 3
A17: 30 | B17: MARNE-ARDENNES | C17: 6 | D17: CHALONS EN CHAMPAGNE | E17: =VLOOKUP($C17,'RECAP SECT'!$G$6:$EV$253,3,FALSE) -> 49.0 | F17: =VLOOKUP($C17,'RECAP SECT'!$G$6:$EV$253,74,FALSE) -> 244.36 | G17: =VLOOKUP($C17,'RECAP SECT'!$G$6:$EV$253,75,FALSE) -> 23% | H17: =VLOOKUP($C17,'RECAP SECT'!$G$6:$EV$253,76,FALSE) -> 8 | I17: =VLOOKUP($C17,'RECAP SECT'!$G$6:$EV$253,77,FALSE) -> 95% | J17: =VLOOKUP($C17,'RECAP SECT'!$G$6:$EV$253,78,FALSE) -> 3% | K17: =VLOOKUP($C17,'RECAP SECT'!$G$6:$EV$253,79,FALSE) -> 8 | L17: =VLOOKUP($C17,'RECAP SECT'!$G$6:$EV$253,80,FALSE) -> 49% | M17: =VLOOKUP($C17,'RECAP SECT'!$G$6:$EV$253,81,FALSE) -> 12% | N17: =VLOOKUP($C17,'RECAP SECT'!$G$6:$EV$253,82,FALSE) -> 4 | O17: =VLOOKUP($C17,'RECAP SECT'!$G$6:$EV$253,83,FALSE) -> 74% | P17: =VLOOKUP($C17,'RECAP SECT'!$G$6:$EV$253,84,FALSE) -> 12% | Q17: =VLOOKUP($C17,'RECAP SECT'!$G$6:$EV$253,85,FALSE) -> 7 | R17: =VLOOKUP($C17,'RECAP SECT'!$G$6:$EV$253,86,FALSE) -> 87% | S17: =VLOOKUP($C17,'RECAP SECT'!$G$6:$EV$253,87,FALSE) -> 5% | T17: =VLOOKUP($C17,'RECAP SECT'!$G$6:$EV$253,88,FALSE) -> 6 | U17: =VLOOKUP($C17,'RECAP SECT'!$G$6:$EV$253,89,FALSE) -> 67% | V17: =VLOOKUP($C17,'RECAP SECT'!$G$6:$EV$253,90,FALSE) -> 30% | W17: =VLOOKUP($C17,'RECAP SECT'!$G$6:$EV$253,91,FALSE) -> 4 | X17: =VLOOKUP($C17,'RECAP SECT'!$G$6:$EV$253,92,FALSE) -> 16% | Y17: =VLOOKUP($C17,'RECAP SECT'!$G$6:$EV$253,93,FALSE) -> 8% | Z17: =VLOOKUP($C17,'RECAP SECT'!$G$6:$EV$253,94,FALSE) -> 5
A18: 30 | B18: MARNE-ARDENNES | C18: 2 | D18: CHARLEVILLE MEZIERES | E18: =VLOOKUP($C18,'RECAP SECT'!$G$6:$EV$253,3,FALSE) -> 63.1 | F18: =VLOOKUP($C18,'RECAP SECT'!$G$6:$EV$253,74,FALSE) -> 241.68 | G18: =VLOOKUP($C18,'RECAP SECT'!$G$6:$EV$253,75,FALSE) -> 24% | H18: =VLOOKUP($C18,'RECAP SECT'!$G$6:$EV$253,76,FALSE) -> 10 | I18: =VLOOKUP($C18,'RECAP SECT'!$G$6:$EV$253,77,FALSE) -> 97% | J18: =VLOOKUP($C18,'RECAP SECT'!$G$6:$EV$253,78,FALSE) -> 1% | K18: =VLOOKUP($C18,'RECAP SECT'!$G$6:$EV$253,79,FALSE) -> 3 | L18: =VLOOKUP($C18,'RECAP SECT'!$G$6:$EV$253,80,FALSE) -> 56% | M18: =VLOOKUP($C18,'RECAP SECT'!$G$6:$EV$253,81,FALSE) -> 0% | N18: =VLOOKUP($C18,'RECAP SECT'!$G$6:$EV$253,82,FALSE) -> 1 | O18: =VLOOKUP($C18,'RECAP SECT'!$G$6:$EV$253,83,FALSE) -> 85% | P18: =VLOOKUP($C18,'RECAP SECT'!$G$6:$EV$253,84,FALSE) -> 0% | Q18: =VLOOKUP($C18,'RECAP SECT'!$G$6:$EV$253,85,FALSE) -> 1 | R18: =VLOOKUP($C18,'RECAP SECT'!$G$6:$EV$253,86,FALSE) -> 82% | S18: =VLOOKUP($C18,'RECAP SECT'!$G$6:$EV$253,87,FALSE) -> 10% | T18: =VLOOKUP($C18,'RECAP SECT'!$G$6:$EV$253,88,FALSE) -> 12 | U18: =VLOOKUP($C18,'RECAP SECT'!$G$6:$EV$253,89,FALSE) -> 87% | V18: =VLOOKUP($C18,'RECAP SECT'!$G$6:$EV$253,90,FALSE) -> 9% | W18: =VLOOKUP($C18,'RECAP SECT'!$G$6:$EV$253,91,FALSE) -> 3 | X18: =VLOOKUP($C18,'RECAP SECT'!$G$6:$EV$253,92,FALSE) -> 8% | Y18: =VLOOKUP($C18,'RECAP SECT'!$G$6:$EV$253,93,FALSE) -> 0% | Z18: =VLOOKUP($C18,'RECAP SECT'!$G$6:$EV$253,94,FALSE) -> 1
A19: 30 | B19: MARNE-ARDENNES | C19: 11 | D19: REIMS | E19: =VLOOKUP($C19,'RECAP SECT'!$G$6:$EV$253,3,FALSE) -> 90.6 | F19: =VLOOKUP($C19,'RECAP SECT'!$G$6:$EV$253,74,FALSE) -> 318.32 | G19: =VLOOKUP($C19,'RECAP SECT'!$G$6:$EV$253,75,FALSE) -> 0% | H19: =VLOOKUP($C19,'RECAP SECT'!$G$6:$EV$253,76,FALSE) -> 1 | I19: =VLOOKUP($C19,'RECAP SECT'!$G$6:$EV$253,77,FALSE) -> 81% | J19: =VLOOKUP($C19,'RECAP SECT'!$G$6:$EV$253,78,FALSE) -> 17% | K19: =VLOOKUP($C19,'RECAP SECT'!$G$6:$EV$253,79,FALSE) -> 18 | L19: =VLOOKUP($C19,'RECAP SECT'!$G$6:$EV$253,80,FALSE) -> 54% | M19: =VLOOKUP($C19,'RECAP SECT'!$G$6:$EV$253,81,FALSE) -> 3% | N19: =VLOOKUP($C19,'RECAP SECT'!$G$6:$EV$253,82,FALSE) -> 2 | O19: =VLOOKUP($C19,'RECAP SECT'!$G$6:$EV$253,83,FALSE) -> 70% | P19: =VLOOKUP($C19,'RECAP SECT'!$G$6:$EV$253,84,FALSE) -> 17% | Q19: =VLOOKUP($C19,'RECAP SECT'!$G$6:$EV$253,85,FALSE) -> 10 | R19: =VLOOKUP($C19,'RECAP SECT'!$G$6:$EV$253,86,FALSE) -> 83% | S19: =VLOOKUP($C19,'RECAP SECT'!$G$6:$EV$253,87,FALSE) -> 10% | T19: =VLOOKUP($C19,'RECAP SECT'!$G$6:$EV$253,88,FALSE) -> 11 | U19: =VLOOKUP($C19,'RECAP SECT'!$G$6:$EV$253,89,FALSE) -> 63% | V19: =VLOOKUP($C19,'RECAP SECT'!$G$6:$EV$253,90,FALSE) -> 35% | W19: =VLOOKUP($C19,'RECAP SECT'!$G$6:$EV$253,91,FALSE) -> 6 | X19: =VLOOKUP($C19,'RECAP SECT'!$G$6:$EV$253,92,FALSE) -> 14% | Y19: =VLOOKUP($C19,'RECAP SECT'!$G$6:$EV$253,93,FALSE) -> 5% | Z19: =VLOOKUP($C19,'RECAP SECT'!$G$6:$EV$253,94,FALSE) -> 4
A20: 110 | B20: MEURTHE ET MOSELLE MEUSE | C20: 26 | D20: NANCY | E20: =VLOOKUP($C20,'RECAP SECT'!$G$6:$EV$253,3,FALSE) -> 79.5 | F20: =VLOOKUP($C20,'RECAP SECT'!$G$6:$EV$253,74,FALSE) -> 238.65 | G20: =VLOOKUP($C20,'RECAP SECT'!$G$6:$EV$253,75,FALSE) -> 25% | H20: =VLOOKUP($C20,'RECAP SECT'!$G$6:$EV$253,76,FALSE) -> 11 | I20: =VLOOKUP($C20,'RECAP SECT'!$G$6:$EV$253,77,FALSE) -> 90% | J20: =VLOOKUP($C20,'RECAP SECT'!$G$6:$EV$253,78,FALSE) -> 9% | K20: =VLOOKUP($C20,'RECAP SECT'!$G$6:$EV$253,79,FALSE) -> 14 | L20: =VLOOKUP($C20,'RECAP SECT'!$G$6:$EV$253,80,FALSE) -> 48% | M20: =VLOOKUP($C20,'RECAP SECT'!$G$6:$EV$253,81,FALSE) -> 15% | N20: =VLOOKUP($C20,'RECAP SECT'!$G$6:$EV$253,82,FALSE) -> 7 | O20: =VLOOKUP($C20,'RECAP SECT'!$G$6:$EV$253,83,FALSE) -> 73% | P20: =VLOOKUP($C20,'RECAP SECT'!$G$6:$EV$253,84,FALSE) -> 14% | Q20: =VLOOKUP($C20,'RECAP SECT'!$G$6:$EV$253,85,FALSE) -> 8 | R20: =VLOOKUP($C20,'RECAP SECT'!$G$6:$EV$253,86,FALSE) -> 90% | S20: =VLOOKUP($C20,'RECAP SECT'!$G$6:$EV$253,87,FALSE) -> 2% | T20: =VLOOKUP($C20,'RECAP SECT'!$G$6:$EV$253,88,FALSE) -> 3 | U20: =VLOOKUP($C20,'RECAP SECT'!$G$6:$EV$253,89,FALSE) -> 37% | V20: =VLOOKUP($C20,'RECAP SECT'!$G$6:$EV$253,90,FALSE) -> 61% | W20: =VLOOKUP($C20,'RECAP SECT'!$G$6:$EV$253,91,FALSE) -> 13 | X20: =VLOOKUP($C20,'RECAP SECT'!$G$6:$EV$253,92,FALSE) -> 24% | Y20: =VLOOKUP($C20,'RECAP SECT'!$G$6:$EV$253,93,FALSE) -> 15% | Z20: =VLOOKUP($C20,'RECAP SECT'!$G$6:$EV$253,94,FALSE) -> 11
A21: 110 | B21: MEURTHE ET MOSELLE MEUSE | C21: 27 | D21: PONT A MOUSSON | E21: =VLOOKUP($C21,'RECAP SECT'!$G$6:$EV$253,3,FALSE) -> 88.0 | F21: =VLOOKUP($C21,'RECAP SECT'!$G$6:$EV$253,74,FALSE) -> 242.23 | G21: =VLOOKUP($C21,'RECAP SECT'!$G$6:$EV$253,75,FALSE) -> 24% | H21: =VLOOKUP($C21,'RECAP SECT'!$G$6:$EV$253,76,FALSE) -> 9 | I21: =VLOOKUP($C21,'RECAP SECT'!$G$6:$EV$253,77,FALSE) -> 89% | J21: =VLOOKUP($C21,'RECAP SECT'!$G$6:$EV$253,78,FALSE) -> 9% | K21: =VLOOKUP($C21,'RECAP SECT'!$G$6:$EV$253,79,FALSE) -> 15 | L21: =VLOOKUP($C21,'RECAP SECT'!$G$6:$EV$253,80,FALSE) -> 47% | M21: =VLOOKUP($C21,'RECAP SECT'!$G$6:$EV$253,81,FALSE) -> 15% | N21: =VLOOKUP($C21,'RECAP SECT'!$G$6:$EV$253,82,FALSE) -> 8 | O21: =VLOOKUP($C21,'RECAP SECT'!$G$6:$EV$253,83,FALSE) -> 75% | P21: =VLOOKUP($C21,'RECAP SECT'!$G$6:$EV$253,84,FALSE) -> 12% | Q21: =VLOOKUP($C21,'RECAP SECT'!$G$6:$EV$253,85,FALSE) -> 6 | R21: =VLOOKUP($C21,'RECAP SECT'!$G$6:$EV$253,86,FALSE) -> 92% | S21: =VLOOKUP($C21,'RECAP SECT'!$G$6:$EV$253,87,FALSE) -> 0% | T21: =VLOOKUP($C21,'RECAP SECT'!$G$6:$EV$253,88,FALSE) -> 1 | U21: =VLOOKUP($C21,'RECAP SECT'!$G$6:$EV$253,89,FALSE) -> 49% | V21: =VLOOKUP($C21,'RECAP SECT'!$G$6:$EV$253,90,FALSE) -> 49% | W21: =VLOOKUP($C21,'RECAP SECT'!$G$6:$EV$253,91,FALSE) -> 12 | X21: =VLOOKUP($C21,'RECAP SECT'!$G$6:$EV$253,92,FALSE) -> 20% | Y21: =VLOOKUP($C21,'RECAP SECT'!$G$6:$EV$253,93,FALSE) -> 12% | Z21: =VLOOKUP($C21,'RECAP SECT'!$G$6:$EV$253,94,FALSE) -> 8
A22: 110 | B22: MEURTHE ET MOSELLE MEUSE | C22: 31 | D22: VERDUN | E22: =VLOOKUP($C22,'RECAP SECT'!$G$6:$EV$253,3,FALSE) -> 64.9 | F22: =VLOOKUP($C22,'RECAP SECT'!$G$6:$EV$253,74,FALSE) -> 266.38 | G22: =VLOOKUP($C22,'RECAP SECT'!$G$6:$EV$253,75,FALSE) -> 16% | H22: =VLOOKUP($C22,'RECAP SECT'!$G$6:$EV$253,76,FALSE) -> 3 | I22: =VLOOKUP($C22,'RECAP SECT'!$G$6:$EV$253,77,FALSE) -> 90% | J22: =VLOOKUP($C22,'RECAP SECT'!$G$6:$EV$253,78,FALSE) -> 8% | K22: =VLOOKUP($C22,'RECAP SECT'!$G$6:$EV$253,79,FALSE) -> 13 | L22: =VLOOKUP($C22,'RECAP SECT'!$G$6:$EV$253,80,FALSE) -> 47% | M22: =VLOOKUP($C22,'RECAP SECT'!$G$6:$EV$253,81,FALSE) -> 17% | N22: =VLOOKUP($C22,'RECAP SECT'!$G$6:$EV$253,82,FALSE) -> 9 | O22: =VLOOKUP($C22,'RECAP SECT'!$G$6:$EV$253,83,FALSE) -> 77% | P22: =VLOOKUP($C22,'RECAP SECT'!$G$6:$EV$253,84,FALSE) -> 9% | Q22: =VLOOKUP($C22,'RECAP SECT'!$G$6:$EV$253,85,FALSE) -> 4 | R22: =VLOOKUP($C22,'RECAP SECT'!$G$6:$EV$253,86,FALSE) -> 88% | S22: =VLOOKUP($C22,'RECAP SECT'!$G$6:$EV$253,87,FALSE) -> 4% | T22: =VLOOKUP($C22,'RECAP SECT'!$G$6:$EV$253,88,FALSE) -> 4 | U22: =VLOOKUP($C22,'RECAP SECT'!$G$6:$EV$253,89,FALSE) -> 31% | V22: =VLOOKUP($C22,'RECAP SECT'!$G$6:$EV$253,90,FALSE) -> 67% | W22: =VLOOKUP($C22,'RECAP SECT'!$G$6:$EV$253,91,FALSE) -> 17 | X22: =VLOOKUP($C22,'RECAP SECT'!$G$6:$EV$253,92,FALSE) -> 23% | Y22: =VLOOKUP($C22,'RECAP SECT'!$G$6:$EV$253,93,FALSE) -> 15% | Z22: =VLOOKUP($C22,'RECAP SECT'!$G$6:$EV$253,94,FALSE) -> 10
A23: 160 | B23: MOSELLE | C23: 45 | D23: METZ | E23: =VLOOKUP($C23,'RECAP SECT'!$G$6:$EV$253,3,FALSE) -> 104.2 | F23: =VLOOKUP($C23,'RECAP SECT'!$G$6:$EV$253,74,FALSE) -> 246.35 | G23: =VLOOKUP($C23,'RECAP SECT'!$G$6:$EV$253,75,FALSE) -> 23% | H23: =VLOOKUP($C23,'RECAP SECT'!$G$6:$EV$253,76,FALSE) -> 7 | I23: =VLOOKUP($C23,'RECAP SECT'!$G$6:$EV$253,77,FALSE) -> 95% | J23: =VLOOKUP($C23,'RECAP SECT'!$G$6:$EV$253,78,FALSE) -> 3% | K23: =VLOOKUP($C23,'RECAP SECT'!$G$6:$EV$253,79,FALSE) -> 9 | L23: =VLOOKUP($C23,'RECAP SECT'!$G$6:$EV$253,80,FALSE) -> 48% | M23: =VLOOKUP($C23,'RECAP SECT'!$G$6:$EV$253,81,FALSE) -> 14% | N23: =VLOOKUP($C23,'RECAP SECT'!$G$6:$EV$253,82,FALSE) -> 6 | O23: =VLOOKUP($C23,'RECAP SECT'!$G$6:$EV$253,83,FALSE) -> 61% | P23: =VLOOKUP($C23,'RECAP SECT'!$G$6:$EV$253,84,FALSE) -> 28% | Q23: =VLOOKUP($C23,'RECAP SECT'!$G$6:$EV$253,85,FALSE) -> 17 | R23: =VLOOKUP($C23,'RECAP SECT'!$G$6:$EV$253,86,FALSE) -> 87% | S23: =VLOOKUP($C23,'RECAP SECT'!$G$6:$EV$253,87,FALSE) -> 6% | T23: =VLOOKUP($C23,'RECAP SECT'!$G$6:$EV$253,88,FALSE) -> 8 | U23: =VLOOKUP($C23,'RECAP SECT'!$G$6:$EV$253,89,FALSE) -> 34% | V23: =VLOOKUP($C23,'RECAP SECT'!$G$6:$EV$253,90,FALSE) -> 64% | W23: =VLOOKUP($C23,'RECAP SECT'!$G$6:$EV$253,91,FALSE) -> 14 | X23: =VLOOKUP($C23,'RECAP SECT'!$G$6:$EV$253,92,FALSE) -> 25% | Y23: =VLOOKUP($C23,'RECAP SECT'!$G$6:$EV$253,93,FALSE) -> 17% | Z23: =VLOOKUP($C23,'RECAP SECT'!$G$6:$EV$253,94,FALSE) -> 14
A24: 160 | B24: MOSELLE | C24: 42 | D24: MOSELLE EST | E24: =VLOOKUP($C24,'RECAP SECT'!$G$6:$EV$253,3,FALSE) -> 86.0 | F24: =VLOOKUP($C24,'RECAP SECT'!$G$6:$EV$253,74,FALSE) -> 228.92 | G24: =VLOOKUP($C24,'RECAP SECT'!$G$6:$EV$253,75,FALSE) -> 28% | H24: =VLOOKUP($C24,'RECAP SECT'!$G$6:$EV$253,76,FALSE) -> 13 | I24: =VLOOKUP($C24,'RECAP SECT'!$G$6:$EV$253,77,FALSE) -> 96% | J24: =VLOOKUP($C24,'RECAP SECT'!$G$6:$EV$253,78,FALSE) -> 2% | K24: =VLOOKUP($C24,'RECAP SECT'!$G$6:$EV$253,79,FALSE) -> 5 | L24: =VLOOKUP($C24,'RECAP SECT'!$G$6:$EV$253,80,FALSE) -> 44% | M24: =VLOOKUP($C24,'RECAP SECT'!$G$6:$EV$253,81,FALSE) -> 22% | N24: =VLOOKUP($C24,'RECAP SECT'!$G$6:$EV$253,82,FALSE) -> 13 | O24: =VLOOKUP($C24,'RECAP SECT'!$G$6:$EV$253,83,FALSE) -> 76% | P24: =VLOOKUP($C24,'RECAP SECT'!$G$6:$EV$253,84,FALSE) -> 10% | Q24: =VLOOKUP($C24,'RECAP SECT'!$G$6:$EV$253,85,FALSE) -> 5 | R24: =VLOOKUP($C24,'RECAP SECT'!$G$6:$EV$253,86,FALSE) -> 74% | S24: =VLOOKUP($C24,'RECAP SECT'!$G$6:$EV$253,87,FALSE) -> 19% | T24: =VLOOKUP($C24,'RECAP SECT'!$G$6:$EV$253,88,FALSE) -> 17 | U24: =VLOOKUP($C24,'RECAP SECT'!$G$6:$EV$253,89,FALSE) -> 50% | V24: =VLOOKUP($C24,'RECAP SECT'!$G$6:$EV$253,90,FALSE) -> 48% | W24: =VLOOKUP($C24,'RECAP SECT'!$G$6:$EV$253,91,FALSE) -> 11 | X24: =VLOOKUP($C24,'RECAP SECT'!$G$6:$EV$253,92,FALSE) -> 24% | Y24: =VLOOKUP($C24,'RECAP SECT'!$G$6:$EV$253,93,FALSE) -> 16% | Z24: =VLOOKUP($C24,'RECAP SECT'!$G$6:$EV$253,94,FALSE) -> 13
A25: 160 | B25: MOSELLE | C25: 44 | D25: MOSELLE NORD | E25: =VLOOKUP($C25,'RECAP SECT'!$G$6:$EV$253,3,FALSE) -> 80.5 | F25: =VLOOKUP($C25,'RECAP SECT'!$G$6:$EV$253,74,FALSE) -> 261.74 | G25: =VLOOKUP($C25,'RECAP SECT'!$G$6:$EV$253,75,FALSE) -> 18% | H25: =VLOOKUP($C25,'RECAP SECT'!$G$6:$EV$253,76,FALSE) -> 4 | I25: =VLOOKUP($C25,'RECAP SECT'!$G$6:$EV$253,77,FALSE) -> 96% | J25: =VLOOKUP($C25,'RECAP SECT'!$G$6:$EV$253,78,FALSE) -> 2% | K25: =VLOOKUP($C25,'RECAP SECT'!$G$6:$EV$253,79,FALSE) -> 4 | L25: =VLOOKUP($C25,'RECAP SECT'!$G$6:$EV$253,80,FALSE) -> 41% | M25: =VLOOKUP($C25,'RECAP SECT'!$G$6:$EV$253,81,FALSE) -> 26% | N25: =VLOOKUP($C25,'RECAP SECT'!$G$6:$EV$253,82,FALSE) -> 15 | O25: =VLOOKUP($C25,'RECAP SECT'!$G$6:$EV$253,83,FALSE) -> 65% | P25: =VLOOKUP($C25,'RECAP SECT'!$G$6:$EV$253,84,FALSE) -> 23% | Q25: =VLOOKUP($C25,'RECAP SECT'!$G$6:$EV$253,85,FALSE) -> 13 | R25: =VLOOKUP($C25,'RECAP SECT'!$G$6:$EV$253,86,FALSE) -> 91% | S25: =VLOOKUP($C25,'RECAP SECT'!$G$6:$EV$253,87,FALSE) -> 1% | T25: =VLOOKUP($C25,'RECAP SECT'!$G$6:$EV$253,88,FALSE) -> 2 | U25: =VLOOKUP($C25,'RECAP SECT'!$G$6:$EV$253,89,FALSE) -> 18% | V25: =VLOOKUP($C25,'RECAP SECT'!$G$6:$EV$253,90,FALSE) -> 81% | W25: =VLOOKUP($C25,'RECAP SECT'!$G$6:$EV$253,91,FALSE) -> 18 | X25: =VLOOKUP($C25,'RECAP SECT'!$G$6:$EV$253,92,FALSE) -> 28% | Y25: =VLOOKUP($C25,'RECAP SECT'!$G$6:$EV$253,93,FALSE) -> 20% | Z25: =VLOOKUP($C25,'RECAP SECT'!$G$6:$EV$253,94,FALSE) -> 16
A26: 80 | B26: VOSGES | C26: 57 | D26: EPINAL | E26: =VLOOKUP($C26,'RECAP SECT'!$G$6:$EV$253,3,FALSE) -> 68.7 | F26: =VLOOKUP($C26,'RECAP SECT'!$G$6:$EV$253,74,FALSE) -> 213.71 | G26: =VLOOKUP($C26,'RECAP SECT'!$G$6:$EV$253,75,FALSE) -> 33% | H26: =VLOOKUP($C26,'RECAP SECT'!$G$6:$EV$253,76,FALSE) -> 14 | I26: =VLOOKUP($C26,'RECAP SECT'!$G$6:$EV$253,77,FALSE) -> 95% | J26: =VLOOKUP($C26,'RECAP SECT'!$G$6:$EV$253,78,FALSE) -> 3% | K26: =VLOOKUP($C26,'RECAP SECT'!$G$6:$EV$253,79,FALSE) -> 10 | L26: =VLOOKUP($C26,'RECAP SECT'!$G$6:$EV$253,80,FALSE) -> 46% | M26: =VLOOKUP($C26,'RECAP SECT'!$G$6:$EV$253,81,FALSE) -> 18% | N26: =VLOOKUP($C26,'RECAP SECT'!$G$6:$EV$253,82,FALSE) -> 11 | O26: =VLOOKUP($C26,'RECAP SECT'!$G$6:$EV$253,83,FALSE) -> 71% | P26: =VLOOKUP($C26,'RECAP SECT'!$G$6:$EV$253,84,FALSE) -> 16% | Q26: =VLOOKUP($C26,'RECAP SECT'!$G$6:$EV$253,85,FALSE) -> 9 | R26: =VLOOKUP($C26,'RECAP SECT'!$G$6:$EV$253,86,FALSE) -> 87% | S26: =VLOOKUP($C26,'RECAP SECT'!$G$6:$EV$253,87,FALSE) -> 6% | T26: =VLOOKUP($C26,'RECAP SECT'!$G$6:$EV$253,88,FALSE) -> 7 | U26: =VLOOKUP($C26,'RECAP SECT'!$G$6:$EV$253,89,FALSE) -> 53% | V26: =VLOOKUP($C26,'RECAP SECT'!$G$6:$EV$253,90,FALSE) -> 44% | W26: =VLOOKUP($C26,'RECAP SECT'!$G$6:$EV$253,91,FALSE) -> 9 | X26: =VLOOKUP($C26,'RECAP SECT'!$G$6:$EV$253,92,FALSE) -> 22% | Y26: =VLOOKUP($C26,'RECAP SECT'!$G$6:$EV$253,93,FALSE) -> 14% | Z26: =VLOOKUP($C26,'RECAP SECT'!$G$6:$EV$253,94,FALSE) -> 9
A27: 80 | B27: VOSGES | C27: 55 | D27: SAINT DIE | E27: =VLOOKUP($C27,'RECAP SECT'!$G$6:$EV$253,3,FALSE) -> 57.9 | F27: =VLOOKUP($C27,'RECAP SECT'!$G$6:$EV$253,74,FALSE) -> 247.09 | G27: =VLOOKUP($C27,'RECAP SECT'!$G$6:$EV$253,75,FALSE) -> 22% | H27: =VLOOKUP($C27,'RECAP SECT'!$G$6:$EV$253,76,FALSE) -> 6 | I27: =VLOOKUP($C27,'RECAP SECT'!$G$6:$EV$253,77,FALSE) -> 98% | J27: =VLOOKUP($C27,'RECAP SECT'!$G$6:$EV$253,78,FALSE) -> 0% | K27: =VLOOKUP($C27,'RECAP SECT'!$G$6:$EV$253,79,FALSE) -> 1 | L27: =VLOOKUP($C27,'RECAP SECT'!$G$6:$EV$253,80,FALSE) -> 46% | M27: =VLOOKUP($C27,'RECAP SECT'!$G$6:$EV$253,81,FALSE) -> 18% | N27: =VLOOKUP($C27,'RECAP SECT'!$G$6:$EV$253,82,FALSE) -> 10 | O27: =VLOOKUP($C27,'RECAP SECT'!$G$6:$EV$253,83,FALSE) -> 78% | P27: =VLOOKUP($C27,'RECAP SECT'!$G$6:$EV$253,84,FALSE) -> 8% | Q27: =VLOOKUP($C27,'RECAP SECT'!$G$6:$EV$253,85,FALSE) -> 3 | R27: =VLOOKUP($C27,'RECAP SECT'!$G$6:$EV$253,86,FALSE) -> 84% | S27: =VLOOKUP($C27,'RECAP SECT'!$G$6:$EV$253,87,FALSE) -> 9% | T27: =VLOOKUP($C27,'RECAP SECT'!$G$6:$EV$253,88,FALSE) -> 9 | U27: =VLOOKUP($C27,'RECAP SECT'!$G$6:$EV$253,89,FALSE) -> 88% | V27: =VLOOKUP($C27,'RECAP SECT'!$G$6:$EV$253,90,FALSE) -> 8% | W27: =VLOOKUP($C27,'RECAP SECT'!$G$6:$EV$253,91,FALSE) -> 2 | X27: =VLOOKUP($C27,'RECAP SECT'!$G$6:$EV$253,92,FALSE) -> 12% | Y27: =VLOOKUP($C27,'RECAP SECT'!$G$6:$EV$253,93,FALSE) -> 4% | Z27: =VLOOKUP($C27,'RECAP SECT'!$G$6:$EV$253,94,FALSE) -> 2
A28: Total CEGEE Directions Régionales | E28: =SUM(E10:E27) -> 1368

Sheet SE_IARD
A1: Accueil | F1: BAROMETRE BDD - TERRITOIRES
F2: IARD PREVOYANCE
F3: =ACCUEIL!H7 -> 2019-06-30
F7: Ventes nettes IARD (AUTO+MRH+Pro) | I7: Ventes nettes Prévoyance | L7: Chiffre d'affaires IARD | O7: Total IARD Prévoyance
G8: coef | H8: ='RECAP DIRCOM'!DE4 -> 7% | J8: coef | K8: ='RECAP DIRCOM'!DH4 -> 7% | M8: coef | N8: ='RECAP DIRCOM'!DK4 -> 6% | P8: coef | Q8: ='RECAP DIRCOM'!DN4 -> 20%
A9: eds | B9: Direction | C9: eds | D9: Territoire | E9: ETP perf | F9: Nb / ETP | G9: % Ecart au 1er | H9: Rang | I9: Nb / ETP | J9: % Ecart au 1er | K9: Rang | L9: Nb / ETP | M9: % Ecart au 1er | N9: Rang | O9: Moyenne ecart au 1er | P9: % Ecart au 1er | Q9: Rang CEGEE
A10: 50 | B10: AUBE HAUTE MARNE | C10: 21 | D10: CHAUMONT | E10: =VLOOKUP($C10,'RECAP SECT'!$G$6:$EV$253,3,FALSE) -> 46.7 | F10: =VLOOKUP($C10,'RECAP SECT'!$G$6:$EV$253,101,FALSE) -> 6.72 | G10: =VLOOKUP($C10,'RECAP SECT'!$G$6:$EV$253,102,FALSE) -> 23% | H10: =VLOOKUP($C10,'RECAP SECT'!$G$6:$EV$253,103,FALSE) -> 3 | I10: =VLOOKUP($C10,'RECAP SECT'!$G$6:$EV$253,104,FALSE) -> 12.56 | J10: =VLOOKUP($C10,'RECAP SECT'!$G$6:$EV$253,105,FALSE) -> 8% | K10: =VLOOKUP($C10,'RECAP SECT'!$G$6:$EV$253,106,FALSE) -> 4 | L10: =VLOOKUP($C10,'RECAP SECT'!$G$6:$EV$253,107,FALSE) -> 7.66 | M10: =VLOOKUP($C10,'RECAP SECT'!$G$6:$EV$253,108,FALSE) -> 14% | N10: =VLOOKUP($C10,'RECAP SECT'!$G$6:$EV$253,109,FALSE) -> 6 | O10: =VLOOKUP($C10,'RECAP SECT'!$G$6:$EV$253,110,FALSE) -> 15% | P10: =VLOOKUP($C10,'RECAP SECT'!$G$6:$EV$253,111,FALSE) -> 13% | Q10: =VLOOKUP($C10,'RECAP SECT'!$G$6:$EV$253,112,FALSE) -> 2
A11: 50 | B11: AUBE HAUTE MARNE | C11: 14 | D11: TROYES | E11: =VLOOKUP($C11,'RECAP SECT'!$G$6:$EV$253,3,FALSE) -> 78.6 | F11: =VLOOKUP($C11,'RECAP SECT'!$G$6:$EV$253,101,FALSE) -> 4.54 | G11: =VLOOKUP($C11,'RECAP SECT'!$G$6:$EV$253,102,FALSE) -> 48% | H11: =VLOOKUP($C11,'RECAP SECT'!$G$6:$EV$253,103,FALSE) -> 16 | I11: =VLOOKUP($C11,'RECAP SECT'!$G$6:$EV$253,104,FALSE) -> 6.30 | J11: =VLOOKUP($C11,'RECAP SECT'!$G$6:$EV$253,105,FALSE) -> 54% | K11: =VLOOKUP($C11,'RECAP SECT'!$G$6:$EV$253,106,FALSE) -> 15 | L11: =VLOOKUP($C11,'RECAP SECT'!$G$6:$EV$253,107,FALSE) -> 5.61 | M11: =VLOOKUP($C11,'RECAP SECT'!$G$6:$EV$253,108,FALSE) -> 37% | N11: =VLOOKUP($C11,'RECAP SECT'!$G$6:$EV$253,109,FALSE) -> 18 | O11: =VLOOKUP($C11,'RECAP SECT'!$G$6:$EV$253,110,FALSE) -> 47% | P11: =VLOOKUP($C11,'RECAP SECT'!$G$6:$EV$253,111,FALSE) -> 45% | Q11: =VLOOKUP($C11,'RECAP SECT'!$G$6:$EV$253,112,FALSE) -> 17
A12: 262 | B12: BAS-RHIN | C12: 5060 | D12: HAGUENAU | E12: =VLOOKUP($C12,'RECAP SECT'!$G$6:$EV$253,3,FALSE) -> 88.8 | F12: =VLOOKUP($C12,'RECAP SECT'!$G$6:$EV$253,101,FALSE) -> 5.75 | G12: =VLOOKUP($C12,'RECAP SECT'!$G$6:$EV$253,102,FALSE) -> 34% | H12: =VLOOKUP($C12,'RECAP SECT'!$G$6:$EV$253,103,FALSE) -> 10 | I12: =VLOOKUP($C12,'RECAP SECT'!$G$6:$EV$253,104,FALSE) -> 7.27 | J12: =VLOOKUP($C12,'RECAP SECT'!$G$6:$EV$253,105,FALSE) -> 46% | K12: =VLOOKUP($C12,'RECAP SECT'!$G$6:$EV$253,106,FALSE) -> 8 | L12: =VLOOKUP($C12,'RECAP SECT'!$G$6:$EV$253,107,FALSE) -> 7.95 | M12: =VLOOKUP($C12,'RECAP SECT'!$G$6:$EV$253,108,FALSE) -> 11% | N12: =VLOOKUP($C12,'RECAP SECT'!$G$6:$EV$253,109,FALSE) -> 2 | O12: =VLOOKUP($C12,'RECAP SECT'!$G$6:$EV$253,110,FALSE) -> 31% | P12: =VLOOKUP($C12,'RECAP SECT'!$G$6:$EV$253,111,FALSE) -> 29% | Q12: =VLOOKUP($C12,'RECAP SECT'!$G$6:$EV$253,112,FALSE) -> 8
A13: 262 | B13: BAS-RHIN | C13: 5101 | D13: SELESTAT | E13: =VLOOKUP($C13,'RECAP SECT'!$G$6:$EV$253,3,FALSE) -> 75.2 | F13: =VLOOKUP($C13,'RECAP SECT'!$G$6:$EV$253,101,FALSE) -> 4.85 | G13: =VLOOKUP($C13,'RECAP SECT'!$G$6:$EV$253,102,FALSE) -> 44% | H13: =VLOOKUP($C13,'RECAP SECT'!$G$6:$EV$253,103,FALSE) -> 13 | I13: =VLOOKUP($C13,'RECAP SECT'!$G$6:$EV$253,104,FALSE) -> 6.73 | J13: =VLOOKUP($C13,'RECAP SECT'!$G$6:$EV$253,105,FALSE) -> 50% | K13: =VLOOKUP($C13,'RECAP SECT'!$G$6:$EV$253,106,FALSE) -> 11 | L13: =VLOOKUP($C13,'RECAP SECT'!$G$6:$EV$253,107,FALSE) -> 6.99 | M13: =VLOOKUP($C13,'RECAP SECT'!$G$6:$EV$253,108,FALSE) -> 21% | N13: =VLOOKUP($C13,'RECAP SECT'!$G$6:$EV$253,109,FALSE) -> 13 | O13: =VLOOKUP($C13,'RECAP SECT'!$G$6:$EV$253,110,FALSE) -> 39% | P13: =VLOOKUP($C13,'RECAP SECT'!$G$6:$EV$253,111,FALSE) -> 38% | Q13: =VLOOKUP($C13,'RECAP SECT'!$G$6:$EV$253,112,FALSE) -> 13
A14: 262 | B14: BAS-RHIN | C14: 5006 | D14: STRASBOURG | E14: =VLOOKUP($C14,'RECAP SECT'!$G$6:$EV$253,3,FALSE) -> 91.8 | F14: =VLOOKUP($C14,'RECAP SECT'!$G$6:$EV$253,101,FALSE) -> 3.26 | G14: =VLOOKUP($C14,'RECAP SECT'!$G$6:$EV$253,102,FALSE) -> 62% | H14: =VLOOKUP($C14,'RECAP SECT'!$G$6:$EV$253,103,FALSE) -> 18 | I14: =VLOOKUP($C14,'RECAP SECT'!$G$6:$EV$253,104,FALSE) -> 4.91 | J14: =VLOOKUP($C14,'RECAP SECT'!$G$6:$EV$253,105,FALSE) -> 64% | K14: =VLOOKUP($C14,'RECAP SECT'!$G$6:$EV$253,106,FALSE) -> 17 | L14: =VLOOKUP($C14,'RECAP SECT'!$G$6:$EV$253,107,FALSE) -> 5.80 | M14: =VLOOKUP($C14,'RECAP SECT'!$G$6:$EV$253,108,FALSE) -> 35% | N14: =VLOOKUP($C14,'RECAP SECT'!$G$6:$EV$253,109,FALSE) -> 17 | O14: =VLOOKUP($C14,'RECAP SECT'!$G$6:$EV$253,110,FALSE) -> 55% | P14: =VLOOKUP($C14,'RECAP SECT'!$G$6:$EV$253,111,FALSE) -> 53% | Q14: =VLOOKUP($C14,'RECAP SECT'!$G$6:$EV$253,112,FALSE) -> 18
A15: 264 | B15: HAUT-RHIN | C15: 5130 | D15: COLMAR | E15: =VLOOKUP($C15,'RECAP SECT'!$G$6:$EV$253,3,FALSE) -> 76.9 | F15: =VLOOKUP($C15,'RECAP SECT'!$G$6:$EV$253,101,FALSE) -> 4.11 | G15: =VLOOKUP($C15,'RECAP SECT'!$G$6:$EV$253,102,FALSE) -> 53% | H15: =VLOOKUP($C15,'RECAP SECT'!$G$6:$EV$253,103,FALSE) -> 17 | I15: =VLOOKUP($C15,'RECAP SECT'!$G$6:$EV$253,104,FALSE) -> 6.66 | J15: =VLOOKUP($C15,'RECAP SECT'!$G$6:$EV$253,105,FALSE) -> 51% | K15: =VLOOKUP($C15,'RECAP SECT'!$G$6:$EV$253,106,FALSE) -> 13 | L15: =VLOOKUP($C15,'RECAP SECT'!$G$6:$EV$253,107,FALSE) -> 6.81 | M15: =VLOOKUP($C15,'RECAP SECT'!$G$6:$EV$253,108,FALSE) -> 23% | N15: =VLOOKUP($C15,'RECAP SECT'!$G$6:$EV$253,109,FALSE) -> 14 | O15: =VLOOKUP($C15,'RECAP SECT'!$G$6:$EV$253,110,FALSE) -> 43% | P15: =VLOOKUP($C15,'RECAP SECT'!$G$6:$EV$253,111,FALSE) -> 42% | Q15: =VLOOKUP($C15,'RECAP SECT'!$G$6:$EV$253,112,FALSE) -> 15
A16: 264 | B16: HAUT-RHIN | C16: 5169 | D16: MULHOUSE | E16: =VLOOKUP($C16,'RECAP SECT'!$G$6:$EV$253,3,FALSE) -> 77.8 | F16: =VLOOKUP($C16,'RECAP SECT'!$G$6:$EV$253,101,FALSE) -> 4.94 | G16: =VLOOKUP($C16,'RECAP SECT'!$G$6:$EV$253,102,FALSE) -> 43% | H16: =VLOOKUP($C16,'RECAP SECT'!$G$6:$EV$253,103,FALSE) -> 12 | I16: =VLOOKUP($C16,'RECAP SECT'!$G$6:$EV$253,104,FALSE) -> 3.41 | J16: =VLOOKUP($C16,'RECAP SECT'!$G$6:$EV$253,105,FALSE) -> 75% | K16: =VLOOKUP($C16,'RECAP SECT'!$G$6:$EV$253,106,FALSE) -> 18 | L16: =VLOOKUP($C16,'RECAP SECT'!$G$6:$EV$253,107,FALSE) -> 7.51 | M16: =VLOOKUP($C16,'RECAP SECT'!$G$6:$EV$253,108,FALSE) -> 15% | N16: =VLOOKUP($C16,'RECAP SECT'!$G$6:$EV$253,109,FALSE) -> 10 | O16: =VLOOKUP($C16,'RECAP SECT'!$G$6:$EV$253,110,FALSE) -> 46% | P16: =VLOOKUP($C16,'RECAP SECT'!$G$6:$EV$253,111,FALSE) -> 44% | Q16: =VLOOKUP($C16,'RECAP SECT'!$G$6:$EV$253,112,FALSE) -> 16
A17: 30 | B17: MARNE-ARDENNES | C17: 6 | D17: CHALONS EN CHAMPAGNE | E17: =VLOOKUP($C17,'RECAP SECT'!$G$6:$EV$253,3,FALSE) -> 49.0 | F17: =VLOOKUP($C17,'RECAP SECT'!$G$6:$EV$253,101,FALSE) -> 5.90 | G17: =VLOOKUP($C17,'RECAP SECT'!$G$6:$EV$253,102,FALSE) -> 32% | H17: =VLOOKUP($C17,'RECAP SECT'!$G$6:$EV$253,103,FALSE) -> 8 | I17: =VLOOKUP($C17,'RECAP SECT'!$G$6:$EV$253,104,FALSE) -> 13.59 | J17: =VLOOKUP($C17,'RECAP SECT'!$G$6:$EV$253,105,FALSE) -> 0% | K17: =VLOOKUP($C17,'RECAP SECT'!$G$6:$EV$253,106,FALSE) -> 1 | L17: =VLOOKUP($C17,'RECAP SECT'!$G$6:$EV$253,107,FALSE) -> 7.61 | M17: =VLOOKUP($C17,'RECAP SECT'!$G$6:$EV$253,108,FALSE) -> 14% | N17: =VLOOKUP($C17,'RECAP SECT'!$G$6:$EV$253,109,FALSE) -> 9 | O17: =VLOOKUP($C17,'RECAP SECT'!$G$6:$EV$253,110,FALSE) -> 16% | P17: =VLOOKUP($C17,'RECAP SECT'!$G$6:$EV$253,111,FALSE) -> 14% | Q17: =VLOOKUP($C17,'RECAP SECT'!$G$6:$EV$253,112,FALSE) -> 3
A18: 30 | B18: MARNE-ARDENNES | C18: 2 | D18: CHARLEVILLE MEZIERES | E18: =VLOOKUP($C18,'RECAP SECT'!$G$6:$EV$253,3,FALSE) -> 63.1 | F18: =VLOOKUP($C18,'RECAP SECT'!$G$6:$EV$253,101,FALSE) -> 8.67 | G18: =VLOOKUP($C18,'RECAP SECT'!$G$6:$EV$253,102,FALSE) -> 0% | H18: =VLOOKUP($C18,'RECAP SECT'!$G$6:$EV$253,103,FALSE) -> 1 | I18: =VLOOKUP($C18,'RECAP SECT'!$G$6:$EV$253,104,FALSE) -> 12.91 | J18: =VLOOKUP($C18,'RECAP SECT'!$G$6:$EV$253,105,FALSE) -> 5% | K18: =VLOOKUP($C18,'RECAP SECT'!$G$6:$EV$253,106,FALSE) -> 2 | L18: =VLOOKUP($C18,'RECAP SECT'!$G$6:$EV$253,107,FALSE) -> 8.88 | M18: =VLOOKUP($C18,'RECAP SECT'!$G$6:$EV$253,108,FALSE) -> 0% | N18: =VLOOKUP($C18,'RECAP SECT'!$G$6:$EV$253,109,FALSE) -> 1 | O18: =VLOOKUP($C18,'RECAP SECT'!$G$6:$EV$253,110,FALSE) -> 2% | P18: =VLOOKUP($C18,'RECAP SECT'!$G$6:$EV$253,111,FALSE) -> 0% | Q18: =VLOOKUP($C18,'RECAP SECT'!$G$6:$EV$253,112,FALSE) -> 1
A19: 30 | B19: MARNE-ARDENNES | C19: 11 | D19: REIMS | E19: =VLOOKUP($C19,'RECAP SECT'!$G$6:$EV$253,3,FALSE) -> 90.6 | F19: =VLOOKUP($C19,'RECAP SECT'!$G$6:$EV$253,101,FALSE) -> 6.54 | G19: =VLOOKUP($C19,'RECAP SECT'!$G$6:$EV$253,102,FALSE) -> 25% | H19: =VLOOKUP($C19,'RECAP SECT'!$G$6:$EV$253,103,FALSE) -> 5 | I19: =VLOOKUP($C19,'RECAP SECT'!$G$6:$EV$253,104,FALSE) -> 12.83 | J19: =VLOOKUP($C19,'RECAP SECT'!$G$6:$EV$253,105,FALSE) -> 6% | K19: =VLOOKUP($C19,'RECAP SECT'!$G$6:$EV$253,106,FALSE) -> 3 | L19: =VLOOKUP($C19,'RECAP SECT'!$G$6:$EV$253,107,FALSE) -> 6.54 | M19: =VLOOKUP($C19,'RECAP SECT'!$G$6:$EV$253,108,FALSE) -> 26% | N19: =VLOOKUP($C19,'RECAP SECT'!$G$6:$EV$253,109,FALSE) -> 15 | O19: =VLOOKUP($C19,'RECAP SECT'!$G$6:$EV$253,110,FALSE) -> 18% | P19: =VLOOKUP($C19,'RECAP SECT'!$G$6:$EV$253,111,FALSE) -> 17% | Q19: =VLOOKUP($C19,'RECAP SECT'!$G$6:$EV$253,112,FALSE) -> 4
A20: 110 | B20: MEURTHE ET MOSELLE MEUSE | C20: 26 | D20: NANCY | E20: =VLOOKUP($C20,'RECAP SECT'!$G$6:$EV$253,3,FALSE) -> 79.5 | F20: =VLOOKUP($C20,'RECAP SECT'!$G$6:$EV$253,101,FALSE) -> 7.29 | G20: =VLOOKUP($C20,'RECAP SECT'!$G$6:$EV$253,102,FALSE) -> 16% | H20: =VLOOKUP($C20,'RECAP SECT'!$G$6:$EV$253,103,FALSE) -> 2 | I20: =VLOOKUP($C20,'RECAP SECT'!$G$6:$EV$253,104,FALSE) -> 6.66 | J20: =VLOOKUP($C20,'RECAP SECT'!$G$6:$EV$253,105,FALSE) -> 51% | K20: =VLOOKUP($C20,'RECAP SECT'!$G$6:$EV$253,106,FALSE) -> 12 | L20: =VLOOKUP($C20,'RECAP SECT'!$G$6:$EV$253,107,FALSE) -> 7.66 | M20: =VLOOKUP($C20,'RECAP SECT'!$G$6:$EV$253,108,FALSE) -> 14% | N20: =VLOOKUP($C20,'RECAP SECT'!$G$6:$EV$253,109,FALSE) -> 5 | O20: =VLOOKUP($C20,'RECAP SECT'!$G$6:$EV$253,110,FALSE) -> 28% | P20: =VLOOKUP($C20,'RECAP SECT'!$G$6:$EV$253,111,FALSE) -> 26% | Q20: =VLOOKUP($C20,'RECAP SECT'!$G$6:$EV$253,112,FALSE) -> 6
A21: 110 | B21: MEURTHE ET MOSELLE MEUSE | C21: 27 | D21: PONT A MOUSSON | E21: =VLOOKUP($C21,'RECAP SECT'!$G$6:$EV$253,3,FALSE) -> 88.0 | F21: =VLOOKUP($C21,'RECAP SECT'!$G$6:$EV$253,101,FALSE) -> 6.27 | G21: =VLOOKUP($C21,'RECAP SECT'!$G$6:$EV$253,102,FALSE) -> 28% | H21: =VLOOKUP($C21,'RECAP SECT'!$G$6:$EV$253,103,FALSE) -> 6 | I21: =VLOOKUP($C21,'RECAP SECT'!$G$6:$EV$253,104,FALSE) -> 7.19 | J21: =VLOOKUP($C21,'RECAP SECT'!$G$6:$EV$253,105,FALSE) -> 47% | K21: =VLOOKUP($C21,'RECAP SECT'!$G$6:$EV$253,106,FALSE) -> 10 | L21: =VLOOKUP($C21,'RECAP SECT'!$G$6:$EV$253,107,FALSE) -> 7.72 | M21: =VLOOKUP($C21,'RECAP SECT'!$G$6:$EV$253,108,FALSE) -> 13% | N21: =VLOOKUP($C21,'RECAP SECT'!$G$6:$EV$253,109,FALSE) -> 4 | O21: =VLOOKUP($C21,'RECAP SECT'!$G$6:$EV$253,110,FALSE) -> 30% | P21: =VLOOKUP($C21,'RECAP SECT'!$G$6:$EV$253,111,FALSE) -> 28% | Q21: =VLOOKUP($C21,'RECAP SECT'!$G$6:$EV$253,112,FALSE) -> 7
A22: 110 | B22: MEURTHE ET MOSELLE MEUSE | C22: 31 | D22: VERDUN | E22: =VLOOKUP($C22,'RECAP SECT'!$G$6:$EV$253,3,FALSE) -> 64.9 | F22: =VLOOKUP($C22,'RECAP SECT'!$G$6:$EV$253,101,FALSE) -> 4.58 | G22: =VLOOKUP($C22,'RECAP SECT'!$G$6:$EV$253,102,FALSE) -> 47% | H22: =VLOOKUP($C22,'RECAP SECT'!$G$6:$EV$253,103,FALSE) -> 14 | I22: =VLOOKUP($C22,'RECAP SECT'!$G$6:$EV$253,104,FALSE) -> 6.46 | J22: =VLOOKUP($C22,'RECAP SECT'!$G$6:$EV$253,105,FALSE) -> 52% | K22: =VLOOKUP($C22,'RECAP SECT'!$G$6:$EV$253,106,FALSE) -> 14 | L22: =VLOOKUP($C22,'RECAP SECT'!$G$6:$EV$253,107,FALSE) -> 7.20 | M22: =VLOOKUP($C22,'RECAP SECT'!$G$6:$EV$253,108,FALSE) -> 19% | N22: =VLOOKUP($C22,'RECAP SECT'!$G$6:$EV$253,109,FALSE) -> 12 | O22: =VLOOKUP($C22,'RECAP SECT'!$G$6:$EV$253,110,FALSE) -> 41% | P22: =VLOOKUP($C22,'RECAP SECT'!$G$6:$EV$253,111,FALSE) -> 39% | Q22: =VLOOKUP($C22,'RECAP SECT'!$G$6:$EV$253,112,FALSE) -> 14
A23: 160 | B23: MOSELLE | C23: 45 | D23: METZ | E23: =VLOOKUP($C23,'RECAP SECT'!$G$6:$EV$253,3,FALSE) -> 104.2 | F23: =VLOOKUP($C23,'RECAP SECT'!$G$6:$EV$253,101,FALSE) -> 5.79 | G23: =VLOOKUP($C23,'RECAP SECT'!$G$6:$EV$253,102,FALSE) -> 33% | H23: =VLOOKUP($C23,'RECAP SECT'!$G$6:$EV$253,103,FALSE) -> 9 | I23: =VLOOKUP($C23,'RECAP SECT'!$G$6:$EV$253,104,FALSE) -> 8.96 | J23: =VLOOKUP($C23,'RECAP SECT'!$G$6:$EV$253,105,FALSE) -> 34% | K23: =VLOOKUP($C23,'RECAP SECT'!$G$6:$EV$253,106,FALSE) -> 6 | L23: =VLOOKUP($C23,'RECAP SECT'!$G$6:$EV$253,107,FALSE) -> 6.27 | M23: =VLOOKUP($C23,'RECAP SECT'!$G$6:$EV$253,108,FALSE) -> 29% | N23: =VLOOKUP($C23,'RECAP SECT'!$G$6:$EV$253,109,FALSE) -> 16 | O23: =VLOOKUP($C23,'RECAP SECT'!$G$6:$EV$253,110,FALSE) -> 32% | P23: =VLOOKUP($C23,'RECAP SECT'!$G$6:$EV$253,111,FALSE) -> 31% | Q23: =VLOOKUP($C23,'RECAP SECT'!$G$6:$EV$253,112,FALSE) -> 9
A24: 160 | B24: MOSELLE | C24: 42 | D24: MOSELLE EST | E24: =VLOOKUP($C24,'RECAP SECT'!$G$6:$EV$253,3,FALSE) -> 86.0 | F24: =VLOOKUP($C24,'RECAP SECT'!$G$6:$EV$253,101,FALSE) -> 4.56 | G24: =VLOOKUP($C24,'RECAP SECT'!$G$6:$EV$253,102,FALSE) -> 47% | H24: =VLOOKUP($C24,'RECAP SECT'!$G$6:$EV$253,103,FALSE) -> 15 | I24: =VLOOKUP($C24,'RECAP SECT'!$G$6:$EV$253,104,FALSE) -> 8.88 | J24: =VLOOKUP($C24,'RECAP SECT'!$G$6:$EV$253,105,FALSE) -> 35% | K24: =VLOOKUP($C24,'RECAP SECT'!$G$6:$EV$253,106,FALSE) -> 7 | L24: =VLOOKUP($C24,'RECAP SECT'!$G$6:$EV$253,107,FALSE) -> 7.32 | M24: =VLOOKUP($C24,'RECAP SECT'!$G$6:$EV$253,108,FALSE) -> 18% | N24: =VLOOKUP($C24,'RECAP SECT'!$G$6:$EV$253,109,FALSE) -> 11 | O24: =VLOOKUP($C24,'RECAP SECT'!$G$6:$EV$253,110,FALSE) -> 34% | P24: =VLOOKUP($C24,'RECAP SECT'!$G$6:$EV$253,111,FALSE) -> 32% | Q24: =VLOOKUP($C24,'RECAP SECT'!$G$6:$EV$253,112,FALSE) -> 10
A25: 160 | B25: MOSELLE | C25: 44 | D25: MOSELLE NORD | E25: =VLOOKUP($C25,'RECAP SECT'!$G$6:$EV$253,3,FALSE) -> 80.5 | F25: =VLOOKUP($C25,'RECAP SECT'!$G$6:$EV$253,101,FALSE) -> 6.69 | G25: =VLOOKUP($C25,'RECAP SECT'!$G$6:$EV$253,102,FALSE) -> 23% | H25: =VLOOKUP($C25,'RECAP SECT'!$G$6:$EV$253,103,FALSE) -> 4 | I25: =VLOOKUP($C25,'RECAP SECT'!$G$6:$EV$253,104,FALSE) -> 9.14 | J25: =VLOOKUP($C25,'RECAP SECT'!$G$6:$EV$253,105,FALSE) -> 33% | K25: =VLOOKUP($C25,'RECAP SECT'!$G$6:$EV$253,106,FALSE) -> 5 | L25: =VLOOKUP($C25,'RECAP SECT'!$G$6:$EV$253,107,FALSE) -> 7.76 | M25: =VLOOKUP($C25,'RECAP SECT'!$G$6:$EV$253,108,FALSE) -> 13% | N25: =VLOOKUP($C25,'RECAP SECT'!$G$6:$EV$253,109,FALSE) -> 3 | O25: =VLOOKUP($C25,'RECAP SECT'!$G$6:$EV$253,110,FALSE) -> 23% | P25: =VLOOKUP($C25,'RECAP SECT'!$G$6:$EV$253,111,FALSE) -> 22% | Q25: =VLOOKUP($C25,'RECAP SECT'!$G$6:$EV$253,112,FALSE) -> 5
A26: 80 | B26: VOSGES | C26: 57 | D26: EPINAL | E26: =VLOOKUP($C26,'RECAP SECT'!$G$6:$EV$253,3,FALSE) -> 68.7 | F26: =VLOOKUP($C26,'RECAP SECT'!$G$6:$EV$253,101,FALSE) -> 6.20 | G26: =VLOOKUP($C26,'RECAP SECT'!$G$6:$EV$253,102,FALSE) -> 29% | H26: =VLOOKUP($C26,'RECAP SECT'!$G$6:$EV$253,103,FALSE) -> 7 | I26: =VLOOKUP($C26,'RECAP SECT'!$G$6:$EV$253,104,FALSE) -> 5.25 | J26: =VLOOKUP($C26,'RECAP SECT'!$G$6:$EV$253,105,FALSE) -> 61% | K26: =VLOOKUP($C26,'RECAP SECT'!$G$6:$EV$253,106,FALSE) -> 16 | L26: =VLOOKUP($C26,'RECAP SECT'!$G$6:$EV$253,107,FALSE) -> 7.63 | M26: =VLOOKUP($C26,'RECAP SECT'!$G$6:$EV$253,108,FALSE) -> 14% | N26: =VLOOKUP($C26,'RECAP SECT'!$G$6:$EV$253,109,FALSE) -> 7 | O26: =VLOOKUP($C26,'RECAP SECT'!$G$6:$EV$253,110,FALSE) -> 36% | P26: =VLOOKUP($C26,'RECAP SECT'!$G$6:$EV$253,111,FALSE) -> 34% | Q26: =VLOOKUP($C26,'RECAP SECT'!$G$6:$EV$253,112,FALSE) -> 12
A27: 80 | B27: VOSGES | C27: 55 | D27: SAINT DIE | E27: =VLOOKUP($C27,'RECAP SECT'!$G$6:$EV$253,3,FALSE) -> 57.9 | F27: =VLOOKUP($C27,'RECAP SECT'!$G$6:$EV$253,101,FALSE) -> 5.27 | G27: =VLOOKUP($C27,'RECAP SECT'!$G$6:$EV$253,102,FALSE) -> 39% | H27: =VLOOKUP($C27,'RECAP SECT'!$G$6:$EV$253,103,FALSE) -> 11 | I27: =VLOOKUP($C27,'RECAP SECT'!$G$6:$EV$253,104,FALSE) -> 7.24 | J27: =VLOOKUP($C27,'RECAP SECT'!$G$6:$EV$253,105,FALSE) -> 47% | K27: =VLOOKUP($C27,'RECAP SECT'!$G$6:$EV$253,106,FALSE) -> 9 | L27: =VLOOKUP($C27,'RECAP SECT'!$G$6:$EV$253,107,FALSE) -> 7.61 | M27: =VLOOKUP($C27,'RECAP SECT'!$G$6:$EV$253,108,FALSE) -> 14% | N27: =VLOOKUP($C27,'RECAP SECT'!$G$6:$EV$253,109,FALSE) -> 8 | O27: =VLOOKUP($C27,'RECAP SECT'!$G$6:$EV$253,110,FALSE) -> 34% | P27: =VLOOKUP($C27,'RECAP SECT'!$G$6:$EV$253,111,FALSE) -> 33% | Q27: =VLOOKUP($C27,'RECAP SECT'!$G$6:$EV$253,112,FALSE) -> 11
A28: Total CEGEE Directions Régionales | E28: =SUM(E10:E27) -> 1368

Sheet SE_CONQUETE
A1: Accueil | F1: BAROMETRE BDD - TERRITOIRES
F2: CONQUETE
F3: =ACCUEIL!H7 -> 2019-06-30
F7: Evolution nette clients Bancarisés Principaux | I7: Evolution nette relations PREMIUM | L7: Evolution nette clients Bancarisés Principaux équipés | O7: Evolution nette clients Pro actif équipés | R7: Total Conquête
G8: coef | H8: ='RECAP DIRCOM'!M4 -> 4% | J8: coef | K8: ='RECAP DIRCOM'!P4 -> 4% | M8: coef | N8: ='RECAP DIRCOM'!S4 -> 3% | P8: coef | Q8: ='RECAP DIRCOM'!V4 -> 4% | S8: coef | T8: ='RECAP DIRCOM'!Y4 -> 15%
A9: eds | B9: Direction | C9: eds | D9: Territoire | E9: ETP perf | F9: Nb / ETP | G9: % Ecart au 1er | H9: Rang | I9: Nb / ETP | J9: % Ecart au 1er | K9: Rang | L9: Nb / ETP | M9: % Ecart au 1er | N9: Rang | O9: Taux réal objectif | P9: % Ecart au 1er | Q9: Rang | R9: Moyenne ecart au 1er | S9: % Ecart au 1er | T9: Rang CEGEE
A10: 50 | B10: AUBE HAUTE MARNE | C10: 21 | D10: CHAUMONT | E10: =VLOOKUP($C10,'RECAP SECT'!$G$6:$EV$253,3,FALSE) -> 46.7 | F10: =VLOOKUP($C10,'RECAP SECT'!$G$6:$EV$253,5,FALSE) -> -0.02 | G10: =VLOOKUP($C10,'RECAP SECT'!$G$6:$EV$253,6,FALSE) -> 21% | H10: =VLOOKUP($C10,'RECAP SECT'!$G$6:$EV$253,7,FALSE) -> 2 | I10: =VLOOKUP($C10,'RECAP SECT'!$G$6:$EV$253,8,FALSE) -> 1.90 | J10: =VLOOKUP($C10,'RECAP SECT'!$G$6:$EV$253,9,FALSE) -> 17% | K10: =VLOOKUP($C10,'RECAP SECT'!$G$6:$EV$253,10,FALSE) -> 4 | L10: =VLOOKUP($C10,'RECAP SECT'!$G$6:$EV$253,11,FALSE) -> 2.01 | M10: =VLOOKUP($C10,'RECAP SECT'!$G$6:$EV$253,12,FALSE) -> 14% | N10: =VLOOKUP($C10,'RECAP SECT'!$G$6:$EV$253,13,FALSE) -> 2 | O10: =VLOOKUP($C10,'RECAP SECT'!$G$6:$EV$253,14,FALSE) -> 0% | P10: =VLOOKUP($C10,'RECAP SECT'!$G$6:$EV$253,15,FALSE) -> 88% | Q10: =VLOOKUP($C10,'RECAP SECT'!$G$6:$EV$253,16,FALSE) -> 13 | R10: =VLOOKUP($C10,'RECAP SECT'!$G$6:$EV$253,17,FALSE) -> 37% | S10: =VLOOKUP($C10,'RECAP SECT'!$G$6:$EV$253,18,FALSE) -> 21% | T10: =VLOOKUP($C10,'RECAP SECT'!$G$6:$EV$253,19,FALSE) -> 2
A11: 50 | B11: AUBE HAUTE MARNE | C11: 14 | D11: TROYES | E11: =VLOOKUP($C11,'RECAP SECT'!$G$6:$EV$253,3,FALSE) -> 78.6 | F11: =VLOOKUP($C11,'RECAP SECT'!$G$6:$EV$253,5,FALSE) -> -1.59 | G11: =VLOOKUP($C11,'RECAP SECT'!$G$6:$EV$253,6,FALSE) -> 77% | H11: =VLOOKUP($C11,'RECAP SECT'!$G$6:$EV$253,7,FALSE) -> 6 | I11: =VLOOKUP($C11,'RECAP SECT'!$G$6:$EV$253,8,FALSE) -> 1.29 | J11: =VLOOKUP($C11,'RECAP SECT'!$G$6:$EV$253,9,FALSE) -> 44% | K11: =VLOOKUP($C11,'RECAP SECT'!$G$6:$EV$253,10,FALSE) -> 16 | L11: =VLOOKUP($C11,'RECAP SECT'!$G$6:$EV$253,11,FALSE) -> 1.78 | M11: =VLOOKUP($C11,'RECAP SECT'!$G$6:$EV$253,12,FALSE) -> 21% | N11: =VLOOKUP($C11,'RECAP SECT'!$G$6:$EV$253,13,FALSE) -> 3 | O11: =VLOOKUP($C11,'RECAP SECT'!$G$6:$EV$253,14,FALSE) -> 41% | P11: =VLOOKUP($C11,'RECAP SECT'!$G$6:$EV$253,15,FALSE) -> 50% | Q11: =VLOOKUP($C11,'RECAP SECT'!$G$6:$EV$253,16,FALSE) -> 8 | R11: =VLOOKUP($C11,'RECAP SECT'!$G$6:$EV$253,17,FALSE) -> 50% | S11: =VLOOKUP($C11,'RECAP SECT'!$G$6:$EV$253,18,FALSE) -> 34% | T11: =VLOOKUP($C11,'RECAP SECT'!$G$6:$EV$253,19,FALSE) -> 4
A12: 262 | B12: BAS-RHIN | C12: 5060 | D12: HAGUENAU | E12: =VLOOKUP($C12,'RECAP SECT'!$G$6:$EV$253,3,FALSE) -> 88.8 | F12: =VLOOKUP($C12,'RECAP SECT'!$G$6:$EV$253,5,FALSE) -> -1.53 | G12: =VLOOKUP($C12,'RECAP SECT'!$G$6:$EV$253,6,FALSE) -> 75% | H12: =VLOOKUP($C12,'RECAP SECT'!$G$6:$EV$253,7,FALSE) -> 5 | I12: =VLOOKUP($C12,'RECAP SECT'!$G$6:$EV$253,8,FALSE) -> 1.67 | J12: =VLOOKUP($C12,'RECAP SECT'!$G$6:$EV$253,9,FALSE) -> 28% | K12: =VLOOKUP($C12,'RECAP SECT'!$G$6:$EV$253,10,FALSE) -> 8 | L12: =VLOOKUP($C12,'RECAP SECT'!$G$6:$EV$253,11,FALSE) -> -1.70 | M12: =VLOOKUP($C12,'RECAP SECT'!$G$6:$EV$253,12,FALSE) -> 127% | N12: =VLOOKUP($C12,'RECAP SECT'!$G$6:$EV$253,13,FALSE) -> 14 | O12: =VLOOKUP($C12,'RECAP SECT'!$G$6:$EV$253,14,FALSE) -> -16% | P12: =VLOOKUP($C12,'RECAP SECT'!$G$6:$EV$253,15,FALSE) -> 102% | Q12: =VLOOKUP($C12,'RECAP SECT'!$G$6:$EV$253,16,FALSE) -> 15 | R12: =VLOOKUP($C12,'RECAP SECT'!$G$6:$EV$253,17,FALSE) -> 80% | S12: =VLOOKUP($C12,'RECAP SECT'!$G$6:$EV$253,18,FALSE) -> 64% | T12: =VLOOKUP($C12,'RECAP SECT'!$G$6:$EV$253,19,FALSE) -> 14
A13: 262 | B13: BAS-RHIN | C13: 5101 | D13: SELESTAT | E13: =VLOOKUP($C13,'RECAP SECT'!$G$6:$EV$253,3,FALSE) -> 75.2 | F13: =VLOOKUP($C13,'RECAP SECT'!$G$6:$EV$253,5,FALSE) -> -3.35 | G13: =VLOOKUP($C13,'RECAP SECT'!$G$6:$EV$253,6,FALSE) -> 139% | H13: =VLOOKUP($C13,'RECAP SECT'!$G$6:$EV$253,7,FALSE) -> 15 | I13: =VLOOKUP($C13,'RECAP SECT'!$G$6:$EV$253,8,FALSE) -> 1.98 | J13: =VLOOKUP($C13,'RECAP SECT'!$G$6:$EV$253,9,FALSE) -> 14% | K13: =VLOOKUP($C13,'RECAP SECT'!$G$6:$EV$253,10,FALSE) -> 3 | L13: =VLOOKUP($C13,'RECAP SECT'!$G$6:$EV$253,11,FALSE) -> -2.18 | M13: =VLOOKUP($C13,'RECAP SECT'!$G$6:$EV$253,12,FALSE) -> 142% | N13: =VLOOKUP($C13,'RECAP SECT'!$G$6:$EV$253,13,FALSE) -> 17 | O13: =VLOOKUP($C13,'RECAP SECT'!$G$6:$EV$253,14,FALSE) -> -37% | P13: =VLOOKUP($C13,'RECAP SECT'!$G$6:$EV$253,15,FALSE) -> 122% | Q13: =VLOOKUP($C13,'RECAP SECT'!$G$6:$EV$253,16,FALSE) -> 17 | R13: =VLOOKUP($C13,'RECAP SECT'!$G$6:$EV$253,17,FALSE) -> 102% | S13: =VLOOKUP($C13,'RECAP SECT'!$G$6:$EV$253,18,FALSE) -> 86% | T13: =VLOOKUP($C13,'RECAP SECT'!$G$6:$EV$253,19,FALSE) -> 18
A14: 262 | B14: BAS-RHIN | C14: 5006 | D14: STRASBOURG | E14: =VLOOKUP($C14,'RECAP SECT'!$G$6:$EV$253,3,FALSE) -> 91.8 | F14: =VLOOKUP($C14,'RECAP SECT'!$G$6:$EV$253,5,FALSE) -> -2.47 | G14: =VLOOKUP($C14,'RECAP SECT'!$G$6:$EV$253,6,FALSE) -> 108% | H14: =VLOOKUP($C14,'RECAP SECT'!$G$6:$EV$253,7,FALSE) -> 10 | I14: =VLOOKUP($C14,'RECAP SECT'!$G$6:$EV$253,8,FALSE) -> 1.61 | J14: =VLOOKUP($C14,'RECAP SECT'!$G$6:$EV$253,9,FALSE) -> 30% | K14: =VLOOKUP($C14,'RECAP SECT'!$G$6:$EV$253,10,FALSE) -> 11 | L14: =VLOOKUP($C14,'RECAP SECT'!$G$6:$EV$253,11,FALSE) -> -1.69 | M14: =VLOOKUP($C14,'RECAP SECT'!$G$6:$EV$253,12,FALSE) -> 127% | N14: =VLOOKUP($C14,'RECAP SECT'!$G$6:$EV$253,13,FALSE) -> 13 | O14: =VLOOKUP($C14,'RECAP SECT'!$G$6:$EV$253,14,FALSE) -> 44% | P14: =VLOOKUP($C14,'RECAP SECT'!$G$6:$EV$253,15,FALSE) -> 47% | Q14: =VLOOKUP($C14,'RECAP SECT'!$G$6:$EV$253,16,FALSE) -> 7 | R14: =VLOOKUP($C14,'RECAP SECT'!$G$6:$EV$253,17,FALSE) -> 75% | S14: =VLOOKUP($C14,'RECAP SECT'!$G$6:$EV$253,18,FALSE) -> 59% | T14: =VLOOKUP($C14,'RECAP SECT'!$G$6:$EV$253,19,FALSE) -> 10
A15: 264 | B15: HAUT-RHIN | C15: 5130 | D15: COLMAR | E15: =VLOOKUP($C15,'RECAP SECT'!$G$6:$EV$253,3,FALSE) -> 76.9 | F15: =VLOOKUP($C15,'RECAP SECT'!$G$6:$EV$253,5,FALSE) -> -3.37 | G15: =VLOOKUP($C15,'RECAP SECT'!$G$6:$EV$253,6,FALSE) -> 139% | H15: =VLOOKUP($C15,'RECAP SECT'!$G$6:$EV$253,7,FALSE) -> 16 | I15: =VLOOKUP($C15,'RECAP SECT'!$G$6:$EV$253,8,FALSE) -> 1.86 | J15: =VLOOKUP($C15,'RECAP SECT'!$G$6:$EV$253,9,FALSE) -> 19% | K15: =VLOOKUP($C15,'RECAP SECT'!$G$6:$EV$253,10,FALSE) -> 5 | L15: =VLOOKUP($C15,'RECAP SECT'!$G$6:$EV$253,11,FALSE) -> -1.78 | M15: =VLOOKUP($C15,'RECAP SECT'!$G$6:$EV$253,12,FALSE) -> 130% | N15: =VLOOKUP($C15,'RECAP SECT'!$G$6:$EV$253,13,FALSE) -> 15 | O15: =VLOOKUP($C15,'RECAP SECT'!$G$6:$EV$253,14,FALSE) -> 9% | P15: =VLOOKUP($C15,'RECAP SECT'!$G$6:$EV$253,15,FALSE) -> 79% | Q15: =VLOOKUP($C15,'RECAP SECT'!$G$6:$EV$253,16,FALSE) -> 10 | R15: =VLOOKUP($C15,'RECAP SECT'!$G$6:$EV$253,17,FALSE) -> 89% | S15: =VLOOKUP($C15,'RECAP SECT'!$G$6:$EV$253,18,FALSE) -> 73% | T15: =VLOOKUP($C15,'RECAP SECT'!$G$6:$EV$253,19,FALSE) -> 16
A16: 264 | B16: HAUT-RHIN | C16: 5169 | D16: MULHOUSE | E16: =VLOOKUP($C16,'RECAP SECT'!$G$6:$EV$253,3,FALSE) -> 77.8 | F16: =VLOOKUP($C16,'RECAP SECT'!$G$6:$EV$253,5,FALSE) -> -3.41 | G16: =VLOOKUP($C16,'RECAP SECT'!$G$6:$EV$253,6,FALSE) -> 141% | H16: =VLOOKUP($C16,'RECAP SECT'!$G$6:$EV$253,7,FALSE) -> 17 | I16: =VLOOKUP($C16,'RECAP SECT'!$G$6:$EV$253,8,FALSE) -> 2.30 | J16: =VLOOKUP($C16,'RECAP SECT'!$G$6:$EV$253,9,FALSE) -> 0% | K16: =VLOOKUP($C16,'RECAP SECT'!$G$6:$EV$253,10,FALSE) -> 1 | L16: =VLOOKUP($C16,'RECAP SECT'!$G$6:$EV$253,11,FALSE) -> -2.44 | M16: =VLOOKUP($C16,'RECAP SECT'!$G$6:$EV$253,12,FALSE) -> 150% | N16: =VLOOKUP($C16,'RECAP SECT'!$G$6:$EV$253,13,FALSE) -> 18 | O16: =VLOOKUP($C16,'RECAP SECT'!$G$6:$EV$253,14,FALSE) -> -11% | P16: =VLOOKUP($C16,'RECAP SECT'!$G$6:$EV$253,15,FALSE) -> 97% | Q16: =VLOOKUP($C16,'RECAP SECT'!$G$6:$EV$253,16,FALSE) -> 14 | R16: =VLOOKUP($C16,'RECAP SECT'!$G$6:$EV$253,17,FALSE) -> 94% | S16: =VLOOKUP($C16,'RECAP SECT'!$G$6:$EV$253,18,FALSE) -> 78% | T16: =VLOOKUP($C16,'RECAP SECT'!$G$6:$EV$253,19,FALSE) -> 17
A17: 30 | B17: MARNE-ARDENNES | C17: 6 | D17: CHALONS EN CHAMPAGNE | E17: =VLOOKUP($C17,'RECAP SECT'!$G$6:$EV$253,3,FALSE) -> 49.0 | F17: =VLOOKUP($C17,'RECAP SECT'!$G$6:$EV$253,5,FALSE) -> -1.49 | G17: =VLOOKUP($C17,'RECAP SECT'!$G$6:$EV$253,6,FALSE) -> 73% | H17: =VLOOKUP($C17,'RECAP SECT'!$G$6:$EV$253,7,FALSE) -> 4 | I17: =VLOOKUP($C17,'RECAP SECT'!$G$6:$EV$253,8,FALSE) -> 1.71 | J17: =VLOOKUP($C17,'RECAP SECT'!$G$6:$EV$253,9,FALSE) -> 26% | K17: =VLOOKUP($C17,'RECAP SECT'!$G$6:$EV$253,10,FALSE) -> 7 | L17: =VLOOKUP($C17,'RECAP SECT'!$G$6:$EV$253,11,FALSE) -> 0.06 | M17: =VLOOKUP($C17,'RECAP SECT'!$G$6:$EV$253,12,FALSE) -> 74% | N17: =VLOOKUP($C17,'RECAP SECT'!$G$6:$EV$253,13,FALSE) -> 9 | O17: =VLOOKUP($C17,'RECAP SECT'!$G$6:$EV$253,14,FALSE) -> -68% | P17: =VLOOKUP($C17,'RECAP SECT'!$G$6:$EV$253,15,FALSE) -> 150% | Q17: =VLOOKUP($C17,'RECAP SECT'!$G$6:$EV$253,16,FALSE) -> 18 | R17: =VLOOKUP($C17,'RECAP SECT'!$G$6:$EV$253,17,FALSE) -> 81% | S17: =VLOOKUP($C17,'RECAP SECT'!$G$6:$EV$253,18,FALSE) -> 65% | T17: =VLOOKUP($C17,'RECAP SECT'!$G$6:$EV$253,19,FALSE) -> 15
A18: 30 | B18: MARNE-ARDENNES | C18: 2 | D18: CHARLEVILLE MEZIERES | E18: =VLOOKUP($C18,'RECAP SECT'!$G$6:$EV$253,3,FALSE) -> 63.1 | F18: =VLOOKUP($C18,'RECAP SECT'!$G$6:$EV$253,5,FALSE) -> 0.59 | G18: =VLOOKUP($C18,'RECAP SECT'!$G$6:$EV$253,6,FALSE) -> 0% | H18: =VLOOKUP($C18,'RECAP SECT'!$G$6:$EV$253,7,FALSE) -> 1 | I18: =VLOOKUP($C18,'RECAP SECT'!$G$6:$EV$253,8,FALSE) -> 1.43 | J18: =VLOOKUP($C18,'RECAP SECT'!$G$6:$EV$253,9,FALSE) -> 38% | K18: =VLOOKUP($C18,'RECAP SECT'!$G$6:$EV$253,10,FALSE) -> 15 | L18: =VLOOKUP($C18,'RECAP SECT'!$G$6:$EV$253,11,FALSE) -> 2.47 | M18: =VLOOKUP($C18,'RECAP SECT'!$G$6:$EV$253,12,FALSE) -> 0% | N18: =VLOOKUP($C18,'RECAP SECT'!$G$6:$EV$253,13,FALSE) -> 1 | O18: =VLOOKUP($C18,'RECAP SECT'!$G$6:$EV$253,14,FALSE) -> 72% | P18: =VLOOKUP($C18,'RECAP SECT'!$G$6:$EV$253,15,FALSE) -> 22% | Q18: =VLOOKUP($C18,'RECAP SECT'!$G$6:$EV$253,16,FALSE) -> 5 | R18: =VLOOKUP($C18,'RECAP SECT'!$G$6:$EV$253,17,FALSE) -> 16% | S18: =VLOOKUP($C18,'RECAP SECT'!$G$6:$EV$253,18,FALSE) -> 0% | T18: =VLOOKUP($C18,'RECAP SECT'!$G$6:$EV$253,19,FALSE) -> 1
A19: 30 | B19: MARNE-ARDENNES | C19: 11 | D19: REIMS | E19: =VLOOKUP($C19,'RECAP SECT'!$G$6:$EV$253,3,FALSE) -> 90.6 | F19: =VLOOKUP($C19,'RECAP SECT'!$G$6:$EV$253,5,FALSE) -> -0.88 | G19: =VLOOKUP($C19,'RECAP SECT'!$G$6:$EV$253,6,FALSE) -> 52% | H19: =VLOOKUP($C19,'RECAP SECT'!$G$6:$EV$253,7,FALSE) -> 3 | I19: =VLOOKUP($C19,'RECAP SECT'!$G$6:$EV$253,8,FALSE) -> 2.18 | J19: =VLOOKUP($C19,'RECAP SECT'!$G$6:$EV$253,9,FALSE) -> 5% | K19: =VLOOKUP($C19,'RECAP SECT'!$G$6:$EV$253,10,FALSE) -> 2 | L19: =VLOOKUP($C19,'RECAP SECT'!$G$6:$EV$253,11,FALSE) -> 1.49 | M19: =VLOOKUP($C19,'RECAP SECT'!$G$6:$EV$253,12,FALSE) -> 30% | N19: =VLOOKUP($C19,'RECAP SECT'!$G$6:$EV$253,13,FALSE) -> 4 | O19: =VLOOKUP($C19,'RECAP SECT'!$G$6:$EV$253,14,FALSE) -> -23% | P19: =VLOOKUP($C19,'RECAP SECT'!$G$6:$EV$253,15,FALSE) -> 109% | Q19: =VLOOKUP($C19,'RECAP SECT'!$G$6:$EV$253,16,FALSE) -> 16 | R19: =VLOOKUP($C19,'RECAP SECT'!$G$6:$EV$253,17,FALSE) -> 50% | S19: =VLOOKUP($C19,'RECAP SECT'!$G$6:$EV$253,18,FALSE) -> 34% | T19: =VLOOKUP($C19,'RECAP SECT'!$G$6:$EV$253,19,FALSE) -> 5
A20: 110 | B20: MEURTHE ET MOSELLE MEUSE | C20: 26 | D20: NANCY | E20: =VLOOKUP($C20,'RECAP SECT'!$G$6:$EV$253,3,FALSE) -> 79.5 | F20: =VLOOKUP($C20,'RECAP SECT'!$G$6:$EV$253,5,FALSE) -> -1.77 | G20: =VLOOKUP($C20,'RECAP SECT'!$G$6:$EV$253,6,FALSE) -> 83% | H20: =VLOOKUP($C20,'RECAP SECT'!$G$6:$EV$253,7,FALSE) -> 7 | I20: =VLOOKUP($C20,'RECAP SECT'!$G$6:$EV$253,8,FALSE) -> 1.43 | J20: =VLOOKUP($C20,'RECAP SECT'!$G$6:$EV$253,9,FALSE) -> 38% | K20: =VLOOKUP($C20,'RECAP SECT'!$G$6:$EV$253,10,FALSE) -> 13 | L20: =VLOOKUP($C20,'RECAP SECT'!$G$6:$EV$253,11,FALSE) -> -0.06 | M20: =VLOOKUP($C20,'RECAP SECT'!$G$6:$EV$253,12,FALSE) -> 77% | N20: =VLOOKUP($C20,'RECAP SECT'!$G$6:$EV$253,13,FALSE) -> 10 | O20: =VLOOKUP($C20,'RECAP SECT'!$G$6:$EV$253,14,FALSE) -> 9% | P20: =VLOOKUP($C20,'RECAP SECT'!$G$6:$EV$253,15,FALSE) -> 80% | Q20: =VLOOKUP($C20,'RECAP SECT'!$G$6:$EV$253,16,FALSE) -> 12 | R20: =VLOOKUP($C20,'RECAP SECT'!$G$6:$EV$253,17,FALSE) -> 69% | S20: =VLOOKUP($C20,'RECAP SECT'!$G$6:$EV$253,18,FALSE) -> 53% | T20: =VLOOKUP($C20,'RECAP SECT'!$G$6:$EV$253,19,FALSE) -> 8
A21: 110 | B21: MEURTHE ET MOSELLE MEUSE | C21: 27 | D21: PONT A MOUSSON | E21: =VLOOKUP($C21,'RECAP SECT'!$G$6:$EV$253,3,FALSE) -> 88.0 | F21: =VLOOKUP($C21,'RECAP SECT'!$G$6:$EV$253,5,FALSE) -> -2.98 | G21: =VLOOKUP($C21,'RECAP SECT'!$G$6:$EV$253,6,FALSE) -> 126% | H21: =VLOOKUP($C21,'RECAP SECT'!$G$6:$EV$253,7,FALSE) -> 12 | I21: =VLOOKUP($C21,'RECAP SECT'!$G$6:$EV$253,8,FALSE) -> 1.43 | J21: =VLOOKUP($C21,'RECAP SECT'!$G$6:$EV$253,9,FALSE) -> 38% | K21: =VLOOKUP($C21,'RECAP SECT'!$G$6:$EV$253,10,FALSE) -> 14 | L21: =VLOOKUP($C21,'RECAP SECT'!$G$6:$EV$253,11,FALSE) -> 0.16 | M21: =VLOOKUP($C21,'RECAP SECT'!$G$6:$EV$253,12,FALSE) -> 71% | N21: =VLOOKUP($C21,'RECAP SECT'!$G$6:$EV$253,13,FALSE) -> 8 | O21: =VLOOKUP($C21,'RECAP SECT'!$G$6:$EV$253,14,FALSE) -> 83% | P21: =VLOOKUP($C21,'RECAP SECT'!$G$6:$EV$253,15,FALSE) -> 12% | Q21: =VLOOKUP($C21,'RECAP SECT'!$G$6:$EV$253,16,FALSE) -> 2 | R21: =VLOOKUP($C21,'RECAP SECT'!$G$6:$EV$253,17,FALSE) -> 61% | S21: =VLOOKUP($C21,'RECAP SECT'!$G$6:$EV$253,18,FALSE) -> 45% | T21: =VLOOKUP($C21,'RECAP SECT'!$G$6:$EV$253,19,FALSE) -> 7
A22: 110 | B22: MEURTHE ET MOSELLE MEUSE | C22: 31 | D22: VERDUN | E22: =VLOOKUP($C22,'RECAP SECT'!$G$6:$EV$253,3,FALSE) -> 64.9 | F22: =VLOOKUP($C22,'RECAP SECT'!$G$6:$EV$253,5,FALSE) -> -1.93 | G22: =VLOOKUP($C22,'RECAP SECT'!$G$6:$EV$253,6,FALSE) -> 89% | H22: =VLOOKUP($C22,'RECAP SECT'!$G$6:$EV$253,7,FALSE) -> 9 | I22: =VLOOKUP($C22,'RECAP SECT'!$G$6:$EV$253,8,FALSE) -> 1.20 | J22: =VLOOKUP($C22,'RECAP SECT'!$G$6:$EV$253,9,FALSE) -> 48% | K22: =VLOOKUP($C22,'RECAP SECT'!$G$6:$EV$253,10,FALSE) -> 17 | L22: =VLOOKUP($C22,'RECAP SECT'!$G$6:$EV$253,11,FALSE) -> -1.11 | M22: =VLOOKUP($C22,'RECAP SECT'!$G$6:$EV$253,12,FALSE) -> 109% | N22: =VLOOKUP($C22,'RECAP SECT'!$G$6:$EV$253,13,FALSE) -> 12 | O22: =VLOOKUP($C22,'RECAP SECT'!$G$6:$EV$253,14,FALSE) -> 21% | P22: =VLOOKUP($C22,'RECAP SECT'!$G$6:$EV$253,15,FALSE) -> 68% | Q22: =VLOOKUP($C22,'RECAP SECT'!$G$6:$EV$253,16,FALSE) -> 9 | R22: =VLOOKUP($C22,'RECAP SECT'!$G$6:$EV$253,17,FALSE) -> 77% | S22: =VLOOKUP($C22,'RECAP SECT'!$G$6:$EV$253,18,FALSE) -> 61% | T22: =VLOOKUP($C22,'RECAP SECT'!$G$6:$EV$253,19,FALSE) -> 13
A23: 160 | B23: MOSELLE | C23: 45 | D23: METZ | E23: =VLOOKUP($C23,'RECAP SECT'!$G$6:$EV$253,3,FALSE) -> 104.2 | F23: =VLOOKUP($C23,'RECAP SECT'!$G$6:$EV$253,5,FALSE) -> -2.54 | G23: =VLOOKUP($C23,'RECAP SECT'!$G$6:$EV$253,6,FALSE) -> 110% | H23: =VLOOKUP($C23,'RECAP SECT'!$G$6:$EV$253,7,FALSE) -> 11 | I23: =VLOOKUP($C23,'RECAP SECT'!$G$6:$EV$253,8,FALSE) -> 1.62 | J23: =VLOOKUP($C23,'RECAP SECT'!$G$6:$EV$253,9,FALSE) -> 30% | K23: =VLOOKUP($C23,'RECAP SECT'!$G$6:$EV$253,10,FALSE) -> 10 | L23: =VLOOKUP($C23,'RECAP SECT'!$G$6:$EV$253,11,FALSE) -> 1.43 | M23: =VLOOKUP($C23,'RECAP SECT'!$G$6:$EV$253,12,FALSE) -> 32% | N23: =VLOOKUP($C23,'RECAP SECT'!$G$6:$EV$253,13,FALSE) -> 5 | O23: =VLOOKUP($C23,'RECAP SECT'!$G$6:$EV$253,14,FALSE) -> 77% | P23: =VLOOKUP($C23,'RECAP SECT'!$G$6:$EV$253,15,FALSE) -> 17% | Q23: =VLOOKUP($C23,'RECAP SECT'!$G$6:$EV$253,16,FALSE) -> 3 | R23: =VLOOKUP($C23,'RECAP SECT'!$G$6:$EV$253,17,FALSE) -> 48% | S23: =VLOOKUP($C23,'RECAP SECT'!$G$6:$EV$253,18,FALSE) -> 32% | T23: =VLOOKUP($C23,'RECAP SECT'!$G$6:$EV$253,19,FALSE) -> 3
A24: 160 | B24: MOSELLE | C24: 42 | D24: MOSELLE EST | E24: =VLOOKUP($C24,'RECAP SECT'!$G$6:$EV$253,3,FALSE) -> 86.0 | F24: =VLOOKUP($C24,'RECAP SECT'!$G$6:$EV$253,5,FALSE) -> -1.81 | G24: =VLOOKUP($C24,'RECAP SECT'!$G$6:$EV$253,6,FALSE) -> 85% | H24: =VLOOKUP($C24,'RECAP SECT'!$G$6:$EV$253,7,FALSE) -> 8 | I24: =VLOOKUP($C24,'RECAP SECT'!$G$6:$EV$253,8,FALSE) -> 1.55 | J24: =VLOOKUP($C24,'RECAP SECT'!$G$6:$EV$253,9,FALSE) -> 33% | K24: =VLOOKUP($C24,'RECAP SECT'!$G$6:$EV$253,10,FALSE) -> 12 | L24: =VLOOKUP($C24,'RECAP SECT'!$G$6:$EV$253,11,FALSE) -> 0.57 | M24: =VLOOKUP($C24,'RECAP SECT'!$G$6:$EV$253,12,FALSE) -> 58% | N24: =VLOOKUP($C24,'RECAP SECT'!$G$6:$EV$253,13,FALSE) -> 6 | O24: =VLOOKUP($C24,'RECAP SECT'!$G$6:$EV$253,14,FALSE) -> 50% | P24: =VLOOKUP($C24,'RECAP SECT'!$G$6:$EV$253,15,FALSE) -> 42% | Q24: =VLOOKUP($C24,'RECAP SECT'!$G$6:$EV$253,16,FALSE) -> 6 | R24: =VLOOKUP($C24,'RECAP SECT'!$G$6:$EV$253,17,FALSE) -> 54% | S24: =VLOOKUP($C24,'RECAP SECT'!$G$6:$EV$253,18,FALSE) -> 38% | T24: =VLOOKUP($C24,'RECAP SECT'!$G$6:$EV$253,19,FALSE) -> 6
A25: 160 | B25: MOSELLE | C25: 44 | D25: MOSELLE NORD | E25: =VLOOKUP($C25,'RECAP SECT'!$G$6:$EV$253,3,FALSE) -> 80.5 | F25: =VLOOKUP($C25,'RECAP SECT'!$G$6:$EV$253,5,FALSE) -> -3.67 | G25: =VLOOKUP($C25,'RECAP SECT'!$G$6:$EV$253,6,FALSE) -> 150% | H25: =VLOOKUP($C25,'RECAP SECT'!$G$6:$EV$253,7,FALSE) -> 18 | I25: =VLOOKUP($C25,'RECAP SECT'!$G$6:$EV$253,8,FALSE) -> 0.77 | J25: =VLOOKUP($C25,'RECAP SECT'!$G$6:$EV$253,9,FALSE) -> 67% | K25: =VLOOKUP($C25,'RECAP SECT'!$G$6:$EV$253,10,FALSE) -> 18 | L25: =VLOOKUP($C25,'RECAP SECT'!$G$6:$EV$253,11,FALSE) -> -0.50 | M25: =VLOOKUP($C25,'RECAP SECT'!$G$6:$EV$253,12,FALSE) -> 91% | N25: =VLOOKUP($C25,'RECAP SECT'!$G$6:$EV$253,13,FALSE) -> 11 | O25: =VLOOKUP($C25,'RECAP SECT'!$G$6:$EV$253,14,FALSE) -> 96% | P25: =VLOOKUP($C25,'RECAP SECT'!$G$6:$EV$253,15,FALSE) -> 0% | Q25: =VLOOKUP($C25,'RECAP SECT'!$G$6:$EV$253,16,FALSE) -> 1 | R25: =VLOOKUP($C25,'RECAP SECT'!$G$6:$EV$253,17,FALSE) -> 76% | S25: =VLOOKUP($C25,'RECAP SECT'!$G$6:$EV$253,18,FALSE) -> 60% | T25: =VLOOKUP($C25,'RECAP SECT'!$G$6:$EV$253,19,FALSE) -> 11
A26: 80 | B26: VOSGES | C26: 57 | D26: EPINAL | E26: =VLOOKUP($C26,'RECAP SECT'!$G$6:$EV$253,3,FALSE) -> 68.7 | F26: =VLOOKUP($C26,'RECAP SECT'!$G$6:$EV$253,5,FALSE) -> -2.98 | G26: =VLOOKUP($C26,'RECAP SECT'!$G$6:$EV$253,6,FALSE) -> 126% | H26: =VLOOKUP($C26,'RECAP SECT'!$G$6:$EV$253,7,FALSE) -> 13 | I26: =VLOOKUP($C26,'RECAP SECT'!$G$6:$EV$253,8,FALSE) -> 1.64 | J26: =VLOOKUP($C26,'RECAP SECT'!$G$6:$EV$253,9,FALSE) -> 29% | K26: =VLOOKUP($C26,'RECAP SECT'!$G$6:$EV$253,10,FALSE) -> 9 | L26: =VLOOKUP($C26,'RECAP SECT'!$G$6:$EV$253,11,FALSE) -> 0.20 | M26: =VLOOKUP($C26,'RECAP SECT'!$G$6:$EV$253,12,FALSE) -> 69% | N26: =VLOOKUP($C26,'RECAP SECT'!$G$6:$EV$253,13,FALSE) -> 7 | O26: =VLOOKUP($C26,'RECAP SECT'!$G$6:$EV$253,14,FALSE) -> 9% | P26: =VLOOKUP($C26,'RECAP SECT'!$G$6:$EV$253,15,FALSE) -> 79% | Q26: =VLOOKUP($C26,'RECAP SECT'!$G$6:$EV$253,16,FALSE) -> 11 | R26: =VLOOKUP($C26,'RECAP SECT'!$G$6:$EV$253,17,FALSE) -> 76% | S26: =VLOOKUP($C26,'RECAP SECT'!$G$6:$EV$253,18,FALSE) -> 60% | T26: =VLOOKUP($C26,'RECAP SECT'!$G$6:$EV$253,19,FALSE) -> 12
A27: 80 | B27: VOSGES | C27: 55 | D27: SAINT DIE | E27: =VLOOKUP($C27,'RECAP SECT'!$G$6:$EV$253,3,FALSE) -> 57.9 | F27: =VLOOKUP($C27,'RECAP SECT'!$G$6:$EV$253,5,FALSE) -> -3.08 | G27: =VLOOKUP($C27,'RECAP SECT'!$G$6:$EV$253,6,FALSE) -> 129% | H27: =VLOOKUP($C27,'RECAP SECT'!$G$6:$EV$253,7,FALSE) -> 14 | I27: =VLOOKUP($C27,'RECAP SECT'!$G$6:$EV$253,8,FALSE) -> 1.85 | J27: =VLOOKUP($C27,'RECAP SECT'!$G$6:$EV$253,9,FALSE) -> 20% | K27: =VLOOKUP($C27,'RECAP SECT'!$G$6:$EV$253,10,FALSE) -> 6 | L27: =VLOOKUP($C27,'RECAP SECT'!$G$6:$EV$253,11,FALSE) -> -2.07 | M27: =VLOOKUP($C27,'RECAP SECT'!$G$6:$EV$253,12,FALSE) -> 139% | N27: =VLOOKUP($C27,'RECAP SECT'!$G$6:$EV$253,13,FALSE) -> 16 | O27: =VLOOKUP($C27,'RECAP SECT'!$G$6:$EV$253,14,FALSE) -> 72% | P27: =VLOOKUP($C27,'RECAP SECT'!$G$6:$EV$253,15,FALSE) -> 22% | Q27: =VLOOKUP($C27,'RECAP SECT'!$G$6:$EV$253,16,FALSE) -> 4 | R27: =VLOOKUP($C27,'RECAP SECT'!$G$6:$EV$253,17,FALSE) -> 73% | S27: =VLOOKUP($C27,'RECAP SECT'!$G$6:$EV$253,18,FALSE) -> 57% | T27: =VLOOKUP($C27,'RECAP SECT'!$G$6:$EV$253,19,FALSE) -> 9
A28: Total CEGEE Directions Régionales | E28: =SUM(E10:E27) -> 1368

Sheet SE_RISQUES
A1: Accueil | F1: BAROMETRE BDD - TERRITOIRES
F2: RISQUES
F3: =ACCUEIL!H7 -> 2019-06-30
F6: Complétude conformité et fiabilisation | L6: Traitement et qualité du traitement des alertes Vigiclient | O6: Total Risques
F7: Nouvelles EER sur flux BDD | I7: EER sur flux cumulés et stock
G8: coef | H8: ='RECAP DIRCOM'!DW4 -> 3% | J8: coef | K8: ='RECAP DIRCOM'!DZ4 -> 3% | M8: coef | N8: ='RECAP DIRCOM'!EC4 -> 4% | P8: coef | Q8: ='RECAP DIRCOM'!EF4 -> 10%
A9: eds | B9: Direction | C9: eds | D9: Territoire | E9: ETP perf | G9: % Ecart au 1er | H9: Rang | J9: % Ecart au 1er | K9: Rang | M9: % Ecart au 1er | N9: Rang | O9: Moyenne ecart au 1er | P9: % Ecart au 1er | Q9: Rang CEGEE
A10: 50 | B10: AUBE HAUTE MARNE | C10: 21 | D10: CHAUMONT | E10: =VLOOKUP($C10,'RECAP SECT'!$G$6:$EV$253,3,FALSE) -> 46.7 | F10: =VLOOKUP($C10,'RECAP SECT'!$G$6:$EV$253,119,FALSE) -> 97% | G10: =VLOOKUP($C10,'RECAP SECT'!$G$6:$EV$253,120,FALSE) -> 2% | H10: =VLOOKUP($C10,'RECAP SECT'!$G$6:$EV$253,121,FALSE) -> 12 | I10: =VLOOKUP($C10,'RECAP SECT'!$G$6:$EV$253,122,FALSE) -> 78% | J10: =VLOOKUP($C10,'RECAP SECT'!$G$6:$EV$253,123,FALSE) -> 1% | K10: =VLOOKUP($C10,'RECAP SECT'!$G$6:$EV$253,124,FALSE) -> 4 | L10: =VLOOKUP($C10,'RECAP SECT'!$G$6:$EV$253,125,FALSE) -> 100% | M10: =VLOOKUP($C10,'RECAP SECT'!$G$6:$EV$253,126,FALSE) -> 0% | N10: =VLOOKUP($C10,'RECAP SECT'!$G$6:$EV$253,127,FALSE) -> 1 | O10: =VLOOKUP($C10,'RECAP SECT'!$G$6:$EV$253,128,FALSE) -> 1% | P10: =VLOOKUP($C10,'RECAP SECT'!$G$6:$EV$253,129,FALSE) -> 0% | Q10: =VLOOKUP($C10,'RECAP SECT'!$G$6:$EV$253,130,FALSE) -> 1
A11: 50 | B11: AUBE HAUTE MARNE | C11: 14 | D11: TROYES | E11: =VLOOKUP($C11,'RECAP SECT'!$G$6:$EV$253,3,FALSE) -> 78.6 | F11: =VLOOKUP($C11,'RECAP SECT'!$G$6:$EV$253,119,FALSE) -> 97% | G11: =VLOOKUP($C11,'RECAP SECT'!$G$6:$EV$253,120,FALSE) -> 2% | H11: =VLOOKUP($C11,'RECAP SECT'!$G$6:$EV$253,121,FALSE) -> 10 | I11: =VLOOKUP($C11,'RECAP SECT'!$G$6:$EV$253,122,FALSE) -> 75% | J11: =VLOOKUP($C11,'RECAP SECT'!$G$6:$EV$253,123,FALSE) -> 5% | K11: =VLOOKUP($C11,'RECAP SECT'!$G$6:$EV$253,124,FALSE) -> 10 | L11: =VLOOKUP($C11,'RECAP SECT'!$G$6:$EV$253,125,FALSE) -> 100% | M11: =VLOOKUP($C11,'RECAP SECT'!$G$6:$EV$253,126,FALSE) -> 0% | N11: =VLOOKUP($C11,'RECAP SECT'!$G$6:$EV$253,127,FALSE) -> 1 | O11: =VLOOKUP($C11,'RECAP SECT'!$G$6:$EV$253,128,FALSE) -> 2% | P11: =VLOOKUP($C11,'RECAP SECT'!$G$6:$EV$253,129,FALSE) -> 1% | Q11: =VLOOKUP($C11,'RECAP SECT'!$G$6:$EV$253,130,FALSE) -> 6
A12: 262 | B12: BAS-RHIN | C12: 5060 | D12: HAGUENAU | E12: =VLOOKUP($C12,'RECAP SECT'!$G$6:$EV$253,3,FALSE) -> 88.8 | F12: =VLOOKUP($C12,'RECAP SECT'!$G$6:$EV$253,119,FALSE) -> 97% | G12: =VLOOKUP($C12,'RECAP SECT'!$G$6:$EV$253,120,FALSE) -> 1% | H12: =VLOOKUP($C12,'RECAP SECT'!$G$6:$EV$253,121,FALSE) -> 6 | I12: =VLOOKUP($C12,'RECAP SECT'!$G$6:$EV$253,122,FALSE) -> 72% | J12: =VLOOKUP($C12,'RECAP SECT'!$G$6:$EV$253,123,FALSE) -> 9% | K12: =VLOOKUP($C12,'RECAP SECT'!$G$6:$EV$253,124,FALSE) -> 15 | L12: =VLOOKUP($C12,'RECAP SECT'!$G$6:$EV$253,125,FALSE) -> 87% | M12: =VLOOKUP($C12,'RECAP SECT'!$G$6:$EV$253,126,FALSE) -> 13% | N12: =VLOOKUP($C12,'RECAP SECT'!$G$6:$EV$253,127,FALSE) -> 15 | O12: =VLOOKUP($C12,'RECAP SECT'!$G$6:$EV$253,128,FALSE) -> 8% | P12: =VLOOKUP($C12,'RECAP SECT'!$G$6:$EV$253,129,FALSE) -> 7% | Q12: =VLOOKUP($C12,'RECAP SECT'!$G$6:$EV$253,130,FALSE) -> 15
A13: 262 | B13: BAS-RHIN | C13: 5101 | D13: SELESTAT | E13: =VLOOKUP($C13,'RECAP SECT'!$G$6:$EV$253,3,FALSE) -> 75.2 | F13: =VLOOKUP($C13,'RECAP SECT'!$G$6:$EV$253,119,FALSE) -> 98% | G13: =VLOOKUP($C13,'RECAP SECT'!$G$6:$EV$253,120,FALSE) -> 1% | H13: =VLOOKUP($C13,'RECAP SECT'!$G$6:$EV$253,121,FALSE) -> 3 | I13: =VLOOKUP($C13,'RECAP SECT'!$G$6:$EV$253,122,FALSE) -> 71% | J13: =VLOOKUP($C13,'RECAP SECT'!$G$6:$EV$253,123,FALSE) -> 9% | K13: =VLOOKUP($C13,'RECAP SECT'!$G$6:$EV$253,124,FALSE) -> 16 | L13: =VLOOKUP($C13,'RECAP SECT'!$G$6:$EV$253,125,FALSE) -> 89% | M13: =VLOOKUP($C13,'RECAP SECT'!$G$6:$EV$253,126,FALSE) -> 11% | N13: =VLOOKUP($C13,'RECAP SECT'!$G$6:$EV$253,127,FALSE) -> 14 | O13: =VLOOKUP($C13,'RECAP SECT'!$G$6:$EV$253,128,FALSE) -> 8% | P13: =VLOOKUP($C13,'RECAP SECT'!$G$6:$EV$253,129,FALSE) -> 7% | Q13: =VLOOKUP($C13,'RECAP SECT'!$G$6:$EV$253,130,FALSE) -> 14
A14: 262 | B14: BAS-RHIN | C14: 5006 | D14: STRASBOURG | E14: =VLOOKUP($C14,'RECAP SECT'!$G$6:$EV$253,3,FALSE) -> 91.8 | F14: =VLOOKUP($C14,'RECAP SECT'!$G$6:$EV$253,119,FALSE) -> 93% | G14: =VLOOKUP($C14,'RECAP SECT'!$G$6:$EV$253,120,FALSE) -> 6% | H14: =VLOOKUP($C14,'RECAP SECT'!$G$6:$EV$253,121,FALSE) -> 18 | I14: =VLOOKUP($C14,'RECAP SECT'!$G$6:$EV$253,122,FALSE) -> 70% | J14: =VLOOKUP($C14,'RECAP SECT'!$G$6:$EV$253,123,FALSE) -> 11% | K14: =VLOOKUP($C14,'RECAP SECT'!$G$6:$EV$253,124,FALSE) -> 18 | L14: =VLOOKUP($C14,'RECAP SECT'!$G$6:$EV$253,125,FALSE) -> 86% | M14: =VLOOKUP($C14,'RECAP SECT'!$G$6:$EV$253,126,FALSE) -> 14% | N14: =VLOOKUP($C14,'RECAP SECT'!$G$6:$EV$253,127,FALSE) -> 16 | O14: =VLOOKUP($C14,'RECAP SECT'!$G$6:$EV$253,128,FALSE) -> 10% | P14: =VLOOKUP($C14,'RECAP SECT'!$G$6:$EV$253,129,FALSE) -> 10% | Q14: =VLOOKUP($C14,'RECAP SECT'!$G$6:$EV$253,130,FALSE) -> 17
A15: 264 | B15: HAUT-RHIN | C15: 5130 | D15: COLMAR | E15: =VLOOKUP($C15,'RECAP SECT'!$G$6:$EV$253,3,FALSE) -> 76.9 | F15: =VLOOKUP($C15,'RECAP SECT'!$G$6:$EV$253,119,FALSE) -> 96% | G15: =VLOOKUP($C15,'RECAP SECT'!$G$6:$EV$253,120,FALSE) -> 2% | H15: =VLOOKUP($C15,'RECAP SECT'!$G$6:$EV$253,121,FALSE) -> 13 | I15: =VLOOKUP($C15,'RECAP SECT'!$G$6:$EV$253,122,FALSE) -> 72% | J15: =VLOOKUP($C15,'RECAP SECT'!$G$6:$EV$253,123,FALSE) -> 8% | K15: =VLOOKUP($C15,'RECAP SECT'!$G$6:$EV$253,124,FALSE) -> 14 | L15: =VLOOKUP($C15,'RECAP SECT'!$G$6:$EV$253,125,FALSE) -> 99% | M15: =VLOOKUP($C15,'RECAP SECT'!$G$6:$EV$253,126,FALSE) -> 1% | N15: =VLOOKUP($C15,'RECAP SECT'!$G$6:$EV$253,127,FALSE) -> 5 | O15: =VLOOKUP($C15,'RECAP SECT'!$G$6:$EV$253,128,FALSE) -> 3% | P15: =VLOOKUP($C15,'RECAP SECT'!$G$6:$EV$253,129,FALSE) -> 2% | Q15: =VLOOKUP($C15,'RECAP SECT'!$G$6:$EV$253,130,FALSE) -> 9
A16: 264 | B16: HAUT-RHIN | C16: 5169 | D16: MULHOUSE | E16: =VLOOKUP($C16,'RECAP SECT'!$G$6:$EV$253,3,FALSE) -> 77.8 | F16: =VLOOKUP($C16,'RECAP SECT'!$G$6:$EV$253,119,FALSE) -> 97% | G16: =VLOOKUP($C16,'RECAP SECT'!$G$6:$EV$253,120,FALSE) -> 1% | H16: =VLOOKUP($C16,'RECAP SECT'!$G$6:$EV$253,121,FALSE) -> 4 | I16: =VLOOKUP($C16,'RECAP SECT'!$G$6:$EV$253,122,FALSE) -> 73% | J16: =VLOOKUP($C16,'RECAP SECT'!$G$6:$EV$253,123,FALSE) -> 7% | K16: =VLOOKUP($C16,'RECAP SECT'!$G$6:$EV$253,124,FALSE) -> 12 | L16: =VLOOKUP($C16,'RECAP SECT'!$G$6:$EV$253,125,FALSE) -> 97% | M16: =VLOOKUP($C16,'RECAP SECT'!$G$6:$EV$253,126,FALSE) -> 3% | N16: =VLOOKUP($C16,'RECAP SECT'!$G$6:$EV$253,127,FALSE) -> 10 | O16: =VLOOKUP($C16,'RECAP SECT'!$G$6:$EV$253,128,FALSE) -> 4% | P16: =VLOOKUP($C16,'RECAP SECT'!$G$6:$EV$253,129,FALSE) -> 3% | Q16: =VLOOKUP($C16,'RECAP SECT'!$G$6:$EV$253,130,FALSE) -> 10
A17: 30 | B17: MARNE-ARDENNES | C17: 6 | D17: CHALONS EN CHAMPAGNE | E17: =VLOOKUP($C17,'RECAP SECT'!$G$6:$EV$253,3,FALSE) -> 49.0 | F17: =VLOOKUP($C17,'RECAP SECT'!$G$6:$EV$253,119,FALSE) -> 98% | G17: =VLOOKUP($C17,'RECAP SECT'!$G$6:$EV$253,120,FALSE) -> 1% | H17: =VLOOKUP($C17,'RECAP SECT'!$G$6:$EV$253,121,FALSE) -> 2 | I17: =VLOOKUP($C17,'RECAP SECT'!$G$6:$EV$253,122,FALSE) -> 73% | J17: =VLOOKUP($C17,'RECAP SECT'!$G$6:$EV$253,123,FALSE) -> 8% | K17: =VLOOKUP($C17,'RECAP SECT'!$G$6:$EV$253,124,FALSE) -> 13 | L17: =VLOOKUP($C17,'RECAP SECT'!$G$6:$EV$253,125,FALSE) -> 99% | M17: =VLOOKUP($C17,'RECAP SECT'!$G$6:$EV$253,126,FALSE) -> 1% | N17: =VLOOKUP($C17,'RECAP SECT'!$G$6:$EV$253,127,FALSE) -> 6 | O17: =VLOOKUP($C17,'RECAP SECT'!$G$6:$EV$253,128,FALSE) -> 3% | P17: =VLOOKUP($C17,'RECAP SECT'!$G$6:$EV$253,129,FALSE) -> 2% | Q17: =VLOOKUP($C17,'RECAP SECT'!$G$6:$EV$253,130,FALSE) -> 8
A18: 30 | B18: MARNE-ARDENNES | C18: 2 | D18: CHARLEVILLE MEZIERES | E18: =VLOOKUP($C18,'RECAP SECT'!$G$6:$EV$253,3,FALSE) -> 63.1 | F18: =VLOOKUP($C18,'RECAP SECT'!$G$6:$EV$253,119,FALSE) -> 97% | G18: =VLOOKUP($C18,'RECAP SECT'!$G$6:$EV$253,120,FALSE) -> 2% | H18: =VLOOKUP($C18,'RECAP SECT'!$G$6:$EV$253,121,FALSE) -> 9 | I18: =VLOOKUP($C18,'RECAP SECT'!$G$6:$EV$253,122,FALSE) -> 76% | J18: =VLOOKUP($C18,'RECAP SECT'!$G$6:$EV$253,123,FALSE) -> 4% | K18: =VLOOKUP($C18,'RECAP SECT'!$G$6:$EV$253,124,FALSE) -> 8 | L18: =VLOOKUP($C18,'RECAP SECT'!$G$6:$EV$253,125,FALSE) -> 99% | M18: =VLOOKUP($C18,'RECAP SECT'!$G$6:$EV$253,126,FALSE) -> 1% | N18: =VLOOKUP($C18,'RECAP SECT'!$G$6:$EV$253,127,FALSE) -> 4 | O18: =VLOOKUP($C18,'RECAP SECT'!$G$6:$EV$253,128,FALSE) -> 2% | P18: =VLOOKUP($C18,'RECAP SECT'!$G$6:$EV$253,129,FALSE) -> 1% | Q18: =VLOOKUP($C18,'RECAP SECT'!$G$6:$EV$253,130,FALSE) -> 5
A19: 30 | B19: MARNE-ARDENNES | C19: 11 | D19: REIMS | E19: =VLOOKUP($C19,'RECAP SECT'!$G$6:$EV$253,3,FALSE) -> 90.6 | F19: =VLOOKUP($C19,'RECAP SECT'!$G$6:$EV$253,119,FALSE) -> 97% | G19: =VLOOKUP($C19,'RECAP SECT'!$G$6:$EV$253,120,FALSE) -> 1% | H19: =VLOOKUP($C19,'RECAP SECT'!$G$6:$EV$253,121,FALSE) -> 7 | I19: =VLOOKUP($C19,'RECAP SECT'!$G$6:$EV$253,122,FALSE) -> 71% | J19: =VLOOKUP($C19,'RECAP SECT'!$G$6:$EV$253,123,FALSE) -> 10% | K19: =VLOOKUP($C19,'RECAP SECT'!$G$6:$EV$253,124,FALSE) -> 17 | L19: =VLOOKUP($C19,'RECAP SECT'!$G$6:$EV$253,125,FALSE) -> 98% | M19: =VLOOKUP($C19,'RECAP SECT'!$G$6:$EV$253,126,FALSE) -> 2% | N19: =VLOOKUP($C19,'RECAP SECT'!$G$6:$EV$253,127,FALSE) -> 8 | O19: =VLOOKUP($C19,'RECAP SECT'!$G$6:$EV$253,128,FALSE) -> 4% | P19: =VLOOKUP($C19,'RECAP SECT'!$G$6:$EV$253,129,FALSE) -> 3% | Q19: =VLOOKUP($C19,'RECAP SECT'!$G$6:$EV$253,130,FALSE) -> 11
A20: 110 | B20: MEURTHE ET MOSELLE MEUSE | C20: 26 | D20: NANCY | E20: =VLOOKUP($C20,'RECAP SECT'!$G$6:$EV$253,3,FALSE) -> 79.5 | F20: =VLOOKUP($C20,'RECAP SECT'!$G$6:$EV$253,119,FALSE) -> 95% | G20: =VLOOKUP($C20,'RECAP SECT'!$G$6:$EV$253,120,FALSE) -> 4% | H20: =VLOOKUP($C20,'RECAP SECT'!$G$6:$EV$253,121,FALSE) -> 17 | I20: =VLOOKUP($C20,'RECAP SECT'!$G$6:$EV$253,122,FALSE) -> 74% | J20: =VLOOKUP($C20,'RECAP SECT'!$G$6:$EV$253,123,FALSE) -> 6% | K20: =VLOOKUP($C20,'RECAP SECT'!$G$6:$EV$253,124,FALSE) -> 11 | L20: =VLOOKUP($C20,'RECAP SECT'!$G$6:$EV$253,125,FALSE) -> 80% | M20: =VLOOKUP($C20,'RECAP SECT'!$G$6:$EV$253,126,FALSE) -> 20% | N20: =VLOOKUP($C20,'RECAP SECT'!$G$6:$EV$253,127,FALSE) -> 18 | O20: =VLOOKUP($C20,'RECAP SECT'!$G$6:$EV$253,128,FALSE) -> 11% | P20: =VLOOKUP($C20,'RECAP SECT'!$G$6:$EV$253,129,FALSE) -> 10% | Q20: =VLOOKUP($C20,'RECAP SECT'!$G$6:$EV$253,130,FALSE) -> 18
A21: 110 | B21: MEURTHE ET MOSELLE MEUSE | C21: 27 | D21: PONT A MOUSSON | E21: =VLOOKUP($C21,'RECAP SECT'!$G$6:$EV$253,3,FALSE) -> 88.0 | F21: =VLOOKUP($C21,'RECAP SECT'!$G$6:$EV$253,119,FALSE) -> 95% | G21: =VLOOKUP($C21,'RECAP SECT'!$G$6:$EV$253,120,FALSE) -> 4% | H21: =VLOOKUP($C21,'RECAP SECT'!$G$6:$EV$253,121,FALSE) -> 16 | I21: =VLOOKUP($C21,'RECAP SECT'!$G$6:$EV$253,122,FALSE) -> 75% | J21: =VLOOKUP($C21,'RECAP SECT'!$G$6:$EV$253,123,FALSE) -> 5% | K21: =VLOOKUP($C21,'RECAP SECT'!$G$6:$EV$253,124,FALSE) -> 9 | L21: =VLOOKUP($C21,'RECAP SECT'!$G$6:$EV$253,125,FALSE) -> 85% | M21: =VLOOKUP($C21,'RECAP SECT'!$G$6:$EV$253,126,FALSE) -> 15% | N21: =VLOOKUP($C21,'RECAP SECT'!$G$6:$EV$253,127,FALSE) -> 17 | O21: =VLOOKUP($C21,'RECAP SECT'!$G$6:$EV$253,128,FALSE) -> 9% | P21: =VLOOKUP($C21,'RECAP SECT'!$G$6:$EV$253,129,FALSE) -> 8% | Q21: =VLOOKUP($C21,'RECAP SECT'!$G$6:$EV$253,130,FALSE) -> 16
A22: 110 | B22: MEURTHE ET MOSELLE MEUSE | C22: 31 | D22: VERDUN | E22: =VLOOKUP($C22,'RECAP SECT'!$G$6:$EV$253,3,FALSE) -> 64.9 | F22: =VLOOKUP($C22,'RECAP SECT'!$G$6:$EV$253,119,FALSE) -> 97% | G22: =VLOOKUP($C22,'RECAP SECT'!$G$6:$EV$253,120,FALSE) -> 2% | H22: =VLOOKUP($C22,'RECAP SECT'!$G$6:$EV$253,121,FALSE) -> 11 | I22: =VLOOKUP($C22,'RECAP SECT'!$G$6:$EV$253,122,FALSE) -> 77% | J22: =VLOOKUP($C22,'RECAP SECT'!$G$6:$EV$253,123,FALSE) -> 3% | K22: =VLOOKUP($C22,'RECAP SECT'!$G$6:$EV$253,124,FALSE) -> 6 | L22: =VLOOKUP($C22,'RECAP SECT'!$G$6:$EV$253,125,FALSE) -> 90% | M22: =VLOOKUP($C22,'RECAP SECT'!$G$6:$EV$253,126,FALSE) -> 10% | N22: =VLOOKUP($C22,'RECAP SECT'!$G$6:$EV$253,127,FALSE) -> 12 | O22: =VLOOKUP($C22,'RECAP SECT'!$G$6:$EV$253,128,FALSE) -> 5% | P22: =VLOOKUP($C22,'RECAP SECT'!$G$6:$EV$253,129,FALSE) -> 4% | Q22: =VLOOKUP($C22,'RECAP SECT'!$G$6:$EV$253,130,FALSE) -> 13
A23: 160 | B23: MOSELLE | C23: 45 | D23: METZ | E23: =VLOOKUP($C23,'RECAP SECT'!$G$6:$EV$253,3,FALSE) -> 104.2 | F23: =VLOOKUP($C23,'RECAP SECT'!$G$6:$EV$253,119,FALSE) -> 96% | G23: =VLOOKUP($C23,'RECAP SECT'!$G$6:$EV$253,120,FALSE) -> 2% | H23: =VLOOKUP($C23,'RECAP SECT'!$G$6:$EV$253,121,FALSE) -> 14 | I23: =VLOOKUP($C23,'RECAP SECT'!$G$6:$EV$253,122,FALSE) -> 76% | J23: =VLOOKUP($C23,'RECAP SECT'!$G$6:$EV$253,123,FALSE) -> 3% | K23: =VLOOKUP($C23,'RECAP SECT'!$G$6:$EV$253,124,FALSE) -> 7 | L23: =VLOOKUP($C23,'RECAP SECT'!$G$6:$EV$253,125,FALSE) -> 97% | M23: =VLOOKUP($C23,'RECAP SECT'!$G$6:$EV$253,126,FALSE) -> 3% | N23: =VLOOKUP($C23,'RECAP SECT'!$G$6:$EV$253,127,FALSE) -> 11 | O23: =VLOOKUP($C23,'RECAP SECT'!$G$6:$EV$253,128,FALSE) -> 3% | P23: =VLOOKUP($C23,'RECAP SECT'!$G$6:$EV$253,129,FALSE) -> 2% | Q23: =VLOOKUP($C23,'RECAP SECT'!$G$6:$EV$253,130,FALSE) -> 7
A24: 160 | B24: MOSELLE | C24: 42 | D24: MOSELLE EST | E24: =VLOOKUP($C24,'RECAP SECT'!$G$6:$EV$253,3,FALSE) -> 86.0 | F24: =VLOOKUP($C24,'RECAP SECT'!$G$6:$EV$253,119,FALSE) -> 96% | G24: =VLOOKUP($C24,'RECAP SECT'!$G$6:$EV$253,120,FALSE) -> 2% | H24: =VLOOKUP($C24,'RECAP SECT'!$G$6:$EV$253,121,FALSE) -> 15 | I24: =VLOOKUP($C24,'RECAP SECT'!$G$6:$EV$253,122,FALSE) -> 78% | J24: =VLOOKUP($C24,'RECAP SECT'!$G$6:$EV$253,123,FALSE) -> 1% | K24: =VLOOKUP($C24,'RECAP SECT'!$G$6:$EV$253,124,FALSE) -> 3 | L24: =VLOOKUP($C24,'RECAP SECT'!$G$6:$EV$253,125,FALSE) -> 100% | M24: =VLOOKUP($C24,'RECAP SECT'!$G$6:$EV$253,126,FALSE) -> 0% | N24: =VLOOKUP($C24,'RECAP SECT'!$G$6:$EV$253,127,FALSE) -> 1 | O24: =VLOOKUP($C24,'RECAP SECT'!$G$6:$EV$253,128,FALSE) -> 1% | P24: =VLOOKUP($C24,'RECAP SECT'!$G$6:$EV$253,129,FALSE) -> 0% | Q24: =VLOOKUP($C24,'RECAP SECT'!$G$6:$EV$253,130,FALSE) -> 2
A25: 160 | B25: MOSELLE | C25: 44 | D25: MOSELLE NORD | E25: =VLOOKUP($C25,'RECAP SECT'!$G$6:$EV$253,3,FALSE) -> 80.5 | F25: =VLOOKUP($C25,'RECAP SECT'!$G$6:$EV$253,119,FALSE) -> 97% | G25: =VLOOKUP($C25,'RECAP SECT'!$G$6:$EV$253,120,FALSE) -> 1% | H25: =VLOOKUP($C25,'RECAP SECT'!$G$6:$EV$253,121,FALSE) -> 5 | I25: =VLOOKUP($C25,'RECAP SECT'!$G$6:$EV$253,122,FALSE) -> 78% | J25: =VLOOKUP($C25,'RECAP SECT'!$G$6:$EV$253,123,FALSE) -> 1% | K25: =VLOOKUP($C25,'RECAP SECT'!$G$6:$EV$253,124,FALSE) -> 2 | L25: =VLOOKUP($C25,'RECAP SECT'!$G$6:$EV$253,125,FALSE) -> 99% | M25: =VLOOKUP($C25,'RECAP SECT'!$G$6:$EV$253,126,FALSE) -> 1% | N25: =VLOOKUP($C25,'RECAP SECT'!$G$6:$EV$253,127,FALSE) -> 7 | O25: =VLOOKUP($C25,'RECAP SECT'!$G$6:$EV$253,128,FALSE) -> 1% | P25: =VLOOKUP($C25,'RECAP SECT'!$G$6:$EV$253,129,FALSE) -> 0% | Q25: =VLOOKUP($C25,'RECAP SECT'!$G$6:$EV$253,130,FALSE) -> 3
A26: 80 | B26: VOSGES | C26: 57 | D26: EPINAL | E26: =VLOOKUP($C26,'RECAP SECT'!$G$6:$EV$253,3,FALSE) -> 68.7 | F26: =VLOOKUP($C26,'RECAP SECT'!$G$6:$EV$253,119,FALSE) -> 99% | G26: =VLOOKUP($C26,'RECAP SECT'!$G$6:$EV$253,120,FALSE) -> 0% | H26: =VLOOKUP($C26,'RECAP SECT'!$G$6:$EV$253,121,FALSE) -> 1 | I26: =VLOOKUP($C26,'RECAP SECT'!$G$6:$EV$253,122,FALSE) -> 77% | J26: =VLOOKUP($C26,'RECAP SECT'!$G$6:$EV$253,123,FALSE) -> 2% | K26: =VLOOKUP($C26,'RECAP SECT'!$G$6:$EV$253,124,FALSE) -> 5 | L26: =VLOOKUP($C26,'RECAP SECT'!$G$6:$EV$253,125,FALSE) -> 90% | M26: =VLOOKUP($C26,'RECAP SECT'!$G$6:$EV$253,126,FALSE) -> 10% | N26: =VLOOKUP($C26,'RECAP SECT'!$G$6:$EV$253,127,FALSE) -> 13 | O26: =VLOOKUP($C26,'RECAP SECT'!$G$6:$EV$253,128,FALSE) -> 5% | P26: =VLOOKUP($C26,'RECAP SECT'!$G$6:$EV$253,129,FALSE) -> 4% | Q26: =VLOOKUP($C26,'RECAP SECT'!$G$6:$EV$253,130,FALSE) -> 12
A27: 80 | B27: VOSGES | C27: 55 | D27: SAINT DIE | E27: =VLOOKUP($C27,'RECAP SECT'!$G$6:$EV$253,3,FALSE) -> 57.9 | F27: =VLOOKUP($C27,'RECAP SECT'!$G$6:$EV$253,119,FALSE) -> 97% | G27: =VLOOKUP($C27,'RECAP SECT'!$G$6:$EV$253,120,FALSE) -> 1% | H27: =VLOOKUP($C27,'RECAP SECT'!$G$6:$EV$253,121,FALSE) -> 8 | I27: =VLOOKUP($C27,'RECAP SECT'!$G$6:$EV$253,122,FALSE) -> 79% | J27: =VLOOKUP($C27,'RECAP SECT'!$G$6:$EV$253,123,FALSE) -> 0% | K27: =VLOOKUP($C27,'RECAP SECT'!$G$6:$EV$253,124,FALSE) -> 1 | L27: =VLOOKUP($C27,'RECAP SECT'!$G$6:$EV$253,125,FALSE) -> 98% | M27: =VLOOKUP($C27,'RECAP SECT'!$G$6:$EV$253,126,FALSE) -> 2% | N27: =VLOOKUP($C27,'RECAP SECT'!$G$6:$EV$253,127,FALSE) -> 9 | O27: =VLOOKUP($C27,'RECAP SECT'!$G$6:$EV$253,128,FALSE) -> 1% | P27: =VLOOKUP($C27,'RECAP SECT'!$G$6:$EV$253,129,FALSE) -> 0% | Q27: =VLOOKUP($C27,'RECAP SECT'!$G$6:$EV$253,130,FALSE) -> 4
A28: Total CEGEE Directions Régionales | E28: =SUM(E10:E27) -> 1368

Sheet SE_SATISFACTION
A1: Accueil | F1: BAROMETRE BDD - TERRITOIRES
F2: SATISFACTION CLIENTS
F3: =ACCUEIL!H7 -> 2019-06-30
F7: N P S | I7: Enquête Qualité Haute Définition | L7: Total Satisfaction Clients
G8: coef | H8: ='RECAP DIRCOM'!EO4 -> 5% | J8: coef | K8: ='RECAP DIRCOM'!ER4 -> 5% | M8: coef | N8: ='RECAP DIRCOM'!EU4 -> 10%
A9: eds | B9: Direction | C9: eds | D9: Territoire | E9: ETP perf | G9: % Ecart au 1er | H9: Rang | J9: % Ecart au 1er | K9: Rang | L9: Moyenne ecart au 1er | M9: % Ecart au 1er | N9: Rang CEGEE
A10: 50 | B10: AUBE HAUTE MARNE | C10: 21 | D10: CHAUMONT | E10: =VLOOKUP($C10,'RECAP SECT'!$G$6:$EV$253,3,FALSE) -> 46.7 | F10: =VLOOKUP($C10,'RECAP SECT'!$G$6:$EV$253,137,FALSE) -> -2 | G10: =VLOOKUP($C10,'RECAP SECT'!$G$6:$EV$253,138,FALSE) -> 0% | H10: =VLOOKUP($C10,'RECAP SECT'!$G$6:$EV$253,139,FALSE) -> 1 | I10: =VLOOKUP($C10,'RECAP SECT'!$G$6:$EV$253,140,FALSE) -> 78% | J10: =VLOOKUP($C10,'RECAP SECT'!$G$6:$EV$253,141,FALSE) -> 2% | K10: =VLOOKUP($C10,'RECAP SECT'!$G$6:$EV$253,142,FALSE) -> 4 | L10: =VLOOKUP($C10,'RECAP SECT'!$G$6:$EV$253,143,FALSE) -> 1% | M10: =VLOOKUP($C10,'RECAP SECT'!$G$6:$EV$253,144,FALSE) -> 1% | N10: =VLOOKUP($C10,'RECAP SECT'!$G$6:$EV$253,145,FALSE) -> 2
A11: 50 | B11: AUBE HAUTE MARNE | C11: 14 | D11: TROYES | E11: =VLOOKUP($C11,'RECAP SECT'!$G$6:$EV$253,3,FALSE) -> 78.6 | F11: =VLOOKUP($C11,'RECAP SECT'!$G$6:$EV$253,137,FALSE) -> -12 | G11: =VLOOKUP($C11,'RECAP SECT'!$G$6:$EV$253,138,FALSE) -> 58% | H11: =VLOOKUP($C11,'RECAP SECT'!$G$6:$EV$253,139,FALSE) -> 8 | I11: =VLOOKUP($C11,'RECAP SECT'!$G$6:$EV$253,140,FALSE) -> 74% | J11: =VLOOKUP($C11,'RECAP SECT'!$G$6:$EV$253,141,FALSE) -> 7% | K11: =VLOOKUP($C11,'RECAP SECT'!$G$6:$EV$253,142,FALSE) -> 13 | L11: =VLOOKUP($C11,'RECAP SECT'!$G$6:$EV$253,143,FALSE) -> 32% | M11: =VLOOKUP($C11,'RECAP SECT'!$G$6:$EV$253,144,FALSE) -> 32% | N11: =VLOOKUP($C11,'RECAP SECT'!$G$6:$EV$253,145,FALSE) -> 10
A12: 262 | B12: BAS-RHIN | C12: 5060 | D12: HAGUENAU | E12: =VLOOKUP($C12,'RECAP SECT'!$G$6:$EV$253,3,FALSE) -> 88.8 | F12: =VLOOKUP($C12,'RECAP SECT'!$G$6:$EV$253,137,FALSE) -> -12 | G12: =VLOOKUP($C12,'RECAP SECT'!$G$6:$EV$253,138,FALSE) -> 58% | H12: =VLOOKUP($C12,'RECAP SECT'!$G$6:$EV$253,139,FALSE) -> 8 | I12: =VLOOKUP($C12,'RECAP SECT'!$G$6:$EV$253,140,FALSE) -> 76% | J12: =VLOOKUP($C12,'RECAP SECT'!$G$6:$EV$253,141,FALSE) -> 5% | K12: =VLOOKUP($C12,'RECAP SECT'!$G$6:$EV$253,142,FALSE) -> 9 | L12: =VLOOKUP($C12,'RECAP SECT'!$G$6:$EV$253,143,FALSE) -> 31% | M12: =VLOOKUP($C12,'RECAP SECT'!$G$6:$EV$253,144,FALSE) -> 31% | N12: =VLOOKUP($C12,'RECAP SECT'!$G$6:$EV$253,145,FALSE) -> 9
A13: 262 | B13: BAS-RHIN | C13: 5101 | D13: SELESTAT | E13: =VLOOKUP($C13,'RECAP SECT'!$G$6:$EV$253,3,FALSE) -> 75.2 | F13: =VLOOKUP($C13,'RECAP SECT'!$G$6:$EV$253,137,FALSE) -> -27 | G13: =VLOOKUP($C13,'RECAP SECT'!$G$6:$EV$253,138,FALSE) -> 144% | H13: =VLOOKUP($C13,'RECAP SECT'!$G$6:$EV$253,139,FALSE) -> 17 | I13: =VLOOKUP($C13,'RECAP SECT'!$G$6:$EV$253,140,FALSE) -> 73% | J13: =VLOOKUP($C13,'RECAP SECT'!$G$6:$EV$253,141,FALSE) -> 8% | K13: =VLOOKUP($C13,'RECAP SECT'!$G$6:$EV$253,142,FALSE) -> 16 | L13: =VLOOKUP($C13,'RECAP SECT'!$G$6:$EV$253,143,FALSE) -> 76% | M13: =VLOOKUP($C13,'RECAP SECT'!$G$6:$EV$253,144,FALSE) -> 76% | N13: =VLOOKUP($C13,'RECAP SECT'!$G$6:$EV$253,145,FALSE) -> 17
A14: 262 | B14: BAS-RHIN | C14: 5006 | D14: STRASBOURG | E14: =VLOOKUP($C14,'RECAP SECT'!$G$6:$EV$253,3,FALSE) -> 91.8 | F14: =VLOOKUP($C14,'RECAP SECT'!$G$6:$EV$253,137,FALSE) -> -28 | G14: =VLOOKUP($C14,'RECAP SECT'!$G$6:$EV$253,138,FALSE) -> 150% | H14: =VLOOKUP($C14,'RECAP SECT'!$G$6:$EV$253,139,FALSE) -> 18 | I14: =VLOOKUP($C14,'RECAP SECT'!$G$6:$EV$253,140,FALSE) -> 67% | J14: =VLOOKUP($C14,'RECAP SECT'!$G$6:$EV$253,141,FALSE) -> 16% | K14: =VLOOKUP($C14,'RECAP SECT'!$G$6:$EV$253,142,FALSE) -> 18 | L14: =VLOOKUP($C14,'RECAP SECT'!$G$6:$EV$253,143,FALSE) -> 83% | M14: =VLOOKUP($C14,'RECAP SECT'!$G$6:$EV$253,144,FALSE) -> 83% | N14: =VLOOKUP($C14,'RECAP SECT'!$G$6:$EV$253,145,FALSE) -> 18
A15: 264 | B15: HAUT-RHIN | C15: 5130 | D15: COLMAR | E15: =VLOOKUP($C15,'RECAP SECT'!$G$6:$EV$253,3,FALSE) -> 76.9 | F15: =VLOOKUP($C15,'RECAP SECT'!$G$6:$EV$253,137,FALSE) -> -21 | G15: =VLOOKUP($C15,'RECAP SECT'!$G$6:$EV$253,138,FALSE) -> 110% | H15: =VLOOKUP($C15,'RECAP SECT'!$G$6:$EV$253,139,FALSE) -> 15 | I15: =VLOOKUP($C15,'RECAP SECT'!$G$6:$EV$253,140,FALSE) -> 74% | J15: =VLOOKUP($C15,'RECAP SECT'!$G$6:$EV$253,141,FALSE) -> 7% | K15: =VLOOKUP($C15,'RECAP SECT'!$G$6:$EV$253,142,FALSE) -> 12 | L15: =VLOOKUP($C15,'RECAP SECT'!$G$6:$EV$253,143,FALSE) -> 58% | M15: =VLOOKUP($C15,'RECAP SECT'!$G$6:$EV$253,144,FALSE) -> 58% | N15: =VLOOKUP($C15,'RECAP SECT'!$G$6:$EV$253,145,FALSE) -> 15
A16: 264 | B16: HAUT-RHIN | C16: 5169 | D16: MULHOUSE | E16: =VLOOKUP($C16,'RECAP SECT'!$G$6:$EV$253,3,FALSE) -> 77.8 | F16: =VLOOKUP($C16,'RECAP SECT'!$G$6:$EV$253,137,FALSE) -> -22 | G16: =VLOOKUP($C16,'RECAP SECT'!$G$6:$EV$253,138,FALSE) -> 115% | H16: =VLOOKUP($C16,'RECAP SECT'!$G$6:$EV$253,139,FALSE) -> 16 | I16: =VLOOKUP($C16,'RECAP SECT'!$G$6:$EV$253,140,FALSE) -> 74% | J16: =VLOOKUP($C16,'RECAP SECT'!$G$6:$EV$253,141,FALSE) -> 8% | K16: =VLOOKUP($C16,'RECAP SECT'!$G$6:$EV$253,142,FALSE) -> 15 | L16: =VLOOKUP($C16,'RECAP SECT'!$G$6:$EV$253,143,FALSE) -> 62% | M16: =VLOOKUP($C16,'RECAP SECT'!$G$6:$EV$253,144,FALSE) -> 62% | N16: =VLOOKUP($C16,'RECAP SECT'!$G$6:$EV$253,145,FALSE) -> 16
A17: 30 | B17: MARNE-ARDENNES | C17: 6 | D17: CHALONS EN CHAMPAGNE | E17: =VLOOKUP($C17,'RECAP SECT'!$G$6:$EV$253,3,FALSE) -> 49.0 | F17: =VLOOKUP($C17,'RECAP SECT'!$G$6:$EV$253,137,FALSE) -> -8 | G17: =VLOOKUP($C17,'RECAP SECT'!$G$6:$EV$253,138,FALSE) -> 35% | H17: =VLOOKUP($C17,'RECAP SECT'!$G$6:$EV$253,139,FALSE) -> 5 | I17: =VLOOKUP($C17,'RECAP SECT'!$G$6:$EV$253,140,FALSE) -> 75% | J17: =VLOOKUP($C17,'RECAP SECT'!$G$6:$EV$253,141,FALSE) -> 7% | K17: =VLOOKUP($C17,'RECAP SECT'!$G$6:$EV$253,142,FALSE) -> 10 | L17: =VLOOKUP($C17,'RECAP SECT'!$G$6:$EV$253,143,FALSE) -> 21% | M17: =VLOOKUP($C17,'RECAP SECT'!$G$6:$EV$253,144,FALSE) -> 21% | N17: =VLOOKUP($C17,'RECAP SECT'!$G$6:$EV$253,145,FALSE) -> 5
A18: 30 | B18: MARNE-ARDENNES | C18: 2 | D18: CHARLEVILLE MEZIERES | E18: =VLOOKUP($C18,'RECAP SECT'!$G$6:$EV$253,3,FALSE) -> 63.1 | F18: =VLOOKUP($C18,'RECAP SECT'!$G$6:$EV$253,137,FALSE) -> -10 | G18: =VLOOKUP($C18,'RECAP SECT'!$G$6:$EV$253,138,FALSE) -> 46% | H18: =VLOOKUP($C18,'RECAP SECT'!$G$6:$EV$253,139,FALSE) -> 7 | I18: =VLOOKUP($C18,'RECAP SECT'!$G$6:$EV$253,140,FALSE) -> 77% | J18: =VLOOKUP($C18,'RECAP SECT'!$G$6:$EV$253,141,FALSE) -> 4% | K18: =VLOOKUP($C18,'RECAP SECT'!$G$6:$EV$253,142,FALSE) -> 7 | L18: =VLOOKUP($C18,'RECAP SECT'!$G$6:$EV$253,143,FALSE) -> 25% | M18: =VLOOKUP($C18,'RECAP SECT'!$G$6:$EV$253,144,FALSE) -> 25% | N18: =VLOOKUP($C18,'RECAP SECT'!$G$6:$EV$253,145,FALSE) -> 7
A19: 30 | B19: MARNE-ARDENNES | C19: 11 | D19: REIMS | E19: =VLOOKUP($C19,'RECAP SECT'!$G$6:$EV$253,3,FALSE) -> 90.6 | F19: =VLOOKUP($C19,'RECAP SECT'!$G$6:$EV$253,137,FALSE) -> -2 | G19: =VLOOKUP($C19,'RECAP SECT'!$G$6:$EV$253,138,FALSE) -> 0% | H19: =VLOOKUP($C19,'RECAP SECT'!$G$6:$EV$253,139,FALSE) -> 1 | I19: =VLOOKUP($C19,'RECAP SECT'!$G$6:$EV$253,140,FALSE) -> 80% | J19: =VLOOKUP($C19,'RECAP SECT'!$G$6:$EV$253,141,FALSE) -> 0% | K19: =VLOOKUP($C19,'RECAP SECT'!$G$6:$EV$253,142,FALSE) -> 1 | L19: =VLOOKUP($C19,'RECAP SECT'!$G$6:$EV$253,143,FALSE) -> 0% | M19: =VLOOKUP($C19,'RECAP SECT'!$G$6:$EV$253,144,FALSE) -> 0% | N19: =VLOOKUP($C19,'RECAP SECT'!$G$6:$EV$253,145,FALSE) -> 1
A20: 110 | B20: MEURTHE ET MOSELLE MEUSE | C20: 26 | D20: NANCY | E20: =VLOOKUP($C20,'RECAP SECT'!$G$6:$EV$253,3,FALSE) -> 79.5 | F20: =VLOOKUP($C20,'RECAP SECT'!$G$6:$EV$253,137,FALSE) -> -17 | G20: =VLOOKUP($C20,'RECAP SECT'!$G$6:$EV$253,138,FALSE) -> 87% | H20: =VLOOKUP($C20,'RECAP SECT'!$G$6:$EV$253,139,FALSE) -> 12 | I20: =VLOOKUP($C20,'RECAP SECT'!$G$6:$EV$253,140,FALSE) -> 77% | J20: =VLOOKUP($C20,'RECAP SECT'!$G$6:$EV$253,141,FALSE) -> 3% | K20: =VLOOKUP($C20,'RECAP SECT'!$G$6:$EV$253,142,FALSE) -> 5 | L20: =VLOOKUP($C20,'RECAP SECT'!$G$6:$EV$253,143,FALSE) -> 45% | M20: =VLOOKUP($C20,'RECAP SECT'!$G$6:$EV$253,144,FALSE) -> 45% | N20: =VLOOKUP($C20,'RECAP SECT'!$G$6:$EV$253,145,FALSE) -> 12
A21: 110 | B21: MEURTHE ET MOSELLE MEUSE | C21: 27 | D21: PONT A MOUSSON | E21: =VLOOKUP($C21,'RECAP SECT'!$G$6:$EV$253,3,FALSE) -> 88.0 | F21: =VLOOKUP($C21,'RECAP SECT'!$G$6:$EV$253,137,FALSE) -> -13 | G21: =VLOOKUP($C21,'RECAP SECT'!$G$6:$EV$253,138,FALSE) -> 63% | H21: =VLOOKUP($C21,'RECAP SECT'!$G$6:$EV$253,139,FALSE) -> 11 | I21: =VLOOKUP($C21,'RECAP SECT'!$G$6:$EV$253,140,FALSE) -> 74% | J21: =VLOOKUP($C21,'RECAP SECT'!$G$6:$EV$253,141,FALSE) -> 7% | K21: =VLOOKUP($C21,'RECAP SECT'!$G$6:$EV$253,142,FALSE) -> 14 | L21: =VLOOKUP($C21,'RECAP SECT'!$G$6:$EV$253,143,FALSE) -> 35% | M21: =VLOOKUP($C21,'RECAP SECT'!$G$6:$EV$253,144,FALSE) -> 35% | N21: =VLOOKUP($C21,'RECAP SECT'!$G$6:$EV$253,145,FALSE) -> 11
A22: 110 | B22: MEURTHE ET MOSELLE MEUSE | C22: 31 | D22: VERDUN | E22: =VLOOKUP($C22,'RECAP SECT'!$G$6:$EV$253,3,FALSE) -> 64.9 | F22: =VLOOKUP($C22,'RECAP SECT'!$G$6:$EV$253,137,FALSE) -> -9 | G22: =VLOOKUP($C22,'RECAP SECT'!$G$6:$EV$253,138,FALSE) -> 40% | H22: =VLOOKUP($C22,'RECAP SECT'!$G$6:$EV$253,139,FALSE) -> 6 | I22: =VLOOKUP($C22,'RECAP SECT'!$G$6:$EV$253,140,FALSE) -> 74% | J22: =VLOOKUP($C22,'RECAP SECT'!$G$6:$EV$253,141,FALSE) -> 7% | K22: =VLOOKUP($C22,'RECAP SECT'!$G$6:$EV$253,142,FALSE) -> 11 | L22: =VLOOKUP($C22,'RECAP SECT'!$G$6:$EV$253,143,FALSE) -> 24% | M22: =VLOOKUP($C22,'RECAP SECT'!$G$6:$EV$253,144,FALSE) -> 24% | N22: =VLOOKUP($C22,'RECAP SECT'!$G$6:$EV$253,145,FALSE) -> 6
A23: 160 | B23: MOSELLE | C23: 45 | D23: METZ | E23: =VLOOKUP($C23,'RECAP SECT'!$G$6:$EV$253,3,FALSE) -> 104.2 | F23: =VLOOKUP($C23,'RECAP SECT'!$G$6:$EV$253,137,FALSE) -> -12 | G23: =VLOOKUP($C23,'RECAP SECT'!$G$6:$EV$253,138,FALSE) -> 58% | H23: =VLOOKUP($C23,'RECAP SECT'!$G$6:$EV$253,139,FALSE) -> 8 | I23: =VLOOKUP($C23,'RECAP SECT'!$G$6:$EV$253,140,FALSE) -> 77% | J23: =VLOOKUP($C23,'RECAP SECT'!$G$6:$EV$253,141,FALSE) -> 3% | K23: =VLOOKUP($C23,'RECAP SECT'!$G$6:$EV$253,142,FALSE) -> 5 | L23: =VLOOKUP($C23,'RECAP SECT'!$G$6:$EV$253,143,FALSE) -> 30% | M23: =VLOOKUP($C23,'RECAP SECT'!$G$6:$EV$253,144,FALSE) -> 30% | N23: =VLOOKUP($C23,'RECAP SECT'!$G$6:$EV$253,145,FALSE) -> 8
A24: 160 | B24: MOSELLE | C24: 42 | D24: MOSELLE EST | E24: =VLOOKUP($C24,'RECAP SECT'!$G$6:$EV$253,3,FALSE) -> 86.0 | F24: =VLOOKUP($C24,'RECAP SECT'!$G$6:$EV$253,137,FALSE) -> -7 | G24: =VLOOKUP($C24,'RECAP SECT'!$G$6:$EV$253,138,FALSE) -> 29% | H24: =VLOOKUP($C24,'RECAP SECT'!$G$6:$EV$253,139,FALSE) -> 3 | I24: =VLOOKUP($C24,'RECAP SECT'!$G$6:$EV$253,140,FALSE) -> 79% | J24: =VLOOKUP($C24,'RECAP SECT'!$G$6:$EV$253,141,FALSE) -> 2% | K24: =VLOOKUP($C24,'RECAP SECT'!$G$6:$EV$253,142,FALSE) -> 2 | L24: =VLOOKUP($C24,'RECAP SECT'!$G$6:$EV$253,143,FALSE) -> 15% | M24: =VLOOKUP($C24,'RECAP SECT'!$G$6:$EV$253,144,FALSE) -> 15% | N24: =VLOOKUP($C24,'RECAP SECT'!$G$6:$EV$253,145,FALSE) -> 3
A25: 160 | B25: MOSELLE | C25: 44 | D25: MOSELLE NORD | E25: =VLOOKUP($C25,'RECAP SECT'!$G$6:$EV$253,3,FALSE) -> 80.5 | F25: =VLOOKUP($C25,'RECAP SECT'!$G$6:$EV$253,137,FALSE) -> -19 | G25: =VLOOKUP($C25,'RECAP SECT'!$G$6:$EV$253,138,FALSE) -> 98% | H25: =VLOOKUP($C25,'RECAP SECT'!$G$6:$EV$253,139,FALSE) -> 14 | I25: =VLOOKUP($C25,'RECAP SECT'!$G$6:$EV$253,140,FALSE) -> 73% | J25: =VLOOKUP($C25,'RECAP SECT'!$G$6:$EV$253,141,FALSE) -> 8% | K25: =VLOOKUP($C25,'RECAP SECT'!$G$6:$EV$253,142,FALSE) -> 17 | L25: =VLOOKUP($C25,'RECAP SECT'!$G$6:$EV$253,143,FALSE) -> 53% | M25: =VLOOKUP($C25,'RECAP SECT'!$G$6:$EV$253,144,FALSE) -> 53% | N25: =VLOOKUP($C25,'RECAP SECT'!$G$6:$EV$253,145,FALSE) -> 14
A26: 80 | B26: VOSGES | C26: 57 | D26: EPINAL | E26: =VLOOKUP($C26,'RECAP SECT'!$G$6:$EV$253,3,FALSE) -> 68.7 | F26: =VLOOKUP($C26,'RECAP SECT'!$G$6:$EV$253,137,FALSE) -> -17 | G26: =VLOOKUP($C26,'RECAP SECT'!$G$6:$EV$253,138,FALSE) -> 87% | H26: =VLOOKUP($C26,'RECAP SECT'!$G$6:$EV$253,139,FALSE) -> 12 | I26: =VLOOKUP($C26,'RECAP SECT'!$G$6:$EV$253,140,FALSE) -> 77% | J26: =VLOOKUP($C26,'RECAP SECT'!$G$6:$EV$253,141,FALSE) -> 4% | K26: =VLOOKUP($C26,'RECAP SECT'!$G$6:$EV$253,142,FALSE) -> 8 | L26: =VLOOKUP($C26,'RECAP SECT'!$G$6:$EV$253,143,FALSE) -> 45% | M26: =VLOOKUP($C26,'RECAP SECT'!$G$6:$EV$253,144,FALSE) -> 45% | N26: =VLOOKUP($C26,'RECAP SECT'!$G$6:$EV$253,145,FALSE) -> 13
A27: 80 | B27: VOSGES | C27: 55 | D27: SAINT DIE | E27: =VLOOKUP($C27,'RECAP SECT'!$G$6:$EV$253,3,FALSE) -> 57.9 | F27: =VLOOKUP($C27,'RECAP SECT'!$G$6:$EV$253,137,FALSE) -> -7 | G27: =VLOOKUP($C27,'RECAP SECT'!$G$6:$EV$253,138,FALSE) -> 29% | H27: =VLOOKUP($C27,'RECAP SECT'!$G$6:$EV$253,139,FALSE) -> 3 | I27: =VLOOKUP($C27,'RECAP SECT'!$G$6:$EV$253,140,FALSE) -> 78% | J27: =VLOOKUP($C27,'RECAP SECT'!$G$6:$EV$253,141,FALSE) -> 2% | K27: =VLOOKUP($C27,'RECAP SECT'!$G$6:$EV$253,142,FALSE) -> 3 | L27: =VLOOKUP($C27,'RECAP SECT'!$G$6:$EV$253,143,FALSE) -> 15% | M27: =VLOOKUP($C27,'RECAP SECT'!$G$6:$EV$253,144,FALSE) -> 15% | N27: =VLOOKUP($C27,'RECAP SECT'!$G$6:$EV$253,145,FALSE) -> 4
A28: Total CEGEE Directions Régionales | E28: =SUM(E10:E27) -> 1368

Sheet AG_CLASS
A1: Accueil | H1: BAROMETRE BDD - AGENCES
H2: CLASSEMENTS
H3: =ACCUEIL!H7 -> 2019-06-30
H8: CLASSEMENT GENERAL | I8: CRITERE CONQUETE | J8: Evolution nette Clients Bancarisés Principaux (BP +JBP) par ETP | K8: Evolution nette relations Premium par ETP | L8: Evolution nette Clients Bancarisés Principaux équipés par ETP | M8: Evolution nette Clients Pro actif équipés par rapport à l’objectif fixé | N8: CRITERE EQUIPEMENT BANCARISATION | O8: Ventes nettes forfaits (+ 2 options) par ETP | P8: Ventes nettes IZICARTES par ETP | Q8: Ventes nettes cartes HDG par ETP | R8: Vente nette CB débit différé par ETP | S8: Ventes nettes banca Pro Forfaits Pro, Carte pro par rapport à l’objectif | T8: CRITERE EPARGNE | U8: Excédents de collecte (y.c DAV) par ETP | V8: CA assurance vie par ETP | W8: Activité UC (CA+arbitrage) par ETP | X8: Excédents Assurance-vie par ETP | Y8: Excédents Epargne Bilan (Hors Emprunts CTO) par ETP | Z8: CRITERE CREDITS | AA8: Engagement Conso par ETP (hors clients 9) | AB8: % CNP sur Conso en valeur absolue | AC8: Engagements Immo par rapport à l’objectif | AD8: % CNP sur crédits immo en valeur absolue | AE8: Taux de couverture SACCEF | AF8: Engagements CMLT + CB par rapport à l’objectif | AG8: CRITERE IARD PREVOYANCE | AH8: Ventes nettes IARD (Auto+MRH+ Pro) par ETP | AI8: Ventes nettes Prévoyance (GAV, secur.f,prevoy loc,santé,assist.vie, obséques, Pro) par ETP | AJ8: Chiffre d’affaires IARD (Yc Pro) par ETP | AK8: CRITERE RISQUES | AL8: Complétude, conformité et fiabilisation des nouvelles EER sur flux BDD | AM8: Complétude, conformité et fiabilisation des EER sur flux cumulé et stock | AN8: Traitement et qualité du traitement des alertes Vigiclient | AO8: CRITERE Satisfaction Clients | AP8: Objectifs NPS* | AQ8: Enquête Qualité Haute Définition
A9: eds | B9: Direction | C9: eds | D9: Territoire | E9: eds | F9: Agence | G9: ETP perf | H9: Rang | I9: Rang | J9: Rang | K9: Rang | L9: Rang | M9: Rang | N9: Rang | O9: Rang | P9: Rang | Q9: Rang | R9: Rang | S9: Rang | T9: Rang | U9: Rang | V9: Rang | W9: Rang | X9: Rang | Y9: Rang | Z9: Rang | AA9: Rang | AB9: Rang | AC9: Rang | AD9: Rang | AE9: Rang | AF9: Rang | AG9: Rang | AH9: Rang | AI9: Rang | AJ9: Rang | AK9: Rang | AL9: Rang | AM9: Rang | AN9: Rang | AO9: Rang | AP9: Rang | AQ9: Rang
A10: 30 | B10: MARNE-ARDENNES | C10: 2 | D10: CHARLEVILLE MEZIERES | E10: 508833 | F10: VILLERS SEMEUSE CORA | G10: 2.9 | H10: 1 | I10: 1 | J10: 9 | K10: 6 | L10: 9 | M10: 5 | N10: 1 | O10: 195 | P10: 3 | Q10: 4 | R10: 6 | S10: 59 | T10: 151 | U10: 94 | V10: 188 | W10: 182 | X10: 130 | Y10: 176 | Z10: 89 | AA10: 113 | AB10: 159 | AC10: 176 | AD10: 104 | AE10: 107 | AF10: 90 | AG10: 6 | AH10: 7 | AI10: 5 | AJ10: 12 | AK10: 173 | AL10: 176 | AM10: 234 | AN10: 1 | AO10: 94 | AP10: 40 | AQ10: 256
A11: 30 | B11: MARNE-ARDENNES | C11: 2 | D11: CHARLEVILLE MEZIERES | E11: 508819 | F11: MOUZON | G11: 2.0 | H11: 2 | I11: 2 | J11: 1 | K11: 165 | L11: 1 | M11: 25 | N11: 74 | O11: 138 | P11: 253 | Q11: 103 | R11: 230 | S11: 4 | T11: 155 | U11: 189 | V11: 100 | W11: 125 | X11: 186 | Y11: 153 | Z11: 1 | AA11: 2 | AB11: 115 | AC11: 20 | AD11: 55 | AE11: 227 | AF11: 41 | AG11: 3 | AH11: 4 | AI11: 39 | AJ11: 1 | AK11: 17 | AL11: 152 | AM11: 14 | AN11: 1 | AO11: 19 | AP11: 25 | AQ11: 13
A12: 50 | B12: AUBE HAUTE MARNE | C12: 21 | D12: CHAUMONT | E12: 510590 | F12: CHAUMONT REPUBLIQUE | G12: 4.0 | H12: 3 | I12: 5 | J12: 3 | K12: 41 | L12: 14 | M12: 59 | N12: 29 | O12: 91 | P12: 246 | Q12: 142 | R12: 144 | S12: 1 | T12: 118 | U12: 81 | V12: 195 | W12: 210 | X12: 213 | Y12: 100 | Z12: 3 | AA12: 4 | AB12: 186 | AC12: 8 | AD12: 108 | AE12: 176 | AF12: 22 | AG12: 16 | AH12: 123 | AI12: 2 | AJ12: 237 | AK12: 26 | AL12: 118 | AM12: 28 | AN12: 1 | AO12: 15 | AP12: 15 | AQ12: 59
A13: 30 | B13: MARNE-ARDENNES | C13: 6 | D13: CHALONS EN CHAMPAGNE | E13: 551103 | F13: FAGNIERES LECLERC | G13: 2.7 | H13: 4 | I13: 39 | J13: 84 | K13: 9 | L13: 32 | M13: 278 | N13: 10 | O13: 192 | P13: 1 | Q13: 67 | R13: 81 | S13: 257 | T13: 91 | U13: 6 | V13: 138 | W13: 130 | X13: 125 | Y13: 192 | Z13: 67 | AA13: 85 | AB13: 63 | AC13: 103 | AD13: 67 | AE13: 170 | AF13: 269 | AG13: 5 | AH13: 10 | AI13: 4 | AJ13: 10 | AK13: 15 | AL13: 1 | AM13: 25 | AN13: 1 | AO13: 92 | AP13: 89 | AQ13: 142
A14: 110 | B14: MEURTHE ET MOSELLE MEUSE | C14: 27 | D14: PONT A MOUSSON | E14: 454696 | F14: VILLERS GENERAL LECLERC | G14: 6.4 | H14: 5 | I14: 7 | J14: 189 | K14: 149 | L14: 18 | M14: 1 | N14: 6 | O14: 207 | P14: 5 | Q14: 5 | R14: 121 | S14: 158 | T14: 28 | U14: 112 | V14: 12 | W14: 11 | X14: 55 | Y14: 72 | Z14: 6 | AA14: 14 | AB14: 231 | AC14: 16 | AD14: 146 | AE14: 101 | AF14: 15 | AG14: 20 | AH14: 64 | AI14: 8 | AJ14: 201 | AK14: 182 | AL14: 163 | AM14: 244 | AN14: 1 | AO14: 105 | AP14: 136 | AQ14: 21
A15: 30 | B15: MARNE-ARDENNES | C15: 11 | D15: REIMS | E15: 451336 | F15: TINQUEUX | G15: 5.8 | H15: 6 | I15: 3 | J15: 118 | K15: 1 | L15: 61 | M15: 12 | N15: 58 | O15: 218 | P15: 8 | Q15: 239 | R15: 55 | S15: 101 | T15: 2 | U15: 1 | V15: 49 | W15: 152 | X15: 50 | Y15: 3 | Z15: 71 | AA15: 52 | AB15: 280 | AC15: 49 | AD15: 244 | AE15: 198 | AF15: 38 | AG15: 126 | AH15: 157 | AI15: 130 | AJ15: 103 | AK15: 178 | AL15: 262 | AM15: 175 | AN15: 1 | AO15: 96 | AP15: 120 | AQ15: 51
A16: 30 | B16: MARNE-ARDENNES | C16: 6 | D16: CHALONS EN CHAMPAGNE | E16: 551354 | F16: VERTUS | G16: 2.9 | H16: 7 | I16: 131 | J16: 65 | K16: 92 | L16: 178 | M16: 232 | N16: 157 | O16: 17 | P16: 196 | Q16: 249 | R16: 169 | S16: 191 | T16: 1 | U16: 23 | V16: 96 | W16: 49 | X16: 48 | Y16: 1 | Z16: 45 | AA16: 60 | AB16: 183 | AC16: 141 | AD16: 9 | AE16: 214 | AF16: 63 | AG16: 37 | AH16: 129 | AI16: 13 | AJ16: 138 | AK16: 87 | AL16: 1 | AM16: 171 | AN16: 1 | AO16: 22 | AP16: 31 | AQ16: 6
A17: 160 | B17: MOSELLE | C17: 42 | D17: MOSELLE EST | E17: 457626 | F17: STIRING WENDEL | G17: 2.0 | H17: 8 | I17: 4 | J17: 5 | K17: 20 | L17: 3 | M17: 133 | N17: 5 | O17: 190 | P17: 80 | Q17: 2 | R17: 22 | S17: 76 | T17: 39 | U17: 34 | V17: 183 | W17: 134 | X17: 205 | Y17: 33 | Z17: 30 | AA17: 127 | AB17: 12 | AC17: 62 | AD17: 9 | AE17: 1 | AF17: 269 | AG17: 128 | AH17: 250 | AI17: 55 | AJ17: 145 | AK17: 191 | AL17: 303 | AM17: 62 | AN17: 1 | AO17: 42 | AP17: 51 | AQ17: 10
A18: 30 | B18: MARNE-ARDENNES | C18: 2 | D18: CHARLEVILLE MEZIERES | E18: 508817 | F18: CHARLEVILLE MOHON | G18: 3.5 | H18: 9 | I18: 9 | J18: 2 | K18: 261 | L18: 7 | M18: 25 | N18: 78 | O18: 203 | P18: 11 | Q18: 59 | R18: 143 | S18: 167 | T18: 264 | U18: 245 | V18: 265 | W18: 298 | X18: 153 | Y18: 217 | Z18: 13 | AA18: 159 | AB18: 114 | AC18: 7 | AD18: 53 | AE18: 132 | AF18: 67 | AG18: 11 | AH18: 23 | AI18: 11 | AJ18: 98 | AK18: 74 | AL18: 129 | AM18: 97 | AN18: 1 | AO18: 24 | AP18: 31 | AQ18: 9
A19: 160 | B19: MOSELLE | C19: 42 | D19: MOSELLE EST | E19: 557458 | F19: MORHANGE | G19: 2.6 | H19: 10 | I19: 40 | J19: 198 | K19: 186 | L19: 5 | M19: 25 | N19: 8 | O19: 12 | P19: 129 | Q19: 7 | R19: 62 | S19: 137 | T19: 130 | U19: 91 | V19: 90 | W19: 56 | X19: 32 | Y19: 237 | Z19: 87 | AA19: 63 | AB19: 28 | AC19: 66 | AD19: 274 | AE19: 81 | AF19: 233 | AG19: 7 | AH19: 12 | AI19: 19 | AJ19: 8 | AK19: 193 | AL19: 305 | AM19: 54 | AN19: 1 | AO19: 152 | AP19: 130 | AQ19: 228
A20: 80 | B20: VOSGES | C20: 57 | D20: EPINAL | E20: 488261 | F20: DOCELLES | G20: 1.8 | H20: 11 | I20: 44 | J20: 4 | K20: 242 | L20: 163 | M20: 59 | N20: 42 | O20: 23 | P20: 30 | Q20: 60 | R20: 122 | S20: 213 | T20: 19 | U20: 2 | V20: 114 | W20: 110 | X20: 35 | Y20: 54 | Z20: 7 | AA20: 22 | AB20: 189 | AC20: 2 | AD20: 226 | AE20: 114 | AF20: 129 | AG20: 51 | AH20: 63 | AI20: 113 | AJ20: 21 | AK20: 6 | AL20: 1 | AM20: 12 | AN20: 1 | AO20: 70 | AP20: 60 | AQ20: 101
A21: 160 | B21: MOSELLE | C21: 44 | D21: MOSELLE NORD | E21: 557347 | F21: GUENANGE | G21: 2.6 | H21: 12 | I21: 45 | J21: 82 | K21: 131 | L21: 46 | M21: 59 | N21: 156 | O21: 291 | P21: 125 | Q21: 32 | R21: 107 | S21: 113 | T21: 48 | U21: 19 | V21: 7 | W21: 55 | X21: 5 | Y21: 238 | Z21: 12 | AA21: 10 | AB21: 78 | AC21: 22 | AD21: 98 | AE21: 147 | AF21: 269 | AG21: 14 | AH21: 86 | AI21: 17 | AJ21: 41 | AK21: 4 | AL21: 1 | AM21: 10 | AN21: 1 | AO21: 30 | AP21: 35 | AQ21: 37
A22: 30 | B22: MARNE-ARDENNES | C22: 6 | D22: CHALONS EN CHAMPAGNE | E22: 551110 | F22: CHALONS ROOSEVELT | G22: 5.9 | H22: 13 | I22: 52 | J22: 102 | K22: 45 | L22: 34 | M22: 219 | N22: 60 | O22: 164 | P22: 18 | Q22: 81 | R22: 89 | S22: 134 | T22: 24 | U22: 137 | V22: 72 | W22: 21 | X22: 64 | Y22: 31 | Z22: 107 | AA22: 53 | AB22: 145 | AC22: 104 | AD22: 257 | AE22: 85 | AF22: 144 | AG22: 12 | AH22: 43 | AI22: 10 | AJ22: 91 | AK22: 42 | AL22: 1 | AM22: 71 | AN22: 1 | AO22: 80 | AP22: 87 | AQ22: 106
A23: 80 | B23: VOSGES | C23: 55 | D23: SAINT DIE | E23: 488616 | F23: SENONES | G23: 1.3 | H23: 14 | I23: 12 | J23: 115 | K23: 24 | L23: 65 | M23: 12 | N23: 14 | O23: 271 | P23: 4 | Q23: 66 | R23: 80 | S23: 21 | T23: 105 | U23: 74 | V23: 194 | W23: 77 | X23: 176 | Y23: 117 | Z23: 37 | AA23: 3 | AB23: 11 | AC23: 229 | AD23: 90 | AE23: 267 | AF23: 146 | AG23: 48 | AH23: 107 | AI23: 101 | AJ23: 13 | AK23: 85 | AL23: 1 | AM23: 168 | AN23: 1 | AO23: 76 | AP23: 60 | AQ23: 116
A24: 80 | B24: VOSGES | C24: 57 | D24: EPINAL | E24: 488288 | F24: EPINAL LEOPOLD BOURG | G24: 2.9 | H24: 15 | I24: 26 | J24: 33 | K24: 71 | L24: 191 | M24: 25 | N24: 17 | O24: 21 | P24: 36 | Q24: 216 | R24: 59 | S24: 15 | T24: 49 | U24: 49 | V24: 190 | W24: 124 | X24: 56 | Y24: 49 | Z24: 15 | AA24: 23 | AB24: 233 | AC24: 23 | AD24: 235 | AE24: 180 | AF24: 14 | AG24: 208 | AH24: 211 | AI24: 242 | AJ24: 76 | AK24: 180 | AL24: 1 | AM24: 3 | AN24: 247 | AO24: 1 | AP24: 1 | AQ24: 14
A25: 30 | B25: MARNE-ARDENNES | C25: 11 | D25: REIMS | E25: 551306 | F25: REIMS SAINT MARCEAUX | G25: 4.5 | H25: 16 | I25: 159 | J25: 244 | K25: 62 | L25: 102 | M25: 214 | N25: 3 | O25: 120 | P25: 2 | Q25: 93 | R25: 4 | S25: 153 | T25: 20 | U25: 134 | V25: 21 | W25: 81 | X25: 39 | Y25: 26 | Z25: 148 | AA25: 77 | AB25: 221 | AC25: 50 | AD25: 280 | AE25: 237 | AF25: 86 | AG25: 32 | AH25: 81 | AI25: 14 | AJ25: 183 | AK25: 215 | AL25: 130 | AM25: 287 | AN25: 1 | AO25: 72 | AP25: 37 | AQ25: 199
A26: 160 | B26: MOSELLE | C26: 45 | D26: METZ | E26: 557444 | F26: METZ SAINT JULIEN | G26: 5.7 | H26: 17 | I26: 32 | J26: 109 | K26: 212 | L26: 114 | M26: 5 | N26: 195 | O26: 287 | P26: 95 | Q26: 91 | R26: 115 | S26: 167 | T26: 6 | U26: 8 | V26: 13 | W26: 2 | X26: 9 | Y26: 35 | Z26: 181 | AA26: 80 | AB26: 230 | AC26: 167 | AD26: 281 | AE26: 71 | AF26: 118 | AG26: 39 | AH26: 46 | AI26: 28 | AJ26: 128 | AK26: 86 | AL26: 138 | AM26: 118 | AN26: 1 | AO26: 55 | AP26: 60 | AQ26: 30
A27: 30 | B27: MARNE-ARDENNES | C27: 2 | D27: CHARLEVILLE MEZIERES | E27: 508820 | F27: VOUZIERS | G27: 3.1 | H27: 18 | I27: 173 | J27: 234 | K27: 106 | L27: 127 | M27: 133 | N27: 32 | O27: 253 | P27: 7 | Q27: 80 | R27: 5 | S27: 294 | T27: 213 | U27: 114 | V27: 3 | W27: 44 | X27: 4 | Y27: 305 | Z27: 51 | AA27: 154 | AB27: 181 | AC27: 136 | AD27: 91 | AE27: 1 | AF27: 54 | AG27: 1 | AH27: 1 | AI27: 15 | AJ27: 3 | AK27: 216 | AL27: 164 | AM27: 278 | AN27: 1 | AO27: 277 | AP27: 270 | AQ27: 239
A28: 30 | B28: MARNE-ARDENNES | C28: 6 | D28: CHALONS EN CHAMPAGNE | E28: 451101 | F28: CHALONS VIVIERS | G28: 10.6 | H28: 19 | I28: 105 | J28: 106 | K28: 187 | L28: 75 | M28: 127 | N28: 20 | O28: 211 | P28: 49 | Q28: 62 | R28: 16 | S28: 37 | T28: 10 | U28: 39 | V28: 64 | W28: 15 | X28: 194 | Y28: 9 | Z28: 62 | AA28: 162 | AB28: 162 | AC28: 55 | AD28: 129 | AE28: 220 | AF28: 44 | AG28: 56 | AH28: 112 | AI28: 34 | AJ28: 118 | AK28: 205 | AL28: 205 | AM28: 256 | AN28: 1 | AO28: 106 | AP28: 102 | AQ28: 137
A29: 110 | B29: MEURTHE ET MOSELLE MEUSE | C29: 26 | D29: NANCY | E29: 554601 | F29: SAINT MAX | G29: 3.2 | H29: 20 | I29: 137 | J29: 260 | K29: 54 | L29: 67 | M29: 133 | N29: 82 | O29: 283 | P29: 114 | Q29: 150 | R29: 58 | S29: 11 | T29: 29 | U29: 32 | V29: 11 | W29: 25 | X29: 28 | Y29: 142 | Z29: 36 | AA29: 30 | AB29: 269 | AC29: 38 | AD29: 151 | AE29: 129 | AF29: 149 | AG29: 10 | AH29: 6 | AI29: 116 | AJ29: 7 | AK29: 143 | AL29: 164 | AM29: 200 | AN29: 1 | AO29: 163 | AP29: 193 | AQ29: 58
A30: 50 | B30: AUBE HAUTE MARNE | C30: 14 | D30: TROYES | E30: 410551 | F30: BRIENNE LE CHÂTEAU | G30: 2.8 | H30: 21 | I30: 68 | J30: 36 | K30: 191 | L30: 27 | M30: 133 | N30: 77 | O30: 24 | P30: 148 | Q30: 82 | R30: 91 | S30: 213 | T30: 199 | U30: 93 | V30: 187 | W30: 214 | X30: 77 | Y30: 246 | Z30: 19 | AA30: 34 | AB30: 58 | AC30: 133 | AD30: 9 | AE30: 164 | AF30: 23 | AG30: 13 | AH30: 13 | AI30: 48 | AJ30: 31 | AK30: 129 | AL30: 1 | AM30: 235 | AN30: 1 | AO30: 65 | AP30: 60 | AQ30: 84
A31: 160 | B31: MOSELLE | C31: 42 | D31: MOSELLE EST | E31: 457163 | F31: BEHREN LES FORBACH | G31: 2.5 | H31: 22 | I31: 67 | J31: 242 | K31: 23 | L31: 216 | M31: 25 | N31: 9 | O31: 189 | P31: 110 | Q31: 14 | R31: 32 | S31: 12 | T31: 188 | U31: 179 | V31: 248 | W31: 266 | X31: 158 | Y31: 147 | Z31: 68 | AA31: 170 | AB31: 99 | AC31: 10 | AD31: 237 | AE31: 231 | AF31: 112 | AG31: 91 | AH31: 144 | AI31: 78 | AJ31: 101 | AK31: 18 | AL31: 176 | AM31: 9 | AN31: 1 | AO31: 3 | AP31: 5 | AQ31: 36
A32: 110 | B32: MEURTHE ET MOSELLE MEUSE | C32: 27 | D32: PONT A MOUSSON | E32: 554496 | F32: NANCY TROIS MAISONS | G32: 3.2 | H32: 23 | I32: 126 | J32: 282 | K32: 87 | L32: 128 | M32: 25 | N32: 139 | O32: 255 | P32: 88 | Q32: 110 | R32: 100 | S32: 76 | T32: 26 | U32: 43 | V32: 98 | W32: 87 | X32: 115 | Y32: 32 | Z32: 153 | AA32: 19 | AB32: 246 | AC32: 154 | AD32: 119 | AE32: 277 | AF32: 238 | AG32: 24 | AH32: 19 | AI32: 65 | AJ32: 35 | AK32: 189 | AL32: 240 | AM32: 217 | AN32: 1 | AO32: 26 | AP32: 25 | AQ32: 42
A33: 30 | B33: MARNE-ARDENNES | C33: 11 | D33: REIMS | E33: 551340 | F33: BETHENY | G33: 3.8 | H33: 24 | I33: 33 | J33: 38 | K33: 29 | L33: 95 | M33: 133 | N33: 4 | O33: 139 | P33: 19 | Q33: 116 | R33: 3 | S33: 20 | T33: 95 | U33: 13 | V33: 6 | W33: 28 | X33: 8 | Y33: 292 | Z33: 122 | AA33: 178 | AB33: 121 | AC33: 58 | AD33: 299 | AE33: 70 | AF33: 46 | AG33: 74 | AH33: 27 | AI33: 115 | AJ33: 173 | AK33: 100 | AL33: 1 | AM33: 197 | AN33: 1 | AO33: 110 | AP33: 125 | AQ33: 94
A34: 30 | B34: MARNE-ARDENNES | C34: 11 | D34: REIMS | E34: 451370 | F34: EPERNAY VERRON | G34: 10.0 | H34: 25 | I34: 65 | J34: 77 | K34: 47 | L34: 83 | M34: 231 | N34: 90 | O34: 155 | P34: 23 | Q34: 108 | R34: 178 | S34: 70 | T34: 36 | U34: 70 | V34: 25 | W34: 62 | X34: 137 | Y34: 61 | Z34: 22 | AA34: 26 | AB34: 90 | AC34: 35 | AD34: 161 | AE34: 194 | AF34: 56 | AG34: 106 | AH34: 178 | AI34: 57 | AJ34: 179 | AK34: 177 | AL34: 126 | AM34: 254 | AN34: 1 | AO34: 28 | AP34: 28 | AQ34: 40
A35: 80 | B35: VOSGES | C35: 55 | D35: SAINT DIE | E35: 588386 | F35: LE THILLOT | G35: 3.5 | H35: 26 | I35: 18 | J35: 46 | K35: 11 | L35: 255 | M35: 25 | N35: 56 | O35: 41 | P35: 164 | Q35: 113 | R35: 66 | S35: 53 | T35: 134 | U35: 64 | V35: 224 | W35: 267 | X35: 145 | Y35: 146 | Z35: 27 | AA35: 163 | AB35: 2 | AC35: 52 | AD35: 66 | AE35: 83 | AF35: 89 | AG35: 147 | AH35: 57 | AI35: 261 | AJ35: 112 | AK35: 91 | AL35: 1 | AM35: 181 | AN35: 1 | AO35: 21 | AP35: 8 | AQ35: 183
A36: 110 | B36: MEURTHE ET MOSELLE MEUSE | C36: 27 | D36: PONT A MOUSSON | E36: 554686 | F36: VEZELISE | G36: 1.8 | H36: 27 | I36: 8 | J36: 30 | K36: 3 | L36: 12 | M36: 232 | N36: 89 | O36: 73 | P36: 63 | Q36: 25 | R36: 246 | S36: 167 | T36: 82 | U36: 108 | V36: 60 | W36: 93 | X36: 76 | Y36: 109 | Z36: 96 | AA36: 56 | AB36: 105 | AC36: 78 | AD36: 266 | AE36: 1 | AF36: 226 | AG36: 23 | AH36: 72 | AI36: 37 | AJ36: 16 | AK36: 172 | AL36: 216 | AM36: 208 | AN36: 1 | AO36: 241 | AP36: 218 | AQ36: 281
A37: 160 | B37: MOSELLE | C37: 45 | D37: METZ | E37: 557434 | F37: MARLY | G37: 4.8 | H37: 28 | I37: 28 | J37: 215 | K37: 90 | L37: 24 | M37: 12 | N37: 99 | O37: 167 | P37: 56 | Q37: 125 | R37: 165 | S37: 43 | T37: 56 | U37: 44 | V37: 85 | W37: 116 | X37: 27 | Y37: 96 | Z37: 154 | AA37: 175 | AB37: 81 | AC37: 86 | AD37: 217 | AE37: 133 | AF37: 261 | AG37: 28 | AH37: 8 | AI37: 171 | AJ37: 28 | AK37: 66 | AL37: 130 | AM37: 75 | AN37: 1 | AO37: 164 | AP37: 205 | AQ37: 26
A38: 160 | B38: MOSELLE | C38: 44 | D38: MOSELLE NORD | E38: 557303 | F38: FAMECK | G38: 3.7 | H38: 29 | I38: 112 | J38: 202 | K38: 74 | L38: 169 | M38: 59 | N38: 198 | O38: 286 | P38: 24 | Q38: 117 | R38: 249 | S38: 76 | T38: 125 | U38: 140 | V38: 180 | W38: 184 | X38: 67 | Y38: 141 | Z38: 18 | AA38: 42 | AB38: 204 | AC38: 14 | AD38: 73 | AE38: 158 | AF38: 208 | AG38: 27 | AH38: 41 | AI38: 61 | AJ38: 19 | AK38: 242 | AL38: 113 | AM38: 114 | AN38: 244 | AO38: 11 | AP38: 12 | AQ38: 61
A39: 160 | B39: MOSELLE | C39: 45 | D39: METZ | E39: 457443 | F39: METZ REPUBLIQUE | G39: 6.1 | H39: 30 | I39: 6 | J39: 13 | K39: 166 | L39: 13 | M39: 12 | N39: 93 | O39: 160 | P39: 126 | Q39: 65 | R39: 125 | S39: 57 | T39: 25 | U39: 4 | V39: 212 | W39: 262 | X39: 120 | Y39: 30 | Z39: 244 | AA39: 284 | AB39: 157 | AC39: 101 | AD39: 260 | AE39: 223 | AF39: 91 | AG39: 245 | AH39: 213 | AI39: 95 | AJ39: 307 | AK39: 133 | AL39: 198 | AM39: 147 | AN39: 1 | AO39: 8 | AP39: 8 | AQ39: 46
A40: 110 | B40: MEURTHE ET MOSELLE MEUSE | C40: 26 | D40: NANCY | E40: 454481 | F40: NANCY PLACE DOMBASLE | G40: 11.8 | H40: 31 | I40: 27 | J40: 21 | K40: 84 | L40: 19 | M40: 212 | N40: 48 | O40: 62 | P40: 165 | Q40: 85 | R40: 42 | S40: 72 | T40: 62 | U40: 88 | V40: 23 | W40: 98 | X40: 23 | Y40: 132 | Z40: 98 | AA40: 250 | AB40: 266 | AC40: 19 | AD40: 202 | AE40: 189 | AF40: 88 | AG40: 57 | AH40: 37 | AI40: 45 | AJ40: 215 | AK40: 289 | AL40: 268 | AM40: 203 | AN40: 295 | AO40: 62 | AP40: 60 | AQ40: 67
A41: 80 | B41: VOSGES | C41: 55 | D41: SAINT DIE | E41: 488326 | F41: GERARDMER | G41: 6.2 | H41: 32 | I41: 91 | J41: 224 | K41: 82 | L41: 126 | M41: 50 | N41: 36 | O41: 66 | P41: 93 | Q41: 156 | R41: 24 | S41: 73 | T41: 16 | U41: 12 | V41: 50 | W41: 58 | X41: 108 | Y41: 25 | Z41: 33 | AA41: 76 | AB41: 180 | AC41: 91 | AD41: 231 | AE41: 173 | AF41: 7 | AG41: 198 | AH41: 160 | AI41: 199 | AJ41: 168 | AK41: 33 | AL41: 1 | AM41: 60 | AN41: 1 | AO41: 53 | AP41: 45 | AQ41: 80
A42: 262 | B42: BAS-RHIN | C42: 5060 | D42: HAGUENAU | E42: 4092 | F42: HOCHFELDEN | G42: 2.5 | H42: 33 | I42: 13 | J42: 18 | K42: 12 | L42: 41 | M42: 133 | N42: 47 | O42: 14 | P42: 145 | Q42: 177 | R42: 73 | S42: 53 | T42: 242 | U42: 194 | V42: 273 | W42: 269 | X42: 219 | Y42: 201 | Z42: 77 | AA42: 25 | AB42: 75 | AC42: 159 | AD42: 251 | AE42: 1 | AF42: 101 | AG42: 83 | AH42: 278 | AI42: 26 | AJ42: 77 | AK42: 226 | AL42: 216 | AM42: 283 | AN42: 1 | AO42: 29 | AP42: 25 | AQ42: 66
A43: 50 | B43: AUBE HAUTE MARNE | C43: 21 | D43: CHAUMONT | E43: 410539 | F43: CHATEAUVILLAIN | G43: 2.0 | H43: 34 | I43: 48 | J43: 53 | K43: 85 | L43: 175 | M43: 59 | N43: 120 | O43: 28 | P43: 191 | Q43: 264 | R43: 69 | S43: 213 | T43: 161 | U43: 83 | V43: 284 | W43: 270 | X43: 263 | Y43: 93 | Z43: 44 | AA43: 36 | AB43: 39 | AC43: 251 | AD43: 9 | AE43: 1 | AF43: 95 | AG43: 49 | AH43: 90 | AI43: 59 | AJ43: 49 | AK43: 20 | AL43: 253 | AM43: 4 | AN43: 1 | AO43: 43 | AP43: 60 | AQ43: 3
A44: 110 | B44: MEURTHE ET MOSELLE MEUSE | C44: 27 | D44: PONT A MOUSSON | E44: 454466 | F44: NANCY PLATEAU DE HAYE | G44: 2.9 | H44: 35 | I44: 82 | J44: 47 | K44: 279 | L44: 25 | M44: 59 | N44: 243 | O44: 246 | P44: 16 | Q44: 10 | R44: 140 | S44: 306 | T44: 260 | U44: 241 | V44: 305 | W44: 283 | X44: 266 | Y44: 158 | Z44: 200 | AA44: 84 | AB44: 249 | AC44: 270 | AD44: 136 | AE44: 1 | AF44: 269 | AG44: 2 | AH44: 2 | AI44: 12 | AJ44: 5 | AK44: 246 | AL44: 140 | AM44: 186 | AN44: 240 | AO44: 158 | AP44: 178 | AQ44: 93
A45: 264 | B45: HAUT-RHIN | C45: 5130 | D45: COLMAR | E45: 4141 | F45: HORBOURG WIHR | G45: 3.6 | H45: 36 | I45: 128 | J45: 243 | K45: 32 | L45: 244 | M45: 59 | N45: 43 | O45: 3 | P45: 38 | Q45: 164 | R45: 137 | S45: 162 | T45: 117 | U45: 239 | V45: 199 | W45: 75 | X45: 127 | Y45: 78 | Z45: 88 | AA45: 102 | AB45: 176 | AC45: 47 | AD45: 128 | AE45: 243 | AF45: 239 | AG45: 21 | AH45: 20 | AI45: 31 | AJ45: 66 | AK45: 192 | AL45: 228 | AM45: 232 | AN45: 1 | AO45: 104 | AP45: 102 | AQ45: 127
A46: 30 | B46: MARNE-ARDENNES | C46: 2 | D46: CHARLEVILLE MEZIERES | E46: 508802 | F46: CHARLEVILLE NEVERS | G46: 3.8 | H46: 37 | I46: 38 | J46: 87 | K46: 155 | L46: 76 | M46: 25 | N46: 25 | O46: 46 | P46: 194 | Q46: 64 | R46: 12 | S46: 118 | T46: 198 | U46: 109 | V46: 294 | W46: 284 | X46: 241 | Y46: 150 | Z46: 25 | AA46: 181 | AB46: 1 | AC46: 51 | AD46: 65 | AE46: 78 | AF46: 87 | AG46: 34 | AH46: 50 | AI46: 23 | AJ46: 135 | AK46: 40 | AL46: 1 | AM46: 69 | AN46: 1 | AO46: 204 | AP46: 250 | AQ46: 25
A47: 262 | B47: BAS-RHIN | C47: 5006 | D47: STRASBOURG | E47: 4038 | F47: OBERHAUSBERGEN | G47: 3.3 | H47: 38 | I47: 196 | J47: 226 | K47: 210 | L47: 43 | M47: 214 | N47: 11 | O47: 95 | P47: 232 | Q47: 28 | R47: 2 | S47: 185 | T47: 64 | U47: 170 | V47: 170 | W47: 53 | X47: 123 | Y47: 40 | Z47: 84 | AA47: 73 | AB47: 34 | AC47: 76 | AD47: 190 | AE47: 151 | AF47: 206 | AG47: 19 | AH47: 5 | AI47: 206 | AJ47: 29 | AK47: 249 | AL47: 213 | AM47: 79 | AN47: 247 | AO47: 169 | AP47: 193 | AQ47: 73
A48: 50 | B48: AUBE HAUTE MARNE | C48: 21 | D48: CHAUMONT | E48: 410582 | F48: NOGENT EN BASSIGNY | G48: 1.8 | H48: 39 | I48: 90 | J48: 49 | K48: 261 | L48: 16 | M48: 133 | N48: 22 | O48: 11 | P48: 228 | Q48: 112 | R48: 39 | S48: 21 | T48: 268 | U48: 296 | V48: 206 | W48: 74 | X48: 305 | Y48: 136 | Z48: 99 | AA48: 6 | AB48: 97 | AC48: 187 | AD48: 245 | AE48: 206 | AF48: 152 | AG48: 17 | AH48: 17 | AI48: 120 | AJ48: 9 | AK48: 59 | AL48: 1 | AM48: 103 | AN48: 1 | AO48: 91 | AP48: 60 | AQ48: 172
A49: 80 | B49: VOSGES | C49: 55 | D49: SAINT DIE | E49: 588186 | F49: BRUYERES | G49: 3.3 | H49: 40 | I49: 136 | J49: 60 | K49: 142 | L49: 291 | M49: 59 | N49: 71 | O49: 171 | P49: 159 | Q49: 45 | R49: 105 | S49: 21 | T49: 174 | U49: 98 | V49: 33 | W49: 80 | X49: 92 | Y49: 271 | Z49: 35 | AA49: 28 | AB49: 52 | AC49: 53 | AD49: 165 | AE49: 188 | AF49: 119 | AG49: 47 | AH49: 75 | AI49: 76 | AJ49: 25 | AK49: 36 | AL49: 1 | AM49: 63 | AN49: 1 | AO49: 39 | AP49: 21 | AQ49: 166
A50: 30 | B50: MARNE-ARDENNES | C50: 11 | D50: REIMS | E50: 451361 | F50: PIERRY LECLERC | G50: 2.6 | H50: 41 | I50: 220 | J50: 74 | K50: 293 | L50: 79 | M50: 232 | N50: 18 | O50: 199 | P50: 6 | Q50: 35 | R50: 54 | S50: 213 | T50: 297 | U50: 276 | V50: 104 | W50: 154 | X50: 282 | Y50: 297 | Z50: 4 | AA50: 17 | AB50: 107 | AC50: 3 | AD50: 110 | AE50: 1 | AF50: 195 | AG50: 8 | AH50: 9 | AI50: 16 | AJ50: 46 | AK50: 55 | AL50: 1 | AM50: 93 | AN50: 1 | AO50: 167 | AP50: 132 | AQ50: 245
A51: 160 | B51: MOSELLE | C51: 44 | D51: MOSELLE NORD | E51: 457449 | F51: METZERVISSE | G51: 2.6 | H51: 42 | I51: 165 | J51: 139 | K51: 77 | L51: 180 | M51: 232 | N51: 28 | O51: 59 | P51: 116 | Q51: 19 | R51: 30 | S51: 213 | T51: 60 | U51: 24 | V51: 8 | W51: 16 | X51: 6 | Y51: 267 | Z51: 294 | AA51: 256 | AB51: 117 | AC51: 293 | AD51: 293 | AE51: 1 | AF51: 269 | AG51: 70 | AH51: 45 | AI51: 108 | AJ51: 96 | AK51: 2 | AL51: 1 | AM51: 5 | AN51: 1 | AO51: 10 | AP51: 1 | AQ51: 232
A52: 50 | B52: AUBE HAUTE MARNE | C52: 14 | D52: TROYES | E52: 410524 | F52: SAINT JULIEN LES VILLAS | G52: 6.0 | H52: 43 | I52: 11 | J52: 12 | K52: 88 | L52: 64 | M52: 25 | N52: 79 | O52: 133 | P52: 112 | Q52: 51 | R52: 120 | S52: 71 | T52: 89 | U52: 25 | V52: 198 | W52: 99 | X52: 227 | Y52: 104 | Z52: 47 | AA52: 41 | AB52: 236 | AC52: 18 | AD52: 243 | AE52: 197 | AF52: 175 | AG52: 267 | AH52: 236 | AI52: 233 | AJ52: 262 | AK52: 27 | AL52: 110 | AM52: 30 | AN52: 1 | AO52: 20 | AP52: 21 | AQ52: 38
A53: 30 | B53: MARNE-ARDENNES | C53: 11 | D53: REIMS | E53: 551310 | F53: REIMS CHATILLONS | G53: 5.6 | H53: 44 | I53: 129 | J53: 110 | K53: 261 | L53: 17 | M53: 133 | N53: 21 | O53: 217 | P53: 25 | Q53: 86 | R53: 14 | S53: 59 | T53: 204 | U53: 178 | V53: 92 | W53: 251 | X53: 38 | Y53: 249 | Z53: 20 | AA53: 177 | AB53: 31 | AC53: 9 | AD53: 131 | AE53: 126 | AF53: 83 | AG53: 76 | AH53: 40 | AI53: 79 | AJ53: 218 | AK53: 221 | AL53: 111 | AM53: 299 | AN53: 1 | AO53: 33 | AP53: 31 | AQ53: 76
A54: 30 | B54: MARNE-ARDENNES | C54: 11 | D54: REIMS | E54: 551365 | F54: DORMANS | G54: 2.7 | H54: 45 | I54: 49 | J54: 10 | K54: 282 | L54: 15 | M54: 133 | N54: 212 | O54: 44 | P54: 225 | Q54: 219 | R54: 201 | S54: 256 | T54: 181 | U54: 229 | V54: 35 | W54: 241 | X54: 112 | Y54: 203 | Z54: 179 | AA54: 81 | AB54: 289 | AC54: 124 | AD54: 68 | AE54: 278 | AF54: 160 | AG54: 43 | AH54: 58 | AI54: 41 | AJ54: 63 | AK54: 145 | AL54: 1 | AM54: 248 | AN54: 1 | AO54: 7 | AP54: 8 | AQ54: 33
A55: 30 | B55: MARNE-ARDENNES | C55: 11 | D55: REIMS | E55: 551369 | F55: DAMERY | G55: 3.1 | H55: 46 | I55: 219 | J55: 190 | K55: 105 | L55: 54 | M55: 293 | N55: 50 | O55: 69 | P55: 71 | Q55: 13 | R55: 150 | S55: 204 | T55: 14 | U55: 17 | V55: 200 | W55: 104 | X55: 143 | Y55: 13 | Z55: 102 | AA55: 59 | AB55: 173 | AC55: 253 | AD55: 81 | AE55: 117 | AF55: 65 | AG55: 95 | AH55: 124 | AI55: 44 | AJ55: 248 | AK55: 116 | AL55: 1 | AM55: 222 | AN55: 1 | AO55: 64 | AP55: 60 | AQ55: 70
A56: 262 | B56: BAS-RHIN | C56: 5060 | D56: HAGUENAU | E56: 4064 | F56: HAGUENAU MUSAU | G56: 2.2 | H56: 47 | I56: 236 | J56: 138 | K56: 46 | L56: 227 | M56: 296 | N56: 54 | O56: 42 | P56: 204 | Q56: 20 | R56: 200 | S56: 21 | T56: 27 | U56: 40 | V56: 291 | W56: 171 | X56: 286 | Y56: 12 | Z56: 210 | AA56: 285 | AB56: 136 | AC56: 128 | AD56: 211 | AE56: 109 | AF56: 141 | AG56: 50 | AH56: 82 | AI56: 75 | AJ56: 39 | AK56: 21 | AL56: 1 | AM56: 35 | AN56: 1 | AO56: 59 | AP56: 45 | AQ56: 118
A57: 110 | B57: MEURTHE ET MOSELLE MEUSE | C57: 26 | D57: NANCY | E57: 454171 | F57: BLAMONT | G57: 2.5 | H57: 48 | I57: 23 | J57: 116 | K57: 72 | L57: 33 | M57: 25 | N57: 66 | O57: 55 | P57: 46 | Q57: 244 | R57: 118 | S57: 21 | T57: 131 | U57: 76 | V57: 277 | W57: 303 | X57: 212 | Y57: 70 | Z57: 123 | AA57: 270 | AB57: 170 | AC57: 163 | AD57: 9 | AE57: 1 | AF57: 143 | AG57: 104 | AH57: 95 | AI57: 191 | AJ57: 50 | AK57: 105 | AL57: 269 | AM57: 50 | AN57: 1 | AO57: 84 | AP57: 60 | AQ57: 136
A58: 50 | B58: AUBE HAUTE MARNE | C58: 21 | D58: CHAUMONT | E58: 410560 | F58: BOURBONNE LES BAINS | G58: 1.9 | H58: 49 | I58: 35 | J58: 8 | K58: 160 | L58: 81 | M58: 133 | N58: 107 | O58: 16 | P58: 189 | Q58: 107 | R58: 207 | S58: 76 | T58: 236 | U58: 119 | V58: 281 | W58: 261 | X58: 257 | Y58: 204 | Z58: 201 | AA58: 18 | AB58: 51 | AC58: 210 | AD58: 289 | AE58: 183 | AF58: 185 | AG58: 40 | AH58: 119 | AI58: 51 | AJ58: 14 | AK58: 49 | AL58: 1 | AM58: 80 | AN58: 1 | AO58: 56 | AP58: 60 | AQ58: 31
A59: 30 | B59: MARNE-ARDENNES | C59: 11 | D59: REIMS | E59: 451318 | F59: VERZY | G59: 2.0 | H59: 50 | I59: 30 | J59: 26 | K59: 124 | L59: 11 | M59: 214 | N59: 148 | O59: 64 | P59: 35 | Q59: 236 | R59: 252 | S59: 137 | T59: 165 | U59: 184 | V59: 79 | W59: 90 | X59: 142 | Y59: 197 | Z59: 5 | AA59: 94 | AB59: 239 | AC59: 1 | AD59: 79 | AE59: 182 | AF59: 61 | AG59: 149 | AH59: 77 | AI59: 202 | AJ59: 172 | AK59: 153 | AL59: 1 | AM59: 255 | AN59: 1 | AO59: 50 | AP59: 60 | AQ59: 23
A60: 160 | B60: MOSELLE | C60: 44 | D60: MOSELLE NORD | E60: 457192 | F60: CATTENOM | G60: 3.3 | H60: 51 | I60: 202 | J60: 197 | K60: 257 | L60: 182 | M60: 59 | N60: 117 | O60: 154 | P60: 98 | Q60: 23 | R60: 129 | S60: 284 | T60: 76 | U60: 58 | V60: 51 | W60: 121 | X60: 18 | Y60: 162 | Z60: 59 | AA60: 46 | AB60: 175 | AC60: 223 | AD60: 9 | AE60: 1 | AF60: 192 | AG60: 45 | AH60: 135 | AI60: 40 | AJ60: 34 | AK60: 5 | AL60: 1 | AM60: 11 | AN60: 1 | AO60: 83 | AP60: 113 | AQ60: 22
A61: 50 | B61: AUBE HAUTE MARNE | C61: 21 | D61: CHAUMONT | E61: 451156 | F61: SAINT DIZIER CENTRE | G61: 7.2 | H61: 52 | I61: 85 | J61: 150 | K61: 176 | L61: 80 | M61: 50 | N61: 63 | O61: 278 | P61: 94 | Q61: 16 | R61: 51 | S61: 76 | T61: 239 | U61: 218 | V61: 179 | W61: 115 | X61: 264 | Y61: 220 | Z61: 149 | AA61: 89 | AB61: 228 | AC61: 265 | AD61: 282 | AE61: 79 | AF61: 9 | AG61: 18 | AH61: 39 | AI61: 18 | AJ61: 87 | AK61: 102 | AL61: 1 | AM61: 199 | AN61: 1 | AO61: 126 | AP61: 125 | AQ61: 160
A62: 160 | B62: MOSELLE | C62: 42 | D62: MOSELLE EST | E62: 557503 | F62: NEUNKIRCH | G62: 3.0 | H62: 53 | I62: 185 | J62: 268 | K62: 174 | L62: 100 | M62: 59 | N62: 7 | O62: 49 | P62: 226 | Q62: 15 | R62: 79 | S62: 6 | T62: 15 | U62: 5 | V62: 55 | W62: 82 | X62: 21 | Y62: 38 | Z62: 241 | AA62: 58 | AB62: 116 | AC62: 216 | AD62: 36 | AE62: 305 | AF62: 140 | AG62: 133 | AH62: 192 | AI62: 73 | AJ62: 200 | AK62: 16 | AL62: 182 | AM62: 7 | AN62: 1 | AO62: 125 | AP62: 148 | AQ62: 51
A63: 30 | B63: MARNE-ARDENNES | C63: 2 | D63: CHARLEVILLE MEZIERES | E63: 508860 | F63: ROCROI | G63: 3.2 | H63: 54 | I63: 17 | J63: 20 | K63: 67 | L63: 10 | M63: 133 | N63: 52 | O63: 178 | P63: 103 | Q63: 49 | R63: 26 | S63: 118 | T63: 252 | U63: 191 | V63: 222 | W63: 252 | X63: 253 | Y63: 221 | Z63: 76 | AA63: 51 | AB63: 148 | AC63: 175 | AD63: 63 | AE63: 153 | AF63: 167 | AG63: 38 | AH63: 111 | AI63: 25 | AJ63: 57 | AK63: 166 | AL63: 257 | AM63: 145 | AN63: 1 | AO63: 224 | AP63: 224 | AQ63: 192
A64: 30 | B64: MARNE-ARDENNES | C64: 11 | D64: REIMS | E64: 551307 | F64: REIMS SAINTE ANNE | G64: 3.5 | H64: 55 | I64: 22 | J64: 71 | K64: 66 | L64: 198 | M64: 12 | N64: 31 | O64: 213 | P64: 15 | Q64: 109 | R64: 13 | S64: 167 | T64: 265 | U64: 174 | V64: 71 | W64: 144 | X64: 24 | Y64: 294 | Z64: 166 | AA64: 20 | AB64: 267 | AC64: 205 | AD64: 277 | AE64: 148 | AF64: 70 | AG64: 53 | AH64: 47 | AI64: 66 | AJ64: 94 | AK64: 232 | AL64: 152 | AM64: 306 | AN64: 1 | AO64: 122 | AP64: 113 | AQ64: 181
A65: 110 | B65: MEURTHE ET MOSELLE MEUSE | C65: 31 | D65: VERDUN | E65: 455676 | F65: VAUCOULEURS | G65: 1.8 | H65: 56 | I65: 46 | J65: 19 | K65: 190 | L65: 8 | M65: 232 | N65: 296 | O65: 157 | P65: 248 | Q65: 285 | R65: 202 | S65: 304 | T65: 148 | U65: 210 | V65: 288 | W65: 290 | X65: 273 | Y65: 43 | Z65: 34 | AA65: 47 | AB65: 257 | AC65: 87 | AD65: 40 | AE65: 87 | AF65: 191 | AG65: 25 | AH65: 15 | AI65: 238 | AJ65: 6 | AK65: 137 | AL65: 294 | AM65: 48 | AN65: 1 | AO65: 63 | AP65: 60 | AQ65: 69
A66: 110 | B66: MEURTHE ET MOSELLE MEUSE | C66: 31 | D66: VERDUN | E66: 455298 | F66: ETAIN | G66: 2.8 | H66: 57 | I66: 20 | J66: 37 | K66: 22 | L66: 193 | M66: 25 | N66: 192 | O66: 214 | P66: 86 | Q66: 159 | R66: 293 | S66: 21 | T66: 92 | U66: 128 | V66: 276 | W66: 258 | X66: 189 | Y66: 41 | Z66: 21 | AA66: 141 | AB66: 109 | AC66: 5 | AD66: 137 | AE66: 174 | AF66: 131 | AG66: 212 | AH66: 199 | AI66: 239 | AJ66: 111 | AK66: 14 | AL66: 1 | AM66: 24 | AN66: 1 | AO66: 87 | AP66: 60 | AQ66: 163
A67: 30 | B67: MARNE-ARDENNES | C67: 2 | D67: CHARLEVILLE MEZIERES | E67: 408840 | F67: RETHEL | G67: 7.2 | H67: 58 | I67: 117 | J67: 81 | K67: 202 | L67: 124 | M67: 112 | N67: 76 | O67: 147 | P67: 197 | Q67: 189 | R67: 21 | S67: 56 | T67: 138 | U67: 155 | V67: 256 | W67: 239 | X67: 250 | Y67: 65 | Z67: 120 | AA67: 158 | AB67: 85 | AC67: 221 | AD67: 70 | AE67: 175 | AF67: 36 | AG67: 44 | AH67: 34 | AI67: 54 | AJ67: 86 | AK67: 68 | AL67: 113 | AM67: 94 | AN67: 1 | AO67: 146 | AP67: 145 | AQ67: 153
A68: 160 | B68: MOSELLE | C68: 42 | D68: MOSELLE EST | E68: 457614 | F68: SARREBOURG | G68: 8.8 | H68: 59 | I68: 54 | J68: 69 | K68: 37 | L68: 84 | M68: 230 | N68: 135 | O68: 238 | P68: 130 | Q68: 96 | R68: 63 | S68: 160 | T68: 108 | U68: 106 | V68: 86 | W68: 118 | X68: 198 | Y68: 123 | Z68: 38 | AA68: 33 | AB68: 185 | AC68: 72 | AD68: 169 | AE68: 242 | AF68: 26 | AG68: 142 | AH68: 118 | AI68: 196 | AJ68: 106 | AK68: 132 | AL68: 227 | AM68: 124 | AN68: 1 | AO68: 47 | AP68: 45 | AQ68: 62
A69: 160 | B69: MOSELLE | C69: 42 | D69: MOSELLE EST | E69: 557210 | F69: CHATEAU SALINS | G69: 3.4 | H69: 60 | I69: 51 | J69: 137 | K69: 167 | L69: 261 | M69: 5 | N69: 23 | O69: 111 | P69: 89 | Q69: 9 | R69: 257 | S69: 6 | T69: 88 | U69: 206 | V69: 130 | W69: 139 | X69: 40 | Y69: 67 | Z69: 233 | AA69: 110 | AB69: 217 | AC69: 150 | AD69: 297 | AE69: 88 | AF69: 218 | AG69: 118 | AH69: 238 | AI69: 53 | AJ69: 130 | AK69: 41 | AL69: 1 | AM69: 70 | AN69: 1 | AO69: 132 | AP69: 136 | AQ69: 128
A70: 160 | B70: MOSELLE | C70: 44 | D70: MOSELLE NORD | E70: 557622 | F70: SIERCK LES BAINS | G70: 2.9 | H70: 61 | I70: 184 | J70: 179 | K70: 91 | L70: 155 | M70: 232 | N70: 161 | O70: 169 | P70: 184 | Q70: 129 | R70: 31 | S70: 292 | T70: 37 | U70: 104 | V70: 112 | W70: 122 | X70: 49 | Y70: 36 | Z70: 101 | AA70: 100 | AB70: 12 | AC70: 25 | AD70: 206 | AE70: 271 | AF70: 269 | AG70: 121 | AH70: 78 | AI70: 256 | AJ70: 44 | AK70: 43 | AL70: 1 | AM70: 72 | AN70: 1 | AO70: 27 | AP70: 21 | AQ70: 57
A71: 50 | B71: AUBE HAUTE MARNE | C71: 14 | D71: TROYES | E71: 410550 | F71: BAR SUR AUBE | G71: 4.3 | H71: 62 | I71: 101 | J71: 56 | K71: 42 | L71: 203 | M71: 232 | N71: 62 | O71: 216 | P71: 187 | Q71: 11 | R71: 50 | S71: 130 | T71: 112 | U71: 204 | V71: 213 | W71: 282 | X71: 197 | Y71: 45 | Z71: 180 | AA71: 126 | AB71: 95 | AC71: 277 | AD71: 9 | AE71: 244 | AF71: 76 | AG71: 61 | AH71: 31 | AI71: 82 | AJ71: 152 | AK71: 89 | AL71: 1 | AM71: 179 | AN71: 1 | AO71: 115 | AP71: 120 | AQ71: 130
A72: 262 | B72: BAS-RHIN | C72: 5006 | D72: STRASBOURG | E72: 4037 | F72: MUNDOLSHEIM | G72: 4.6 | H72: 63 | I72: 16 | J72: 154 | K72: 43 | L72: 69 | M72: 10 | N72: 67 | O72: 20 | P72: 102 | Q72: 102 | R72: 116 | S72: 137 | T72: 22 | U72: 18 | V72: 150 | W72: 147 | X72: 134 | Y72: 24 | Z72: 185 | AA72: 214 | AB72: 73 | AC72: 118 | AD72: 271 | AE72: 1 | AF72: 120 | AG72: 225 | AH72: 130 | AI72: 273 | AJ72: 165 | AK72: 135 | AL72: 216 | AM72: 135 | AN72: 1 | AO72: 170 | AP72: 193 | AQ72: 75
A73: 160 | B73: MOSELLE | C73: 45 | D73: METZ | E73: 457446 | F73: METZ SAINT LOUIS | G73: 9.3 | H73: 64 | I73: 60 | J73: 24 | K73: 236 | L73: 50 | M73: 112 | N73: 171 | O73: 176 | P73: 172 | Q73: 165 | R73: 146 | S73: 131 | T73: 5 | U73: 15 | V73: 94 | W73: 42 | X73: 97 | Y73: 6 | Z73: 129 | AA73: 137 | AB73: 167 | AC73: 31 | AD73: 273 | AE73: 144 | AF73: 189 | AG73: 201 | AH73: 133 | AI73: 127 | AJ73: 287 | AK73: 271 | AL73: 209 | AM73: 301 | AN73: 240 | AO73: 101 | AP73: 102 | AQ73: 113
A74: 30 | B74: MARNE-ARDENNES | C74: 11 | D74: REIMS | E74: 451301 | F74: REIMS HOTEL DE VILLE | G74: 9.0 | H74: 65 | I74: 209 | J74: 141 | K74: 158 | L74: 243 | M74: 219 | N74: 158 | O74: 107 | P74: 79 | Q74: 292 | R74: 270 | S74: 14 | T74: 13 | U74: 35 | V74: 141 | W74: 60 | X74: 177 | Y74: 10 | Z74: 112 | AA74: 148 | AB74: 253 | AC74: 109 | AD74: 60 | AE74: 272 | AF74: 33 | AG74: 172 | AH74: 80 | AI74: 145 | AJ74: 280 | AK74: 239 | AL74: 273 | AM74: 303 | AN74: 1 | AO74: 12 | AP74: 8 | AQ74: 95
A75: 30 | B75: MARNE-ARDENNES | C75: 11 | D75: REIMS | E75: 551341 | F75: REIMS JEAN JAURES | G75: 4.6 | H75: 66 | I75: 24 | J75: 64 | K75: 44 | L75: 28 | M75: 112 | N75: 223 | O75: 281 | P75: 236 | Q75: 155 | R75: 60 | S75: 213 | T75: 87 | U75: 22 | V75: 41 | W75: 141 | X75: 11 | Y75: 233 | Z75: 46 | AA75: 24 | AB75: 264 | AC75: 80 | AD75: 159 | AE75: 177 | AF75: 81 | AG75: 30 | AH75: 227 | AI75: 1 | AJ75: 284 | AK75: 113 | AL75: 115 | AM75: 194 | AN75: 1 | AO75: 265 | AP75: 224 | AQ75: 295
A76: 264 | B76: HAUT-RHIN | C76: 5130 | D76: COLMAR | E76: 4135 | F76: COLMAR SAINTE MARIE | G76: 5.7 | H76: 67 | I76: 55 | J76: 76 | K76: 79 | L76: 73 | M76: 133 | N76: 103 | O76: 13 | P76: 251 | Q76: 238 | R76: 76 | S76: 132 | T76: 45 | U76: 46 | V76: 162 | W76: 160 | X76: 185 | Y76: 34 | Z76: 261 | AA76: 220 | AB76: 124 | AC76: 239 | AD76: 242 | AE76: 167 | AF76: 145 | AG76: 72 | AH76: 49 | AI76: 103 | AJ76: 102 | AK76: 165 | AL76: 164 | AM76: 224 | AN76: 1 | AO76: 133 | AP76: 148 | AQ76: 89
A77: 160 | B77: MOSELLE | C77: 44 | D77: MOSELLE NORD | E77: 557182 | F77: BOUZONVILLE | G77: 3.0 | H77: 68 | I77: 145 | J77: 134 | K77: 200 | L77: 70 | M77: 133 | N77: 24 | O77: 260 | P77: 160 | Q77: 1 | R77: 84 | S77: 137 | T77: 164 | U77: 67 | V77: 262 | W77: 249 | X77: 192 | Y77: 154 | Z77: 212 | AA77: 123 | AB77: 26 | AC77: 279 | AD77: 180 | AE77: 1 | AF77: 223 | AG77: 80 | AH77: 152 | AI77: 69 | AJ77: 78 | AK77: 25 | AL77: 1 | AM77: 41 | AN77: 1 | AO77: 69 | AP77: 60 | AQ77: 98
A78: 30 | B78: MARNE-ARDENNES | C78: 6 | D78: CHALONS EN CHAMPAGNE | E78: 551330 | F78: MONTMIRAIL | G78: 3.7 | H78: 69 | I78: 123 | J78: 16 | K78: 194 | L78: 40 | M78: 278 | N78: 100 | O78: 38 | P78: 121 | Q78: 218 | R78: 64 | S78: 245 | T78: 214 | U78: 248 | V78: 244 | W78: 198 | X78: 156 | Y78: 159 | Z78: 64 | AA78: 128 | AB78: 30 | AC78: 153 | AD78: 9 | AE78: 124 | AF78: 162 | AG78: 75 | AH78: 71 | AI78: 109 | AJ78: 71 | AK78: 9 | AL78: 1 | AM78: 18 | AN78: 1 | AO78: 48 | AP78: 40 | AQ78: 91
A79: 262 | B79: BAS-RHIN | C79: 5060 | D79: HAGUENAU | E79: 4031 | F79: TRUCHTERSHEIM | G79: 3.6 | H79: 70 | I79: 64 | J79: 43 | K79: 130 | L79: 133 | M79: 112 | N79: 27 | O79: 10 | P79: 139 | Q79: 55 | R79: 37 | S79: 180 | T79: 63 | U79: 105 | V79: 252 | W79: 228 | X79: 269 | Y79: 17 | Z79: 232 | AA79: 263 | AB79: 260 | AC79: 27 | AD79: 286 | AE79: 210 | AF79: 225 | AG79: 189 | AH79: 127 | AI79: 173 | AJ79: 223 | AK79: 274 | AL79: 1 | AM79: 39 | AN79: 287 | AO79: 40 | AP79: 45 | AQ79: 19
A80: 262 | B80: BAS-RHIN | C80: 5060 | D80: HAGUENAU | E80: 4057 | F80: BISCHWILLER | G80: 7.6 | H80: 71 | I80: 110 | J80: 91 | K80: 196 | L80: 159 | M80: 59 | N80: 40 | O80: 5 | P80: 107 | Q80: 57 | R80: 101 | S80: 202 | T80: 106 | U80: 101 | V80: 219 | W80: 150 | X80: 164 | Y80: 83 | Z80: 173 | AA80: 247 | AB80: 45 | AC80: 84 | AD80: 193 | AE80: 141 | AF80: 244 | AG80: 90 | AH80: 166 | AI80: 50 | AJ80: 164 | AK80: 98 | AL80: 107 | AM80: 161 | AN80: 1 | AO80: 113 | AP80: 97 | AQ80: 170
